Workbook

Sheet Single School Forecast (hidden)
B3: Color Key | R3: SY 2017-18 | S3: SY 2018-19 | T3: SY 2019-20 | U3: SY 2020-21 | V3: SY 2021-22 | W3: SY 2022-23 | X3: SY 2023-24 | Y3: SY 2024-25 | Z3: SY 2025-26 | AA3: SY 2026 - 27 | AB3: SY 2027 - 28
C4: = User Input | O4: BEA Rate | R4: =+R75/R43 ->  | S4: =+S75/S43 ->  | T4: =+T75/T43 ->  | U4: =+IFERROR(U75/U43,0) -> 0 | V4: 0 | W4: 11454.83868 | X4: 11605.67951 | Y4: 11941.87205 | Z4: 18521.22007 | AA4: 17582.7678 | AB4: =+IFERROR(AB75/AB43,0) -> 16903.38229
C5: = Calculated Field | O5: SpEd 3121 | R5: =+R87/R63 ->  | S5: =+S87/S63 ->  | T5: =+T87/T63 ->  | U5: =+IFERROR(U87/U63,0) -> 0 | V5: 0 | W5: 748.8785111 | X5: 743.2384758 | Y5: 798.432897 | Z5: 781.8151225 | AA5: 777.0576435 | AB5: =+IFERROR(AB87/AB63,0) -> 767.1574376
B6: FTE | C6: =Full time equivalent students | O6: SpEd 4121 | R6: =+R91/R62 ->  | S6: =+S89/S62 ->  | T6: =+T89/T62 ->  | U6: =+IFERROR(U89/U62,0) -> 0 | V6: 0 | W6: 10350.30762 | X6: 11882.31743 | Y6: 12274.47661 | Z6: 12018.56289 | AA6: 11945.29771 | AB6: =+IFERROR(AB89/AB62,0) -> 11792.83454
B7: Reference Data | D7: 2016 | E7: 2017 | F7: 2018 | G7: 2019 | H7: 2020 | O7: LAP | R7: =+(R209+R192+R174+R158+R148)/R54 ->  | S7: =+(S209+S192+S174+S158+S148)/S54 ->  | T7: =+(T209+T192+T174+T158+T148)/T54 ->  | U7: =+IFERROR((U209+U192+U174+U158+U148)/U54,0) -> 0 | V7: 538.0079245 | W7: 571.6703339 | X7: 568.7162297 | Y7: 590.8902136 | Z7: 592.9572781 | AA7: 605.3526675 | AB7: =+IFERROR((AB209+AB192+AB174+AB158+AB148)/AB54,0) -> 605.4202227
D8: SY 2016-17 | E8: SY 2017-18 | F8: SY 2018-19 | G8: SY 2019-20 | H8: SY 2020-21 | O8: LAP HiPov | R8: =+(R212+R195+R177+R161+R151)/R55 ->  | S8: =+(S212+S195+S177+S161+S151)/S55 ->  | T8: =+(T212+T195+T177+T161+T151)/T55 ->  | U8: =+IFERROR((U212+U195+U177+U161+U151)/U55,0) -> 0 | V8: 0 | W8: 0 | X8: 0 | Y8: 0 | Z8: 0 | AA8: 0 | AB8: =+IFERROR((AB212+AB195+AB177+AB161+AB151)/AB55,0) -> 0
C9: State Revenue Inflation (IPD) | E9: 0.017 | F9: 0.016 | G9: 0.018 | H9: 0.019 | O9: LAP Total | R9: =+R93/R54 ->  | S9: =+S93/S54 ->  | T9: =+T93/T54 ->  | U9: =+IFERROR(U93/U54,0) -> 0 | V9: 622.7249824 | W9: 661.4401752 | X9: 664.2250762 | Y9: 686.7667914 | Z9: 688.8663011 | AA9: 701.4681033 | AB9: =+IFERROR(AB93/AB54,0) -> 701.5356586
C10: CPI Seattle/Tacoma/Bremerton | D10: 0.022 | O10: TBIP | R10: =+R98/SUM(R51:R53) ->  | S10: =+S98/SUM(S51:S53) -> 135.8227106 | T10: =+T98/SUM(T51:T53) ->  | U10: =+IFERROR(U98/SUM(U51:U53),0) -> 0 | V10: 0 | W10: 0 | X10: 1303.905821 | Y10: 1407.903563 | Z10: 1414.36565 | AA10: 1436.178055 | AB10: =+IFERROR(AB98/SUM(AB51:AB53),0) -> 1427.765109
B11: Analysis Levers, by Year | O11: HiCap | R11: =+R103/R56 ->  | S11: =+S103/S56 ->  | T11: =+T103/T56 ->  | U11: =+IFERROR(U103/U56,0) -> 0 | V11: 560.7771583 | W11: 595.641017 | X11: 598.1488799 | Y11: 618.4481763 | Z11: 629.844285 | AA11: 641.3920918 | AB11: =+IFERROR(AB103/AB56,0) -> 641.4529267
B12: Note the difference in years from the reference data above | C12: Grant Year | D12: 2021 | E12: 2022 | F12: 2023 | G12: 2024 | H12: 2025 | O12: Transportation | R12: =+R108/(R43*0.95) ->  | S12: =+S108/(S43*0.95) ->  | T12: =+T108/(T43*0.95) ->  | U12: =+IFERROR(U108/(U43*0.95),0) -> 0 | V12: 0 | W12: 0 | X12: 0 | Y12: 0 | Z12: 0 | AA12: 0 | AB12: =+IFERROR(AB108/(AB43*0.95),0) -> 0
C13: School Year | D13: SY 2021-22 | E13: SY 2022-23 | F13: SY 2023-24 | G13: SY 2024-25 | H13: SY 2025-26 | O13: BEA Rate | S13: =+(S4-R4)/R4 ->  | T13: =+(T4-S4)/S4 ->  | U13: =+IFERROR((U4-T4)/T4,0) -> 0 | V13: 0 | W13: 0 | X13: 0.01316830688 | Y13: 0.02896793237 | Z13: 0.5509477902 | AA13: -0.05066903042 | AB13: -0.0386392813
C14: % Revenue Growth | D14: 0 | E14: 0 | F14: 0 | G14: 0 | H14: 0 | O14: SpEd 3121 | S14: =+(S5-R5)/R5 ->  | U14: 0 | V14: 0 | W14: 0 | X14: -0.007531308846 | Y14: 0.07426206131 | Z14: -0.02081298831 | AA14: -0.006085171318 | AB14: -0.01274063252
C15: % Salaries and Benefits Expense Growth | D15: 0 | E15: 0 | F15: 0 | G15: 0 | H15: 0 | O15: SpEd 4121 | U15: 0 | V15: 0 | W15: 0 | X15: 0.1480158715 | Y15: 0.03300359451 | Z15: -0.02084925787 | AA15: -0.006096001383 | AB15: -0.0127634467
C16: % Operating Expenses Growth | D16: 0 | E16: 0 | F16: 0 | G16: 0 | H16: 0 | O16: LAP | U16: 0 | V16: 0 | W16: 0.06256861272 | X16: -0.005167496132 | Y16: 0.03898953951 | Z16: 0.003498220952 | AA16: 0.02090435485 | AB16: 0.0001115964579
B17: Analysis Levers, All Years | O17: LAP HiPov | U17: 0 | V17: 0 | W17: 0 | X17: 0 | Y17: 0 | Z17: 0 | AA17: 0 | AB17: 0
C18: Include professional Learning time? | D18: Yes | O18: LAP Total | U18: 0 | V18: 0 | W18: 0.06217061134 | X18: 0.004210359607 | Y18: 0.03393686262 | Z18: 0.003057092689 | AA18: 0.0182935385 | AB18: 9.630546728e-05
C19: Include Oversight Fee? | O19: TBIP | U19: 0 | V19: 0 | W19: 0 | X19: 0 | Y19: 0.07975862973 | Z19: 0.004589864899 | AA19: 0.01542204122 | AB19: -0.005857871652
C20: Include SS RN ? | D20: Yes | O20: HiCap | U20: 0 | V20: 0 | W20: 0.06217061134 | X20: 0.004210359607 | Y20: 0.03393686262 | Z20: 0.01842694201 | AA20: 0.01833438375 | AB20: 9.484824431e-05
O21: Transportation | S21: =+(S12-R12)/R12 ->  | U21: 0 | V21: 0 | W21: 0 | X21: 0 | Y21: 0 | Z21: 0 | AA21: 0 | AB21: 0
O23: IPD Inflation (Reference)> | W23: 0.055 | X23: 0.037 | Y23: 0.039 | Z23: 0.021 | AA23: 0.021 | AB23: 0.021 | AC23: <Actual IPD in March 2022 was 2.8%, The 5.5% calculated rebase value in the budget is 5.5%
O24: Choose your revenue inflation rate> | U24: 0 | V24: 0 | W24: 0 | X24: 0 | Y24: =+Y23 -> 0.039 | Z24: =+Z23 -> 0.021 | AA24: =+AA23 -> 0.021 | AB24: =+AB23 -> 0.021 | AC24: < Applies to salaries
M25: =INDEX('Master Charter List - SB 6362'!$F$7:$F$385,MATCH('Single School Forecast'!$O$25,'Master Charter List - SB 6362'!$D$7:$D$385,0)) -> Pullman School District | N25: =VLOOKUP(O25,'Master Charter List - SB 6362'!D7:E385,2,FALSE) -> Pullman Community Montessori | O25: Pullman Community Montessori | W25: <Pick the school district you plan to locate in
O26: Input Charter School or Home District ^ | Y26: 2514346.988
R27: Budget | S27: Projected | T27: Projected | U27: Projected | V27: Projected | W27: Projected | X27: Projected | Y27: Projected | Z27: Projected | AA27: Projected | AB27: Projected
O28: Grant Year | R28: 2017 | S28: 2018 | T28: 2019 | U28: 2020 | V28: 2021 | W28: 2022 | X28: 2023 | Y28: 2024 | Z28: 2025 | AA28: 2026 | AB28: 2027
O29: Enrollment/ Descriptive | Q29: 2016-17 | R29: SY 2017-18 | S29: SY 2018-19 | T29: SY 2019-20 | U29: 2020-21 | V29: SY 2021-22 | W29: SY 2022-23 | X29: SY 2023-24 | Y29: SY 2024-25 | Z29: SY 2025-26 | AA29: SY 2026-27 | AB29: SY 2027-28 | AC29: Notes
K30: Enroll K-6 | L30: Enroll K-8 | M30: Enroll K-3 | N30: Elem | O30: K | W30: 30 | X30: =+'Enrollment and Demographics'!E3 -> 18 | Y30: =+'Enrollment and Demographics'!F3 -> 25 | Z30: =+'Enrollment and Demographics'!G3 -> 30 | AA30: =+'Enrollment and Demographics'!H3 -> 30 | AB30: =+'Enrollment and Demographics'!I3 -> 30
K31: Enroll K-6 | L31: Enroll K-8 | M31: Enroll K-3 | N31: Elem | O31: 1 | W31: 22 | X31: =+'Enrollment and Demographics'!E4 -> 30.5 | Y31: =+'Enrollment and Demographics'!F4 -> 24 | Z31: =+'Enrollment and Demographics'!G4 -> 32 | AA31: =+'Enrollment and Demographics'!H4 -> 34 | AB31: =+'Enrollment and Demographics'!I4 -> 34
K32: Enroll K-6 | L32: Enroll K-8 | M32: Enroll K-3 | N32: Elem | O32: 2 | W32: 13 | X32: =+'Enrollment and Demographics'!E5 -> 20.7 | Y32: =+'Enrollment and Demographics'!F5 -> 30 | Z32: =+'Enrollment and Demographics'!G5 -> 28 | AA32: =+'Enrollment and Demographics'!H5 -> 32 | AB32: =+'Enrollment and Demographics'!I5 -> 32
K33: Enroll K-6 | L33: Enroll K-8 | M33: Enroll K-3 | N33: Elem | O33: 3 | W33: 11 | X33: =+'Enrollment and Demographics'!E6 -> 9.7 | Y33: =+'Enrollment and Demographics'!F6 -> 21 | Z33: =+'Enrollment and Demographics'!G6 -> 33 | AA33: =+'Enrollment and Demographics'!H6 -> 28 | AB33: =+'Enrollment and Demographics'!I6 -> 32
K34: Enroll K-6 | L34: Enroll K-8 | M34: Enroll 4 | N34: Elem | O34: 4 | W34: 5 | X34: =+'Enrollment and Demographics'!E7 -> 8.7 | Y34: =+'Enrollment and Demographics'!F7 -> 7 | Z34: =+'Enrollment and Demographics'!G7 -> 22 | AA34: =+'Enrollment and Demographics'!H7 -> 30 | AB34: =+'Enrollment and Demographics'!I7 -> 29
K35: Enroll K-6 | L35: Enroll K-8 | M35: Enroll 5-6 | N35: Elem | O35: 5 | W35: 13 | X35: =+'Enrollment and Demographics'!E8 -> 5.7 | Y35: =+'Enrollment and Demographics'!F8 -> 7 | Z35: =+'Enrollment and Demographics'!G8 -> 9 | AA35: =+'Enrollment and Demographics'!H8 -> 20 | AB35: =+'Enrollment and Demographics'!I8 -> 30
K36: Enroll K-6 | L36: Enroll K-8 | M36: Enroll 5-6 | N36: Elem | O36: 6 | W36: 6 | X36: =+'Enrollment and Demographics'!E9 -> 6.9 | Y36: =+'Enrollment and Demographics'!F9 -> 4 | Z36: =+'Enrollment and Demographics'!G9 -> 8 | AA36: =+'Enrollment and Demographics'!H9 -> 9 | AB36: =+'Enrollment and Demographics'!I9 -> 20
K37: Enroll 7-8 | L37: Enroll K-8 | M37: Enroll 7-8 | N37: Middle | O37: 7 | X37: =+'Enrollment and Demographics'!E10 -> 6.2 | Y37: =+'Enrollment and Demographics'!F10 -> 8 | Z37: =+'Enrollment and Demographics'!G10 -> 5 | AA37: =+'Enrollment and Demographics'!H10 -> 7 | AB37: =+'Enrollment and Demographics'!I10 -> 8
K38: Enroll 7-8 | L38: Enroll K-8 | M38: Enroll 7-8 | N38: Middle | O38: 8 | X38: =+'Enrollment and Demographics'!E11 -> 0 | Y38: =+'Enrollment and Demographics'!F11 -> 6 | Z38: =+'Enrollment and Demographics'!G11 -> 9 | AA38: =+'Enrollment and Demographics'!H11 -> 5 | AB38: =+'Enrollment and Demographics'!I11 -> 7
M39: Enroll 9-12 | N39: High | O39: 9 | X39: =+'Enrollment and Demographics'!E12 -> 0 | Y39: =+'Enrollment and Demographics'!F12 -> - | Z39: =+'Enrollment and Demographics'!G12 -> 6 | AA39: =+'Enrollment and Demographics'!H12 -> 9 | AB39: =+'Enrollment and Demographics'!I12 -> 5
M40: Enroll 9-12 | N40: High | O40: 10 | X40: =+'Enrollment and Demographics'!E13 -> 0 | Y40: =+'Enrollment and Demographics'!F13 -> 0 | Z40: =+'Enrollment and Demographics'!G13 -> 0 | AA40: =+'Enrollment and Demographics'!H13 -> 0 | AB40: =+'Enrollment and Demographics'!I13 -> 0
M41: Enroll 9-12 | N41: High | O41: 11 | X41: =+'Enrollment and Demographics'!E14 -> 0 | Y41: =+'Enrollment and Demographics'!F14 -> 0 | Z41: =+'Enrollment and Demographics'!G14 -> 0 | AA41: =+'Enrollment and Demographics'!H14 -> 0 | AB41: =+'Enrollment and Demographics'!I14 -> 0
M42: Enroll 9-12 | N42: High | O42: 12 | V42: 99.8 | X42: =+'Enrollment and Demographics'!E15 -> 0 | Y42: =+'Enrollment and Demographics'!F15 -> 0 | Z42: =+'Enrollment and Demographics'!G15 -> 0 | AA42: =+'Enrollment and Demographics'!H15 -> 0 | AB42: =+'Enrollment and Demographics'!I15 -> 0
M43: Total Enrollment | O43: Total Enrollment | Q43: =IFERROR(INDEX('Variable Inputs - SB 6362'!G$12:G$4816,MATCH($N55,'Variable Inputs - SB 6362'!$C$12:$C$4816,0)),0) -> 0 | R43: =SUM(R30:R42) -> 0 | S43: 0 | T43: =SUM(T30:T42) -> 0 | U43: =SUM(U30:U42) -> 0 | V43: 99.8 | W43: 100 | X43: 106.4 | Y43: 132 | Z43: 182 | AA43: 204 | AB43: =SUM(AB30:AB42) -> 227
O44: Enrollment Growth | S44: =IFERROR((S43-R43)/R43,0) -> 0 | T44: =(T43-S43)/S43 ->  | W44: 0.002004008016 | X44: 0.064 | Y44: 0.2406015038 | Z44: 0.3787878788 | AA44: 0.1208791209 | AB44: 0.112745098
O45: % K-3 HighPov | R45: 0 | S45: 0 | T45: 0 | U45: 0 | V45: 0 | W45: 0 | X45: 0 | Y45: 0 | Z45: 0 | AA45: 1 | AB45: 1
M46: Enroll K-3 HighPov | O46: K-3 HighPov | R46: =IF(R45<0.5,0,R45*SUM(R30:R33)) -> 0 | S46: =IF(S45<0.5,0,S45*SUM(S30:S33)) -> 0 | T46: 0 | U46: 0 | V46: 0 | W46: 0 | X46: 0 | Y46: 0 | Z46: 0 | AA46: 124 | AB46: =IF(AB45<0.5,0,AB45*SUM(AB30:AB33)) -> 128
M47: =$M$25&" - "&"% LAP from Cedars" -> Pullman School District - % LAP from Cedars | N47: =$N$25&" - "&"% LAP from Cedars" -> Pullman Community Montessori - % LAP from Cedars | O47: % FRPL | R47: =IF(R43=0,0,IFERROR(INDEX('Variable Inputs - SB 6362'!H$12:H$4816,MATCH($N47,'Variable Inputs - SB 6362'!$C$12:$C$4816,0)),INDEX('Variable Inputs - SB 6362'!H$12:H$4816,MATCH($M47,'Variable Inputs - SB 6362'!$C$12:$C$4816,0)))) -> 0 | S47: =IF(S43=0,0,IFERROR(INDEX('Variable Inputs - SB 6362'!I$12:I$4816,MATCH($N47,'Variable Inputs - SB 6362'!$C$12:$C$4816,0)),INDEX('Variable Inputs - SB 6362'!I$12:I$4816,MATCH($M47,'Variable Inputs - SB 6362'!$C$12:$C$4816,0)))) -> 0 | T47: =IF(T43=0,0,IFERROR(INDEX('Variable Inputs - SB 6362'!J$12:J$4816,MATCH($N47,'Variable Inputs - SB 6362'!$C$12:$C$4816,0)),INDEX('Variable Inputs - SB 6362'!J$12:J$4816,MATCH($M47,'Variable Inputs - SB 6362'!$C$12:$C$4816,0)))) -> 0 | U47: =IF(U43=0,0,IFERROR(INDEX('Variable Inputs - SB 6362'!K$12:K$4816,MATCH($N47,'Variable Inputs - SB 6362'!$C$12:$C$4816,0)),INDEX('Variable Inputs - SB 6362'!K$12:K$4816,MATCH($M47,'Variable Inputs - SB 6362'!$C$12:$C$4816,0)))) -> 0 | V47: =IF(V43=0,0,IFERROR(INDEX('Variable Inputs - SB 6362'!L$12:L$4816,MATCH($N47,'Variable Inputs - SB 6362'!$C$12:$C$4816,0)),INDEX('Variable Inputs - SB 6362'!L$12:L$4816,MATCH($M47,'Variable Inputs - SB 6362'!$C$12:$C$4816,0)))) -> 0.2762 | W47: =IF(W43=0,0,IFERROR(INDEX('Variable Inputs - SB 6362'!M$12:M$4816,MATCH($N47,'Variable Inputs - SB 6362'!$C$12:$C$4816,0)),INDEX('Variable Inputs - SB 6362'!M$12:M$4816,MATCH($M47,'Variable Inputs - SB 6362'!$C$12:$C$4816,0)))) -> 0.2278 | X47: =IF(X43=0,0,IFERROR(INDEX('Variable Inputs - SB 6362'!N$12:N$4816,MATCH($N47,'Variable Inputs - SB 6362'!$C$12:$C$4816,0)),INDEX('Variable Inputs - SB 6362'!N$12:N$4816,MATCH($M47,'Variable Inputs - SB 6362'!$C$12:$C$4816,0)))) -> 0.2165 | Y47: =+'Enrollment and Demographics'!E22 -> 0.4981203008 | Z47: =+'Enrollment and Demographics'!F22 -> 0.4981203008 | AA47: =+'Enrollment and Demographics'!G22 -> 0.4981203008 | AB47: =+'Enrollment and Demographics'!H22 -> 0.4981203008 | AC47: <<% FRPL 50 and greater triggers the additional LAP funding for High Poverty Schools
O48: TBIP K-6 % | R48: 0.05 | S48: =+IFERROR(S51/SUM(S30:S36)," ") ->  | T48: =+IFERROR(T51/SUM(T30:T36)," ") ->  | W48: 0 | X48: =+'Enrollment and Demographics'!E24 -> 0.008849557522 | Y48: =+'Enrollment and Demographics'!F24 -> 0.01 | Z48: =+'Enrollment and Demographics'!G24 -> 0.01 | AA48: =+'Enrollment and Demographics'!H24 -> 0.01 | AB48: =+'Enrollment and Demographics'!I24 -> 0.01
O49: TBIP 7-12 % | R49: 0.05 | S49: =+IFERROR(S52/SUM(S37:S42)," ") ->  | T49: =+IFERROR(T52/SUM(T37:T42)," ") ->  | V49: 0 | X49: =+'Enrollment and Demographics'!E25 -> 0 | Y49: =+'Enrollment and Demographics'!F25 -> 0.01 | Z49: =+'Enrollment and Demographics'!G25 -> 0.01 | AA49: =+'Enrollment and Demographics'!H25 -> 0.01 | AB49: =+'Enrollment and Demographics'!I25 -> 0.01
O50: TBIP Exited % | R50: 0.02 | S50: =+IFERROR(S53/S43," ") ->  | T50: =+IFERROR(T53/T43," ") ->  | V50: 0 | W50: 0 | X50: =+'Enrollment and Demographics'!E26 -> 0 | Y50: =+'Enrollment and Demographics'!F26 -> 0 | Z50: =+'Enrollment and Demographics'!G26 -> 0 | AA50: =+'Enrollment and Demographics'!H26 -> 0 | AB50: =+'Enrollment and Demographics'!I26 -> 0
N51: TBIP (K-6) Staff Units | O51: TBIP (K-6) FTE | R51: =+R48*SUM(R30:R36) -> 0 | S51: 35 | X51: =+X48*SUM(X30:X36) -> 0.8867256637 | Y51: =+Y48*SUM(Y30:Y36) -> 1.18 | Z51: 1.62 | AA51: 1.83 | AB51: =+AB48*SUM(AB30:AB36) -> 2.07 | AC51: << Enter values here is you plan to apply for these funds in iGrants
N52: TBIP (7-12) Staff Units | O52: TBIP(7-12) FTE | R52: =+R48*SUM(R37:R42) -> 0 | S52: 15 | X52: =+X49*SUM(X37:X42) -> 0 | Y52: =+Y49*SUM(Y37:Y42) -> 0.14 | Z52: 0.2 | AA52: 0.21 | AB52: =+AB49*SUM(AB37:AB42) -> 0.2 | AC52: << Enter values here is you plan to apply for these funds in iGrants
N53: TBIP Exited Staff Units | O53: TBIP Exited FTE | R53: =+R50*R43 -> 0 | S53: 5 | X53: =+X50*X43 -> 0 | Y53: =+Y50*Y43 -> 0 | Z53: 0 | AA53: 0 | AB53: =+AB50*AB43 -> 0 | AC53: << Enter values here is you plan to apply for these funds in iGrants
L54: =$M$25&" - "&"% LAP from Cedars" -> Pullman School District - % LAP from Cedars | M54: =$N$25&" - "&"% LAP from Cedars" -> Pullman Community Montessori - % LAP from Cedars | N54: LAP Staff Units | O54: LAP FTE | R54: =IF(R47*Q43=0,R47*R43,R47*Q43) -> 0 | S54: =+IF(S47*R43=0,S47*S43,S47*R43) -> 0 | T54: =+IF(T47*S43=0,T47*T43,T47*S43) -> 0 | U54: 0 | V54: 27.56476 | W54: 22.73444 | X54: 21.65 | Y54: 53 | Z54: 65.7518797 | AA54: 90.65789474 | AB54: 101.6165414 | AC54: <<These do not reflect the actual number of students in the program, just the number of students that will produce funding,
M55: =N25&" - "&"LAP High Pov Eligible" -> Pullman Community Montessori - LAP High Pov Eligible | N55: =N25&" - "&O55 -> Pullman Community Montessori - LAP Hi Pov FTE | O55: LAP Hi Pov FTE | Q55: =IFERROR(INDEX('Variable Inputs - SB 6362'!G$12:G$4816,MATCH($M55,'Variable Inputs - SB 6362'!$C$12:$C$4816,0)),"No Value") -> 0 | R55: =IFERROR(IF(Q55="Yes",INDEX('Variable Inputs - SB 6362'!G$12:G$4816,MATCH($N55,'Variable Inputs - SB 6362'!$C$12:$C$4816,0)),IF(AND(Q55="No Value",R47>=0.5),R43,0)),0) -> 0 | S55: =+IF(AVERAGE(R47:S47)>0.5,R43,0) -> 0 | T55: 0 | U55: =+IF(AVERAGE(S47:U47)>0.5,T43,0) -> 0 | V55: =+IF(AVERAGE(T47:V47)>0.5,U43,0) -> 0 | W55: =+IF(AVERAGE(U47:W47)>0.5,V43,0) -> 0 | X55: 0 | Y55: 0 | Z55: 0 | AA55: 0 | AB55: 0 | AC55: <<Students eligible for LAP Hi POV will show up here, if the previous year's % FRPL is greater than 50, then previous year's total enrollment will fill in
M56: HiCap students % | N56: HiCap Staff Units | O56: HiCap FTE | R56: =R43*INDEX('Standard Inputs - SB 6362'!F$12:F$1048576,MATCH('Single School Forecast'!$M$56,'Standard Inputs - SB 6362'!$D$12:$D$1048576,0)) -> 0 | S56: =S43*INDEX('Standard Inputs - SB 6362'!G$12:G$1048576,MATCH('Single School Forecast'!$M$56,'Standard Inputs - SB 6362'!$D$12:$D$1048576,0)) -> 0 | T56: =T43*INDEX('Standard Inputs - SB 6362'!H$12:H$1048576,MATCH('Single School Forecast'!$M$56,'Standard Inputs - SB 6362'!$D$12:$D$1048576,0)) -> 0 | U56: =U43*INDEX('Standard Inputs - SB 6362'!I$12:I$1048576,MATCH('Single School Forecast'!$M$56,'Standard Inputs - SB 6362'!$D$12:$D$1048576,0)) -> 0 | V56: =V43*INDEX('Standard Inputs - SB 6362'!J$12:J$1048576,MATCH('Single School Forecast'!$M$56,'Standard Inputs - SB 6362'!$D$12:$D$1048576,0)) -> 4.99 | W56: =W43*INDEX('Standard Inputs - SB 6362'!K$12:K$1048576,MATCH('Single School Forecast'!$M$56,'Standard Inputs - SB 6362'!$D$12:$D$1048576,0)) -> 5 | X56: =X43*INDEX('Standard Inputs - SB 6362'!L$12:L$1048576,MATCH('Single School Forecast'!$M$56,'Standard Inputs - SB 6362'!$D$12:$D$1048576,0)) -> 5.32 | Y56: =Y43*INDEX('Standard Inputs - SB 6362'!M$12:M$1048576,MATCH('Single School Forecast'!$M$56,'Standard Inputs - SB 6362'!$D$12:$D$1048576,0)) -> 6.6 | Z56: =Z43*INDEX('Standard Inputs - SB 6362'!N$12:N$1048576,MATCH('Single School Forecast'!$M$56,'Standard Inputs - SB 6362'!$D$12:$D$1048576,0)) -> 9.1 | AA56: =AA43*INDEX('Standard Inputs - SB 6362'!O$12:O$1048576,MATCH('Single School Forecast'!$M$56,'Standard Inputs - SB 6362'!$D$12:$D$1048576,0)) -> 10.2 | AB56: =AB43*INDEX('Standard Inputs - SB 6362'!P$12:P$1048576,MATCH('Single School Forecast'!$M$56,'Standard Inputs - SB 6362'!$D$12:$D$1048576,0)) -> 11.35 | AC56: <<These do not reflect the actual number of students in the program, just the number of students that will produce funding
O57: Highly Capable Program? | R57: No | S57: No | T57: No | U57: Yes | V57: Yes | W57: Yes | X57: Yes | Y57: Yes | Z57: Yes | AA57: Yes | AB57: Yes | AC57: <<You should choose Yes if you plan to apply for the money in iGrants
O58: % SpEd (of total enrollment) | R58: 0.16 | S58: 0.15 | T58: 0.135 | W58: 0.135 | X58: =+'Enrollment and Demographics'!E28 -> 0.15 | Y58: =+'Enrollment and Demographics'!F28 -> 0.16 | Z58: =+'Enrollment and Demographics'!G28 -> 0.16 | AA58: =+'Enrollment and Demographics'!H28 -> 0.16 | AB58: =+'Enrollment and Demographics'!I28 -> 0.16
O59: SpEd Tier 1 >= 80% FTE | W59: =+W58*W43 -> 13.5 | X59: =+X58*X43 -> 15.96 | Y59: =+Y58*Y43 -> 21.12 | Z59: 29.12 | AA59: 32.64 | AB59: 36.32
O60: SpEd Tier 2 < 80% FTE
O61: Total Check | U61: =+IF(SUM(U59:U60)=U62," ","!Tier 1 & 2 <> 4121 SpEd FTE!") ->  | V61: =+IF(SUM(V59:V60)=V62," ","!Tier 1 & 2 <> 4121 SpEd FTE!") ->  | W61: =+IF(SUM(W59:W60)=W62," ","!Tier 1 & 2 <> 4121 SpEd FTE!") ->  | AB61: =+IF(SUM(AB59:AB60)=AB62," ","!Tier 1 & 2 <> 4121 SpEd FTE!") ->  | AC61: << Cell 59 + 60 must equal 62
O62: 4121 Funded SpEd FTE | R62: =IF(R58>0.135,R43*0.135,R58*R43) -> 0 | S62: 0 | T62: 0 | U62: =ROUND(IF(U58>0.135,U43*0.135,U58*U43),2) -> 0 | V62: =ROUND(IF(V58>0.135,V43*0.135,V58*V43),2) -> 0 | W62: 13.5 | X62: =ROUND(IF(X58>0.15,X43*0.15,X58*X43),2) -> 15.96 | Y62: =+Y59 -> 21.12 | Z62: =+Z59 -> 29.12 | AA62: 32.64 | AB62: 36.32 | AC62: <<This value informs Account 4121 SpEd
O63: Actual SpEd Count | R63: =R58*R43 -> 0 | S63: 0 | T63: 0 | U63: 0 | V63: 0 | W63: 13.5 | X63: 15.96 | Y63: 21.12 | Z63: 29.12 | AA63: 32.64 | AB63: =AB58*AB43 -> 36.32 | AC63: <<This value informs Account 3121 SpEd
O64: K-3 Ratio Student to Teacher Ratio | U64: 17 | V64: 17 | W64: 17 | X64: 17 | Y64: 17 | Z64: 17 | AA64: 17 | AB64: 17 | AC64: << Cannot be lower than 17, Links to Standard Inputs Tab
F65: LAP Staff Units | G65: TBIP Staff Units | H65: HiCap Staff Units | I65: LAP High Pov Staff Units | J65: SS RN CIS | K65: SS RN CAS | L65: School CIS Staff Units | M65: School CAS Staff Units | N65: Central Admin CAS Staff Units | O65: Funded CIS/ CAS Units | T65: =+SUMIF($P$218:$P$326,$F65,T$218:T$326)+SUMIF($P$218:$P$326,$G65,T$218:T$326)+SUMIF($P$218:$P$326,$H65,T$218:T$326)+SUMIF($P$218:$P$326,$I65,T$218:T$326)+SUMIF($P$218:$P$326,$J65,T$218:T$326)+SUMIF($P$218:$P$326,$K65,T$218:T$326)+SUMIF($P$218:$P$326,$L65,T$218:T$326)+SUMIF($P$218:$P$326,$M65,T$218:T$326)+SUMIF($P$218:$P$326,$N65,T$218:T$326) ->  | U65: 0 | V65: 10.61962385 | W65: 7.727953501 | X65: 8.259391767 | Y65: 10.50296553 | Z65: 22.54899519 | AA65: 23.76052482 | AB65: 25.38291313
N66: CIS/ CAS SEBB Multiplier | O66: SEBB Funded CIS/ CAS Units | T66: =+T$65*INDEX('Standard Inputs - SB 6362'!H$12:H$1048576,MATCH($N66,'Standard Inputs - SB 6362'!$D$12:$D$1048576,0)) ->  | U66: =+U$65*INDEX('Standard Inputs - SB 6362'!I$12:I$1048576,MATCH($N66,'Standard Inputs - SB 6362'!$D$12:$D$1048576,0)) -> 0 | V66: =+V$65*INDEX('Standard Inputs - SB 6362'!J$12:J$1048576,MATCH($N66,'Standard Inputs - SB 6362'!$D$12:$D$1048576,0)) -> 10.83201633 | W66: =+W$65*INDEX('Standard Inputs - SB 6362'!K$12:K$1048576,MATCH($N66,'Standard Inputs - SB 6362'!$D$12:$D$1048576,0)) -> 7.882512571 | X66: =+X$65*INDEX('Standard Inputs - SB 6362'!L$12:L$1048576,MATCH($N66,'Standard Inputs - SB 6362'!$D$12:$D$1048576,0)) -> 8.424579603 | Y66: =+Y$65*INDEX('Standard Inputs - SB 6362'!M$12:M$1048576,MATCH($N66,'Standard Inputs - SB 6362'!$D$12:$D$1048576,0)) -> 10.71302484 | Z66: =+Z$65*INDEX('Standard Inputs - SB 6362'!N$12:N$1048576,MATCH($N66,'Standard Inputs - SB 6362'!$D$12:$D$1048576,0)) -> 22.99997509 | AA66: =+AA$65*INDEX('Standard Inputs - SB 6362'!O$12:O$1048576,MATCH($N66,'Standard Inputs - SB 6362'!$D$12:$D$1048576,0)) -> 24.23573532 | AB66: =+AB$65*INDEX('Standard Inputs - SB 6362'!Q$12:Q$1048576,MATCH($N66,'Standard Inputs - SB 6362'!$D$12:$D$1048576,0)) -> 0
K67: SS RN CLS | L67: School CLS Staff Units | M67: District CLS Staff Units | N67: Central Admin CLS Staff Units | O67: Funded CLS Units | T67: =+SUMIF($P$218:$P$326,$K67,T$218:T$326)+SUMIF($P$218:$P$326,$L67,T$218:T$326)+SUMIF($P$218:$P$326,$M67,T$218:T$326)+SUMIF($P$218:$P$326,$N67,T$218:T$326) ->  | U67: 0 | V67: 3.463172323 | W67: 2.471242946 | X67: 2.588075709 | Y67: 3.0559207 | Z67: 6.396058899 | AA67: 6.723156983 | AB67: 7.199788412
N68: CLS SEBB Multiplier | O68: SEBB Funded CLS Units | T68: =+T$67*INDEX('Standard Inputs - SB 6362'!H$12:H$1048576,MATCH($N68,'Standard Inputs - SB 6362'!$D$12:$D$1048576,0)) ->  | U68: =+U$67*INDEX('Standard Inputs - SB 6362'!I$12:I$1048576,MATCH($N68,'Standard Inputs - SB 6362'!$D$12:$D$1048576,0)) -> 0 | V68: =+V$67*INDEX('Standard Inputs - SB 6362'!J$12:J$1048576,MATCH($N68,'Standard Inputs - SB 6362'!$D$12:$D$1048576,0)) -> 4.952336422 | W68: =+W$67*INDEX('Standard Inputs - SB 6362'!K$12:K$1048576,MATCH($N68,'Standard Inputs - SB 6362'!$D$12:$D$1048576,0)) -> 3.533877412 | X68: =+X$67*INDEX('Standard Inputs - SB 6362'!L$12:L$1048576,MATCH($N68,'Standard Inputs - SB 6362'!$D$12:$D$1048576,0)) -> 3.700948264 | Y68: =+Y$67*INDEX('Standard Inputs - SB 6362'!M$12:M$1048576,MATCH($N68,'Standard Inputs - SB 6362'!$D$12:$D$1048576,0)) -> 4.369966601 | Z68: =+Z$67*INDEX('Standard Inputs - SB 6362'!N$12:N$1048576,MATCH($N68,'Standard Inputs - SB 6362'!$D$12:$D$1048576,0)) -> 9.146364226 | AA68: =+AA$67*INDEX('Standard Inputs - SB 6362'!O$12:O$1048576,MATCH($N68,'Standard Inputs - SB 6362'!$D$12:$D$1048576,0)) -> 9.614114486 | AB68: =+AB$67*INDEX('Standard Inputs - SB 6362'!Q$12:Q$1048576,MATCH($N68,'Standard Inputs - SB 6362'!$D$12:$D$1048576,0)) -> 0
R70: Budget | S70: Projected | T70: Projected | U70: Projected | V70: Projected | W70: Projected | X70: Projected | Y70: Projected | Z70: Projected | AA70: Projected | AB70: Projected
O71: Grant Year | R71: 2017 | S71: 2018 | T71: 2019 | U71: 2020 | V71: 2021 | W71: 2022 | X71: 2023 | Y71: 2024 | Z71: 2025 | AA71: 2026 | AB71: 2026
O72: School Year | R72: SY 2017-18 | S72: SY 2018-19 | T72: SY 2019-20 | U72: SY 2020-21 | V72: SY 2021-22 | W72: SY 2022-23 | X72: SY 2023-24 | Y72: SY 2024-25 | Z72: SY 2025-26 | AA72: SY 2026-27 | AB72: SY 2026-27
O73: Total Revenue | R73: =R75+R87+R88-R74 ->  | W73: 1313338.558 | X73: 1455067.004 | Y73: 1894765.79 | Z73: =Z75+Z87+Z88-Z74 -> 3797209.042 | AA73: 4075207.935 | AB73: =AB75+AB87+AB88-AB74 -> 4375055.834
O74: Oversight Fee | R74: =IF($D$19="Yes",(R75+R88+R87+R110)*0.04,0) -> 0 | S74: 0 | T74: 0 | U74: 0 | V74: 0 | W74: 0 | X74: 0 | Y74: 0 | Z74: 0 | AA74: 0 | AB74: =IF($D$19="Yes",(AB75+AB88+AB87+AB110)*0.04,0) -> 0
O75: State Revenue - General Purpose | R75: =R76+R80+R85+R86-R87 ->  | W75: 1145483.868 | X75: =X76+X80+X85+X86-X87 -> 1234844.3 | Y75: 1576327.111 | Z75: 3370862.052 | AA75: 3586884.632 | AB75: =AB76+AB80+AB85+AB86-AB87 -> 3837067.78 | AC75: < This is less Account 3121 SpEd
O76: Salaries | R76: =SUM(R77:R79) -> 0 | S76: 0 | U76: 0 | V76: 909778.3748 | W76: 693341.7494 | X76: =SUM(X77:X79) -> 765959.8539 | Y76: 985419.1366 | Z76: 2131741.971 | AA76: =SUM(AA77:AA79) -> 2270506.302 | AB76: 2424436.858
O77: CIS Salaries | P77: CIS Salaries | R77: =SUMIF($P$137:$P$215,$P77,R$137:R$215) -> 0 | S77: 0 | U77: 0 | V77: 675510.7835 | W77: =SUMIF($P$137:$P$215,$P77,W$137:W$215) -> 518332.456 | X77: =SUMIF($P$137:$P$215,$P77,X$137:X$215) -> 574994.456 | Y77: 747667.3576 | Z77: 1635217.718 | AA77: 1747096.624 | AB77: 1862077.057
O78: CAS Salaries | P78: CAS Salaries | R78: 0 | S78: 0 | U78: 0 | V78: 63003.33041 | W78: 46077.13521 | X78: 50942.7378 | Y78: 65969.25667 | Z78: 143211.3128 | AA78: 152028.1136 | AB78: 164649.5147
O79: CLS Salaries | P79: CLS Salaries | R79: 0 | S79: 0 | U79: 0 | V79: 171264.2609 | W79: 128932.1582 | X79: 140022.6601 | Y79: 171782.5223 | Z79: 353312.9401 | AA79: 371381.5645 | AB79: 397710.2856
O80: Benefits | R80: =SUM(R81:R84) -> 0 | S80: 0 | U80: 0 | V80: 376881.0475 | W80: 297226.5649 | X80: =SUM(X81:X84) -> 300680.9828 | Y80: 377469.7285 | Z80: 815363.9377 | AA80: 860827.9976 | AB80: =SUM(AB81:AB84) -> 919565.6734
O81: Certificated SEBB Benefits | P81: Certificated SEBB | T81: =SUMIF($P$137:$P$215,$P81,T$137:T$215) ->  | U81: 0 | V81: 123396.2725 | W81: 94862.65913 | X81: =SUMIF($P$137:$P$215,$P81,X$137:X$215) -> 108776.316 | Y81: 136101.5877 | Z81: 296907.7763 | AA81: 310952.1781 | AB81: 331724.8133
O82: Classified SEBB Benefits | P82: Classified SEBB | U82: 0 | V82: 57526.33988 | W82: 43509.0987 | X82: 48852.51708 | Y82: 57683.55914 | Z82: 120732.0078 | AA82: 126906.3112 | AB82: 135903.2061
O83: Certificated Insurance and Benefits | P83: Certificated Insurance and Benefits | R83: =SUMIF($P$137:$P$215,$P83,R$137:R$215) -> 0 | S83: 0 | U83: 0 | V83: 162990.0649 | W83: 129513.0323 | X83: 112337.9755 | Y83: 146015.0389 | Z83: 319565.3101 | AA83: 341042.7351 | AB83: 364202.765
O84: Classified Insurance and Benefits | P84: Classified Insurance and Benefits | R84: 0 | S84: 0 | U84: 0 | V84: 32968.37022 | W84: 29341.77476 | X84: 30714.1743 | Y84: 37669.54285 | Z84: 78158.84355 | AA84: 81926.77312 | AB84: 87734.88901
O85: MSOC | P85: MSOC | R85: 0 | S85: 0 | T85: =SUMIF($P$137:$P$215,$P85,T$137:T$215) -> 0 | U85: =SUMIF($P$137:$P$215,$P85,U$137:U$215) -> 0 | V85: =SUMIF($P$137:$P$215,$P85,V$137:V$215)*(1+#REF!) ->  | W85: =SUMIF($P$137:$P$215,$P85,W$137:W$215)*(1+W$24) -> 150418.05 | X85: 164574.616 | Y85: 210450.1565 | Z85: 403094.6803 | AA85: 434793.5043 | AB85: 471792.0663
O86: Other Entitlements | P86: Other Entitlements | R86: 0 | S86: 0 | T86: =SUMIF($P$137:$P$215,$P86,T$137:T$215) ->  | U86: =SUMIF($P$137:$P$215,$P86,U$137:U$215) -> 0 | V86: =SUMIF($P$137:$P$215,$P86,V$137:V$215) -> 19124.17474 | W86: 14607.36362 | X86: 15490.93335 | Y86: 19850.9918 | Z86: 43427.91991 | AA86: 46119.98982 | AB86: 49136.34145
I87: SpEd BEA Rate | J87: District Exp. -State Recovery Rate | K87: =$N$25&" - "&"SpEd Recovery Rate" -> Pullman Community Montessori - SpEd Recovery Rate | L87: =IFERROR(INDEX('Variable Inputs - SB 6362'!H$12:H$4816,MATCH($K87,'Variable Inputs - SB 6362'!$C$12:$C$4816,0)),INDEX('Standard Inputs - SB 6362'!F$12:F$1048576,MATCH($J87,'Standard Inputs - SB 6362'!$D$12:$D$1048576,0))) -> 0.1 | M87: =$N$25&" - "&"% SpEd for 3121" -> Pullman Community Montessori - % SpEd for 3121 | N87: =$M$25&" - "&"% SpEd for 3121" -> Pullman School District - % SpEd for 3121 | O87: Account 3121 SpEd | R87: =IFERROR((R$63*INDEX(R$129:R$133,MATCH($I87,$P$129:$P$133,0)))/(1+$L87)*INDEX('Variable Inputs - SB 6362'!H$12:H$4815,MATCH($M87,'Variable Inputs - SB 6362'!$C$12:$C$4815,0)),(R$63*INDEX(R$129:R$133,MATCH($I87,$P$129:$P$133,0)))/(1+$L87)*INDEX('Variable Inputs - SB 6362'!H$12:H$4815,MATCH($N87,'Variable Inputs - SB 6362'!$C$12:$C$4815,0))) ->  | S87: =IFERROR((S$63*INDEX(S$129:S$133,MATCH($I87,$P$129:$P$133,0)))/(1+$L87)*INDEX('Variable Inputs - SB 6362'!I$12:I$4815,MATCH($M87,'Variable Inputs - SB 6362'!$C$12:$C$4815,0)),(S$63*INDEX(S$129:S$133,MATCH($I87,$P$129:$P$133,0)))/(1+$L87)*INDEX('Variable Inputs - SB 6362'!I$12:I$4815,MATCH($N87,'Variable Inputs - SB 6362'!$C$12:$C$4815,0))) ->  | T87: =IFERROR((T$63*INDEX(T$129:T$133,MATCH($I87,$P$129:$P$133,0)))/(1+$L87)*INDEX('Variable Inputs - SB 6362'!J$12:J$4815,MATCH($M87,'Variable Inputs - SB 6362'!$C$12:$C$4815,0)),(T$63*INDEX(T$129:T$133,MATCH($I87,$P$129:$P$133,0)))/(1+$L87)*INDEX('Variable Inputs - SB 6362'!J$12:J$4815,MATCH($N87,'Variable Inputs - SB 6362'!$C$12:$C$4815,0))) ->  | U87: =IFERROR((U$63*INDEX(U$129:U$133,MATCH($I87,$P$129:$P$133,0)))/(1+$L87)*INDEX('Variable Inputs - SB 6362'!K$12:K$4815,MATCH($M87,'Variable Inputs - SB 6362'!$C$12:$C$4815,0)),(U$63*INDEX(U$129:U$133,MATCH($I87,$P$129:$P$133,0)))/(1+$L87)*INDEX('Variable Inputs - SB 6362'!K$12:K$4815,MATCH($N87,'Variable Inputs - SB 6362'!$C$12:$C$4815,0))) ->  | V87: =IFERROR((V$63*INDEX(V$129:V$133,MATCH($I87,$P$129:$P$133,0)))/(1+$L87)*INDEX('Variable Inputs - SB 6362'!L$12:L$4815,MATCH($M87,'Variable Inputs - SB 6362'!$C$12:$C$4815,0)),(V$63*INDEX(V$129:V$133,MATCH($I87,$P$129:$P$133,0)))/(1+$L87)*INDEX('Variable Inputs - SB 6362'!L$12:L$4815,MATCH($N87,'Variable Inputs - SB 6362'!$C$12:$C$4815,0))) -> 0 | W87: =IFERROR((W$63*INDEX(W$129:W$133,MATCH($I87,$P$129:$P$133,0)))/(1+$L87)*INDEX('Variable Inputs - SB 6362'!M$12:M$4815,MATCH($M87,'Variable Inputs - SB 6362'!$C$12:$C$4815,0)),(W$63*INDEX(W$129:W$133,MATCH($I87,$P$129:$P$133,0)))/(1+$L87)*INDEX('Variable Inputs - SB 6362'!M$12:M$4815,MATCH($N87,'Variable Inputs - SB 6362'!$C$12:$C$4815,0))) -> 10109.8599 | X87: =IFERROR((X$63*INDEX(X$129:X$133,MATCH($I87,$P$129:$P$133,0)))/(1+_xlfn.XLOOKUP($O$25,'State Recovery'!$C:$C,'State Recovery'!D:D))*INDEX('Variable Inputs - SB 6362'!N$12:N$4815,MATCH($M87,'Variable Inputs - SB 6362'!$C$12:$C$4815,0)),(X$63*INDEX(X$129:X$133,MATCH($I87,$P$129:$P$133,0)))/(1+_xlfn.XLOOKUP($O$25,'State Recovery'!$C:$C,'State Recovery'!D:D))*INDEX('Variable Inputs - SB 6362'!N$12:N$4815,MATCH($N87,'Variable Inputs - SB 6362'!$C$12:$C$4815,0))) -> 11862.08607 | Y87: =IFERROR((Y$63*INDEX(Y$129:Y$133,MATCH($I87,$P$129:$P$133,0)))/(1+_xlfn.XLOOKUP($O$25,'State Recovery'!$C:$C,'State Recovery'!E:E))*INDEX('Variable Inputs - SB 6362'!O$12:O$4815,MATCH($M87,'Variable Inputs - SB 6362'!$C$12:$C$4815,0)),(Y$63*INDEX(Y$129:Y$133,MATCH($I87,$P$129:$P$133,0)))/(1+_xlfn.XLOOKUP($O$25,'State Recovery'!$C:$C,'State Recovery'!E:E))*INDEX('Variable Inputs - SB 6362'!O$12:O$4815,MATCH($N87,'Variable Inputs - SB 6362'!$C$12:$C$4815,0))) -> 16862.90279 | Z87: =IFERROR((Z$63*INDEX(Z$129:Z$133,MATCH($I87,$P$129:$P$133,0)))/(1+_xlfn.XLOOKUP($O$25,'State Recovery'!$C:$C,'State Recovery'!F:F))*INDEX('Variable Inputs - SB 6362'!P$12:P$4815,MATCH($M87,'Variable Inputs - SB 6362'!$C$12:$C$4815,0)),(Z$63*INDEX(Z$129:Z$133,MATCH($I87,$P$129:$P$133,0)))/(1+_xlfn.XLOOKUP($O$25,'State Recovery'!$C:$C,'State Recovery'!F:F))*INDEX('Variable Inputs - SB 6362'!P$12:P$4815,MATCH($N87,'Variable Inputs - SB 6362'!$C$12:$C$4815,0))) -> 22766.45637 | AA87: =IFERROR((AA$63*INDEX(AA$129:AA$133,MATCH($I87,$P$129:$P$133,0)))/(1+_xlfn.XLOOKUP($O$25,'State Recovery'!$C:$C,'State Recovery'!G:G))*INDEX('Variable Inputs - SB 6362'!Q$12:Q$4815,MATCH($M87,'Variable Inputs - SB 6362'!$C$12:$C$4815,0)),(AA$63*INDEX(AA$129:AA$133,MATCH($I87,$P$129:$P$133,0)))/(1+_xlfn.XLOOKUP($O$25,'State Recovery'!$C:$C,'State Recovery'!G:G))*INDEX('Variable Inputs - SB 6362'!Q$12:Q$4815,MATCH($N87,'Variable Inputs - SB 6362'!$C$12:$C$4815,0))) -> 25363.16148 | AB87: =IFERROR((AB$63*INDEX(AB$129:AB$133,MATCH($I87,$P$129:$P$133,0)))/(1+_xlfn.XLOOKUP($O$25,'State Recovery'!$C:$C,'State Recovery'!H:H))*INDEX('Variable Inputs - SB 6362'!R$12:R$4815,MATCH($M87,'Variable Inputs - SB 6362'!$C$12:$C$4815,0)),(AB$63*INDEX(AB$129:AB$133,MATCH($I87,$P$129:$P$133,0)))/(1+_xlfn.XLOOKUP($O$25,'State Recovery'!$C:$C,'State Recovery'!H:H))*INDEX('Variable Inputs - SB 6362'!R$12:R$4815,MATCH($N87,'Variable Inputs - SB 6362'!$C$12:$C$4815,0))) -> 27863.15814 | AC87: < If there is no value for the charter school than the formula pulls the corresponding school district's value
O88: State Revenue - Special Purpose | R88: =R91+R92+R108+R109 -> 0 | S88: =S89+S92+S108+S109 ->  | T88: =T89+T92+T108+T109 ->  | W88: 157744.83 | X88: =X89+X92+X108+X109 -> 208360.6179 | Y88: 301575.7767 | Z88: 403580.5339 | AA88: 462960.1413 | AB88: 510124.8953
L89: SpEd BEA Rate | M89: K-12 SpEd Allocation | N89: Fed Funds Int Rate Per Student | O89: Special Education - Account 4121 | R89: =R$62*((INDEX(R$129:R$133,MATCH($L89,$P$129:$P$133,0))*INDEX('Standard Inputs - SB 6362'!F$12:F$1048576,MATCH($M89,'Standard Inputs - SB 6362'!$D$12:$D$1048576,0)))-INDEX('Standard Inputs - SB 6362'!F$12:F$1048576,MATCH($N89,'Standard Inputs - SB 6362'!$D$12:$D$1048576,0))) ->  | S89: =S$62*((INDEX(S$129:S$133,MATCH($L89,$P$129:$P$133,0))*INDEX('Standard Inputs - SB 6362'!G$12:G$1048576,MATCH($M89,'Standard Inputs - SB 6362'!$D$12:$D$1048576,0)))-INDEX('Standard Inputs - SB 6362'!G$12:G$1048576,MATCH($N89,'Standard Inputs - SB 6362'!$D$12:$D$1048576,0))) ->  | T89: =T$62*((INDEX(T$129:T$133,MATCH($L89,$P$129:$P$133,0))*INDEX('Standard Inputs - SB 6362'!H$12:H$1048576,MATCH($M89,'Standard Inputs - SB 6362'!$D$12:$D$1048576,0)))-INDEX('Standard Inputs - SB 6362'!H$12:H$1048576,MATCH($N89,'Standard Inputs - SB 6362'!$D$12:$D$1048576,0))) ->  | U89: =+SUM(U90:U91) ->  | V89: 0 | W89: 139729.1529 | X89: 189641.7862 | Y89: 259236.9461 | Z89: 349980.5512 | AA89: 389894.5173 | AB89: 428315.7505
L90: SpEd BEA Rate | M90: K-12 SpEd Allocation - Tier 1 | N90: Fed Funds Int Rate Per Student | O90: SpEd Tier 1 | U90: =U$59*((INDEX(U$129:U$133,MATCH($L90,$P$129:$P$133,0))*INDEX('Standard Inputs - SB 6362'!I$12:I$1048576,MATCH($M90,'Standard Inputs - SB 6362'!$D$12:$D$1048576,0)))-INDEX('Standard Inputs - SB 6362'!I$12:I$1048576,MATCH($N90,'Standard Inputs - SB 6362'!$D$12:$D$1048576,0))) ->  | V90: =V$59*((INDEX(V$129:V$133,MATCH($L90,$P$129:$P$133,0))*INDEX('Standard Inputs - SB 6362'!J$12:J$1048576,MATCH($M90,'Standard Inputs - SB 6362'!$D$12:$D$1048576,0)))-INDEX('Standard Inputs - SB 6362'!J$12:J$1048576,MATCH($N90,'Standard Inputs - SB 6362'!$D$12:$D$1048576,0))) -> 0 | W90: =W$59*((INDEX(W$129:W$133,MATCH($L90,$P$129:$P$133,0))*INDEX('Standard Inputs - SB 6362'!K$12:K$1048576,MATCH($M90,'Standard Inputs - SB 6362'!$D$12:$D$1048576,0)))-INDEX('Standard Inputs - SB 6362'!K$12:K$1048576,MATCH($N90,'Standard Inputs - SB 6362'!$D$12:$D$1048576,0))) -> 139729.1529 | X90: =ROUND(IF(X58<=0.15, X59, X59/X63*X43*0.15),2)*((INDEX(X$129:X$133,MATCH($L90,$P$129:$P$133,0))*INDEX('Standard Inputs - SB 6362'!L$12:L$1048576,MATCH($M90,'Standard Inputs - SB 6362'!$D$12:$D$1048576,0)))-INDEX('Standard Inputs - SB 6362'!L$12:L$1048576,MATCH($N90,'Standard Inputs - SB 6362'!$D$12:$D$1048576,0))) -> 189641.7862 | Y90: =ROUND(IF(Y58<=0.16, Y59, Y59/Y63*Y43*0.16),2)*((INDEX(Y$129:Y$133,MATCH($L90,$P$129:$P$133,0))*INDEX('Standard Inputs - SB 6362'!M$12:M$1048576,MATCH($M90,'Standard Inputs - SB 6362'!$D$12:$D$1048576,0)))-INDEX('Standard Inputs - SB 6362'!M$12:M$1048576,MATCH($N90,'Standard Inputs - SB 6362'!$D$12:$D$1048576,0))) -> 259236.9461 | Z90: =ROUND(IF(Z58<=0.16, Z59, Z59/Z63*Z43*0.16),2)*((INDEX(Z$129:Z$133,MATCH($L90,$P$129:$P$133,0))*INDEX('Standard Inputs - SB 6362'!N$12:N$1048576,MATCH($M90,'Standard Inputs - SB 6362'!$D$12:$D$1048576,0)))-INDEX('Standard Inputs - SB 6362'!N$12:N$1048576,MATCH($N90,'Standard Inputs - SB 6362'!$D$12:$D$1048576,0))) -> 349980.5512 | AA90: =ROUND(IF(AA58<=0.16, AA59, AA59/AA63*AA43*0.16),2)*((INDEX(AA$129:AA$133,MATCH($L90,$P$129:$P$133,0))*INDEX('Standard Inputs - SB 6362'!O$12:O$1048576,MATCH($M90,'Standard Inputs - SB 6362'!$D$12:$D$1048576,0)))-INDEX('Standard Inputs - SB 6362'!O$12:O$1048576,MATCH($N90,'Standard Inputs - SB 6362'!$D$12:$D$1048576,0))) -> 389894.5173 | AB90: =ROUND(IF(AB58<=0.16, AB59, AB59/AB63*AB43*0.16),2)*((INDEX(AB$129:AB$133,MATCH($L90,$P$129:$P$133,0))*INDEX('Standard Inputs - SB 6362'!P$12:P$1048576,MATCH($M90,'Standard Inputs - SB 6362'!$D$12:$D$1048576,0)))-INDEX('Standard Inputs - SB 6362'!P$12:P$1048576,MATCH($N90,'Standard Inputs - SB 6362'!$D$12:$D$1048576,0))) -> 428315.7505
L91: SpEd BEA Rate | M91: K-12 SpEd Allocation - Tier 2 | N91: Fed Funds Int Rate Per Student | O91: Sped Tier 2 | U91: =U$60*((INDEX(U$129:U$133,MATCH($L91,$P$129:$P$133,0))*INDEX('Standard Inputs - SB 6362'!I$12:I$1048576,MATCH($M91,'Standard Inputs - SB 6362'!$D$12:$D$1048576,0)))-INDEX('Standard Inputs - SB 6362'!I$12:I$1048576,MATCH($N91,'Standard Inputs - SB 6362'!$D$12:$D$1048576,0))) ->  | V91: =V$60*((INDEX(V$129:V$133,MATCH($L91,$P$129:$P$133,0))*INDEX('Standard Inputs - SB 6362'!J$12:J$1048576,MATCH($M91,'Standard Inputs - SB 6362'!$D$12:$D$1048576,0)))-INDEX('Standard Inputs - SB 6362'!J$12:J$1048576,MATCH($N91,'Standard Inputs - SB 6362'!$D$12:$D$1048576,0))) -> 0 | W91: =W$60*((INDEX(W$129:W$133,MATCH($L91,$P$129:$P$133,0))*INDEX('Standard Inputs - SB 6362'!K$12:K$1048576,MATCH($M91,'Standard Inputs - SB 6362'!$D$12:$D$1048576,0)))-INDEX('Standard Inputs - SB 6362'!K$12:K$1048576,MATCH($N91,'Standard Inputs - SB 6362'!$D$12:$D$1048576,0))) -> 0 | X91: =ROUND(IF(X58<=0.15, X60, X60/X63*X43*0.15),2)*((INDEX(X$129:X$133,MATCH($L91,$P$129:$P$133,0))*INDEX('Standard Inputs - SB 6362'!L$12:L$1048576,MATCH($M91,'Standard Inputs - SB 6362'!$D$12:$D$1048576,0)))-INDEX('Standard Inputs - SB 6362'!L$12:L$1048576,MATCH($N91,'Standard Inputs - SB 6362'!$D$12:$D$1048576,0))) -> 0 | Y91: =ROUND(IF(Y58<=0.15, Y60, Y60/Y63*Y43*0.15),2)*((INDEX(Y$129:Y$133,MATCH($L91,$P$129:$P$133,0))*INDEX('Standard Inputs - SB 6362'!M$12:M$1048576,MATCH($M91,'Standard Inputs - SB 6362'!$D$12:$D$1048576,0)))-INDEX('Standard Inputs - SB 6362'!M$12:M$1048576,MATCH($N91,'Standard Inputs - SB 6362'!$D$12:$D$1048576,0))) -> 0 | Z91: =ROUND(IF(Z58<=0.15, Z60, Z60/Z63*Z43*0.15),2)*((INDEX(Z$129:Z$133,MATCH($L91,$P$129:$P$133,0))*INDEX('Standard Inputs - SB 6362'!N$12:N$1048576,MATCH($M91,'Standard Inputs - SB 6362'!$D$12:$D$1048576,0)))-INDEX('Standard Inputs - SB 6362'!N$12:N$1048576,MATCH($N91,'Standard Inputs - SB 6362'!$D$12:$D$1048576,0))) -> 0 | AA91: =ROUND(IF(AA58<=0.15, AA60, AA60/AA63*AA43*0.15),2)*((INDEX(AA$129:AA$133,MATCH($L91,$P$129:$P$133,0))*INDEX('Standard Inputs - SB 6362'!O$12:O$1048576,MATCH($M91,'Standard Inputs - SB 6362'!$D$12:$D$1048576,0)))-INDEX('Standard Inputs - SB 6362'!O$12:O$1048576,MATCH($N91,'Standard Inputs - SB 6362'!$D$12:$D$1048576,0))) -> 0 | AB91: =ROUND(IF(AB58<=0.15, AB60, AB60/AB63*AB43*0.15),2)*((INDEX(AB$129:AB$133,MATCH($L91,$P$129:$P$133,0))*INDEX('Standard Inputs - SB 6362'!P$12:P$1048576,MATCH($M91,'Standard Inputs - SB 6362'!$D$12:$D$1048576,0)))-INDEX('Standard Inputs - SB 6362'!P$12:P$1048576,MATCH($N91,'Standard Inputs - SB 6362'!$D$12:$D$1048576,0))) -> 0
O92: Categorical Programs | R92: =R93+R98+R103 -> 0 | S92: =S93+S98+S103 -> 7470.249081 | T92: 0 | U92: 0 | V92: =(V93+V98+V103) -> 19963.54271 | W92: 18015.67706 | X92: 18718.8317 | Y92: 42338.83061 | Z92: 53599.98264 | AA92: 73065.62404 | AB92: =(AB93+AB98+AB103) -> 81809.14477
O93: LAP TOTAL | R93: =SUM(R94:R97) -> 0 | S93: =SUM(S94:S97) -> 0 | T93: 0 | U93: 0 | V93: 17165.26469 | W93: 15037.47198 | X93: 14380.4729 | Y93: 36398.63994 | Z93: 45294.25416 | AA93: 63593.62147 | AB93: =SUM(AB94:AB97) -> 71287.62726
O94: LAP Salaries | P94: LAP Salaries | Q94: LAP High Pov Salaries | R94: =SUMIF($P$137:$P$215,$P94,R$137:R$215)+SUMIF($P$137:$P$215,$Q94,R$137:R$215) -> 0 | S94: 0 | T94: 0 | U94: 0 | V94: 12148.81569 | W94: 10570.93139 | X94: 10439.17116 | Y94: 26552.14035 | Z94: =SUMIF($P$137:$P$215,$P94,Z$137:Z$215)+SUMIF($P$137:$P$215,$Q94,Z$137:Z$215)*(1+Z24) -> 33049.71927 | AA94: =SUMIF($P$137:$P$215,$P94,AA$137:AA$215)+SUMIF($P$137:$P$215,$Q94,AA$137:AA$215)*(1+AA24) -> 46525.49192 | AB94: =SUMIF($P$137:$P$215,$P94,AB$137:AB$215)+SUMIF($P$137:$P$215,$Q94,AB$137:AB$215)*(1+AB24) -> 52149.45248
O95: LAP Professional Learning Time | R95: =+R124 -> 0 | S95: =+S124 -> 0 | T95: 0 | U95: 0 | V95: 247.1676553 | W95: 215.541291 | X95: 204.1379921 | Y95: 519.2271045 | Z95: 646.2872603 | AA95: 909.8059945 | AB95: =+AB124 -> 1019.782543
O96: LAP SEBB Benefits | P96: LAP SEBB | T96: =SUMIF($P$137:$P$215,$P96,T$137:T$215) -> 0 | U96: 0 | V96: 2088.037715 | W96: 1825.325781 | X96: 1863.628536 | Y96: 4562.23152 | Z96: 5659.911284 | AA96: 7803.817074 | AB96: 8747.135621
O97: LAP Insurance and Benefits | P97: LAP Insurance and Benefits | R97: =SUMIF($P$137:$P$215,$P97,R$137:R$215) -> 0 | S97: =SUMIF($P$137:$P$215,$P97,S$137:S$215) -> 0 | T97: 0 | U97: 0 | V97: 2681.243623 | W97: 2425.67352 | X97: 1873.535208 | Y97: 4765.040973 | Z97: 5938.33635 | AA97: 8354.506485 | AB97: 9371.256611
O98: TBIP TOTAL | R98: =SUM(R99:R102) -> 0 | S98: =SUM(S99:S102) -> 7470.249081 | T98: 0 | U98: 0 | V98: 0 | W98: 0 | X98: 1156.206755 | Y98: 1858.432703 | Z98: 2574.145483 | AA98: 2929.803233 | AB98: =SUM(AB99:AB102) -> 3241.026797
O99: TBIP Salaries | P99: TBIP Salaries | R99: =SUMIF($P$137:$P$215,$P99,R$137:R$215) -> 0 | S99: -197.0495755 | T99: 0 | U99: 0 | V99: 0 | W99: 0 | X99: 834.5011765 | Y99: 1348.00715 | Z99: 1867.626157 | AA99: 2131.404876 | AB99: 2357.585112
O100: TBIP Professional Learning Time | R100: =+R125 -> 0 | S100: =+S125 -> 0 | T100: 0 | U100: 0 | V100: 0 | W100: 0 | X100: 16.66259911 | Y100: 26.91583739 | Z100: 37.29128496 | AA100: 42.55812619 | AB100: =+AB125 -> 47.07441641
O101: TBIP SEBB Benefits | P101: TBIP SEBB | T101: =SUMIF($P$137:$P$215,$P101,T$137:T$215) -> 0 | U101: 0 | V101: 0 | W101: 0 | X101: 152.1171775 | Y101: 236.4982118 | Z101: 326.5813478 | AA101: 365.0402765 | AB101: 403.7785382
O102: TBIP Insurance and Benefits | P102: TBIP Insurance and Benefits | R102: =SUMIF($P$137:$P$215,$P102,R$137:R$215) -> 0 | S102: =SUMIF($P$137:$P$215,$P102,S$137:S$215) -> 7667.298656 | T102: 0 | U102: 0 | V102: 0 | W102: 0 | X102: 152.9258017 | Y102: 247.011504 | Z102: 342.6466939 | AA102: 390.7999545 | AB102: 432.5887307
O103: HiCap TOTAL | R103: =SUM(R104:R107) -> 0 | S103: =SUM(S104:S107) -> 0 | T103: 0 | U103: 0 | V103: 2798.27802 | W103: 2978.205085 | X103: 3182.152041 | Y103: 4081.757963 | Z103: 5731.582993 | AA103: 6542.199336 | AB103: =SUM(AB104:AB107) -> 7280.490718
O104: HiCap Salaries | P104: HiCAP Salaries | R104: =SUMIF($P$137:$P$215,$P104,R$137:R$215) -> 0 | S104: =SUMIF($P$143:$P$215,$P104,S$143:S$215) -> 0 | T104: 0 | U104: 0 | V104: 1980.497507 | W104: 2093.596693 | X104: 2310.009557 | Y104: 2977.567581 | Z104: =SUMIF($P$143:$P$215,$P104,Z$143:Z$215)*(1+Z24) -> 4205.530267 | AA104: =SUMIF($P$143:$P$215,$P104,AA$143:AA$215)*(1+AA24) -> 4812.88278 | AB104: =SUMIF($P$143:$P$215,$P104,AB$143:AB$215)*(1+AB24) -> 5355.511721
O105: HiCap Professional Learning Time | R105: =+R126 -> 0 | S105: =+S126 -> 0 | T105: 0 | U105: 0 | V105: 40.29322178 | W105: 42.68843658 | X105: 45.17223688 | Y105: 58.22633406 | Z105: 80.54764384 | AA105: 92.18013983 | AB105: =+AB126 -> 102.5729987
O106: HiCap SEBB Benefits | P106: HiCap SEBB | T106: =SUMIF($P$137:$P$215,$P106,T$137:T$215) -> 0 | U106: 0 | V106: 340.3914911 | W106: 361.5098688 | X106: 412.3890355 | Y106: 511.6104576 | Z106: 705.4022976 | AA106: 790.6707072 | AB106: 879.8149536
O107: HiCap Insurance and Benefits | P107: HiCap Insurance and Benefits | R107: =SUMIF($P$137:$P$215,$P107,R$137:R$215) -> 0 | S107: =SUMIF($P$137:$P$215,$P107,S$137:S$215) -> 0 | T107: 0 | U107: 0 | V107: 437.0957998 | W107: 480.4100865 | X107: 414.5812122 | Y107: 534.3535904 | Z107: 740.1027852 | AA107: 846.4657088 | AB107: 942.5910444
O108: Transportation | R108: =+(R110*(R43*0.95)) -> 0 | S108: 0 | T108: 0 | U108: 0 | V108: 0 | W108: 0 | X108: 0 | Y108: 0 | Z108: 0 | AA108: 0 | AB108: =+(AB110*(AB43*0.95)) -> 0 | AC108: <95% ridership baked into this formula
O109: State Meal Program with Inflation | R109: =R111 -> 0 | S109: =S111 -> 0 | T109: 0 | U109: 0 | V109: =IF(ISBLANK(#REF!),V111,V111*(1+#REF!)) ->  | W109: =IF(ISBLANK(W$24),W111,W111*(1+W$24)) -> 0 | X109: 0 | Y109: 0 | Z109: 0 | AA109: 0 | AB109: =IF(ISBLANK(AB$24),AB111,AB111*(1+AB$24)) -> 0
O110: Transportation | AC110: <Per pupil Value translated to a total above
O111: State Meal Program
O117: SCHOOL SPECIFIC SALARIES | Q117: SY 2016-17 | R117: SY 2017-18 | S117: SY 2018-19 | T117: SY 2019-20 | U117: SY 2020-21 | V117: SY 2021-22 | W117: SY 2022-23 | X117: SY 2023-24 | Y117: SY 2024-25 | Z117: SY 2025-26 | AA117: SY 2026-27 | AB117: SY 2027-28
M118: =$M$25&" - "&O118 -> Pullman School District - CIS Salary | N118: =$N$25&" - "&$O118 -> Pullman Community Montessori - CIS Salary | O118: CIS Salary | Q118: =IFERROR(INDEX('Variable Inputs - SB 6362'!G$12:G$4815,MATCH($N118,'Variable Inputs - SB 6362'!$C$12:$C$4815,0)),INDEX('Variable Inputs - SB 6362'!G$12:G$4815,MATCH('Single School Forecast'!$M118,'Variable Inputs - SB 6362'!$C$12:$C$4815,0))) -> 0 | R118: =IFERROR(INDEX('Variable Inputs - SB 6362'!H$12:H$4815,MATCH($N118,'Variable Inputs - SB 6362'!$C$12:$C$4815,0)),INDEX('Variable Inputs - SB 6362'!H$12:H$4815,MATCH('Single School Forecast'!$M118,'Variable Inputs - SB 6362'!$C$12:$C$4815,0))) -> 0 | S118: =IFERROR(INDEX('Variable Inputs - SB 6362'!I$12:I$4815,MATCH($N118,'Variable Inputs - SB 6362'!$C$12:$C$4815,0)),INDEX('Variable Inputs - SB 6362'!I$12:I$4815,MATCH('Single School Forecast'!$M118,'Variable Inputs - SB 6362'!$C$12:$C$4815,0))) -> 0 | T118: =IFERROR(INDEX('Variable Inputs - SB 6362'!J$12:J$4815,MATCH($N118,'Variable Inputs - SB 6362'!$C$12:$C$4815,0)),INDEX('Variable Inputs - SB 6362'!J$12:J$4815,MATCH('Single School Forecast'!$M118,'Variable Inputs - SB 6362'!$C$12:$C$4815,0))) -> 0 | U118: =IFERROR(INDEX('Variable Inputs - SB 6362'!K$12:K$4815,MATCH($N118,'Variable Inputs - SB 6362'!$C$12:$C$4815,0)),INDEX('Variable Inputs - SB 6362'!K$12:K$4815,MATCH('Single School Forecast'!$M118,'Variable Inputs - SB 6362'!$C$12:$C$4815,0))) -> 0 | V118: =+IFERROR(VLOOKUP($N118,'Variable Inputs - SB 6362'!$C$13:$Q$2627,10,FALSE),VLOOKUP('Single School Forecast'!$M118,'Variable Inputs - SB 6362'!$C$13:$Q$2627,10,FALSE))*(1+'Single School Forecast'!V$24) -> 68937 | W118: =+IFERROR(VLOOKUP($N118,'Variable Inputs - SB 6362'!$C$13:$Q$2627,11,FALSE),VLOOKUP('Single School Forecast'!$M118,'Variable Inputs - SB 6362'!$C$13:$Q$2627,11,FALSE))*(1+'Single School Forecast'!W$24) -> 72728 | X118: =+IFERROR(VLOOKUP($N118,'Variable Inputs - SB 6362'!$C$13:$Q$2627,12,FALSE),VLOOKUP('Single School Forecast'!$M118,'Variable Inputs - SB 6362'!$C$13:$Q$2627,12,FALSE))*(1+'Single School Forecast'!X$24) -> 75419 | Y118: =+IFERROR(VLOOKUP($N118,'Variable Inputs - SB 6362'!$C$13:$Q$2627,13,FALSE),VLOOKUP('Single School Forecast'!$M118,'Variable Inputs - SB 6362'!$C$13:$Q$2627,13,FALSE))*(1+'Single School Forecast'!Y$24) -> 78360.341 | Z118: =+IFERROR(VLOOKUP($N118,'Variable Inputs - SB 6362'!$C$13:$Q$2627,14,FALSE),VLOOKUP('Single School Forecast'!$M118,'Variable Inputs - SB 6362'!$C$13:$Q$2627,14,FALSE))*(1+'Single School Forecast'!Z$24)*(1+Z24) -> 78619.85778 | AA118: =+IFERROR(VLOOKUP($N118,'Variable Inputs - SB 6362'!$C$13:$Q$2627,15,FALSE),VLOOKUP('Single School Forecast'!$M118,'Variable Inputs - SB 6362'!$C$13:$Q$2627,15,FALSE))*(1+'Single School Forecast'!AA$24)*(1+AA24)*(1+AA24) -> 80270.87479 | AB118: =+IFERROR(VLOOKUP($N118,'Variable Inputs - SB 6362'!$C$13:$Q$2627,15,FALSE),VLOOKUP('Single School Forecast'!$M118,'Variable Inputs - SB 6362'!$C$13:$Q$2627,15,FALSE))*(1+'Single School Forecast'!AB$24)*(1+AB24)*(1+AB24) -> 80270.87479 | AC118: <Inclusive of Regionalization Factor
M119: =$M$25&" - "&O119 -> Pullman School District - CAS Salary | N119: =$N$25&" - "&$O119 -> Pullman Community Montessori - CAS Salary | O119: CAS Salary | Q119: =IFERROR(INDEX('Variable Inputs - SB 6362'!G$12:G$4815,MATCH($N119,'Variable Inputs - SB 6362'!$C$12:$C$4815,0)),INDEX('Variable Inputs - SB 6362'!G$12:G$4815,MATCH('Single School Forecast'!$M119,'Variable Inputs - SB 6362'!$C$12:$C$4815,0))) -> 0 | R119: =IFERROR(INDEX('Variable Inputs - SB 6362'!H$12:H$4815,MATCH($N119,'Variable Inputs - SB 6362'!$C$12:$C$4815,0)),INDEX('Variable Inputs - SB 6362'!H$12:H$4815,MATCH('Single School Forecast'!$M119,'Variable Inputs - SB 6362'!$C$12:$C$4815,0))) -> 0 | S119: =IFERROR(INDEX('Variable Inputs - SB 6362'!I$12:I$4815,MATCH($N119,'Variable Inputs - SB 6362'!$C$12:$C$4815,0)),INDEX('Variable Inputs - SB 6362'!I$12:I$4815,MATCH('Single School Forecast'!$M119,'Variable Inputs - SB 6362'!$C$12:$C$4815,0))) -> 0 | T119: =IFERROR(INDEX('Variable Inputs - SB 6362'!J$12:J$4815,MATCH($N119,'Variable Inputs - SB 6362'!$C$12:$C$4815,0)),INDEX('Variable Inputs - SB 6362'!J$12:J$4815,MATCH('Single School Forecast'!$M119,'Variable Inputs - SB 6362'!$C$12:$C$4815,0))) -> 0 | U119: =IFERROR(INDEX('Variable Inputs - SB 6362'!K$12:K$4815,MATCH($N119,'Variable Inputs - SB 6362'!$C$12:$C$4815,0)),INDEX('Variable Inputs - SB 6362'!K$12:K$4815,MATCH('Single School Forecast'!$M119,'Variable Inputs - SB 6362'!$C$12:$C$4815,0))) -> 0 | V119: =+IFERROR(VLOOKUP($N119,'Variable Inputs - SB 6362'!$C$13:$Q$2627,10,FALSE),VLOOKUP('Single School Forecast'!$M119,'Variable Inputs - SB 6362'!$C$13:$Q$2627,10,FALSE))*(1+'Single School Forecast'!V$24) -> 102327 | W119: =+IFERROR(VLOOKUP($N119,'Variable Inputs - SB 6362'!$C$13:$Q$2627,11,FALSE),VLOOKUP('Single School Forecast'!$M119,'Variable Inputs - SB 6362'!$C$13:$Q$2627,11,FALSE))*(1+'Single School Forecast'!W$24) -> 107955 | X119: =+IFERROR(VLOOKUP($N119,'Variable Inputs - SB 6362'!$C$13:$Q$2627,12,FALSE),VLOOKUP('Single School Forecast'!$M119,'Variable Inputs - SB 6362'!$C$13:$Q$2627,12,FALSE))*(1+'Single School Forecast'!X$24) -> 111950 | Y119: =+IFERROR(VLOOKUP($N119,'Variable Inputs - SB 6362'!$C$13:$Q$2627,13,FALSE),VLOOKUP('Single School Forecast'!$M119,'Variable Inputs - SB 6362'!$C$13:$Q$2627,13,FALSE))*(1+'Single School Forecast'!Y$24) -> 116316.05 | Z119: =+IFERROR(VLOOKUP($N119,'Variable Inputs - SB 6362'!$C$13:$Q$2627,14,FALSE),VLOOKUP('Single School Forecast'!$M119,'Variable Inputs - SB 6362'!$C$13:$Q$2627,14,FALSE))*(1+'Single School Forecast'!Z$24)*(1+Z25) -> 114300.95 | AA119: =+IFERROR(VLOOKUP($N119,'Variable Inputs - SB 6362'!$C$13:$Q$2627,15,FALSE),VLOOKUP('Single School Forecast'!$M119,'Variable Inputs - SB 6362'!$C$13:$Q$2627,15,FALSE))*(1+'Single School Forecast'!AA$24)*(1+AA25)*(1+AA25) -> 114300.95 | AB119: =+IFERROR(VLOOKUP($N119,'Variable Inputs - SB 6362'!$C$13:$Q$2627,15,FALSE),VLOOKUP('Single School Forecast'!$M119,'Variable Inputs - SB 6362'!$C$13:$Q$2627,15,FALSE))*(1+'Single School Forecast'!AB$24)*(1+AB25)*(1+AB25) -> 114300.95 | AC119: <Inclusive of Regionalization Factor
M120: =$M$25&" - "&O120 -> Pullman School District - CLS Salary | N120: =$N$25&" - "&$O120 -> Pullman Community Montessori - CLS Salary | O120: CLS Salary | Q120: =IFERROR(INDEX('Variable Inputs - SB 6362'!G$12:G$4815,MATCH($N120,'Variable Inputs - SB 6362'!$C$12:$C$4815,0)),INDEX('Variable Inputs - SB 6362'!G$12:G$4815,MATCH('Single School Forecast'!$M120,'Variable Inputs - SB 6362'!$C$12:$C$4815,0))) -> 0 | R120: =IFERROR(INDEX('Variable Inputs - SB 6362'!H$12:H$4815,MATCH($N120,'Variable Inputs - SB 6362'!$C$12:$C$4815,0)),INDEX('Variable Inputs - SB 6362'!H$12:H$4815,MATCH('Single School Forecast'!$M120,'Variable Inputs - SB 6362'!$C$12:$C$4815,0))) -> 0 | S120: =IFERROR(INDEX('Variable Inputs - SB 6362'!I$12:I$4815,MATCH($N120,'Variable Inputs - SB 6362'!$C$12:$C$4815,0)),INDEX('Variable Inputs - SB 6362'!I$12:I$4815,MATCH('Single School Forecast'!$M120,'Variable Inputs - SB 6362'!$C$12:$C$4815,0))) -> 0 | T120: =IFERROR(INDEX('Variable Inputs - SB 6362'!J$12:J$4815,MATCH($N120,'Variable Inputs - SB 6362'!$C$12:$C$4815,0)),INDEX('Variable Inputs - SB 6362'!J$12:J$4815,MATCH('Single School Forecast'!$M120,'Variable Inputs - SB 6362'!$C$12:$C$4815,0))) -> 0 | U120: =IFERROR(INDEX('Variable Inputs - SB 6362'!K$12:K$4815,MATCH($N120,'Variable Inputs - SB 6362'!$C$12:$C$4815,0)),INDEX('Variable Inputs - SB 6362'!K$12:K$4815,MATCH('Single School Forecast'!$M120,'Variable Inputs - SB 6362'!$C$12:$C$4815,0))) -> 0 | V120: =+IFERROR(VLOOKUP($N120,'Variable Inputs - SB 6362'!$C$13:$Q$2627,10,FALSE),VLOOKUP('Single School Forecast'!$M120,'Variable Inputs - SB 6362'!$C$13:$Q$2627,10,FALSE))*(1+'Single School Forecast'!V$24) -> 49453 | W120: =+IFERROR(VLOOKUP($N120,'Variable Inputs - SB 6362'!$C$13:$Q$2627,11,FALSE),VLOOKUP('Single School Forecast'!$M120,'Variable Inputs - SB 6362'!$C$13:$Q$2627,11,FALSE))*(1+'Single School Forecast'!W$24) -> 52173 | X120: =+IFERROR(VLOOKUP($N120,'Variable Inputs - SB 6362'!$C$13:$Q$2627,12,FALSE),VLOOKUP('Single School Forecast'!$M120,'Variable Inputs - SB 6362'!$C$13:$Q$2627,12,FALSE))*(1+'Single School Forecast'!X$24) -> 54103 | Y120: =+IFERROR(VLOOKUP($N120,'Variable Inputs - SB 6362'!$C$13:$Q$2627,13,FALSE),VLOOKUP('Single School Forecast'!$M120,'Variable Inputs - SB 6362'!$C$13:$Q$2627,13,FALSE))*(1+'Single School Forecast'!Y$24) -> 56213.017 | Z120: =+IFERROR(VLOOKUP($N120,'Variable Inputs - SB 6362'!$C$13:$Q$2627,14,FALSE),VLOOKUP('Single School Forecast'!$M120,'Variable Inputs - SB 6362'!$C$13:$Q$2627,14,FALSE))*(1+'Single School Forecast'!Z$24)*(1+Z26) -> 55239.163 | AA120: =+IFERROR(VLOOKUP($N120,'Variable Inputs - SB 6362'!$C$13:$Q$2627,15,FALSE),VLOOKUP('Single School Forecast'!$M120,'Variable Inputs - SB 6362'!$C$13:$Q$2627,15,FALSE))*(1+'Single School Forecast'!AA$24)*(1+AA26)*(1+AA26) -> 55239.163 | AB120: =+IFERROR(VLOOKUP($N120,'Variable Inputs - SB 6362'!$C$13:$Q$2627,15,FALSE),VLOOKUP('Single School Forecast'!$M120,'Variable Inputs - SB 6362'!$C$13:$Q$2627,15,FALSE))*(1+'Single School Forecast'!AB$24)*(1+AB26)*(1+AB26) -> 55239.163 | AC120: <Inclusive of Regionalization Factor
M121: =$M$25&" - "&O121 -> Pullman School District - Staff Mix Factor | N121: =$N$25&" - "&$O121 -> Pullman Community Montessori - Staff Mix Factor | O121: Staff Mix Factor | Q121: =IFERROR(INDEX('Variable Inputs - SB 6362'!G$12:G$4815,MATCH($N121,'Variable Inputs - SB 6362'!$C$12:$C$4815,0)),INDEX('Variable Inputs - SB 6362'!G$12:G$4815,MATCH('Single School Forecast'!$M121,'Variable Inputs - SB 6362'!$C$12:$C$4815,0))) -> 0 | R121: =IFERROR(INDEX('Variable Inputs - SB 6362'!H$12:H$4815,MATCH($N121,'Variable Inputs - SB 6362'!$C$12:$C$4815,0)),INDEX('Variable Inputs - SB 6362'!H$12:H$4815,MATCH('Single School Forecast'!$M121,'Variable Inputs - SB 6362'!$C$12:$C$4815,0))) -> 0 | S121: =IFERROR(INDEX('Variable Inputs - SB 6362'!I$12:I$4815,MATCH($N121,'Variable Inputs - SB 6362'!$C$12:$C$4815,0)),INDEX('Variable Inputs - SB 6362'!I$12:I$4815,MATCH('Single School Forecast'!$M121,'Variable Inputs - SB 6362'!$C$12:$C$4815,0))) -> 0 | T121: =IFERROR(INDEX('Variable Inputs - SB 6362'!J$12:J$4815,MATCH($N121,'Variable Inputs - SB 6362'!$C$12:$C$4815,0)),INDEX('Variable Inputs - SB 6362'!J$12:J$4815,MATCH('Single School Forecast'!$M121,'Variable Inputs - SB 6362'!$C$12:$C$4815,0))) -> 0 | U121: =IFERROR(INDEX('Variable Inputs - SB 6362'!K$12:K$4815,MATCH($N121,'Variable Inputs - SB 6362'!$C$12:$C$4815,0)),INDEX('Variable Inputs - SB 6362'!K$12:K$4815,MATCH('Single School Forecast'!$M121,'Variable Inputs - SB 6362'!$C$12:$C$4815,0))) -> 0 | V121: =IFERROR(INDEX('Variable Inputs - SB 6362'!L$12:L$4815,MATCH($N121,'Variable Inputs - SB 6362'!$C$12:$C$4815,0)),INDEX('Variable Inputs - SB 6362'!L$12:L$4815,MATCH('Single School Forecast'!$M121,'Variable Inputs - SB 6362'!$C$12:$C$4815,0))) -> 0 | W121: 0 | X121: 0 | Y121: 0 | Z121: 0 | AA121: 0 | AB121: 0
O123: PROFESSIONAL LEARNING TIME -CATEOGRICALS | R123: SY 2017-18 | S123: SY 2018-19 | T123: SY 2019-20 | U123: SY 2020-21 | V123: SY 2021-22 | W123: SY 2022-23 | X123: SY 2023-24 | Y123: SY 2024-25 | Z123: SY 2025-26 | AA123: SY 2026-27 | AB123: SY 2027-28
N124: CIS/CAS Benefits Increase | O124: LAP | R124: 0 | S124: =+IF($D$18="No",0,((S$304+S$309)*S$118/180*1)+((S$304+S$309)*S$118/180*1)*'Standard Inputs - SB 6362'!G$111) -> 0 | T124: =+IF($D$18="No",0,((T$304+T$309)*T$118/180*3)+((T$304+T$309)*T$118/180*3)*INDEX('Standard Inputs - SB 6362'!H$12:H$1048576,MATCH($N140,'Standard Inputs - SB 6362'!$D$12:$D$1048576,0))) -> 0 | U124: =+IF($D$18="No",0,((U$304+U$309)*U$118/180*3)+((U$304+U$309)*U$118/180*3)*INDEX('Standard Inputs - SB 6362'!I$12:I$1048576,MATCH($N140,'Standard Inputs - SB 6362'!$D$12:$D$1048576,0))) -> 0 | V124: =+IF($D$18="No",0,((V$304+V$309)*V$118/180*3)+((V$304+V$309)*V$118/180*3)*INDEX('Standard Inputs - SB 6362'!J$12:J$1048576,MATCH($N140,'Standard Inputs - SB 6362'!$D$12:$D$1048576,0))) -> 247.1676553 | W124: =+IF($D$18="No",0,((W$304+W$309)*W$118/180*3)+((W$304+W$309)*W$118/180*3)*INDEX('Standard Inputs - SB 6362'!K$12:K$1048576,MATCH($N140,'Standard Inputs - SB 6362'!$D$12:$D$1048576,0))) -> 215.541291 | X124: =+IF($D$18="No",0,((X$304+X$309)*X$118/180*3)+((X$304+X$309)*X$118/180*3)*INDEX('Standard Inputs - SB 6362'!L$12:L$1048576,MATCH($N140,'Standard Inputs - SB 6362'!$D$12:$D$1048576,0))) -> 204.1379921 | Y124: =+IF($D$18="No",0,((Y$304+Y$309)*Y$118/180*3)+((Y$304+Y$309)*Y$118/180*3)*INDEX('Standard Inputs - SB 6362'!M$12:M$1048576,MATCH($N140,'Standard Inputs - SB 6362'!$D$12:$D$1048576,0))) -> 519.2271045 | Z124: =+IF($D$18="No",0,((Z$304+Z$309)*Z$118/180*3)+((Z$304+Z$309)*Z$118/180*3)*INDEX('Standard Inputs - SB 6362'!N$12:N$1048576,MATCH($N140,'Standard Inputs - SB 6362'!$D$12:$D$1048576,0))) -> 646.2872603 | AA124: =+IF($D$18="No",0,((AA$304+AA$309)*AA$118/180*3)+((AA$304+AA$309)*AA$118/180*3)*INDEX('Standard Inputs - SB 6362'!O$12:O$1048576,MATCH($N140,'Standard Inputs - SB 6362'!$D$12:$D$1048576,0))) -> 909.8059945 | AB124: =+IF($D$18="No",0,((AB$304+AB$309)*AB$118/180*3)+((AB$304+AB$309)*AB$118/180*3)*INDEX('Standard Inputs - SB 6362'!P$12:P$1048576,MATCH($N140,'Standard Inputs - SB 6362'!$D$12:$D$1048576,0))) -> 1019.782543 | AC124: <For LAP and Hi Pov LAP, includes salaries and benefits/ payroll tax
N125: CIS/CAS Benefits Increase | O125: TBIP | R125: 0 | S125: =+IF($D$18="No",0,((S$305+S$306+S$307)*S$118/180*1)+((S$305+S$306+S$307)*S$118/180*1)*'Standard Inputs - SB 6362'!G$111) -> 0 | T125: =+IF($D$18="No",0,((T$305+T$306+T$307)*T$118/180*3)+((T$305+T$306+T$307)*T$118/180*3)*INDEX('Standard Inputs - SB 6362'!H$12:H$1048576,MATCH($N140,'Standard Inputs - SB 6362'!$D$12:$D$1048576,0))) -> 0 | U125: =+IF($D$18="No",0,((U$305+U$306+U$307)*U$118/180*3)+((U$305+U$306+U$307)*U$118/180*3)*INDEX('Standard Inputs - SB 6362'!I$12:I$1048576,MATCH($N140,'Standard Inputs - SB 6362'!$D$12:$D$1048576,0))) -> 0 | V125: =+IF($D$18="No",0,((V$305+V$306+V$307)*V$118/180*3)+((V$305+V$306+V$307)*V$118/180*3)*INDEX('Standard Inputs - SB 6362'!J$12:J$1048576,MATCH($N140,'Standard Inputs - SB 6362'!$D$12:$D$1048576,0))) -> 0 | W125: =+IF($D$18="No",0,((W$305+W$306+W$307)*W$118/180*3)+((W$305+W$306+W$307)*W$118/180*3)*INDEX('Standard Inputs - SB 6362'!K$12:K$1048576,MATCH($N140,'Standard Inputs - SB 6362'!$D$12:$D$1048576,0))) -> 0 | X125: =+IF($D$18="No",0,((X$305+X$306+X$307)*X$118/180*3)+((X$305+X$306+X$307)*X$118/180*3)*INDEX('Standard Inputs - SB 6362'!L$12:L$1048576,MATCH($N140,'Standard Inputs - SB 6362'!$D$12:$D$1048576,0))) -> 16.66259911 | Y125: =+IF($D$18="No",0,((Y$305+Y$306+Y$307)*Y$118/180*3)+((Y$305+Y$306+Y$307)*Y$118/180*3)*INDEX('Standard Inputs - SB 6362'!M$12:M$1048576,MATCH($N140,'Standard Inputs - SB 6362'!$D$12:$D$1048576,0))) -> 26.91583739 | Z125: =+IF($D$18="No",0,((Z$305+Z$306+Z$307)*Z$118/180*3)+((Z$305+Z$306+Z$307)*Z$118/180*3)*INDEX('Standard Inputs - SB 6362'!N$12:N$1048576,MATCH($N140,'Standard Inputs - SB 6362'!$D$12:$D$1048576,0))) -> 37.29128496 | AA125: =+IF($D$18="No",0,((AA$305+AA$306+AA$307)*AA$118/180*3)+((AA$305+AA$306+AA$307)*AA$118/180*3)*INDEX('Standard Inputs - SB 6362'!O$12:O$1048576,MATCH($N140,'Standard Inputs - SB 6362'!$D$12:$D$1048576,0))) -> 42.55812619 | AB125: =+IF($D$18="No",0,((AB$305+AB$306+AB$307)*AB$118/180*3)+((AB$305+AB$306+AB$307)*AB$118/180*3)*INDEX('Standard Inputs - SB 6362'!P$12:P$1048576,MATCH($N140,'Standard Inputs - SB 6362'!$D$12:$D$1048576,0))) -> 47.07441641 | AC125: <For TBIP K-6, 7-12, and Exited, includes salaries and benefits/ payroll tax
N126: CIS/CAS Benefits Increase | O126: HiCap | R126: 0 | S126: =+IF($D$18="No",0,(S$308*S$118/180*1)+(S$308*S$118/180*1)*'Standard Inputs - SB 6362'!G$111) -> 0 | T126: =+IF($D$18="No",0,(T$308*T$118/180*3)+(T$308*T$118/180*3)*INDEX('Standard Inputs - SB 6362'!H$12:H$1048576,MATCH($N140,'Standard Inputs - SB 6362'!$D$12:$D$1048576,0))) -> 0 | U126: =+IF($D$18="No",0,(U$308*U$118/180*3)+(U$308*U$118/180*3)*INDEX('Standard Inputs - SB 6362'!I$12:I$1048576,MATCH($N140,'Standard Inputs - SB 6362'!$D$12:$D$1048576,0))) -> 0 | V126: =+IF($D$18="No",0,(V$308*V$118/180*3)+(V$308*V$118/180*3)*INDEX('Standard Inputs - SB 6362'!J$12:J$1048576,MATCH($N140,'Standard Inputs - SB 6362'!$D$12:$D$1048576,0))) -> 40.29322178 | W126: =+IF($D$18="No",0,(W$308*W$118/180*3)+(W$308*W$118/180*3)*INDEX('Standard Inputs - SB 6362'!K$12:K$1048576,MATCH($N140,'Standard Inputs - SB 6362'!$D$12:$D$1048576,0))) -> 42.68843658 | X126: =+IF($D$18="No",0,(X$308*X$118/180*3)+(X$308*X$118/180*3)*INDEX('Standard Inputs - SB 6362'!L$12:L$1048576,MATCH($N140,'Standard Inputs - SB 6362'!$D$12:$D$1048576,0))) -> 45.17223688 | Y126: =+IF($D$18="No",0,(Y$308*Y$118/180*3)+(Y$308*Y$118/180*3)*INDEX('Standard Inputs - SB 6362'!M$12:M$1048576,MATCH($N140,'Standard Inputs - SB 6362'!$D$12:$D$1048576,0))) -> 58.22633406 | Z126: =+IF($D$18="No",0,(Z$308*Z$118/180*3)+(Z$308*Z$118/180*3)*INDEX('Standard Inputs - SB 6362'!N$12:N$1048576,MATCH($N140,'Standard Inputs - SB 6362'!$D$12:$D$1048576,0))) -> 80.54764384 | AA126: =+IF($D$18="No",0,(AA$308*AA$118/180*3)+(AA$308*AA$118/180*3)*INDEX('Standard Inputs - SB 6362'!O$12:O$1048576,MATCH($N140,'Standard Inputs - SB 6362'!$D$12:$D$1048576,0))) -> 92.18013983 | AB126: =+IF($D$18="No",0,(AB$308*AB$118/180*3)+(AB$308*AB$118/180*3)*INDEX('Standard Inputs - SB 6362'!P$12:P$1048576,MATCH($N140,'Standard Inputs - SB 6362'!$D$12:$D$1048576,0))) -> 102.5729987 | AC126: <Includes salary and benefits/ payroll tax
O128: BEA SPED RATE | R128: SY 2017-18 | S128: SY 2018-19 | T128: SY 2019-20 | U128: SY 2020-21 | V128: SY 2021-22 | W128: SY 2022-23 | X128: SY 2023-24 | Y128: SY 2024-25 | Z128: SY 2025-26 | AA128: SY 2026-27 | AB128: SY 2027-28
O129: SpEd BEA Rate | P129: SpEd BEA Rate | R129: =SUM(R130:R134) ->  | V129: 8126.600554 | W129: 10297.07953 | X129: 10628.3102 | Y129: 10978.45233 | Z129: 10749.95793 | AA129: =SUM(AA130:AA134) -> 10684.5426 | AB129: =SUM(AB130:AB134) -> 10548.41477 | AF129: 23-24 | AG129: 10526
L130: CIS SpEd Salary | M130: CAS SpEd Salary | N130: CLS SpEd Salary | O130: Total SpEd Salary | R130: =SUMIF($P$137:$P$215,$L130,R$137:R$215)+SUMIF($P$137:$P$215,$M130,R$137:R$215)+SUMIF($P$137:$P$215,$N130,R$137:R$215) -> 0 | S130: 0 | T130: 0 | U130: 0 | V130: 4606.914633 | W130: 6132.412293 | X130: =SUMIF($P$137:$P$215,$L130,X$137:X$215)+SUMIF($P$137:$P$215,$M130,X$137:X$215)+SUMIF($P$137:$P$215,$N130,X$137:X$215) -> 6503.475741 | Y130: 6790.310833 | Z130: 6616.7057 | AA130: 6582.431522 | AB130: 6486.301772
N131: SpEd Insurance and Benefits | O131: Total SpEd Payroll Insurance and Benefits | R131: =SUMIF($P$137:$P$215,$N131,R$137:R$215) -> 0 | S131: 0 | T131: 0 | U131: 0 | V131: 1900.273149 | W131: 2592.962262 | X131: 2505.354743 | Y131: 2563.951519 | Z131: 2506.311111 | AA131: 2474.428235 | AB131: 2441.291431
K132: CIS K-12 Average SpEd | L132: Teacher % | M132: Substitutes Days | N132: Substitutes Rate | O132: Substitutes BEA SpEd | R132: =SUMIF($P$218:$P$326,$K132,R$218:R$326)*INDEX('Standard Inputs - SB 6362'!F$12:F$1048576,MATCH($L132,'Standard Inputs - SB 6362'!$D$12:$D$1048576,0))*INDEX('Standard Inputs - SB 6362'!F$12:F$1048576,MATCH($M132,'Standard Inputs - SB 6362'!$D$12:$D$1048576,0))*INDEX('Standard Inputs - SB 6362'!F$12:F$1048576,MATCH($N132,'Standard Inputs - SB 6362'!$D$12:$D$1048576,0)) -> 0 | S132: =SUMIF($P$218:$P$326,$K132,S$218:S$326)*INDEX('Standard Inputs - SB 6362'!G$12:G$1048576,MATCH($L132,'Standard Inputs - SB 6362'!$D$12:$D$1048576,0))*INDEX('Standard Inputs - SB 6362'!G$12:G$1048576,MATCH($M132,'Standard Inputs - SB 6362'!$D$12:$D$1048576,0))*INDEX('Standard Inputs - SB 6362'!G$12:G$1048576,MATCH($N132,'Standard Inputs - SB 6362'!$D$12:$D$1048576,0)) -> 0 | T132: =SUMIF($P$218:$P$326,$K132,T$218:T$326)*INDEX('Standard Inputs - SB 6362'!H$12:H$1048576,MATCH($L132,'Standard Inputs - SB 6362'!$D$12:$D$1048576,0))*INDEX('Standard Inputs - SB 6362'!H$12:H$1048576,MATCH($M132,'Standard Inputs - SB 6362'!$D$12:$D$1048576,0))*INDEX('Standard Inputs - SB 6362'!H$12:H$1048576,MATCH($N132,'Standard Inputs - SB 6362'!$D$12:$D$1048576,0)) -> 0 | U132: =SUMIF($P$218:$P$326,$K132,U$218:U$326)*INDEX('Standard Inputs - SB 6362'!I$12:I$1048576,MATCH($L132,'Standard Inputs - SB 6362'!$D$12:$D$1048576,0))*INDEX('Standard Inputs - SB 6362'!I$12:I$1048576,MATCH($M132,'Standard Inputs - SB 6362'!$D$12:$D$1048576,0))*INDEX('Standard Inputs - SB 6362'!I$12:I$1048576,MATCH($N132,'Standard Inputs - SB 6362'!$D$12:$D$1048576,0)) -> 0 | V132: =SUMIF($P$218:$P$326,$K132,V$218:V$326)*INDEX('Standard Inputs - SB 6362'!J$12:J$1048576,MATCH($L132,'Standard Inputs - SB 6362'!$D$12:$D$1048576,0))*INDEX('Standard Inputs - SB 6362'!J$12:J$1048576,MATCH($M132,'Standard Inputs - SB 6362'!$D$12:$D$1048576,0))*INDEX('Standard Inputs - SB 6362'!J$12:J$1048576,MATCH($N132,'Standard Inputs - SB 6362'!$D$12:$D$1048576,0)) -> 27.05959506 | W132: =SUMIF($P$218:$P$326,$K132,W$218:W$326)*INDEX('Standard Inputs - SB 6362'!K$12:K$1048576,MATCH($L132,'Standard Inputs - SB 6362'!$D$12:$D$1048576,0))*INDEX('Standard Inputs - SB 6362'!K$12:K$1048576,MATCH($M132,'Standard Inputs - SB 6362'!$D$12:$D$1048576,0))*INDEX('Standard Inputs - SB 6362'!K$12:K$1048576,MATCH($N132,'Standard Inputs - SB 6362'!$D$12:$D$1048576,0)) -> 36.27976536 | X132: =SUMIF($P$218:$P$326,$K132,X$218:X$326)*INDEX('Standard Inputs - SB 6362'!L$12:L$1048576,MATCH($L132,'Standard Inputs - SB 6362'!$D$12:$D$1048576,0))*INDEX('Standard Inputs - SB 6362'!L$12:L$1048576,MATCH($M132,'Standard Inputs - SB 6362'!$D$12:$D$1048576,0))*INDEX('Standard Inputs - SB 6362'!L$12:L$1048576,MATCH($N132,'Standard Inputs - SB 6362'!$D$12:$D$1048576,0)) -> 37.2948381 | Y132: =SUMIF($P$218:$P$326,$K132,Y$218:Y$326)*INDEX('Standard Inputs - SB 6362'!M$12:M$1048576,MATCH($L132,'Standard Inputs - SB 6362'!$D$12:$D$1048576,0))*INDEX('Standard Inputs - SB 6362'!M$12:M$1048576,MATCH($M132,'Standard Inputs - SB 6362'!$D$12:$D$1048576,0))*INDEX('Standard Inputs - SB 6362'!M$12:M$1048576,MATCH($N132,'Standard Inputs - SB 6362'!$D$12:$D$1048576,0)) -> 37.52390376 | Z132: =SUMIF($P$218:$P$326,$K132,Z$218:Z$326)*INDEX('Standard Inputs - SB 6362'!N$12:N$1048576,MATCH($L132,'Standard Inputs - SB 6362'!$D$12:$D$1048576,0))*INDEX('Standard Inputs - SB 6362'!N$12:N$1048576,MATCH($M132,'Standard Inputs - SB 6362'!$D$12:$D$1048576,0))*INDEX('Standard Inputs - SB 6362'!N$12:N$1048576,MATCH($N132,'Standard Inputs - SB 6362'!$D$12:$D$1048576,0)) -> 36.40910108 | AA132: =SUMIF($P$218:$P$326,$K132,AA$218:AA$326)*INDEX('Standard Inputs - SB 6362'!O$12:O$1048576,MATCH($L132,'Standard Inputs - SB 6362'!$D$12:$D$1048576,0))*INDEX('Standard Inputs - SB 6362'!O$12:O$1048576,MATCH($M132,'Standard Inputs - SB 6362'!$D$12:$D$1048576,0))*INDEX('Standard Inputs - SB 6362'!O$12:O$1048576,MATCH($N132,'Standard Inputs - SB 6362'!$D$12:$D$1048576,0)) -> 35.46586705 | AB132: =SUMIF($P$218:$P$326,$K132,AB$218:AB$326)*INDEX('Standard Inputs - SB 6362'!P$12:P$1048576,MATCH($L132,'Standard Inputs - SB 6362'!$D$12:$D$1048576,0))*INDEX('Standard Inputs - SB 6362'!P$12:P$1048576,MATCH($M132,'Standard Inputs - SB 6362'!$D$12:$D$1048576,0))*INDEX('Standard Inputs - SB 6362'!P$12:P$1048576,MATCH($N132,'Standard Inputs - SB 6362'!$D$12:$D$1048576,0)) -> 34.82732752
K133: Total Enrollment | L133: Total BEA MSOC per student FTE | M133: Enroll 9-12 | N133: Total 9-12 MSOC per student FTE | O133: MSOC SpEd | R133: =((SUMIF($M$30:$M$56,$K133,R$30:R$56)*INDEX('Standard Inputs - SB 6362'!F$12:F$1048576,MATCH($L133,'Standard Inputs - SB 6362'!$D$12:$D$1048576,0)))+(SUMIF($M$30:$M$56,$M133,R$30:R$56)*INDEX('Standard Inputs - SB 6362'!F$12:F$1048576,MATCH($N133,'Standard Inputs - SB 6362'!$D$12:$D$1048576,0))))/SUMIF($M$30:$M$56,$K133,R$30:R$56) ->  | S133: =((SUMIF($M$30:$M$56,$K133,S$30:S$56)*INDEX('Standard Inputs - SB 6362'!G$12:G$1048576,MATCH($L133,'Standard Inputs - SB 6362'!$D$12:$D$1048576,0)))+(SUMIF($M$30:$M$56,$M133,S$30:S$56)*INDEX('Standard Inputs - SB 6362'!G$12:G$1048576,MATCH($N133,'Standard Inputs - SB 6362'!$D$12:$D$1048576,0))))/SUMIF($M$30:$M$56,$K133,S$30:S$56) ->  | T133: =((SUMIF($M$30:$M$56,$K133,T$30:T$56)*INDEX('Standard Inputs - SB 6362'!H$12:H$1048576,MATCH($L133,'Standard Inputs - SB 6362'!$D$12:$D$1048576,0)))+(SUMIF($M$30:$M$56,$M133,T$30:T$56)*INDEX('Standard Inputs - SB 6362'!H$12:H$1048576,MATCH($N133,'Standard Inputs - SB 6362'!$D$12:$D$1048576,0))))/SUMIF($M$30:$M$56,$K133,T$30:T$56) ->  | U133: =((SUMIF($M$30:$M$56,$K133,U$30:U$56)*INDEX('Standard Inputs - SB 6362'!I$12:I$1048576,MATCH($L133,'Standard Inputs - SB 6362'!$D$12:$D$1048576,0)))+(SUMIF($M$30:$M$56,$M133,U$30:U$56)*INDEX('Standard Inputs - SB 6362'!I$12:I$1048576,MATCH($N133,'Standard Inputs - SB 6362'!$D$12:$D$1048576,0))))/SUMIF($M$30:$M$56,$K133,U$30:U$56) ->  | V133: =((SUMIF($M$30:$M$56,$K133,V$30:V$56)*INDEX('Standard Inputs - SB 6362'!J$12:J$1048576,MATCH($L133,'Standard Inputs - SB 6362'!$D$12:$D$1048576,0)))+(SUMIF($M$30:$M$56,$M133,V$30:V$56)*INDEX('Standard Inputs - SB 6362'!J$12:J$1048576,MATCH($N133,'Standard Inputs - SB 6362'!$D$12:$D$1048576,0))))/SUMIF($M$30:$M$56,$K133,V$30:V$56) -> 1524.22 | W133: =((SUMIF($M$30:$M$56,$K133,W$30:W$56)*INDEX('Standard Inputs - SB 6362'!K$12:K$1048576,MATCH($L133,'Standard Inputs - SB 6362'!$D$12:$D$1048576,0)))+(SUMIF($M$30:$M$56,$M133,W$30:W$56)*INDEX('Standard Inputs - SB 6362'!K$12:K$1048576,MATCH($N133,'Standard Inputs - SB 6362'!$D$12:$D$1048576,0))))/SUMIF($M$30:$M$56,$K133,W$30:W$56) -> 1438.84 | X133: =((SUMIF($M$30:$M$56,$K133,X$30:X$56)*INDEX('Standard Inputs - SB 6362'!L$12:L$1048576,MATCH($L133,'Standard Inputs - SB 6362'!$D$12:$D$1048576,0)))+(SUMIF($M$30:$M$56,$M133,X$30:X$56)*INDEX('Standard Inputs - SB 6362'!L$12:L$1048576,MATCH($N133,'Standard Inputs - SB 6362'!$D$12:$D$1048576,0))))/SUMIF($M$30:$M$56,$K133,X$30:X$56) -> 1483.44 | Y133: =((SUMIF($M$30:$M$56,$K133,Y$30:Y$56)*INDEX('Standard Inputs - SB 6362'!M$12:M$1048576,MATCH($L133,'Standard Inputs - SB 6362'!$D$12:$D$1048576,0)))+(SUMIF($M$30:$M$56,$M133,Y$30:Y$56)*INDEX('Standard Inputs - SB 6362'!M$12:M$1048576,MATCH($N133,'Standard Inputs - SB 6362'!$D$12:$D$1048576,0))))/SUMIF($M$30:$M$56,$K133,Y$30:Y$56) -> 1483.44 | Z133: =((SUMIF($M$30:$M$56,$K133,Z$30:Z$56)*INDEX('Standard Inputs - SB 6362'!N$12:N$1048576,MATCH($L133,'Standard Inputs - SB 6362'!$D$12:$D$1048576,0)))+(SUMIF($M$30:$M$56,$M133,Z$30:Z$56)*INDEX('Standard Inputs - SB 6362'!N$12:N$1048576,MATCH($N133,'Standard Inputs - SB 6362'!$D$12:$D$1048576,0))))/SUMIF($M$30:$M$56,$K133,Z$30:Z$56) -> 1490.040989 | AA133: =((SUMIF($M$30:$M$56,$K133,AA$30:AA$56)*INDEX('Standard Inputs - SB 6362'!O$12:O$1048576,MATCH($L133,'Standard Inputs - SB 6362'!$D$12:$D$1048576,0)))+(SUMIF($M$30:$M$56,$M133,AA$30:AA$56)*INDEX('Standard Inputs - SB 6362'!O$12:O$1048576,MATCH($N133,'Standard Inputs - SB 6362'!$D$12:$D$1048576,0))))/SUMIF($M$30:$M$56,$K133,AA$30:AA$56) -> 1492.273676 | AB133: =((SUMIF($M$30:$M$56,$K133,AB$30:AB$56)*INDEX('Standard Inputs - SB 6362'!P$12:P$1048576,MATCH($L133,'Standard Inputs - SB 6362'!$D$12:$D$1048576,0)))+(SUMIF($M$30:$M$56,$M133,AB$30:AB$56)*INDEX('Standard Inputs - SB 6362'!P$12:P$1048576,MATCH($N133,'Standard Inputs - SB 6362'!$D$12:$D$1048576,0))))/SUMIF($M$30:$M$56,$K133,AB$30:AB$56) -> 1487.850352
N134: CIS/CAS Benefits Increase | O134: Professional Learning Time | R134: 0 | S134: =+IF($D$18="No",0,(S$222*S$118/180*1)+(S$222*S$118/180*1)*'Standard Inputs - SB 6362'!G$111) -> 0 | T134: =+IF($D$18="No",0,(T$222*T$118/180*2)+(T$222*T$118/180*2)*'Standard Inputs - SB 6362'!H$111) -> 0 | U134: =+IF($D$18="No",0,(U$222*U$118/180*3)+(U$222*U$118/180*3)*INDEX('Standard Inputs - SB 6362'!I$12:I$1048576,MATCH($N140,'Standard Inputs - SB 6362'!$D$12:$D$1048576,0))) -> 0 | V134: =+IF($D$18="No",0,(V$222*V$118/180*3)+(V$222*V$118/180*3)*INDEX('Standard Inputs - SB 6362'!J$12:J$1048576,MATCH($N140,'Standard Inputs - SB 6362'!$D$12:$D$1048576,0))) -> 68.13317769 | W134: =+IF($D$18="No",0,(W$222*W$118/180*3)+(W$222*W$118/180*3)*INDEX('Standard Inputs - SB 6362'!K$12:K$1048576,MATCH($N140,'Standard Inputs - SB 6362'!$D$12:$D$1048576,0))) -> 96.58520759 | X134: =+IF($D$18="No",0,(X$222*X$118/180*3)+(X$222*X$118/180*3)*INDEX('Standard Inputs - SB 6362'!L$12:L$1048576,MATCH($N140,'Standard Inputs - SB 6362'!$D$12:$D$1048576,0))) -> 98.74488166 | Y134: =+IF($D$18="No",0,(Y$222*Y$118/180*3)+(Y$222*Y$118/180*3)*INDEX('Standard Inputs - SB 6362'!M$12:M$1048576,MATCH($N140,'Standard Inputs - SB 6362'!$D$12:$D$1048576,0))) -> 103.2260784 | Z134: =+IF($D$18="No",0,(Z$222*Z$118/180*3)+(Z$222*Z$118/180*3)*INDEX('Standard Inputs - SB 6362'!N$12:N$1048576,MATCH($N140,'Standard Inputs - SB 6362'!$D$12:$D$1048576,0))) -> 100.4910324 | AA134: =+IF($D$18="No",0,(AA$222*AA$118/180*3)+(AA$222*AA$118/180*3)*INDEX('Standard Inputs - SB 6362'!O$12:O$1048576,MATCH($N140,'Standard Inputs - SB 6362'!$D$12:$D$1048576,0))) -> 99.94329774 | AB134: =+IF($D$18="No",0,(AB$222*AB$118/180*3)+(AB$222*AB$118/180*3)*INDEX('Standard Inputs - SB 6362'!P$12:P$1048576,MATCH($N140,'Standard Inputs - SB 6362'!$D$12:$D$1048576,0))) -> 98.14388464
O136: OTHER | R136: SY 2017-18 | S136: SY 2018-19 | T136: SY 2019-20 | U136: SY 2020-21 | V136: SY 2021-22 | W136: SY 2022-23 | X136: SY 2023-24 | Y136: SY 2024-25 | Z136: SY 2025-26 | AA136: SY 2026-27 | AB136: SY 2027-28
M137: Total Enrollment | N137: Total BEA MSOC per student FTE | O137: MSOC BEA | P137: MSOC | R137: =SUMIF($M$30:$M$56,$M137,R$30:R$56)*INDEX('Standard Inputs - SB 6362'!F$12:F$1048576,MATCH($N137,'Standard Inputs - SB 6362'!$D$12:$D$1048576,0)) -> 0 | S137: =SUMIF($M$30:$M$56,$M137,S$30:S$56)*INDEX('Standard Inputs - SB 6362'!G$12:G$1048576,MATCH($N137,'Standard Inputs - SB 6362'!$D$12:$D$1048576,0)) -> 0 | T137: =SUMIF($M$30:$M$56,$M137,T$30:T$56)*INDEX('Standard Inputs - SB 6362'!H$12:H$1048576,MATCH($N137,'Standard Inputs - SB 6362'!$D$12:$D$1048576,0)) -> 0 | U137: =SUMIF($M$30:$M$56,$M137,U$30:U$56)*INDEX('Standard Inputs - SB 6362'!I$12:I$1048576,MATCH($N137,'Standard Inputs - SB 6362'!$D$12:$D$1048576,0)) -> 0 | V137: =SUMIF($M$30:$M$56,$M137,V$30:V$56)*INDEX('Standard Inputs - SB 6362'!J$12:J$1048576,MATCH($N137,'Standard Inputs - SB 6362'!$D$12:$D$1048576,0)) -> 133744.974 | W137: =SUMIF($M$30:$M$56,$M137,W$30:W$56)*INDEX('Standard Inputs - SB 6362'!K$12:K$1048576,MATCH($N137,'Standard Inputs - SB 6362'!$D$12:$D$1048576,0)) -> 143884 | X137: =SUMIF($M$30:$M$56,$M137,X$30:X$56)*INDEX('Standard Inputs - SB 6362'!L$12:L$1048576,MATCH($N137,'Standard Inputs - SB 6362'!$D$12:$D$1048576,0)) -> 157838.016 | Y137: =SUMIF($M$30:$M$56,$M137,Y$30:Y$56)*INDEX('Standard Inputs - SB 6362'!M$12:M$1048576,MATCH($N137,'Standard Inputs - SB 6362'!$D$12:$D$1048576,0)) -> 195814.08 | Z137: =SUMIF($M$30:$M$56,$M137,Z$30:Z$56)*INDEX('Standard Inputs - SB 6362'!N$12:N$1048576,MATCH($N137,'Standard Inputs - SB 6362'!$D$12:$D$1048576,0)) -> 269986.08 | AA137: =SUMIF($M$30:$M$56,$M137,AA$30:AA$56)*INDEX('Standard Inputs - SB 6362'!O$12:O$1048576,MATCH($N137,'Standard Inputs - SB 6362'!$D$12:$D$1048576,0)) -> 302621.76 | AB137: =SUMIF($M$30:$M$56,$M137,AB$30:AB$56)*INDEX('Standard Inputs - SB 6362'!P$12:P$1048576,MATCH($N137,'Standard Inputs - SB 6362'!$D$12:$D$1048576,0)) -> 336740.88
M138: Enroll 9-12 | N138: Total 9-12 MSOC per student FTE | O138: MSOC 9-12 | P138: MSOC | R138: =SUMIF($M$30:$M$56,$M138,R$30:R$56)*INDEX('Standard Inputs - SB 6362'!F$12:F$1048576,MATCH($N138,'Standard Inputs - SB 6362'!$D$12:$D$1048576,0)) -> 0 | S138: =SUMIF($M$30:$M$56,$M138,S$30:S$56)*INDEX('Standard Inputs - SB 6362'!G$12:G$1048576,MATCH($N138,'Standard Inputs - SB 6362'!$D$12:$D$1048576,0)) -> 0 | T138: =SUMIF($M$30:$M$56,$M138,T$30:T$56)*INDEX('Standard Inputs - SB 6362'!H$12:H$1048576,MATCH($N138,'Standard Inputs - SB 6362'!$D$12:$D$1048576,0)) -> 0 | U138: =SUMIF($M$30:$M$56,$M138,U$30:U$56)*INDEX('Standard Inputs - SB 6362'!I$12:I$1048576,MATCH($N138,'Standard Inputs - SB 6362'!$D$12:$D$1048576,0)) -> 0 | V138: =SUMIF($M$30:$M$56,$M138,V$30:V$56)*INDEX('Standard Inputs - SB 6362'!J$12:J$1048576,MATCH($N138,'Standard Inputs - SB 6362'!$D$12:$D$1048576,0)) -> 18372.182 | W138: =SUMIF($M$30:$M$56,$M138,W$30:W$56)*INDEX('Standard Inputs - SB 6362'!K$12:K$1048576,MATCH($N138,'Standard Inputs - SB 6362'!$D$12:$D$1048576,0)) -> 0 | X138: =SUMIF($M$30:$M$56,$M138,X$30:X$56)*INDEX('Standard Inputs - SB 6362'!L$12:L$1048576,MATCH($N138,'Standard Inputs - SB 6362'!$D$12:$D$1048576,0)) -> 0 | Y138: =SUMIF($M$30:$M$56,$M138,Y$30:Y$56)*INDEX('Standard Inputs - SB 6362'!M$12:M$1048576,MATCH($N138,'Standard Inputs - SB 6362'!$D$12:$D$1048576,0)) -> 0 | Z138: =SUMIF($M$30:$M$56,$M138,Z$30:Z$56)*INDEX('Standard Inputs - SB 6362'!N$12:N$1048576,MATCH($N138,'Standard Inputs - SB 6362'!$D$12:$D$1048576,0)) -> 1201.38 | AA138: =SUMIF($M$30:$M$56,$M138,AA$30:AA$56)*INDEX('Standard Inputs - SB 6362'!O$12:O$1048576,MATCH($N138,'Standard Inputs - SB 6362'!$D$12:$D$1048576,0)) -> 1802.07 | AB138: =SUMIF($M$30:$M$56,$M138,AB$30:AB$56)*INDEX('Standard Inputs - SB 6362'!P$12:P$1048576,MATCH($N138,'Standard Inputs - SB 6362'!$D$12:$D$1048576,0)) -> 1001.15
J139: Small High School CAS | K139: Small High School CIS | L139: Non-High K-6 Cert. Instructional | M139: Non-High K-8 Cert. Instructional | N139: Total Small School MSOC | O139: MSOC SS RN | P139: MSOC | R139: =(SUMIF($O$218:$O$326,$J139,R$218:R$326)+SUMIF($O$218:$O$326,$K139,R$218:R$326)+SUMIF($O$218:$O$326,$L139,R$218:R$326)+SUMIF($O$218:$O$326,$M139,R$218:R$326))*INDEX('Standard Inputs - SB 6362'!F$12:F$1048576,MATCH($N139,'Standard Inputs - SB 6362'!$D$12:$D$1048576,0)) -> 0 | S139: =(SUMIF($O$218:$O$326,$J139,S$218:S$326)+SUMIF($O$218:$O$326,$K139,S$218:S$326)+SUMIF($O$218:$O$326,$L139,S$218:S$326)+SUMIF($O$218:$O$326,$M139,S$218:S$326))*INDEX('Standard Inputs - SB 6362'!G$12:G$1048576,MATCH($N139,'Standard Inputs - SB 6362'!$D$12:$D$1048576,0)) -> 0 | T139: =(SUMIF($O$218:$O$326,$J139,T$218:T$326)+SUMIF($O$218:$O$326,$K139,T$218:T$326)+SUMIF($O$218:$O$326,$L139,T$218:T$326)+SUMIF($O$218:$O$326,$M139,T$218:T$326))*INDEX('Standard Inputs - SB 6362'!H$12:H$1048576,MATCH($N139,'Standard Inputs - SB 6362'!$D$12:$D$1048576,0)) -> 0 | U139: =(SUMIF($O$218:$O$326,$J139,U$218:U$326)+SUMIF($O$218:$O$326,$K139,U$218:U$326)+SUMIF($O$218:$O$326,$L139,U$218:U$326)+SUMIF($O$218:$O$326,$M139,U$218:U$326))*INDEX('Standard Inputs - SB 6362'!I$12:I$1048576,MATCH($N139,'Standard Inputs - SB 6362'!$D$12:$D$1048576,0)) -> 0 | V139: =(SUMIF($O$218:$O$326,$J139,V$218:V$326)+SUMIF($O$218:$O$326,$K139,V$218:V$326)+SUMIF($O$218:$O$326,$L139,V$218:V$326)+SUMIF($O$218:$O$326,$M139,V$218:V$326))*INDEX('Standard Inputs - SB 6362'!J$12:J$1048576,MATCH($N139,'Standard Inputs - SB 6362'!$D$12:$D$1048576,0)) -> 63972.42543 | W139: =(SUMIF($O$218:$O$326,$J139,W$218:W$326)+SUMIF($O$218:$O$326,$K139,W$218:W$326)+SUMIF($O$218:$O$326,$L139,W$218:W$326)+SUMIF($O$218:$O$326,$M139,W$218:W$326))*INDEX('Standard Inputs - SB 6362'!K$12:K$1048576,MATCH($N139,'Standard Inputs - SB 6362'!$D$12:$D$1048576,0)) -> 6534.05 | X139: =(SUMIF($O$218:$O$326,$J139,X$218:X$326)+SUMIF($O$218:$O$326,$K139,X$218:X$326)+SUMIF($O$218:$O$326,$L139,X$218:X$326)+SUMIF($O$218:$O$326,$M139,X$218:X$326))*INDEX('Standard Inputs - SB 6362'!L$12:L$1048576,MATCH($N139,'Standard Inputs - SB 6362'!$D$12:$D$1048576,0)) -> 6736.6 | Y139: =(SUMIF($O$218:$O$326,$J139,Y$218:Y$326)+SUMIF($O$218:$O$326,$K139,Y$218:Y$326)+SUMIF($O$218:$O$326,$L139,Y$218:Y$326)+SUMIF($O$218:$O$326,$M139,Y$218:Y$326))*INDEX('Standard Inputs - SB 6362'!M$12:M$1048576,MATCH($N139,'Standard Inputs - SB 6362'!$D$12:$D$1048576,0)) -> 6736.6 | Z139: =(SUMIF($O$218:$O$326,$J139,Z$218:Z$326)+SUMIF($O$218:$O$326,$K139,Z$218:Z$326)+SUMIF($O$218:$O$326,$L139,Z$218:Z$326)+SUMIF($O$218:$O$326,$M139,Z$218:Z$326))*INDEX('Standard Inputs - SB 6362'!N$12:N$1048576,MATCH($N139,'Standard Inputs - SB 6362'!$D$12:$D$1048576,0)) -> 123616.3405 | AA139: =(SUMIF($O$218:$O$326,$J139,AA$218:AA$326)+SUMIF($O$218:$O$326,$K139,AA$218:AA$326)+SUMIF($O$218:$O$326,$L139,AA$218:AA$326)+SUMIF($O$218:$O$326,$M139,AA$218:AA$326))*INDEX('Standard Inputs - SB 6362'!O$12:O$1048576,MATCH($N139,'Standard Inputs - SB 6362'!$D$12:$D$1048576,0)) -> 121426.8108 | AB139: =(SUMIF($O$218:$O$326,$J139,AB$218:AB$326)+SUMIF($O$218:$O$326,$K139,AB$218:AB$326)+SUMIF($O$218:$O$326,$L139,AB$218:AB$326)+SUMIF($O$218:$O$326,$M139,AB$218:AB$326))*INDEX('Standard Inputs - SB 6362'!P$12:P$1048576,MATCH($N139,'Standard Inputs - SB 6362'!$D$12:$D$1048576,0)) -> 124346.1838
N140: CIS/CAS Benefits Increase | O140: Professional Learning Time | P140: Other Entitlements | R140: =IF($D$18="No",0,(((R230+R238+R303)*((Q118*Q121)/180))+(((R230+R238+R303)*((R118*R121)/180))-((R230+R238+R303)*((Q118*Q121)/180)))+((R230+R238+R303)*((Q118*Q121*'Standard Inputs - SB 6362'!E110)/180))+(((R230+R238+R303)*((R118*R121*'Standard Inputs - SB 6362'!E111)/180))-(R230+R238+R303)*((Q118*Q121*'Standard Inputs - SB 6362'!E110)/180)))*0) -> 0 | S140: =IF($D$18="No",0,((S$230+S$238+S$294+S$295+S$296)*S$118/180*1)+((S$230+S$238+S$294+S$295+S$296)*S$118/180*1)*'Standard Inputs - SB 6362'!G$111) -> 0 | T140: =IF($D$18="No",0,((T$230+T$238+T$294+T$295+T$296+T290+T292)*T$118/180*3)+((T$230+T$238+T$294+T$295+T$296+T290+T292)*T$118/180*3)*INDEX('Standard Inputs - SB 6362'!H$12:H$1048576,MATCH($N140,'Standard Inputs - SB 6362'!$D$12:$D$1048576,0))) ->  | U140: =IF($D$18="No",0,((U$230+U$238+U$294+U$295+U$296+U290+U292)*U$118/180*3)+((U$230+U$238+U$294+U$295+U$296+U290+U292)*U$118/180*3)*INDEX('Standard Inputs - SB 6362'!I$12:I$1048576,MATCH($N140,'Standard Inputs - SB 6362'!$D$12:$D$1048576,0))) -> 0 | V140: =IF($D$18="No",0,((V$230+V$238+V$294+V$295+V$296+V290+V292)*V$118/180*3)+((V$230+V$238+V$294+V$295+V$296+V290+V292)*V$118/180*3)*INDEX('Standard Inputs - SB 6362'!J$12:J$1048576,MATCH($N140,'Standard Inputs - SB 6362'!$D$12:$D$1048576,0))) -> 13742.96589 | W140: =IF($D$18="No",0,((W$230+W$238+W$294+W$295+W$296+W290+W292)*W$118/180*3)+((W$230+W$238+W$294+W$295+W$296+W290+W292)*W$118/180*3)*INDEX('Standard Inputs - SB 6362'!K$12:K$1048576,MATCH($N140,'Standard Inputs - SB 6362'!$D$12:$D$1048576,0))) -> 10568.79878 | X140: =IF($D$18="No",0,((X$230+X$238+X$294+X$295+X$296+X290+X292)*X$118/180*3)+((X$230+X$238+X$294+X$295+X$296+X290+X292)*X$118/180*3)*INDEX('Standard Inputs - SB 6362'!L$12:L$1048576,MATCH($N140,'Standard Inputs - SB 6362'!$D$12:$D$1048576,0))) -> 11244.01659 | Y140: =IF($D$18="No",0,((Y$230+Y$238+Y$294+Y$295+Y$296+Y290+Y292)*Y$118/180*3)+((Y$230+Y$238+Y$294+Y$295+Y$296+Y290+Y292)*Y$118/180*3)*INDEX('Standard Inputs - SB 6362'!M$12:M$1048576,MATCH($N140,'Standard Inputs - SB 6362'!$D$12:$D$1048576,0))) -> 14620.02224 | Z140: =IF($D$18="No",0,((Z$230+Z$238+Z$294+Z$295+Z$296+Z290+Z292)*Z$118/180*3)+((Z$230+Z$238+Z$294+Z$295+Z$296+Z290+Z292)*Z$118/180*3)*INDEX('Standard Inputs - SB 6362'!N$12:N$1048576,MATCH($N140,'Standard Inputs - SB 6362'!$D$12:$D$1048576,0))) -> 31976.95625 | AA140: =IF($D$18="No",0,((AA$230+AA$238+AA$294+AA$295+AA$296+AA290+AA292)*AA$118/180*3)+((AA$230+AA$238+AA$294+AA$295+AA$296+AA290+AA292)*AA$118/180*3)*INDEX('Standard Inputs - SB 6362'!O$12:O$1048576,MATCH($N140,'Standard Inputs - SB 6362'!$D$12:$D$1048576,0))) -> 34164.18741 | AB140: =IF($D$18="No",0,((AB$230+AB$238+AB$294+AB$295+AB$296+AB290+AB292)*AB$118/180*3)+((AB$230+AB$238+AB$294+AB$295+AB$296+AB290+AB292)*AB$118/180*3)*INDEX('Standard Inputs - SB 6362'!P$12:P$1048576,MATCH($N140,'Standard Inputs - SB 6362'!$D$12:$D$1048576,0))) -> 36412.8097 | AC140: <For General Entitlement only, includes Salary and Benefits/ Payroll Tax
I141: Small High School CIS | J141: Non-High K-6 Cert. Instructional | K141: Non-High K-8 Cert. Instructional | L141: Teacher % | M141: Substitutes Days | N141: Substitutes Rate | O141: SS RN Substitutes | P141: Other Entitlements | R141: =(SUMIF($O$218:$O$326,$I141,R$218:R$326)+SUMIF($O$218:$O$326,$J141,R$218:R$326)+SUMIF($O$218:$O$326,$K141,R$218:R$326))*INDEX('Standard Inputs - SB 6362'!F$12:F$1048576,MATCH($L141,'Standard Inputs - SB 6362'!$D$12:$D$1048576,0))*INDEX('Standard Inputs - SB 6362'!F$12:F$1048576,MATCH($M141,'Standard Inputs - SB 6362'!$D$12:$D$1048576,0))*INDEX('Standard Inputs - SB 6362'!F$12:F$1048576,MATCH($N141,'Standard Inputs - SB 6362'!$D$12:$D$1048576,0)) -> 0 | S141: =(SUMIF($O$218:$O$326,$I141,S$218:S$326)+SUMIF($O$218:$O$326,$J141,S$218:S$326)+SUMIF($O$218:$O$326,$K141,S$218:S$326))*INDEX('Standard Inputs - SB 6362'!G$12:G$1048576,MATCH($L141,'Standard Inputs - SB 6362'!$D$12:$D$1048576,0))*INDEX('Standard Inputs - SB 6362'!G$12:G$1048576,MATCH($M141,'Standard Inputs - SB 6362'!$D$12:$D$1048576,0))*INDEX('Standard Inputs - SB 6362'!G$12:G$1048576,MATCH($N141,'Standard Inputs - SB 6362'!$D$12:$D$1048576,0)) -> 0 | T141: =(SUMIF($O$218:$O$326,$I141,T$218:T$326)+SUMIF($O$218:$O$326,$J141,T$218:T$326)+SUMIF($O$218:$O$326,$K141,T$218:T$326))*INDEX('Standard Inputs - SB 6362'!H$12:H$1048576,MATCH($L141,'Standard Inputs - SB 6362'!$D$12:$D$1048576,0))*INDEX('Standard Inputs - SB 6362'!H$12:H$1048576,MATCH($M141,'Standard Inputs - SB 6362'!$D$12:$D$1048576,0))*INDEX('Standard Inputs - SB 6362'!H$12:H$1048576,MATCH($N141,'Standard Inputs - SB 6362'!$D$12:$D$1048576,0)) -> 0 | U141: =(SUMIF($O$218:$O$326,$I141,U$218:U$326)+SUMIF($O$218:$O$326,$J141,U$218:U$326)+SUMIF($O$218:$O$326,$K141,U$218:U$326)+U290+U292)*INDEX('Standard Inputs - SB 6362'!I$12:I$1048576,MATCH($L141,'Standard Inputs - SB 6362'!$D$12:$D$1048576,0))*INDEX('Standard Inputs - SB 6362'!I$12:I$1048576,MATCH($M141,'Standard Inputs - SB 6362'!$D$12:$D$1048576,0))*INDEX('Standard Inputs - SB 6362'!I$12:I$1048576,MATCH($N141,'Standard Inputs - SB 6362'!$D$12:$D$1048576,0)) -> 0 | V141: =(SUMIF($O$218:$O$326,$I141,V$218:V$326)+SUMIF($O$218:$O$326,$J141,V$218:V$326)+SUMIF($O$218:$O$326,$K141,V$218:V$326)+V290+V292)*INDEX('Standard Inputs - SB 6362'!J$12:J$1048576,MATCH($L141,'Standard Inputs - SB 6362'!$D$12:$D$1048576,0))*INDEX('Standard Inputs - SB 6362'!J$12:J$1048576,MATCH($M141,'Standard Inputs - SB 6362'!$D$12:$D$1048576,0))*INDEX('Standard Inputs - SB 6362'!J$12:J$1048576,MATCH($N141,'Standard Inputs - SB 6362'!$D$12:$D$1048576,0)) -> 2757.675487 | W141: =(SUMIF($O$218:$O$326,$I141,W$218:W$326)+SUMIF($O$218:$O$326,$J141,W$218:W$326)+SUMIF($O$218:$O$326,$K141,W$218:W$326)+W290+W292)*INDEX('Standard Inputs - SB 6362'!K$12:K$1048576,MATCH($L141,'Standard Inputs - SB 6362'!$D$12:$D$1048576,0))*INDEX('Standard Inputs - SB 6362'!K$12:K$1048576,MATCH($M141,'Standard Inputs - SB 6362'!$D$12:$D$1048576,0))*INDEX('Standard Inputs - SB 6362'!K$12:K$1048576,MATCH($N141,'Standard Inputs - SB 6362'!$D$12:$D$1048576,0)) -> 278.51124 | X141: =(SUMIF($O$218:$O$326,$I141,X$218:X$326)+SUMIF($O$218:$O$326,$J141,X$218:X$326)+SUMIF($O$218:$O$326,$K141,X$218:X$326)+X290+X292)*INDEX('Standard Inputs - SB 6362'!L$12:L$1048576,MATCH($L141,'Standard Inputs - SB 6362'!$D$12:$D$1048576,0))*INDEX('Standard Inputs - SB 6362'!L$12:L$1048576,MATCH($M141,'Standard Inputs - SB 6362'!$D$12:$D$1048576,0))*INDEX('Standard Inputs - SB 6362'!L$12:L$1048576,MATCH($N141,'Standard Inputs - SB 6362'!$D$12:$D$1048576,0)) -> 278.51124 | Y141: =(SUMIF($O$218:$O$326,$I141,Y$218:Y$326)+SUMIF($O$218:$O$326,$J141,Y$218:Y$326)+SUMIF($O$218:$O$326,$K141,Y$218:Y$326)+Y290+Y292)*INDEX('Standard Inputs - SB 6362'!M$12:M$1048576,MATCH($L141,'Standard Inputs - SB 6362'!$D$12:$D$1048576,0))*INDEX('Standard Inputs - SB 6362'!M$12:M$1048576,MATCH($M141,'Standard Inputs - SB 6362'!$D$12:$D$1048576,0))*INDEX('Standard Inputs - SB 6362'!M$12:M$1048576,MATCH($N141,'Standard Inputs - SB 6362'!$D$12:$D$1048576,0)) -> 278.51124 | Z141: =(SUMIF($O$218:$O$326,$I141,Z$218:Z$326)+SUMIF($O$218:$O$326,$J141,Z$218:Z$326)+SUMIF($O$218:$O$326,$K141,Z$218:Z$326)+Z290+Z292)*INDEX('Standard Inputs - SB 6362'!N$12:N$1048576,MATCH($L141,'Standard Inputs - SB 6362'!$D$12:$D$1048576,0))*INDEX('Standard Inputs - SB 6362'!N$12:N$1048576,MATCH($M141,'Standard Inputs - SB 6362'!$D$12:$D$1048576,0))*INDEX('Standard Inputs - SB 6362'!N$12:N$1048576,MATCH($N141,'Standard Inputs - SB 6362'!$D$12:$D$1048576,0)) -> 4845.661098 | AA141: =(SUMIF($O$218:$O$326,$I141,AA$218:AA$326)+SUMIF($O$218:$O$326,$J141,AA$218:AA$326)+SUMIF($O$218:$O$326,$K141,AA$218:AA$326)+AA290+AA292)*INDEX('Standard Inputs - SB 6362'!O$12:O$1048576,MATCH($L141,'Standard Inputs - SB 6362'!$D$12:$D$1048576,0))*INDEX('Standard Inputs - SB 6362'!O$12:O$1048576,MATCH($M141,'Standard Inputs - SB 6362'!$D$12:$D$1048576,0))*INDEX('Standard Inputs - SB 6362'!O$12:O$1048576,MATCH($N141,'Standard Inputs - SB 6362'!$D$12:$D$1048576,0)) -> 4761.890488 | AB141: =(SUMIF($O$218:$O$326,$I141,AB$218:AB$326)+SUMIF($O$218:$O$326,$J141,AB$218:AB$326)+SUMIF($O$218:$O$326,$K141,AB$218:AB$326)+AB290+AB292)*INDEX('Standard Inputs - SB 6362'!P$12:P$1048576,MATCH($L141,'Standard Inputs - SB 6362'!$D$12:$D$1048576,0))*INDEX('Standard Inputs - SB 6362'!P$12:P$1048576,MATCH($M141,'Standard Inputs - SB 6362'!$D$12:$D$1048576,0))*INDEX('Standard Inputs - SB 6362'!P$12:P$1048576,MATCH($N141,'Standard Inputs - SB 6362'!$D$12:$D$1048576,0)) -> 4873.584635
L142: Teacher Staff Units | M142: Substitutes Days | N142: Substitutes Rate | O142: Substitute Dollars | P142: Other Entitlements | R142: =SUMIF($P$218:$P$326,$L$142,R$218:R$326)*INDEX('Standard Inputs - SB 6362'!F$12:F$1048576,MATCH($M142,'Standard Inputs - SB 6362'!$D$12:$D$1048576,0))*INDEX('Standard Inputs - SB 6362'!F$12:F$1048576,MATCH($N142,'Standard Inputs - SB 6362'!$D$12:$D$1048576,0)) -> 0 | S142: =SUMIF($P$218:$P$326,$L$142,S$218:S$326)*INDEX('Standard Inputs - SB 6362'!G$12:G$1048576,MATCH($M142,'Standard Inputs - SB 6362'!$D$12:$D$1048576,0))*INDEX('Standard Inputs - SB 6362'!G$12:G$1048576,MATCH($N142,'Standard Inputs - SB 6362'!$D$12:$D$1048576,0)) -> 0 | T142: =SUMIF($P$218:$P$326,$L$142,T$218:T$326)*INDEX('Standard Inputs - SB 6362'!H$12:H$1048576,MATCH($M142,'Standard Inputs - SB 6362'!$D$12:$D$1048576,0))*INDEX('Standard Inputs - SB 6362'!H$12:H$1048576,MATCH($N142,'Standard Inputs - SB 6362'!$D$12:$D$1048576,0)) ->  | U142: =SUMIF($P$218:$P$326,$L$142,U$218:U$326)*INDEX('Standard Inputs - SB 6362'!I$12:I$1048576,MATCH($M142,'Standard Inputs - SB 6362'!$D$12:$D$1048576,0))*INDEX('Standard Inputs - SB 6362'!I$12:I$1048576,MATCH($N142,'Standard Inputs - SB 6362'!$D$12:$D$1048576,0)) -> 0 | V142: =SUMIF($P$218:$P$326,$L$142,V$218:V$326)*INDEX('Standard Inputs - SB 6362'!J$12:J$1048576,MATCH($M142,'Standard Inputs - SB 6362'!$D$12:$D$1048576,0))*INDEX('Standard Inputs - SB 6362'!J$12:J$1048576,MATCH($N142,'Standard Inputs - SB 6362'!$D$12:$D$1048576,0)) -> 2623.53336 | W142: =SUMIF($P$218:$P$326,$L$142,W$218:W$326)*INDEX('Standard Inputs - SB 6362'!K$12:K$1048576,MATCH($M142,'Standard Inputs - SB 6362'!$D$12:$D$1048576,0))*INDEX('Standard Inputs - SB 6362'!K$12:K$1048576,MATCH($N142,'Standard Inputs - SB 6362'!$D$12:$D$1048576,0)) -> 3760.0536 | X142: =SUMIF($P$218:$P$326,$L$142,X$218:X$326)*INDEX('Standard Inputs - SB 6362'!L$12:L$1048576,MATCH($M142,'Standard Inputs - SB 6362'!$D$12:$D$1048576,0))*INDEX('Standard Inputs - SB 6362'!L$12:L$1048576,MATCH($N142,'Standard Inputs - SB 6362'!$D$12:$D$1048576,0)) -> 3968.40552 | Y142: =SUMIF($P$218:$P$326,$L$142,Y$218:Y$326)*INDEX('Standard Inputs - SB 6362'!M$12:M$1048576,MATCH($M142,'Standard Inputs - SB 6362'!$D$12:$D$1048576,0))*INDEX('Standard Inputs - SB 6362'!M$12:M$1048576,MATCH($N142,'Standard Inputs - SB 6362'!$D$12:$D$1048576,0)) -> 4952.45832 | Z142: =SUMIF($P$218:$P$326,$L$142,Z$218:Z$326)*INDEX('Standard Inputs - SB 6362'!N$12:N$1048576,MATCH($M142,'Standard Inputs - SB 6362'!$D$12:$D$1048576,0))*INDEX('Standard Inputs - SB 6362'!N$12:N$1048576,MATCH($N142,'Standard Inputs - SB 6362'!$D$12:$D$1048576,0)) -> 6605.30256 | AA142: =SUMIF($P$218:$P$326,$L$142,AA$218:AA$326)*INDEX('Standard Inputs - SB 6362'!O$12:O$1048576,MATCH($M142,'Standard Inputs - SB 6362'!$D$12:$D$1048576,0))*INDEX('Standard Inputs - SB 6362'!O$12:O$1048576,MATCH($N142,'Standard Inputs - SB 6362'!$D$12:$D$1048576,0)) -> 7193.91192 | AB142: =SUMIF($P$218:$P$326,$L$142,AB$218:AB$326)*INDEX('Standard Inputs - SB 6362'!P$12:P$1048576,MATCH($M142,'Standard Inputs - SB 6362'!$D$12:$D$1048576,0))*INDEX('Standard Inputs - SB 6362'!P$12:P$1048576,MATCH($N142,'Standard Inputs - SB 6362'!$D$12:$D$1048576,0)) -> 7849.94712
M143: TBIP Salaries | N143: TBIP Insurance and Benefits | O143: TBIP withholding % | P143: TBIP Salaries | R143: =-(SUMIF($P$146:$P$215,$M143,R$146:R$215)+SUMIF($P$146:$P$215,$N143,R$146:R$215)+SUMIF($P$146:$P$215,#REF!,R$146:R$215))*INDEX('Standard Inputs - SB 6362'!F$12:F$1048576,MATCH($O143,'Standard Inputs - SB 6362'!$D$12:$D$1048576,0)) -> 0 | S143: =-(SUMIF($P$146:$P$215,$M143,S$146:S$215)+SUMIF($P$146:$P$215,$N143,S$146:S$215)+SUMIF($P$146:$P$215,#REF!,S$146:S$215))*INDEX('Standard Inputs - SB 6362'!G$12:G$1048576,MATCH($O143,'Standard Inputs - SB 6362'!$D$12:$D$1048576,0)) -> -197.0495755 | T143: =-(SUMIF($P$146:$P$215,$M143,T$146:T$215)+SUMIF($P$146:$P$215,$N143,T$146:T$215)+SUMIF($P$146:$P$215,#REF!,T$146:T$215))*INDEX('Standard Inputs - SB 6362'!H$12:H$1048576,MATCH($O143,'Standard Inputs - SB 6362'!$D$12:$D$1048576,0)) -> 0 | U143: =-(SUMIF($P$146:$P$215,$M143,U$146:U$215)+SUMIF($P$146:$P$215,$N143,U$146:U$215)+SUMIF($P$146:$P$215,#REF!,U$146:U$215))*INDEX('Standard Inputs - SB 6362'!I$12:I$1048576,MATCH($O143,'Standard Inputs - SB 6362'!$D$12:$D$1048576,0)) -> 0 | V143: =-(SUMIF($P$146:$P$215,$M143,V$146:V$215)+SUMIF($P$146:$P$215,$N143,V$146:V$215)+SUMIF($P$146:$P$215,#REF!,V$146:V$215))*INDEX('Standard Inputs - SB 6362'!J$12:J$1048576,MATCH($O143,'Standard Inputs - SB 6362'!$D$12:$D$1048576,0)) -> 0 | W143: =-(SUMIF($P$146:$P$215,$M143,W$146:W$215)+SUMIF($P$146:$P$215,$N143,W$146:W$215)+SUMIF($P$146:$P$215,#REF!,W$146:W$215))*INDEX('Standard Inputs - SB 6362'!K$12:K$1048576,MATCH($O143,'Standard Inputs - SB 6362'!$D$12:$D$1048576,0)) -> 0 | X143: =-(SUMIF($P$146:$P$215,$M143,X$146:X$215)+SUMIF($P$146:$P$215,$N143,X$146:X$215)+SUMIF($P$146:$P$215,#REF!,X$146:X$215))*INDEX('Standard Inputs - SB 6362'!L$12:L$1048576,MATCH($O143,'Standard Inputs - SB 6362'!$D$12:$D$1048576,0)) -> -17.58775788 | Y143: =-(SUMIF($P$146:$P$215,$M143,Y$146:Y$215)+SUMIF($P$146:$P$215,$N143,Y$146:Y$215)+SUMIF($P$146:$P$215,#REF!,Y$146:Y$215))*INDEX('Standard Inputs - SB 6362'!M$12:M$1048576,MATCH($O143,'Standard Inputs - SB 6362'!$D$12:$D$1048576,0)) -> -28.41000147 | Z143: =-(SUMIF($P$146:$P$215,$M143,Z$146:Z$215)+SUMIF($P$146:$P$215,$N143,Z$146:Z$215)+SUMIF($P$146:$P$215,#REF!,Z$146:Z$215))*INDEX('Standard Inputs - SB 6362'!N$12:N$1048576,MATCH($O143,'Standard Inputs - SB 6362'!$D$12:$D$1048576,0)) -> -39.36872762 | AA143: =-(SUMIF($P$146:$P$215,$M143,AA$146:AA$215)+SUMIF($P$146:$P$215,$N143,AA$146:AA$215)+SUMIF($P$146:$P$215,#REF!,AA$146:AA$215))*INDEX('Standard Inputs - SB 6362'!O$12:O$1048576,MATCH($O143,'Standard Inputs - SB 6362'!$D$12:$D$1048576,0)) -> -44.92476797 | AB143: =-(SUMIF($P$146:$P$215,$M143,AB$146:AB$215)+SUMIF($P$146:$P$215,$N143,AB$146:AB$215)+SUMIF($P$146:$P$215,#REF!,AB$146:AB$215))*INDEX('Standard Inputs - SB 6362'!P$12:P$1048576,MATCH($O143,'Standard Inputs - SB 6362'!$D$12:$D$1048576,0)) -> -49.69775292
O145: PAYROLL TAX AND BENEFITS INCREASE | R145: SY 2017-18 | S145: SY 2018-19 | T145: SY 2019-20 | U145: SY 2020-21 | V145: SY 2021-22 | W145: SY 2022-23 | X145: SY 2023-24 | Y145: SY 2024-25 | Z145: SY 2025-26 | AA145: SY 2026-27 | AB145: SY 2027-28
L146: CIS Salaries | M146: CAS Salaries | N146: CIS/CAS Benefits Increase | O146: Certificated Payroll Tax and Benefits Increase | P146: Certificated insurance and Benefits | R146: =(SUMIF($P$184:$P$198,$L146,R$184:R$198)+SUMIF($P$184:$P$198,$M146,R$184:R$198))*INDEX('Standard Inputs - SB 6362'!F$12:F$1048576,MATCH($N146,'Standard Inputs - SB 6362'!$D$12:$D$1048576,0)) -> 0 | S146: =(SUMIF($P$184:$P$198,$L146,S$184:S$198)+SUMIF($P$184:$P$198,$M146,S$184:S$198))*INDEX('Standard Inputs - SB 6362'!G$12:G$1048576,MATCH($N146,'Standard Inputs - SB 6362'!$D$12:$D$1048576,0)) -> 0 | T146: =(SUMIF($P$184:$P$198,$L146,T$184:T$198)+SUMIF($P$184:$P$198,$M146,T$184:T$198))*INDEX('Standard Inputs - SB 6362'!H$12:H$1048576,MATCH($N146,'Standard Inputs - SB 6362'!$D$12:$D$1048576,0)) ->  | U146: =(SUMIF($P$184:$P$198,$L146,U$184:U$198)+SUMIF($P$184:$P$198,$M146,U$184:U$198))*INDEX('Standard Inputs - SB 6362'!I$12:I$1048576,MATCH($N146,'Standard Inputs - SB 6362'!$D$12:$D$1048576,0)) -> 0 | V146: =(SUMIF($P$184:$P$198,$L146,V$184:V$198)+SUMIF($P$184:$P$198,$M146,V$184:V$198))*INDEX('Standard Inputs - SB 6362'!J$12:J$1048576,MATCH($N146,'Standard Inputs - SB 6362'!$D$12:$D$1048576,0)) -> 162990.0649 | W146: =(SUMIF($P$184:$P$198,$L146,W$184:W$198)+SUMIF($P$184:$P$198,$M146,W$184:W$198))*INDEX('Standard Inputs - SB 6362'!K$12:K$1048576,MATCH($N146,'Standard Inputs - SB 6362'!$D$12:$D$1048576,0)) -> 6572.559493 | X146: =(SUMIF($P$184:$P$198,$L146,X$184:X$198)+SUMIF($P$184:$P$198,$M146,X$184:X$198))*INDEX('Standard Inputs - SB 6362'!L$12:L$1048576,MATCH($N146,'Standard Inputs - SB 6362'!$D$12:$D$1048576,0)) -> 3870.500368 | Y146: =(SUMIF($P$184:$P$198,$L146,Y$184:Y$198)+SUMIF($P$184:$P$198,$M146,Y$184:Y$198))*INDEX('Standard Inputs - SB 6362'!M$12:M$1048576,MATCH($N146,'Standard Inputs - SB 6362'!$D$12:$D$1048576,0)) -> 5292.710091 | Z146: =(SUMIF($P$184:$P$198,$L146,Z$184:Z$198)+SUMIF($P$184:$P$198,$M146,Z$184:Z$198))*INDEX('Standard Inputs - SB 6362'!N$12:N$1048576,MATCH($N146,'Standard Inputs - SB 6362'!$D$12:$D$1048576,0)) -> 497.8765477 | AA146: =(SUMIF($P$184:$P$198,$L146,AA$184:AA$198)+SUMIF($P$184:$P$198,$M146,AA$184:AA$198))*INDEX('Standard Inputs - SB 6362'!O$12:O$1048576,MATCH($N146,'Standard Inputs - SB 6362'!$D$12:$D$1048576,0)) -> 6227.432657 | AB146: =(SUMIF($P$184:$P$198,$L146,AB$184:AB$198)+SUMIF($P$184:$P$198,$M146,AB$184:AB$198))*INDEX('Standard Inputs - SB 6362'!P$12:P$1048576,MATCH($N146,'Standard Inputs - SB 6362'!$D$12:$D$1048576,0)) -> 0
M147: CLS Salaries | N147: CLS Benefits Increase | O147: Classified Payroll Tax and Benefits Increase | P147: Classified Insurance and Benefits | R147: =(SUMIF($P$184:$P$198,$M147,R$184:R$198))*INDEX('Standard Inputs - SB 6362'!F$12:F$1048576,MATCH($N147,'Standard Inputs - SB 6362'!$D$12:$D$1048576,0)) -> 0 | S147: =(SUMIF($P$184:$P$198,$M147,S$184:S$198))*INDEX('Standard Inputs - SB 6362'!G$12:G$1048576,MATCH($N147,'Standard Inputs - SB 6362'!$D$12:$D$1048576,0)) -> 0 | T147: =(SUMIF($P$184:$P$198,$M147,T$184:T$198))*INDEX('Standard Inputs - SB 6362'!H$12:H$1048576,MATCH($N147,'Standard Inputs - SB 6362'!$D$12:$D$1048576,0)) ->  | U147: =(SUMIF($P$184:$P$198,$M147,U$184:U$198))*INDEX('Standard Inputs - SB 6362'!I$12:I$1048576,MATCH($N147,'Standard Inputs - SB 6362'!$D$12:$D$1048576,0)) -> 0 | V147: =(SUMIF($P$184:$P$198,$M147,V$184:V$198))*INDEX('Standard Inputs - SB 6362'!J$12:J$1048576,MATCH($N147,'Standard Inputs - SB 6362'!$D$12:$D$1048576,0)) -> 32968.37022 | W147: =(SUMIF($P$184:$P$198,$M147,W$184:W$198))*INDEX('Standard Inputs - SB 6362'!K$12:K$1048576,MATCH($N147,'Standard Inputs - SB 6362'!$D$12:$D$1048576,0)) -> 1306.71419 | X147: =(SUMIF($P$184:$P$198,$M147,X$184:X$198))*INDEX('Standard Inputs - SB 6362'!L$12:L$1048576,MATCH($N147,'Standard Inputs - SB 6362'!$D$12:$D$1048576,0)) -> 927.0694235 | Y147: =(SUMIF($P$184:$P$198,$M147,Y$184:Y$198))*INDEX('Standard Inputs - SB 6362'!M$12:M$1048576,MATCH($N147,'Standard Inputs - SB 6362'!$D$12:$D$1048576,0)) -> 1196.757083 | Z147: =(SUMIF($P$184:$P$198,$M147,Z$184:Z$198))*INDEX('Standard Inputs - SB 6362'!N$12:N$1048576,MATCH($N147,'Standard Inputs - SB 6362'!$D$12:$D$1048576,0)) -> -1156.070392 | AA147: =(SUMIF($P$184:$P$198,$M147,AA$184:AA$198))*INDEX('Standard Inputs - SB 6362'!O$12:O$1048576,MATCH($N147,'Standard Inputs - SB 6362'!$D$12:$D$1048576,0)) -> 0 | AB147: =(SUMIF($P$184:$P$198,$M147,AB$184:AB$198))*INDEX('Standard Inputs - SB 6362'!P$12:P$1048576,MATCH($N147,'Standard Inputs - SB 6362'!$D$12:$D$1048576,0)) -> 0
M148: LAP Salaries | N148: CIS/CAS Benefits Increase | O148: LAP Payroll tax and Benefits Increase | P148: LAP Insurance and Benefits | R148: =(SUMIF($P$184:$P$198,$M148,R$184:R$198))*INDEX('Standard Inputs - SB 6362'!F$12:F$1048576,MATCH($N148,'Standard Inputs - SB 6362'!$D$12:$D$1048576,0)) -> 0 | S148: =(SUMIF($P$184:$P$198,$M148,S$184:S$198))*INDEX('Standard Inputs - SB 6362'!G$12:G$1048576,MATCH($N148,'Standard Inputs - SB 6362'!$D$12:$D$1048576,0)) -> 0 | T148: =(SUMIF($P$184:$P$198,$M148,T$184:T$198))*INDEX('Standard Inputs - SB 6362'!H$12:H$1048576,MATCH($N148,'Standard Inputs - SB 6362'!$D$12:$D$1048576,0)) -> 0 | U148: =(SUMIF($P$184:$P$198,$M148,U$184:U$198))*INDEX('Standard Inputs - SB 6362'!I$12:I$1048576,MATCH($N148,'Standard Inputs - SB 6362'!$D$12:$D$1048576,0)) -> 0 | V148: =(SUMIF($P$184:$P$198,$M148,V$184:V$198))*INDEX('Standard Inputs - SB 6362'!J$12:J$1048576,MATCH($N148,'Standard Inputs - SB 6362'!$D$12:$D$1048576,0)) -> 2681.243623 | W148: =(SUMIF($P$184:$P$198,$M148,W$184:W$198))*INDEX('Standard Inputs - SB 6362'!K$12:K$1048576,MATCH($N148,'Standard Inputs - SB 6362'!$D$12:$D$1048576,0)) -> 123.0973099 | X148: =(SUMIF($P$184:$P$198,$M148,X$184:X$198))*INDEX('Standard Inputs - SB 6362'!L$12:L$1048576,MATCH($N148,'Standard Inputs - SB 6362'!$D$12:$D$1048576,0)) -> 64.55018767 | Y148: =(SUMIF($P$184:$P$198,$M148,Y$184:Y$198))*INDEX('Standard Inputs - SB 6362'!M$12:M$1048576,MATCH($N148,'Standard Inputs - SB 6362'!$D$12:$D$1048576,0)) -> 172.7218007 | Z148: =(SUMIF($P$184:$P$198,$M148,Z$184:Z$198))*INDEX('Standard Inputs - SB 6362'!N$12:N$1048576,MATCH($N148,'Standard Inputs - SB 6362'!$D$12:$D$1048576,0)) -> 18.90599445 | AA148: =(SUMIF($P$184:$P$198,$M148,AA$184:AA$198))*INDEX('Standard Inputs - SB 6362'!O$12:O$1048576,MATCH($N148,'Standard Inputs - SB 6362'!$D$12:$D$1048576,0)) -> 165.8376325 | AB148: =(SUMIF($P$184:$P$198,$M148,AB$184:AB$198))*INDEX('Standard Inputs - SB 6362'!P$12:P$1048576,MATCH($N148,'Standard Inputs - SB 6362'!$D$12:$D$1048576,0)) -> 0
M149: TBIP Salaries | N149: CIS/CAS Benefits Increase | O149: TBIP Payroll tax and Benefits Increase | P149: TBIP Insurance and Benefits | R149: =(SUMIF($P$184:$P$198,$M149,R$184:R$198))*INDEX('Standard Inputs - SB 6362'!F$12:F$1048576,MATCH($N149,'Standard Inputs - SB 6362'!$D$12:$D$1048576,0)) -> 0 | S149: =(SUMIF($P$184:$P$198,$M149,S$184:S$198))*INDEX('Standard Inputs - SB 6362'!G$12:G$1048576,MATCH($N149,'Standard Inputs - SB 6362'!$D$12:$D$1048576,0)) -> 0 | T149: =(SUMIF($P$184:$P$198,$M149,T$184:T$198))*INDEX('Standard Inputs - SB 6362'!H$12:H$1048576,MATCH($N149,'Standard Inputs - SB 6362'!$D$12:$D$1048576,0)) -> 0 | U149: =(SUMIF($P$184:$P$198,$M149,U$184:U$198))*INDEX('Standard Inputs - SB 6362'!I$12:I$1048576,MATCH($N149,'Standard Inputs - SB 6362'!$D$12:$D$1048576,0)) -> 0 | V149: =(SUMIF($P$184:$P$198,$M149,V$184:V$198))*INDEX('Standard Inputs - SB 6362'!J$12:J$1048576,MATCH($N149,'Standard Inputs - SB 6362'!$D$12:$D$1048576,0)) -> 0 | W149: =(SUMIF($P$184:$P$198,$M149,W$184:W$198))*INDEX('Standard Inputs - SB 6362'!K$12:K$1048576,MATCH($N149,'Standard Inputs - SB 6362'!$D$12:$D$1048576,0)) -> 0 | X149: =(SUMIF($P$184:$P$198,$M149,X$184:X$198))*INDEX('Standard Inputs - SB 6362'!L$12:L$1048576,MATCH($N149,'Standard Inputs - SB 6362'!$D$12:$D$1048576,0)) -> 5.268857055 | Y149: =(SUMIF($P$184:$P$198,$M149,Y$184:Y$198))*INDEX('Standard Inputs - SB 6362'!M$12:M$1048576,MATCH($N149,'Standard Inputs - SB 6362'!$D$12:$D$1048576,0)) -> 8.953600193 | Z149: =(SUMIF($P$184:$P$198,$M149,Z$184:Z$198))*INDEX('Standard Inputs - SB 6362'!N$12:N$1048576,MATCH($N149,'Standard Inputs - SB 6362'!$D$12:$D$1048576,0)) -> 1.0908908 | AA149: =(SUMIF($P$184:$P$198,$M149,AA$184:AA$198))*INDEX('Standard Inputs - SB 6362'!O$12:O$1048576,MATCH($N149,'Standard Inputs - SB 6362'!$D$12:$D$1048576,0)) -> 7.757410846 | AB149: =(SUMIF($P$184:$P$198,$M149,AB$184:AB$198))*INDEX('Standard Inputs - SB 6362'!P$12:P$1048576,MATCH($N149,'Standard Inputs - SB 6362'!$D$12:$D$1048576,0)) -> 0
M150: HiCap Salaries | N150: CIS/CAS Benefits Increase | O150: HiCap Payroll tax and Benefits Increase | P150: HiCap Insurance and Benefits | R150: =(SUMIF($P$184:$P$198,$M150,R$184:R$198))*INDEX('Standard Inputs - SB 6362'!F$12:F$1048576,MATCH($N150,'Standard Inputs - SB 6362'!$D$12:$D$1048576,0)) -> 0 | S150: =(SUMIF($P$184:$P$198,$M150,S$184:S$198))*INDEX('Standard Inputs - SB 6362'!G$12:G$1048576,MATCH($N150,'Standard Inputs - SB 6362'!$D$12:$D$1048576,0)) -> 0 | T150: =(SUMIF($P$184:$P$198,$M150,T$184:T$198))*INDEX('Standard Inputs - SB 6362'!H$12:H$1048576,MATCH($N150,'Standard Inputs - SB 6362'!$D$12:$D$1048576,0)) -> 0 | U150: =(SUMIF($P$184:$P$198,$M150,U$184:U$198))*INDEX('Standard Inputs - SB 6362'!I$12:I$1048576,MATCH($N150,'Standard Inputs - SB 6362'!$D$12:$D$1048576,0)) -> 0 | V150: =(SUMIF($P$184:$P$198,$M150,V$184:V$198))*INDEX('Standard Inputs - SB 6362'!J$12:J$1048576,MATCH($N150,'Standard Inputs - SB 6362'!$D$12:$D$1048576,0)) -> 437.0957998 | W150: =(SUMIF($P$184:$P$198,$M150,W$184:W$198))*INDEX('Standard Inputs - SB 6362'!K$12:K$1048576,MATCH($N150,'Standard Inputs - SB 6362'!$D$12:$D$1048576,0)) -> 24.37969859 | X150: =(SUMIF($P$184:$P$198,$M150,X$184:X$198))*INDEX('Standard Inputs - SB 6362'!L$12:L$1048576,MATCH($N150,'Standard Inputs - SB 6362'!$D$12:$D$1048576,0)) -> 14.28384956 | Y150: =(SUMIF($P$184:$P$198,$M150,Y$184:Y$198))*INDEX('Standard Inputs - SB 6362'!M$12:M$1048576,MATCH($N150,'Standard Inputs - SB 6362'!$D$12:$D$1048576,0)) -> 19.36909145 | Z150: =(SUMIF($P$184:$P$198,$M150,Z$184:Z$198))*INDEX('Standard Inputs - SB 6362'!N$12:N$1048576,MATCH($N150,'Standard Inputs - SB 6362'!$D$12:$D$1048576,0)) -> 2.356279322 | AA150: =(SUMIF($P$184:$P$198,$M150,AA$184:AA$198))*INDEX('Standard Inputs - SB 6362'!O$12:O$1048576,MATCH($N150,'Standard Inputs - SB 6362'!$D$12:$D$1048576,0)) -> 16.80241309 | AB150: =(SUMIF($P$184:$P$198,$M150,AB$184:AB$198))*INDEX('Standard Inputs - SB 6362'!P$12:P$1048576,MATCH($N150,'Standard Inputs - SB 6362'!$D$12:$D$1048576,0)) -> 0
M151: LAP High Pov Salaries | N151: CIS/CAS Benefits Increase | O151: LAP High Poverty Payroll tax and Benefits Increase | P151: LAP Insurance and Benefits | R151: =(SUMIF($P$184:$P$198,$M151,R$184:R$198))*INDEX('Standard Inputs - SB 6362'!F$12:F$1048576,MATCH($N151,'Standard Inputs - SB 6362'!$D$12:$D$1048576,0)) -> 0 | S151: =(SUMIF($P$184:$P$198,$M151,S$184:S$198))*INDEX('Standard Inputs - SB 6362'!G$12:G$1048576,MATCH($N151,'Standard Inputs - SB 6362'!$D$12:$D$1048576,0)) -> 0 | T151: =(SUMIF($P$184:$P$198,$M151,T$184:T$198))*INDEX('Standard Inputs - SB 6362'!H$12:H$1048576,MATCH($N151,'Standard Inputs - SB 6362'!$D$12:$D$1048576,0)) -> 0 | U151: =(SUMIF($P$184:$P$198,$M151,U$184:U$198))*INDEX('Standard Inputs - SB 6362'!I$12:I$1048576,MATCH($N151,'Standard Inputs - SB 6362'!$D$12:$D$1048576,0)) -> 0 | V151: =(SUMIF($P$184:$P$198,$M151,V$184:V$198))*INDEX('Standard Inputs - SB 6362'!J$12:J$1048576,MATCH($N151,'Standard Inputs - SB 6362'!$D$12:$D$1048576,0)) -> 0 | W151: =(SUMIF($P$184:$P$198,$M151,W$184:W$198))*INDEX('Standard Inputs - SB 6362'!K$12:K$1048576,MATCH($N151,'Standard Inputs - SB 6362'!$D$12:$D$1048576,0)) -> 0 | X151: =(SUMIF($P$184:$P$198,$M151,X$184:X$198))*INDEX('Standard Inputs - SB 6362'!L$12:L$1048576,MATCH($N151,'Standard Inputs - SB 6362'!$D$12:$D$1048576,0)) -> 0 | Y151: =(SUMIF($P$184:$P$198,$M151,Y$184:Y$198))*INDEX('Standard Inputs - SB 6362'!M$12:M$1048576,MATCH($N151,'Standard Inputs - SB 6362'!$D$12:$D$1048576,0)) -> 0 | Z151: =(SUMIF($P$184:$P$198,$M151,Z$184:Z$198))*INDEX('Standard Inputs - SB 6362'!N$12:N$1048576,MATCH($N151,'Standard Inputs - SB 6362'!$D$12:$D$1048576,0)) -> 0 | AA151: =(SUMIF($P$184:$P$198,$M151,AA$184:AA$198))*INDEX('Standard Inputs - SB 6362'!O$12:O$1048576,MATCH($N151,'Standard Inputs - SB 6362'!$D$12:$D$1048576,0)) -> 0 | AB151: =(SUMIF($P$184:$P$198,$M151,AB$184:AB$198))*INDEX('Standard Inputs - SB 6362'!P$12:P$1048576,MATCH($N151,'Standard Inputs - SB 6362'!$D$12:$D$1048576,0)) -> 0
L152: CIS SpEd Salary | M152: CAS SpEd Salary | N152: CIS/CAS Benefits Increase | O152: Certificated Payroll tax and Benefits SpEd Increase | P152: SpEd Insurance and Benefits | R152: =(SUMIF($P$184:$P$198,$L152,R$184:R$198)+SUMIF($P$184:$P$198,$M152,R$184:R$198))*INDEX('Standard Inputs - SB 6362'!F$12:F$1048576,MATCH($N152,'Standard Inputs - SB 6362'!$D$12:$D$1048576,0)) -> 0 | S152: =(SUMIF($P$184:$P$198,$L152,S$184:S$198)+SUMIF($P$184:$P$198,$M152,S$184:S$198))*INDEX('Standard Inputs - SB 6362'!G$12:G$1048576,MATCH($N152,'Standard Inputs - SB 6362'!$D$12:$D$1048576,0)) -> 0 | T152: =(SUMIF($P$184:$P$198,$L152,T$184:T$198)+SUMIF($P$184:$P$198,$M152,T$184:T$198))*INDEX('Standard Inputs - SB 6362'!H$12:H$1048576,MATCH($N152,'Standard Inputs - SB 6362'!$D$12:$D$1048576,0)) -> 0 | U152: =(SUMIF($P$184:$P$198,$L152,U$184:U$198)+SUMIF($P$184:$P$198,$M152,U$184:U$198))*INDEX('Standard Inputs - SB 6362'!I$12:I$1048576,MATCH($N152,'Standard Inputs - SB 6362'!$D$12:$D$1048576,0)) -> 0 | V152: =(SUMIF($P$184:$P$198,$L152,V$184:V$198)+SUMIF($P$184:$P$198,$M152,V$184:V$198))*INDEX('Standard Inputs - SB 6362'!J$12:J$1048576,MATCH($N152,'Standard Inputs - SB 6362'!$D$12:$D$1048576,0)) -> 830.1119211 | W152: =(SUMIF($P$184:$P$198,$L152,W$184:W$198)+SUMIF($P$184:$P$198,$M152,W$184:W$198))*INDEX('Standard Inputs - SB 6362'!K$12:K$1048576,MATCH($N152,'Standard Inputs - SB 6362'!$D$12:$D$1048576,0)) -> 60.49663826 | X152: =(SUMIF($P$184:$P$198,$L152,X$184:X$198)+SUMIF($P$184:$P$198,$M152,X$184:X$198))*INDEX('Standard Inputs - SB 6362'!L$12:L$1048576,MATCH($N152,'Standard Inputs - SB 6362'!$D$12:$D$1048576,0)) -> 34.18428187 | Y152: =(SUMIF($P$184:$P$198,$L152,Y$184:Y$198)+SUMIF($P$184:$P$198,$M152,Y$184:Y$198))*INDEX('Standard Inputs - SB 6362'!M$12:M$1048576,MATCH($N152,'Standard Inputs - SB 6362'!$D$12:$D$1048576,0)) -> 37.57777062 | Z152: =(SUMIF($P$184:$P$198,$L152,Z$184:Z$198)+SUMIF($P$184:$P$198,$M152,Z$184:Z$198))*INDEX('Standard Inputs - SB 6362'!N$12:N$1048576,MATCH($N152,'Standard Inputs - SB 6362'!$D$12:$D$1048576,0)) -> 1.454182921 | AA152: =(SUMIF($P$184:$P$198,$L152,AA$184:AA$198)+SUMIF($P$184:$P$198,$M152,AA$184:AA$198))*INDEX('Standard Inputs - SB 6362'!O$12:O$1048576,MATCH($N152,'Standard Inputs - SB 6362'!$D$12:$D$1048576,0)) -> 18.21746612 | AB152: =(SUMIF($P$184:$P$198,$L152,AB$184:AB$198)+SUMIF($P$184:$P$198,$M152,AB$184:AB$198))*INDEX('Standard Inputs - SB 6362'!P$12:P$1048576,MATCH($N152,'Standard Inputs - SB 6362'!$D$12:$D$1048576,0)) -> 0
M153: CLS SpEd Salary | N153: CLS Benefits Increase | O153: Classified Payroll tax and Benefits SpEd Increase | P153: SpEd Insurance and Benefits | R153: =(SUMIF($P$184:$P$198,$M153,R$184:R$198))*INDEX('Standard Inputs - SB 6362'!F$12:F$1048576,MATCH($N153,'Standard Inputs - SB 6362'!$D$12:$D$1048576,0)) -> 0 | S153: =(SUMIF($P$184:$P$198,$M153,S$184:S$198))*INDEX('Standard Inputs - SB 6362'!G$12:G$1048576,MATCH($N153,'Standard Inputs - SB 6362'!$D$12:$D$1048576,0)) -> 0 | T153: =(SUMIF($P$184:$P$198,$M153,T$184:T$198))*INDEX('Standard Inputs - SB 6362'!H$12:H$1048576,MATCH($N153,'Standard Inputs - SB 6362'!$D$12:$D$1048576,0)) -> 0 | U153: =(SUMIF($P$184:$P$198,$M153,U$184:U$198))*INDEX('Standard Inputs - SB 6362'!I$12:I$1048576,MATCH($N153,'Standard Inputs - SB 6362'!$D$12:$D$1048576,0)) -> 0 | V153: =(SUMIF($P$184:$P$198,$M153,V$184:V$198))*INDEX('Standard Inputs - SB 6362'!J$12:J$1048576,MATCH($N153,'Standard Inputs - SB 6362'!$D$12:$D$1048576,0)) -> 162.7869127 | W153: =(SUMIF($P$184:$P$198,$M153,W$184:W$198))*INDEX('Standard Inputs - SB 6362'!K$12:K$1048576,MATCH($N153,'Standard Inputs - SB 6362'!$D$12:$D$1048576,0)) -> 9.499951642 | X153: =(SUMIF($P$184:$P$198,$M153,X$184:X$198))*INDEX('Standard Inputs - SB 6362'!L$12:L$1048576,MATCH($N153,'Standard Inputs - SB 6362'!$D$12:$D$1048576,0)) -> 6.456647354 | Y153: =(SUMIF($P$184:$P$198,$M153,Y$184:Y$198))*INDEX('Standard Inputs - SB 6362'!M$12:M$1048576,MATCH($N153,'Standard Inputs - SB 6362'!$D$12:$D$1048576,0)) -> 7.061190049 | Z153: =(SUMIF($P$184:$P$198,$M153,Z$184:Z$198))*INDEX('Standard Inputs - SB 6362'!N$12:N$1048576,MATCH($N153,'Standard Inputs - SB 6362'!$D$12:$D$1048576,0)) -> -3.244594825 | AA153: =(SUMIF($P$184:$P$198,$M153,AA$184:AA$198))*INDEX('Standard Inputs - SB 6362'!O$12:O$1048576,MATCH($N153,'Standard Inputs - SB 6362'!$D$12:$D$1048576,0)) -> 0 | AB153: =(SUMIF($P$184:$P$198,$M153,AB$184:AB$198))*INDEX('Standard Inputs - SB 6362'!P$12:P$1048576,MATCH($N153,'Standard Inputs - SB 6362'!$D$12:$D$1048576,0)) -> 0
O155: PAYROLL TAX AND BENEFITS | R155: SY 2017-18 | S155: SY 2018-19 | T155: SY 2019-20 | U155: SY 2020-21 | V155: SY 2021-22 | W155: SY 2022-23 | X155: SY 2023-24 | Y155: SY 2024-25 | Z155: SY 2025-26 | AA155: SY 2026-27 | AB155: SY 2027-28
L156: CIS Salaries | M156: CAS Salaries | N156: CIS/CAS Benefits | O156: Certificated Payroll Tax and Benefits | P156: Certificated insurance and Benefits | R156: =(SUMIF($P$201:$P$215,$L156,R$201:R$215)+SUMIF($P$201:$P$215,$M156,R$201:R$215))*INDEX('Standard Inputs - SB 6362'!F$12:F$1048576,MATCH($N156,'Standard Inputs - SB 6362'!$D$12:$D$1048576,0)) -> 0 | S156: =(SUMIF($P$201:$P$215,$L156,S$201:S$215)+SUMIF($P$201:$P$215,$M156,S$201:S$215))*INDEX('Standard Inputs - SB 6362'!G$12:G$1048576,MATCH($N156,'Standard Inputs - SB 6362'!$D$12:$D$1048576,0)) -> 0 | T156: =(SUMIF($P$201:$P$215,$L156,T$201:T$215)+SUMIF($P$201:$P$215,$M156,T$201:T$215))*INDEX('Standard Inputs - SB 6362'!H$12:H$1048576,MATCH($N156,'Standard Inputs - SB 6362'!$D$12:$D$1048576,0)) ->  | U156: =(SUMIF($P$201:$P$215,$L156,U$201:U$215)+SUMIF($P$201:$P$215,$M156,U$201:U$215))*INDEX('Standard Inputs - SB 6362'!I$12:I$1048576,MATCH($N156,'Standard Inputs - SB 6362'!$D$12:$D$1048576,0)) -> 0 | V156: =(SUMIF($P$201:$P$215,$L156,V$201:V$215)+SUMIF($P$201:$P$215,$M156,V$201:V$215))*INDEX('Standard Inputs - SB 6362'!J$12:J$1048576,MATCH($N156,'Standard Inputs - SB 6362'!$D$12:$D$1048576,0)) -> 0 | W156: =(SUMIF($P$201:$P$215,$L156,W$201:W$215)+SUMIF($P$201:$P$215,$M156,W$201:W$215))*INDEX('Standard Inputs - SB 6362'!K$12:K$1048576,MATCH($N156,'Standard Inputs - SB 6362'!$D$12:$D$1048576,0)) -> 122940.4728 | X156: =(SUMIF($P$201:$P$215,$L156,X$201:X$215)+SUMIF($P$201:$P$215,$M156,X$201:X$215))*INDEX('Standard Inputs - SB 6362'!L$12:L$1048576,MATCH($N156,'Standard Inputs - SB 6362'!$D$12:$D$1048576,0)) -> 108467.4751 | Y156: =(SUMIF($P$201:$P$215,$L156,Y$201:Y$215)+SUMIF($P$201:$P$215,$M156,Y$201:Y$215))*INDEX('Standard Inputs - SB 6362'!M$12:M$1048576,MATCH($N156,'Standard Inputs - SB 6362'!$D$12:$D$1048576,0)) -> 140722.3288 | Z156: =(SUMIF($P$201:$P$215,$L156,Z$201:Z$215)+SUMIF($P$201:$P$215,$M156,Z$201:Z$215))*INDEX('Standard Inputs - SB 6362'!N$12:N$1048576,MATCH($N156,'Standard Inputs - SB 6362'!$D$12:$D$1048576,0)) -> 319067.4336 | AA156: =(SUMIF($P$201:$P$215,$L156,AA$201:AA$215)+SUMIF($P$201:$P$215,$M156,AA$201:AA$215))*INDEX('Standard Inputs - SB 6362'!O$12:O$1048576,MATCH($N156,'Standard Inputs - SB 6362'!$D$12:$D$1048576,0)) -> 334815.3025 | AB156: =(SUMIF($P$201:$P$215,$L156,AB$201:AB$215)+SUMIF($P$201:$P$215,$M156,AB$201:AB$215))*INDEX('Standard Inputs - SB 6362'!P$12:P$1048576,MATCH($N156,'Standard Inputs - SB 6362'!$D$12:$D$1048576,0)) -> 364202.765
M157: CLS Salaries | N157: CLS Benefits | O157: Classified Payroll Tax and Benefits | P157: Classified Insurance and Benefits | R157: =SUMIF($P$201:$P$215,$M157,R$201:R$215)*INDEX('Standard Inputs - SB 6362'!F$12:F$1048576,MATCH($N157,'Standard Inputs - SB 6362'!$D$12:$D$1048576,0)) -> 0 | S157: =SUMIF($P$201:$P$215,$M157,S$201:S$215)*INDEX('Standard Inputs - SB 6362'!G$12:G$1048576,MATCH($N157,'Standard Inputs - SB 6362'!$D$12:$D$1048576,0)) -> 0 | T157: =SUMIF($P$201:$P$215,$M157,T$201:T$215)*INDEX('Standard Inputs - SB 6362'!H$12:H$1048576,MATCH($N157,'Standard Inputs - SB 6362'!$D$12:$D$1048576,0)) ->  | U157: =SUMIF($P$201:$P$215,$M157,U$201:U$215)*INDEX('Standard Inputs - SB 6362'!I$12:I$1048576,MATCH($N157,'Standard Inputs - SB 6362'!$D$12:$D$1048576,0)) -> 0 | V157: =SUMIF($P$201:$P$215,$M157,V$201:V$215)*INDEX('Standard Inputs - SB 6362'!J$12:J$1048576,MATCH($N157,'Standard Inputs - SB 6362'!$D$12:$D$1048576,0)) -> 0 | W157: =SUMIF($P$201:$P$215,$M157,W$201:W$215)*INDEX('Standard Inputs - SB 6362'!K$12:K$1048576,MATCH($N157,'Standard Inputs - SB 6362'!$D$12:$D$1048576,0)) -> 28035.06057 | X157: =SUMIF($P$201:$P$215,$M157,X$201:X$215)*INDEX('Standard Inputs - SB 6362'!L$12:L$1048576,MATCH($N157,'Standard Inputs - SB 6362'!$D$12:$D$1048576,0)) -> 29787.10487 | Y157: =SUMIF($P$201:$P$215,$M157,Y$201:Y$215)*INDEX('Standard Inputs - SB 6362'!M$12:M$1048576,MATCH($N157,'Standard Inputs - SB 6362'!$D$12:$D$1048576,0)) -> 36472.78577 | Z157: =SUMIF($P$201:$P$215,$M157,Z$201:Z$215)*INDEX('Standard Inputs - SB 6362'!N$12:N$1048576,MATCH($N157,'Standard Inputs - SB 6362'!$D$12:$D$1048576,0)) -> 79314.91394 | AA157: =SUMIF($P$201:$P$215,$M157,AA$201:AA$215)*INDEX('Standard Inputs - SB 6362'!O$12:O$1048576,MATCH($N157,'Standard Inputs - SB 6362'!$D$12:$D$1048576,0)) -> 81926.77312 | AB157: =SUMIF($P$201:$P$215,$M157,AB$201:AB$215)*INDEX('Standard Inputs - SB 6362'!P$12:P$1048576,MATCH($N157,'Standard Inputs - SB 6362'!$D$12:$D$1048576,0)) -> 87734.88901
M158: LAP Salaries | N158: CIS/CAS Benefits | O158: LAP Payroll tax and Benefits | P158: LAP Insurance and Benefits | R158: =SUMIF($P$201:$P$215,$M158,R$201:R$215)*INDEX('Standard Inputs - SB 6362'!F$12:F$1048576,MATCH($N158,'Standard Inputs - SB 6362'!$D$12:$D$1048576,0)) -> 0 | S158: =SUMIF($P$201:$P$215,$M158,S$201:S$215)*INDEX('Standard Inputs - SB 6362'!G$12:G$1048576,MATCH($N158,'Standard Inputs - SB 6362'!$D$12:$D$1048576,0)) -> 0 | T158: =SUMIF($P$201:$P$215,$M158,T$201:T$215)*INDEX('Standard Inputs - SB 6362'!H$12:H$1048576,MATCH($N158,'Standard Inputs - SB 6362'!$D$12:$D$1048576,0)) -> 0 | U158: =SUMIF($P$201:$P$215,$M158,U$201:U$215)*INDEX('Standard Inputs - SB 6362'!I$12:I$1048576,MATCH($N158,'Standard Inputs - SB 6362'!$D$12:$D$1048576,0)) -> 0 | V158: =SUMIF($P$201:$P$215,$M158,V$201:V$215)*INDEX('Standard Inputs - SB 6362'!J$12:J$1048576,MATCH($N158,'Standard Inputs - SB 6362'!$D$12:$D$1048576,0)) -> 0 | W158: =SUMIF($P$201:$P$215,$M158,W$201:W$215)*INDEX('Standard Inputs - SB 6362'!K$12:K$1048576,MATCH($N158,'Standard Inputs - SB 6362'!$D$12:$D$1048576,0)) -> 2302.576211 | X158: =SUMIF($P$201:$P$215,$M158,X$201:X$215)*INDEX('Standard Inputs - SB 6362'!L$12:L$1048576,MATCH($N158,'Standard Inputs - SB 6362'!$D$12:$D$1048576,0)) -> 1808.985021 | Y158: =SUMIF($P$201:$P$215,$M158,Y$201:Y$215)*INDEX('Standard Inputs - SB 6362'!M$12:M$1048576,MATCH($N158,'Standard Inputs - SB 6362'!$D$12:$D$1048576,0)) -> 4592.319173 | Z158: =SUMIF($P$201:$P$215,$M158,Z$201:Z$215)*INDEX('Standard Inputs - SB 6362'!N$12:N$1048576,MATCH($N158,'Standard Inputs - SB 6362'!$D$12:$D$1048576,0)) -> 5919.430356 | AA158: =SUMIF($P$201:$P$215,$M158,AA$201:AA$215)*INDEX('Standard Inputs - SB 6362'!O$12:O$1048576,MATCH($N158,'Standard Inputs - SB 6362'!$D$12:$D$1048576,0)) -> 8188.668852 | AB158: =SUMIF($P$201:$P$215,$M158,AB$201:AB$215)*INDEX('Standard Inputs - SB 6362'!P$12:P$1048576,MATCH($N158,'Standard Inputs - SB 6362'!$D$12:$D$1048576,0)) -> 9371.256611
M159: TBIP Salaries | N159: CIS/CAS Benefits | O159: TBIP Payroll tax and Benefits | P159: TBIP Insurance and Benefits | R159: =SUMIF($P$201:$P$215,$M159,R$201:R$215)*INDEX('Standard Inputs - SB 6362'!F$12:F$1048576,MATCH($N159,'Standard Inputs - SB 6362'!$D$12:$D$1048576,0)) -> 0 | S159: =SUMIF($P$201:$P$215,$M159,S$201:S$215)*INDEX('Standard Inputs - SB 6362'!G$12:G$1048576,MATCH($N159,'Standard Inputs - SB 6362'!$D$12:$D$1048576,0)) -> 0 | T159: =SUMIF($P$201:$P$215,$M159,T$201:T$215)*INDEX('Standard Inputs - SB 6362'!H$12:H$1048576,MATCH($N159,'Standard Inputs - SB 6362'!$D$12:$D$1048576,0)) -> 0 | U159: =SUMIF($P$201:$P$215,$M159,U$201:U$215)*INDEX('Standard Inputs - SB 6362'!I$12:I$1048576,MATCH($N159,'Standard Inputs - SB 6362'!$D$12:$D$1048576,0)) -> 0 | V159: =SUMIF($P$201:$P$215,$M159,V$201:V$215)*INDEX('Standard Inputs - SB 6362'!J$12:J$1048576,MATCH($N159,'Standard Inputs - SB 6362'!$D$12:$D$1048576,0)) -> 0 | W159: =SUMIF($P$201:$P$215,$M159,W$201:W$215)*INDEX('Standard Inputs - SB 6362'!K$12:K$1048576,MATCH($N159,'Standard Inputs - SB 6362'!$D$12:$D$1048576,0)) -> 0 | X159: =SUMIF($P$201:$P$215,$M159,X$201:X$215)*INDEX('Standard Inputs - SB 6362'!L$12:L$1048576,MATCH($N159,'Standard Inputs - SB 6362'!$D$12:$D$1048576,0)) -> 147.6569446 | Y159: =SUMIF($P$201:$P$215,$M159,Y$201:Y$215)*INDEX('Standard Inputs - SB 6362'!M$12:M$1048576,MATCH($N159,'Standard Inputs - SB 6362'!$D$12:$D$1048576,0)) -> 238.0579038 | Z159: =SUMIF($P$201:$P$215,$M159,Z$201:Z$215)*INDEX('Standard Inputs - SB 6362'!N$12:N$1048576,MATCH($N159,'Standard Inputs - SB 6362'!$D$12:$D$1048576,0)) -> 341.5558031 | AA159: =SUMIF($P$201:$P$215,$M159,AA$201:AA$215)*INDEX('Standard Inputs - SB 6362'!O$12:O$1048576,MATCH($N159,'Standard Inputs - SB 6362'!$D$12:$D$1048576,0)) -> 383.0425436 | AB159: =SUMIF($P$201:$P$215,$M159,AB$201:AB$215)*INDEX('Standard Inputs - SB 6362'!P$12:P$1048576,MATCH($N159,'Standard Inputs - SB 6362'!$D$12:$D$1048576,0)) -> 432.5887307
M160: HiCap Salaries | N160: CIS/CAS Benefits | O160: HiCap Payroll tax and Benefits | P160: HiCap Insurance and Benefits | R160: =SUMIF($P$201:$P$215,$M160,R$201:R$215)*INDEX('Standard Inputs - SB 6362'!F$12:F$1048576,MATCH($N160,'Standard Inputs - SB 6362'!$D$12:$D$1048576,0)) -> 0 | S160: =SUMIF($P$201:$P$215,$M160,S$201:S$215)*INDEX('Standard Inputs - SB 6362'!G$12:G$1048576,MATCH($N160,'Standard Inputs - SB 6362'!$D$12:$D$1048576,0)) -> 0 | T160: =SUMIF($P$201:$P$215,$M160,T$201:T$215)*INDEX('Standard Inputs - SB 6362'!H$12:H$1048576,MATCH($N160,'Standard Inputs - SB 6362'!$D$12:$D$1048576,0)) -> 0 | U160: =SUMIF($P$201:$P$215,$M160,U$201:U$215)*INDEX('Standard Inputs - SB 6362'!I$12:I$1048576,MATCH($N160,'Standard Inputs - SB 6362'!$D$12:$D$1048576,0)) -> 0 | V160: =SUMIF($P$201:$P$215,$M160,V$201:V$215)*INDEX('Standard Inputs - SB 6362'!J$12:J$1048576,MATCH($N160,'Standard Inputs - SB 6362'!$D$12:$D$1048576,0)) -> 0 | W160: =SUMIF($P$201:$P$215,$M160,W$201:W$215)*INDEX('Standard Inputs - SB 6362'!K$12:K$1048576,MATCH($N160,'Standard Inputs - SB 6362'!$D$12:$D$1048576,0)) -> 456.0303879 | X160: =SUMIF($P$201:$P$215,$M160,X$201:X$215)*INDEX('Standard Inputs - SB 6362'!L$12:L$1048576,MATCH($N160,'Standard Inputs - SB 6362'!$D$12:$D$1048576,0)) -> 400.2973626 | Y160: =SUMIF($P$201:$P$215,$M160,Y$201:Y$215)*INDEX('Standard Inputs - SB 6362'!M$12:M$1048576,MATCH($N160,'Standard Inputs - SB 6362'!$D$12:$D$1048576,0)) -> 514.9844989 | Z160: =SUMIF($P$201:$P$215,$M160,Z$201:Z$215)*INDEX('Standard Inputs - SB 6362'!N$12:N$1048576,MATCH($N160,'Standard Inputs - SB 6362'!$D$12:$D$1048576,0)) -> 737.7465059 | AA160: =SUMIF($P$201:$P$215,$M160,AA$201:AA$215)*INDEX('Standard Inputs - SB 6362'!O$12:O$1048576,MATCH($N160,'Standard Inputs - SB 6362'!$D$12:$D$1048576,0)) -> 829.6632957 | AB160: =SUMIF($P$201:$P$215,$M160,AB$201:AB$215)*INDEX('Standard Inputs - SB 6362'!P$12:P$1048576,MATCH($N160,'Standard Inputs - SB 6362'!$D$12:$D$1048576,0)) -> 942.5910444
M161: LAP High Pov Salaries | N161: CIS/CAS Benefits | O161: LAP High Poverty Payroll tax and Benefits | P161: LAP Insurance and Benefits | R161: =SUMIF($P$201:$P$215,$M161,R$201:R$215)*INDEX('Standard Inputs - SB 6362'!F$12:F$1048576,MATCH($N161,'Standard Inputs - SB 6362'!$D$12:$D$1048576,0)) -> 0 | S161: =SUMIF($P$201:$P$215,$M161,S$201:S$215)*INDEX('Standard Inputs - SB 6362'!G$12:G$1048576,MATCH($N161,'Standard Inputs - SB 6362'!$D$12:$D$1048576,0)) -> 0 | T161: =SUMIF($P$201:$P$215,$M161,T$201:T$215)*INDEX('Standard Inputs - SB 6362'!H$12:H$1048576,MATCH($N161,'Standard Inputs - SB 6362'!$D$12:$D$1048576,0)) -> 0 | U161: =SUMIF($P$201:$P$215,$M161,U$201:U$215)*INDEX('Standard Inputs - SB 6362'!I$12:I$1048576,MATCH($N161,'Standard Inputs - SB 6362'!$D$12:$D$1048576,0)) -> 0 | V161: =SUMIF($P$201:$P$215,$M161,V$201:V$215)*INDEX('Standard Inputs - SB 6362'!J$12:J$1048576,MATCH($N161,'Standard Inputs - SB 6362'!$D$12:$D$1048576,0)) -> 0 | W161: =SUMIF($P$201:$P$215,$M161,W$201:W$215)*INDEX('Standard Inputs - SB 6362'!K$12:K$1048576,MATCH($N161,'Standard Inputs - SB 6362'!$D$12:$D$1048576,0)) -> 0 | X161: =SUMIF($P$201:$P$215,$M161,X$201:X$215)*INDEX('Standard Inputs - SB 6362'!L$12:L$1048576,MATCH($N161,'Standard Inputs - SB 6362'!$D$12:$D$1048576,0)) -> 0 | Y161: =SUMIF($P$201:$P$215,$M161,Y$201:Y$215)*INDEX('Standard Inputs - SB 6362'!M$12:M$1048576,MATCH($N161,'Standard Inputs - SB 6362'!$D$12:$D$1048576,0)) -> 0 | Z161: =SUMIF($P$201:$P$215,$M161,Z$201:Z$215)*INDEX('Standard Inputs - SB 6362'!N$12:N$1048576,MATCH($N161,'Standard Inputs - SB 6362'!$D$12:$D$1048576,0)) -> 0 | AA161: =SUMIF($P$201:$P$215,$M161,AA$201:AA$215)*INDEX('Standard Inputs - SB 6362'!O$12:O$1048576,MATCH($N161,'Standard Inputs - SB 6362'!$D$12:$D$1048576,0)) -> 0 | AB161: =SUMIF($P$201:$P$215,$M161,AB$201:AB$215)*INDEX('Standard Inputs - SB 6362'!P$12:P$1048576,MATCH($N161,'Standard Inputs - SB 6362'!$D$12:$D$1048576,0)) -> 0
L162: CIS SpEd Salary | M162: CAS SpEd Salary | N162: CIS/CAS Benefits | O162: Certificated Payroll tax and Benefits SpEd | P162: SpEd Insurance and Benefits | R162: =(SUMIF($P$201:$P$215,$L162,R$201:R$215)+SUMIF($P$201:$P$215,$M162,R$201:R$215))*INDEX('Standard Inputs - SB 6362'!F$12:F$1048576,MATCH($N162,'Standard Inputs - SB 6362'!$D$12:$D$1048576,0)) -> 0 | S162: =(SUMIF($P$201:$P$215,$L162,S$201:S$215)+SUMIF($P$201:$P$215,$M162,S$201:S$215))*INDEX('Standard Inputs - SB 6362'!G$12:G$1048576,MATCH($N162,'Standard Inputs - SB 6362'!$D$12:$D$1048576,0)) -> 0 | T162: =(SUMIF($P$201:$P$215,$L162,T$201:T$215)+SUMIF($P$201:$P$215,$M162,T$201:T$215))*INDEX('Standard Inputs - SB 6362'!H$12:H$1048576,MATCH($N162,'Standard Inputs - SB 6362'!$D$12:$D$1048576,0)) -> 0 | U162: =(SUMIF($P$201:$P$215,$L162,U$201:U$215)+SUMIF($P$201:$P$215,$M162,U$201:U$215))*INDEX('Standard Inputs - SB 6362'!I$12:I$1048576,MATCH($N162,'Standard Inputs - SB 6362'!$D$12:$D$1048576,0)) -> 0 | V162: =(SUMIF($P$201:$P$215,$L162,V$201:V$215)+SUMIF($P$201:$P$215,$M162,V$201:V$215))*INDEX('Standard Inputs - SB 6362'!J$12:J$1048576,MATCH($N162,'Standard Inputs - SB 6362'!$D$12:$D$1048576,0)) -> 0 | W162: =(SUMIF($P$201:$P$215,$L162,W$201:W$215)+SUMIF($P$201:$P$215,$M162,W$201:W$215))*INDEX('Standard Inputs - SB 6362'!K$12:K$1048576,MATCH($N162,'Standard Inputs - SB 6362'!$D$12:$D$1048576,0)) -> 1131.595432 | X162: =(SUMIF($P$201:$P$215,$L162,X$201:X$215)+SUMIF($P$201:$P$215,$M162,X$201:X$215))*INDEX('Standard Inputs - SB 6362'!L$12:L$1048576,MATCH($N162,'Standard Inputs - SB 6362'!$D$12:$D$1048576,0)) -> 957.9846627 | Y162: =(SUMIF($P$201:$P$215,$L162,Y$201:Y$215)+SUMIF($P$201:$P$215,$M162,Y$201:Y$215))*INDEX('Standard Inputs - SB 6362'!M$12:M$1048576,MATCH($N162,'Standard Inputs - SB 6362'!$D$12:$D$1048576,0)) -> 999.1160105 | Z162: =(SUMIF($P$201:$P$215,$L162,Z$201:Z$215)+SUMIF($P$201:$P$215,$M162,Z$201:Z$215))*INDEX('Standard Inputs - SB 6362'!N$12:N$1048576,MATCH($N162,'Standard Inputs - SB 6362'!$D$12:$D$1048576,0)) -> 1009.323929 | AA162: =(SUMIF($P$201:$P$215,$L162,AA$201:AA$215)+SUMIF($P$201:$P$215,$M162,AA$201:AA$215))*INDEX('Standard Inputs - SB 6362'!O$12:O$1048576,MATCH($N162,'Standard Inputs - SB 6362'!$D$12:$D$1048576,0)) -> 986.4310348 | AB162: =(SUMIF($P$201:$P$215,$L162,AB$201:AB$215)+SUMIF($P$201:$P$215,$M162,AB$201:AB$215))*INDEX('Standard Inputs - SB 6362'!P$12:P$1048576,MATCH($N162,'Standard Inputs - SB 6362'!$D$12:$D$1048576,0)) -> 988.4649975
M163: CLS SpEd Salary | N163: CLS Benefits | O163: Classified Payroll tax and Benefits SpEd | P163: SpEd Insurance and Benefits | R163: =(SUMIF($P$201:$P$215,$M163,R$201:R$215))*INDEX('Standard Inputs - SB 6362'!F$12:F$1048576,MATCH($N163,'Standard Inputs - SB 6362'!$D$12:$D$1048576,0)) -> 0 | S163: =(SUMIF($P$201:$P$215,$M163,S$201:S$215))*INDEX('Standard Inputs - SB 6362'!G$12:G$1048576,MATCH($N163,'Standard Inputs - SB 6362'!$D$12:$D$1048576,0)) -> 0 | T163: =(SUMIF($P$201:$P$215,$M163,T$201:T$215))*INDEX('Standard Inputs - SB 6362'!H$12:H$1048576,MATCH($N163,'Standard Inputs - SB 6362'!$D$12:$D$1048576,0)) -> 0 | U163: =(SUMIF($P$201:$P$215,$M163,U$201:U$215))*INDEX('Standard Inputs - SB 6362'!I$12:I$1048576,MATCH($N163,'Standard Inputs - SB 6362'!$D$12:$D$1048576,0)) -> 0 | V163: =(SUMIF($P$201:$P$215,$M163,V$201:V$215))*INDEX('Standard Inputs - SB 6362'!J$12:J$1048576,MATCH($N163,'Standard Inputs - SB 6362'!$D$12:$D$1048576,0)) -> 0 | W163: =(SUMIF($P$201:$P$215,$M163,W$201:W$215))*INDEX('Standard Inputs - SB 6362'!K$12:K$1048576,MATCH($N163,'Standard Inputs - SB 6362'!$D$12:$D$1048576,0)) -> 203.8178829 | X163: =(SUMIF($P$201:$P$215,$M163,X$201:X$215))*INDEX('Standard Inputs - SB 6362'!L$12:L$1048576,MATCH($N163,'Standard Inputs - SB 6362'!$D$12:$D$1048576,0)) -> 207.4546167 | Y163: =(SUMIF($P$201:$P$215,$M163,Y$201:Y$215))*INDEX('Standard Inputs - SB 6362'!M$12:M$1048576,MATCH($N163,'Standard Inputs - SB 6362'!$D$12:$D$1048576,0)) -> 215.1992878 | Z163: =(SUMIF($P$201:$P$215,$M163,Z$201:Z$215))*INDEX('Standard Inputs - SB 6362'!N$12:N$1048576,MATCH($N163,'Standard Inputs - SB 6362'!$D$12:$D$1048576,0)) -> 222.6030189 | AA163: =(SUMIF($P$201:$P$215,$M163,AA$201:AA$215))*INDEX('Standard Inputs - SB 6362'!O$12:O$1048576,MATCH($N163,'Standard Inputs - SB 6362'!$D$12:$D$1048576,0)) -> 217.95043 | AB163: =(SUMIF($P$201:$P$215,$M163,AB$201:AB$215))*INDEX('Standard Inputs - SB 6362'!P$12:P$1048576,MATCH($N163,'Standard Inputs - SB 6362'!$D$12:$D$1048576,0)) -> 217.4369997
O165: INSURANCE CALCULATIONS | R165: SY 2017-18 | S165: SY 2018-19 | T165: SY 2019-20 | U165: SY 2020-21 | V165: SY 2021-22 | W165: SY 2022-23 | X165: SY 2023-24 | Y165: SY 2024-25 | Z165: SY 2025-26 | AA165: SY 2026-27 | AB165: SY 2027-28
H166: SS RN CIS | I166: SS RN CAS | J166: School CIS Staff Units | K166: School CAS Staff Units | L166: Central Admin CAS Staff Units | M166: SEBB Health Insurance | N166: CIS/ CAS SEBB Multiplier | O166: Certificated SEBB | P166: Certificated SEBB | T166: =(SUMIF($P$218:$P$326,$H166,T$218:T$326)+SUMIF($P$218:$P$326,$I166,T$218:T$326)+SUMIF($P$218:$P$326,$J166,T$218:T$326)+SUMIF($P$218:$P$326,$K166,T$218:T$326)+SUMIF($P$218:$P$326,$L166,T$218:T$326))*INDEX('Standard Inputs - SB 6362'!H$12:H$1048576,MATCH('Single School Forecast'!$N166,'Standard Inputs - SB 6362'!$D$12:$D$1048576,0))*INDEX('Standard Inputs - SB 6362'!H$12:H$1048576,MATCH('Single School Forecast'!$M166,'Standard Inputs - SB 6362'!$D$12:$D$1048576,0)) ->  | U166: =(SUMIF($P$218:$P$326,$H166,U$218:U$326)+SUMIF($P$218:$P$326,$I166,U$218:U$326)+SUMIF($P$218:$P$326,$J166,U$218:U$326)+SUMIF($P$218:$P$326,$K166,U$218:U$326)+SUMIF($P$218:$P$326,$L166,U$218:U$326))*INDEX('Standard Inputs - SB 6362'!I$12:I$1048576,MATCH('Single School Forecast'!$N166,'Standard Inputs - SB 6362'!$D$12:$D$1048576,0))*INDEX('Standard Inputs - SB 6362'!I$12:I$1048576,MATCH('Single School Forecast'!$M166,'Standard Inputs - SB 6362'!$D$12:$D$1048576,0)) -> 0 | V166: =(SUMIF($P$218:$P$326,$H166,V$218:V$326)+SUMIF($P$218:$P$326,$I166,V$218:V$326)+SUMIF($P$218:$P$326,$J166,V$218:V$326)+SUMIF($P$218:$P$326,$K166,V$218:V$326)+SUMIF($P$218:$P$326,$L166,V$218:V$326))*INDEX('Standard Inputs - SB 6362'!J$12:J$1048576,MATCH('Single School Forecast'!$N166,'Standard Inputs - SB 6362'!$D$12:$D$1048576,0))*INDEX('Standard Inputs - SB 6362'!J$12:J$1048576,MATCH('Single School Forecast'!$M166,'Standard Inputs - SB 6362'!$D$12:$D$1048576,0)) -> 123396.2725 | W166: =(SUMIF($P$218:$P$326,$H166,W$218:W$326)+SUMIF($P$218:$P$326,$I166,W$218:W$326)+SUMIF($P$218:$P$326,$J166,W$218:W$326)+SUMIF($P$218:$P$326,$K166,W$218:W$326)+SUMIF($P$218:$P$326,$L166,W$218:W$326))*INDEX('Standard Inputs - SB 6362'!K$12:K$1048576,MATCH('Single School Forecast'!$N166,'Standard Inputs - SB 6362'!$D$12:$D$1048576,0))*INDEX('Standard Inputs - SB 6362'!K$12:K$1048576,MATCH('Single School Forecast'!$M166,'Standard Inputs - SB 6362'!$D$12:$D$1048576,0)) -> 94862.65913 | X166: =(SUMIF($P$218:$P$326,$H166,X$218:X$326)+SUMIF($P$218:$P$326,$I166,X$218:X$326)+SUMIF($P$218:$P$326,$J166,X$218:X$326)+SUMIF($P$218:$P$326,$K166,X$218:X$326)+SUMIF($P$218:$P$326,$L166,X$218:X$326))*INDEX('Standard Inputs - SB 6362'!L$12:L$1048576,MATCH('Single School Forecast'!$N166,'Standard Inputs - SB 6362'!$D$12:$D$1048576,0))*INDEX('Standard Inputs - SB 6362'!L$12:L$1048576,MATCH('Single School Forecast'!$M166,'Standard Inputs - SB 6362'!$D$12:$D$1048576,0)) -> 108776.316 | Y166: =(SUMIF($P$218:$P$326,$H166,Y$218:Y$326)+SUMIF($P$218:$P$326,$I166,Y$218:Y$326)+SUMIF($P$218:$P$326,$J166,Y$218:Y$326)+SUMIF($P$218:$P$326,$K166,Y$218:Y$326)+SUMIF($P$218:$P$326,$L166,Y$218:Y$326))*INDEX('Standard Inputs - SB 6362'!M$12:M$1048576,MATCH('Single School Forecast'!$N166,'Standard Inputs - SB 6362'!$D$12:$D$1048576,0))*INDEX('Standard Inputs - SB 6362'!M$12:M$1048576,MATCH('Single School Forecast'!$M166,'Standard Inputs - SB 6362'!$D$12:$D$1048576,0)) -> 136101.5877 | Z166: =(SUMIF($P$218:$P$326,$H166,Z$218:Z$326)+SUMIF($P$218:$P$326,$I166,Z$218:Z$326)+SUMIF($P$218:$P$326,$J166,Z$218:Z$326)+SUMIF($P$218:$P$326,$K166,Z$218:Z$326)+SUMIF($P$218:$P$326,$L166,Z$218:Z$326))*INDEX('Standard Inputs - SB 6362'!N$12:N$1048576,MATCH('Single School Forecast'!$N166,'Standard Inputs - SB 6362'!$D$12:$D$1048576,0))*INDEX('Standard Inputs - SB 6362'!N$12:N$1048576,MATCH('Single School Forecast'!$M166,'Standard Inputs - SB 6362'!$D$12:$D$1048576,0)) -> 296907.7763 | AA166: =(SUMIF($P$218:$P$326,$H166,AA$218:AA$326)+SUMIF($P$218:$P$326,$I166,AA$218:AA$326)+SUMIF($P$218:$P$326,$J166,AA$218:AA$326)+SUMIF($P$218:$P$326,$K166,AA$218:AA$326)+SUMIF($P$218:$P$326,$L166,AA$218:AA$326))*INDEX('Standard Inputs - SB 6362'!O$12:O$1048576,MATCH('Single School Forecast'!$N166,'Standard Inputs - SB 6362'!$D$12:$D$1048576,0))*INDEX('Standard Inputs - SB 6362'!O$12:O$1048576,MATCH('Single School Forecast'!$M166,'Standard Inputs - SB 6362'!$D$12:$D$1048576,0)) -> 310952.1781 | AB166: =(SUMIF($P$218:$P$326,$H166,AB$218:AB$326)+SUMIF($P$218:$P$326,$I166,AB$218:AB$326)+SUMIF($P$218:$P$326,$J166,AB$218:AB$326)+SUMIF($P$218:$P$326,$K166,AB$218:AB$326)+SUMIF($P$218:$P$326,$L166,AB$218:AB$326))*INDEX('Standard Inputs - SB 6362'!P$12:P$1048576,MATCH('Single School Forecast'!$N166,'Standard Inputs - SB 6362'!$D$12:$D$1048576,0))*INDEX('Standard Inputs - SB 6362'!P$12:P$1048576,MATCH('Single School Forecast'!$M166,'Standard Inputs - SB 6362'!$D$12:$D$1048576,0)) -> 331724.8133
I167: SS RN CIS | J167: SS RN CAS | K167: School CIS Staff Units | L167: School CAS Staff Units | M167: Central Admin CAS Staff Units | N167: Health Insurance | O167: Certificated Insurance | P167: Certificated Insurance and Benefits | R167: =(SUMIF($P$218:$P$326,$I167,R$218:R$326)+SUMIF($P$218:$P$326,$J167,R$218:R$326)+SUMIF($P$218:$P$326,$K167,R$218:R$326)+SUMIF($P$218:$P$326,$L167,R$218:R$326)+SUMIF($P$218:$P$326,$M167,R$218:R$326))*INDEX('Standard Inputs - SB 6362'!F$12:F$1048576,MATCH('Single School Forecast'!$N167,'Standard Inputs - SB 6362'!$D$12:$D$1048576,0)) -> 0 | S167: =(SUMIF($P$218:$P$326,$I167,S$218:S$326)+SUMIF($P$218:$P$326,$J167,S$218:S$326)+SUMIF($P$218:$P$326,$K167,S$218:S$326)+SUMIF($P$218:$P$326,$L167,S$218:S$326)+SUMIF($P$218:$P$326,$M167,S$218:S$326))*INDEX('Standard Inputs - SB 6362'!G$12:G$1048576,MATCH('Single School Forecast'!$N167,'Standard Inputs - SB 6362'!$D$12:$D$1048576,0)) -> 0 | T167: =(SUMIF($P$218:$P$326,$I167,T$218:T$326)+SUMIF($P$218:$P$326,$J167,T$218:T$326)+SUMIF($P$218:$P$326,$K167,T$218:T$326)+SUMIF($P$218:$P$326,$L167,T$218:T$326)+SUMIF($P$218:$P$326,$M167,T$218:T$326))*INDEX('Standard Inputs - SB 6362'!H$12:H$1048576,MATCH('Single School Forecast'!$N167,'Standard Inputs - SB 6362'!$D$12:$D$1048576,0)) ->  | U167: =(SUMIF($P$218:$P$326,$I167,U$218:U$326)+SUMIF($P$218:$P$326,$J167,U$218:U$326)+SUMIF($P$218:$P$326,$K167,U$218:U$326)+SUMIF($P$218:$P$326,$L167,U$218:U$326)+SUMIF($P$218:$P$326,$M167,U$218:U$326)+U289+U290+U291+U292)*INDEX('Standard Inputs - SB 6362'!I$12:I$1048576,MATCH('Single School Forecast'!$N167,'Standard Inputs - SB 6362'!$D$12:$D$1048576,0)) -> 0 | V167: =(SUMIF($P$218:$P$326,$I167,V$218:V$326)+SUMIF($P$218:$P$326,$J167,V$218:V$326)+SUMIF($P$218:$P$326,$K167,V$218:V$326)+SUMIF($P$218:$P$326,$L167,V$218:V$326)+SUMIF($P$218:$P$326,$M167,V$218:V$326)+V289+V290+V291+V292)*INDEX('Standard Inputs - SB 6362'!J$12:J$1048576,MATCH('Single School Forecast'!$N167,'Standard Inputs - SB 6362'!$D$12:$D$1048576,0)) -> 0 | W167: =(SUMIF($P$218:$P$326,$I167,W$218:W$326)+SUMIF($P$218:$P$326,$J167,W$218:W$326)+SUMIF($P$218:$P$326,$K167,W$218:W$326)+SUMIF($P$218:$P$326,$L167,W$218:W$326)+SUMIF($P$218:$P$326,$M167,W$218:W$326)+W289+W290+W291+W292)*INDEX('Standard Inputs - SB 6362'!K$12:K$1048576,MATCH('Single School Forecast'!$N167,'Standard Inputs - SB 6362'!$D$12:$D$1048576,0)) -> 0 | X167: =(SUMIF($P$218:$P$326,$I167,X$218:X$326)+SUMIF($P$218:$P$326,$J167,X$218:X$326)+SUMIF($P$218:$P$326,$K167,X$218:X$326)+SUMIF($P$218:$P$326,$L167,X$218:X$326)+SUMIF($P$218:$P$326,$M167,X$218:X$326)+X289+X290+X291+X292)*INDEX('Standard Inputs - SB 6362'!L$12:L$1048576,MATCH('Single School Forecast'!$N167,'Standard Inputs - SB 6362'!$D$12:$D$1048576,0)) -> 0 | Y167: =(SUMIF($P$218:$P$326,$I167,Y$218:Y$326)+SUMIF($P$218:$P$326,$J167,Y$218:Y$326)+SUMIF($P$218:$P$326,$K167,Y$218:Y$326)+SUMIF($P$218:$P$326,$L167,Y$218:Y$326)+SUMIF($P$218:$P$326,$M167,Y$218:Y$326)+Y289+Y290+Y291+Y292)*INDEX('Standard Inputs - SB 6362'!M$12:M$1048576,MATCH('Single School Forecast'!$N167,'Standard Inputs - SB 6362'!$D$12:$D$1048576,0)) -> 0 | Z167: =(SUMIF($P$218:$P$326,$I167,Z$218:Z$326)+SUMIF($P$218:$P$326,$J167,Z$218:Z$326)+SUMIF($P$218:$P$326,$K167,Z$218:Z$326)+SUMIF($P$218:$P$326,$L167,Z$218:Z$326)+SUMIF($P$218:$P$326,$M167,Z$218:Z$326)+Z289+Z290+Z291+Z292)*INDEX('Standard Inputs - SB 6362'!N$12:N$1048576,MATCH('Single School Forecast'!$N167,'Standard Inputs - SB 6362'!$D$12:$D$1048576,0)) -> 0 | AA167: =(SUMIF($P$218:$P$326,$I167,AA$218:AA$326)+SUMIF($P$218:$P$326,$J167,AA$218:AA$326)+SUMIF($P$218:$P$326,$K167,AA$218:AA$326)+SUMIF($P$218:$P$326,$L167,AA$218:AA$326)+SUMIF($P$218:$P$326,$M167,AA$218:AA$326)+AA289+AA290+AA291+AA292)*INDEX('Standard Inputs - SB 6362'!O$12:O$1048576,MATCH('Single School Forecast'!$N167,'Standard Inputs - SB 6362'!$D$12:$D$1048576,0)) -> 0 | AB167: =(SUMIF($P$218:$P$326,$I167,AB$218:AB$326)+SUMIF($P$218:$P$326,$J167,AB$218:AB$326)+SUMIF($P$218:$P$326,$K167,AB$218:AB$326)+SUMIF($P$218:$P$326,$L167,AB$218:AB$326)+SUMIF($P$218:$P$326,$M167,AB$218:AB$326)+AB289+AB290+AB291+AB292)*INDEX('Standard Inputs - SB 6362'!P$12:P$1048576,MATCH('Single School Forecast'!$N167,'Standard Inputs - SB 6362'!$D$12:$D$1048576,0)) -> 0
I168: SS RN CLS | J168: School CLS Staff Units | K168: District CLS Staff Units | L168: Central Admin CLS Staff Units | M168: SEBB Health Insurance | N168: CLS SEBB Multiplier | O168: Classified SEBB | P168: Classified SEBB | T168: =(SUMIF($P$218:$P$326,$I168,T$218:T$326)+SUMIF($P$218:$P$326,$J168,T$218:T$326)+SUMIF($P$218:$P$326,$K168,T$218:T$326)+SUMIF($P$218:$P$326,$L168,T$218:T$326))*INDEX('Standard Inputs - SB 6362'!H$12:H$1048576,MATCH('Single School Forecast'!$N168,'Standard Inputs - SB 6362'!$D$12:$D$1048576,0))*INDEX('Standard Inputs - SB 6362'!H$12:H$1048576,MATCH('Single School Forecast'!$M168,'Standard Inputs - SB 6362'!$D$12:$D$1048576,0)) ->  | U168: =(SUMIF($P$218:$P$326,$I168,U$218:U$326)+SUMIF($P$218:$P$326,$J168,U$218:U$326)+SUMIF($P$218:$P$326,$K168,U$218:U$326)+SUMIF($P$218:$P$326,$L168,U$218:U$326))*INDEX('Standard Inputs - SB 6362'!I$12:I$1048576,MATCH('Single School Forecast'!$N168,'Standard Inputs - SB 6362'!$D$12:$D$1048576,0))*INDEX('Standard Inputs - SB 6362'!I$12:I$1048576,MATCH('Single School Forecast'!$M168,'Standard Inputs - SB 6362'!$D$12:$D$1048576,0)) -> 0 | V168: =(SUMIF($P$218:$P$326,$I168,V$218:V$326)+SUMIF($P$218:$P$326,$J168,V$218:V$326)+SUMIF($P$218:$P$326,$K168,V$218:V$326)+SUMIF($P$218:$P$326,$L168,V$218:V$326))*INDEX('Standard Inputs - SB 6362'!J$12:J$1048576,MATCH('Single School Forecast'!$N168,'Standard Inputs - SB 6362'!$D$12:$D$1048576,0))*INDEX('Standard Inputs - SB 6362'!J$12:J$1048576,MATCH('Single School Forecast'!$M168,'Standard Inputs - SB 6362'!$D$12:$D$1048576,0)) -> 57526.33988 | W168: =(SUMIF($P$218:$P$326,$I168,W$218:W$326)+SUMIF($P$218:$P$326,$J168,W$218:W$326)+SUMIF($P$218:$P$326,$K168,W$218:W$326)+SUMIF($P$218:$P$326,$L168,W$218:W$326))*INDEX('Standard Inputs - SB 6362'!K$12:K$1048576,MATCH('Single School Forecast'!$N168,'Standard Inputs - SB 6362'!$D$12:$D$1048576,0))*INDEX('Standard Inputs - SB 6362'!K$12:K$1048576,MATCH('Single School Forecast'!$M168,'Standard Inputs - SB 6362'!$D$12:$D$1048576,0)) -> 43509.0987 | X168: =(SUMIF($P$218:$P$326,$I168,X$218:X$326)+SUMIF($P$218:$P$326,$J168,X$218:X$326)+SUMIF($P$218:$P$326,$K168,X$218:X$326)+SUMIF($P$218:$P$326,$L168,X$218:X$326))*INDEX('Standard Inputs - SB 6362'!L$12:L$1048576,MATCH('Single School Forecast'!$N168,'Standard Inputs - SB 6362'!$D$12:$D$1048576,0))*INDEX('Standard Inputs - SB 6362'!L$12:L$1048576,MATCH('Single School Forecast'!$M168,'Standard Inputs - SB 6362'!$D$12:$D$1048576,0)) -> 48852.51708 | Y168: =(SUMIF($P$218:$P$326,$I168,Y$218:Y$326)+SUMIF($P$218:$P$326,$J168,Y$218:Y$326)+SUMIF($P$218:$P$326,$K168,Y$218:Y$326)+SUMIF($P$218:$P$326,$L168,Y$218:Y$326))*INDEX('Standard Inputs - SB 6362'!M$12:M$1048576,MATCH('Single School Forecast'!$N168,'Standard Inputs - SB 6362'!$D$12:$D$1048576,0))*INDEX('Standard Inputs - SB 6362'!M$12:M$1048576,MATCH('Single School Forecast'!$M168,'Standard Inputs - SB 6362'!$D$12:$D$1048576,0)) -> 57683.55914 | Z168: =(SUMIF($P$218:$P$326,$I168,Z$218:Z$326)+SUMIF($P$218:$P$326,$J168,Z$218:Z$326)+SUMIF($P$218:$P$326,$K168,Z$218:Z$326)+SUMIF($P$218:$P$326,$L168,Z$218:Z$326))*INDEX('Standard Inputs - SB 6362'!N$12:N$1048576,MATCH('Single School Forecast'!$N168,'Standard Inputs - SB 6362'!$D$12:$D$1048576,0))*INDEX('Standard Inputs - SB 6362'!N$12:N$1048576,MATCH('Single School Forecast'!$M168,'Standard Inputs - SB 6362'!$D$12:$D$1048576,0)) -> 120732.0078 | AA168: =(SUMIF($P$218:$P$326,$I168,AA$218:AA$326)+SUMIF($P$218:$P$326,$J168,AA$218:AA$326)+SUMIF($P$218:$P$326,$K168,AA$218:AA$326)+SUMIF($P$218:$P$326,$L168,AA$218:AA$326))*INDEX('Standard Inputs - SB 6362'!O$12:O$1048576,MATCH('Single School Forecast'!$N168,'Standard Inputs - SB 6362'!$D$12:$D$1048576,0))*INDEX('Standard Inputs - SB 6362'!O$12:O$1048576,MATCH('Single School Forecast'!$M168,'Standard Inputs - SB 6362'!$D$12:$D$1048576,0)) -> 126906.3112 | AB168: =(SUMIF($P$218:$P$326,$I168,AB$218:AB$326)+SUMIF($P$218:$P$326,$J168,AB$218:AB$326)+SUMIF($P$218:$P$326,$K168,AB$218:AB$326)+SUMIF($P$218:$P$326,$L168,AB$218:AB$326))*INDEX('Standard Inputs - SB 6362'!P$12:P$1048576,MATCH('Single School Forecast'!$N168,'Standard Inputs - SB 6362'!$D$12:$D$1048576,0))*INDEX('Standard Inputs - SB 6362'!P$12:P$1048576,MATCH('Single School Forecast'!$M168,'Standard Inputs - SB 6362'!$D$12:$D$1048576,0)) -> 135903.2061
I169: SS RN CLS | J169: School CLS Staff Units | K169: District CLS Staff Units | L169: Central Admin CLS Staff Units | M169: Health Insurance | N169: CLS Health Factor | O169: Classified Insurance | P169: Classified Insurance and Benefits | R169: =(SUMIF($P$218:$P$326,$I169,R$218:R$326)+SUMIF($P$218:$P$326,$J169,R$218:R$326)+SUMIF($P$218:$P$326,$K169,R$218:R$326)+SUMIF($P$218:$P$326,$L169,R$218:R$326))*INDEX('Standard Inputs - SB 6362'!F$12:F$1048576,MATCH('Single School Forecast'!$M169,'Standard Inputs - SB 6362'!$D$12:$D$1048576,0))*INDEX('Standard Inputs - SB 6362'!F$12:F$1048576,MATCH('Single School Forecast'!$N169,'Standard Inputs - SB 6362'!$D$12:$D$1048576,0)) -> 0 | S169: =(SUMIF($P$218:$P$326,$I169,S$218:S$326)+SUMIF($P$218:$P$326,$J169,S$218:S$326)+SUMIF($P$218:$P$326,$K169,S$218:S$326)+SUMIF($P$218:$P$326,$L169,S$218:S$326))*INDEX('Standard Inputs - SB 6362'!G$12:G$1048576,MATCH('Single School Forecast'!$M169,'Standard Inputs - SB 6362'!$D$12:$D$1048576,0))*INDEX('Standard Inputs - SB 6362'!G$12:G$1048576,MATCH('Single School Forecast'!$N169,'Standard Inputs - SB 6362'!$D$12:$D$1048576,0)) -> 0 | T169: =(SUMIF($P$218:$P$326,$I169,T$218:T$326)+SUMIF($P$218:$P$326,$J169,T$218:T$326)+SUMIF($P$218:$P$326,$K169,T$218:T$326)+SUMIF($P$218:$P$326,$L169,T$218:T$326))*INDEX('Standard Inputs - SB 6362'!H$12:H$1048576,MATCH('Single School Forecast'!$M169,'Standard Inputs - SB 6362'!$D$12:$D$1048576,0))*INDEX('Standard Inputs - SB 6362'!H$12:H$1048576,MATCH('Single School Forecast'!$N169,'Standard Inputs - SB 6362'!$D$12:$D$1048576,0)) ->  | U169: =(SUMIF($P$218:$P$326,$I169,U$218:U$326)+SUMIF($P$218:$P$326,$J169,U$218:U$326)+SUMIF($P$218:$P$326,$K169,U$218:U$326)+SUMIF($P$218:$P$326,$L169,U$218:U$326))*INDEX('Standard Inputs - SB 6362'!I$12:I$1048576,MATCH('Single School Forecast'!$M169,'Standard Inputs - SB 6362'!$D$12:$D$1048576,0))*INDEX('Standard Inputs - SB 6362'!I$12:I$1048576,MATCH('Single School Forecast'!$N169,'Standard Inputs - SB 6362'!$D$12:$D$1048576,0)) -> 0 | V169: =(SUMIF($P$218:$P$326,$I169,V$218:V$326)+SUMIF($P$218:$P$326,$J169,V$218:V$326)+SUMIF($P$218:$P$326,$K169,V$218:V$326)+SUMIF($P$218:$P$326,$L169,V$218:V$326))*INDEX('Standard Inputs - SB 6362'!J$12:J$1048576,MATCH('Single School Forecast'!$M169,'Standard Inputs - SB 6362'!$D$12:$D$1048576,0))*INDEX('Standard Inputs - SB 6362'!J$12:J$1048576,MATCH('Single School Forecast'!$N169,'Standard Inputs - SB 6362'!$D$12:$D$1048576,0)) -> 0 | W169: =(SUMIF($P$218:$P$326,$I169,W$218:W$326)+SUMIF($P$218:$P$326,$J169,W$218:W$326)+SUMIF($P$218:$P$326,$K169,W$218:W$326)+SUMIF($P$218:$P$326,$L169,W$218:W$326))*INDEX('Standard Inputs - SB 6362'!K$12:K$1048576,MATCH('Single School Forecast'!$M169,'Standard Inputs - SB 6362'!$D$12:$D$1048576,0))*INDEX('Standard Inputs - SB 6362'!K$12:K$1048576,MATCH('Single School Forecast'!$N169,'Standard Inputs - SB 6362'!$D$12:$D$1048576,0)) -> 0 | X169: =(SUMIF($P$218:$P$326,$I169,X$218:X$326)+SUMIF($P$218:$P$326,$J169,X$218:X$326)+SUMIF($P$218:$P$326,$K169,X$218:X$326)+SUMIF($P$218:$P$326,$L169,X$218:X$326))*INDEX('Standard Inputs - SB 6362'!L$12:L$1048576,MATCH('Single School Forecast'!$M169,'Standard Inputs - SB 6362'!$D$12:$D$1048576,0))*INDEX('Standard Inputs - SB 6362'!L$12:L$1048576,MATCH('Single School Forecast'!$N169,'Standard Inputs - SB 6362'!$D$12:$D$1048576,0)) -> 0 | Y169: =(SUMIF($P$218:$P$326,$I169,Y$218:Y$326)+SUMIF($P$218:$P$326,$J169,Y$218:Y$326)+SUMIF($P$218:$P$326,$K169,Y$218:Y$326)+SUMIF($P$218:$P$326,$L169,Y$218:Y$326))*INDEX('Standard Inputs - SB 6362'!M$12:M$1048576,MATCH('Single School Forecast'!$M169,'Standard Inputs - SB 6362'!$D$12:$D$1048576,0))*INDEX('Standard Inputs - SB 6362'!M$12:M$1048576,MATCH('Single School Forecast'!$N169,'Standard Inputs - SB 6362'!$D$12:$D$1048576,0)) -> 0 | Z169: =(SUMIF($P$218:$P$326,$I169,Z$218:Z$326)+SUMIF($P$218:$P$326,$J169,Z$218:Z$326)+SUMIF($P$218:$P$326,$K169,Z$218:Z$326)+SUMIF($P$218:$P$326,$L169,Z$218:Z$326))*INDEX('Standard Inputs - SB 6362'!N$12:N$1048576,MATCH('Single School Forecast'!$M169,'Standard Inputs - SB 6362'!$D$12:$D$1048576,0))*INDEX('Standard Inputs - SB 6362'!N$12:N$1048576,MATCH('Single School Forecast'!$N169,'Standard Inputs - SB 6362'!$D$12:$D$1048576,0)) -> 0 | AA169: =(SUMIF($P$218:$P$326,$I169,AA$218:AA$326)+SUMIF($P$218:$P$326,$J169,AA$218:AA$326)+SUMIF($P$218:$P$326,$K169,AA$218:AA$326)+SUMIF($P$218:$P$326,$L169,AA$218:AA$326))*INDEX('Standard Inputs - SB 6362'!O$12:O$1048576,MATCH('Single School Forecast'!$M169,'Standard Inputs - SB 6362'!$D$12:$D$1048576,0))*INDEX('Standard Inputs - SB 6362'!O$12:O$1048576,MATCH('Single School Forecast'!$N169,'Standard Inputs - SB 6362'!$D$12:$D$1048576,0)) -> 0 | AB169: =(SUMIF($P$218:$P$326,$I169,AB$218:AB$326)+SUMIF($P$218:$P$326,$J169,AB$218:AB$326)+SUMIF($P$218:$P$326,$K169,AB$218:AB$326)+SUMIF($P$218:$P$326,$L169,AB$218:AB$326))*INDEX('Standard Inputs - SB 6362'!P$12:P$1048576,MATCH('Single School Forecast'!$M169,'Standard Inputs - SB 6362'!$D$12:$D$1048576,0))*INDEX('Standard Inputs - SB 6362'!P$12:P$1048576,MATCH('Single School Forecast'!$N169,'Standard Inputs - SB 6362'!$D$12:$D$1048576,0)) -> 0
L170: LAP Staff Units | M170: SEBB Health Insurance | N170: CIS/ CAS SEBB Multiplier | O170: LAP SEBB | P170: LAP SEBB | T170: =SUMIF($P$218:$P$326,$L170,T$218:T$326)*INDEX('Standard Inputs - SB 6362'!H$12:H$1048576,MATCH($N170,'Standard Inputs - SB 6362'!$D$12:$D$1048576,0))*INDEX('Standard Inputs - SB 6362'!H$12:H$1048576,MATCH($M170,'Standard Inputs - SB 6362'!$D$12:$D$1048576,0)) -> 0 | U170: =SUMIF($P$218:$P$326,$L170,U$218:U$326)*INDEX('Standard Inputs - SB 6362'!I$12:I$1048576,MATCH($N170,'Standard Inputs - SB 6362'!$D$12:$D$1048576,0))*INDEX('Standard Inputs - SB 6362'!I$12:I$1048576,MATCH($M170,'Standard Inputs - SB 6362'!$D$12:$D$1048576,0)) -> 0 | V170: =SUMIF($P$218:$P$326,$L170,V$218:V$326)*INDEX('Standard Inputs - SB 6362'!J$12:J$1048576,MATCH($N170,'Standard Inputs - SB 6362'!$D$12:$D$1048576,0))*INDEX('Standard Inputs - SB 6362'!J$12:J$1048576,MATCH($M170,'Standard Inputs - SB 6362'!$D$12:$D$1048576,0)) -> 2088.037715 | W170: =SUMIF($P$218:$P$326,$L170,W$218:W$326)*INDEX('Standard Inputs - SB 6362'!K$12:K$1048576,MATCH($N170,'Standard Inputs - SB 6362'!$D$12:$D$1048576,0))*INDEX('Standard Inputs - SB 6362'!K$12:K$1048576,MATCH($M170,'Standard Inputs - SB 6362'!$D$12:$D$1048576,0)) -> 1825.325781 | X170: =SUMIF($P$218:$P$326,$L170,X$218:X$326)*INDEX('Standard Inputs - SB 6362'!L$12:L$1048576,MATCH($N170,'Standard Inputs - SB 6362'!$D$12:$D$1048576,0))*INDEX('Standard Inputs - SB 6362'!L$12:L$1048576,MATCH($M170,'Standard Inputs - SB 6362'!$D$12:$D$1048576,0)) -> 1863.628536 | Y170: =SUMIF($P$218:$P$326,$L170,Y$218:Y$326)*INDEX('Standard Inputs - SB 6362'!M$12:M$1048576,MATCH($N170,'Standard Inputs - SB 6362'!$D$12:$D$1048576,0))*INDEX('Standard Inputs - SB 6362'!M$12:M$1048576,MATCH($M170,'Standard Inputs - SB 6362'!$D$12:$D$1048576,0)) -> 4562.23152 | Z170: =SUMIF($P$218:$P$326,$L170,Z$218:Z$326)*INDEX('Standard Inputs - SB 6362'!N$12:N$1048576,MATCH($N170,'Standard Inputs - SB 6362'!$D$12:$D$1048576,0))*INDEX('Standard Inputs - SB 6362'!N$12:N$1048576,MATCH($M170,'Standard Inputs - SB 6362'!$D$12:$D$1048576,0)) -> 5659.911284 | AA170: =SUMIF($P$218:$P$326,$L170,AA$218:AA$326)*INDEX('Standard Inputs - SB 6362'!O$12:O$1048576,MATCH($N170,'Standard Inputs - SB 6362'!$D$12:$D$1048576,0))*INDEX('Standard Inputs - SB 6362'!O$12:O$1048576,MATCH($M170,'Standard Inputs - SB 6362'!$D$12:$D$1048576,0)) -> 7803.817074 | AB170: =SUMIF($P$218:$P$326,$L170,AB$218:AB$326)*INDEX('Standard Inputs - SB 6362'!P$12:P$1048576,MATCH($N170,'Standard Inputs - SB 6362'!$D$12:$D$1048576,0))*INDEX('Standard Inputs - SB 6362'!P$12:P$1048576,MATCH($M170,'Standard Inputs - SB 6362'!$D$12:$D$1048576,0)) -> 8747.135621
L171: TBIP Staff Units | M171: SEBB Health Insurance | N171: CIS/ CAS SEBB Multiplier | O171: TBIP SEBB | P171: TBIP SEBB | T171: =SUMIF($P$218:$P$326,$L171,T$218:T$326)*INDEX('Standard Inputs - SB 6362'!H$12:H$1048576,MATCH($N171,'Standard Inputs - SB 6362'!$D$12:$D$1048576,0))*INDEX('Standard Inputs - SB 6362'!H$12:H$1048576,MATCH($M171,'Standard Inputs - SB 6362'!$D$12:$D$1048576,0)) -> 0 | U171: =SUMIF($P$218:$P$326,$L171,U$218:U$326)*INDEX('Standard Inputs - SB 6362'!I$12:I$1048576,MATCH($N171,'Standard Inputs - SB 6362'!$D$12:$D$1048576,0))*INDEX('Standard Inputs - SB 6362'!I$12:I$1048576,MATCH($M171,'Standard Inputs - SB 6362'!$D$12:$D$1048576,0)) -> 0 | V171: =SUMIF($P$218:$P$326,$L171,V$218:V$326)*INDEX('Standard Inputs - SB 6362'!J$12:J$1048576,MATCH($N171,'Standard Inputs - SB 6362'!$D$12:$D$1048576,0))*INDEX('Standard Inputs - SB 6362'!J$12:J$1048576,MATCH($M171,'Standard Inputs - SB 6362'!$D$12:$D$1048576,0)) -> 0 | W171: =SUMIF($P$218:$P$326,$L171,W$218:W$326)*INDEX('Standard Inputs - SB 6362'!K$12:K$1048576,MATCH($N171,'Standard Inputs - SB 6362'!$D$12:$D$1048576,0))*INDEX('Standard Inputs - SB 6362'!K$12:K$1048576,MATCH($M171,'Standard Inputs - SB 6362'!$D$12:$D$1048576,0)) -> 0 | X171: =SUMIF($P$218:$P$326,$L171,X$218:X$326)*INDEX('Standard Inputs - SB 6362'!L$12:L$1048576,MATCH($N171,'Standard Inputs - SB 6362'!$D$12:$D$1048576,0))*INDEX('Standard Inputs - SB 6362'!L$12:L$1048576,MATCH($M171,'Standard Inputs - SB 6362'!$D$12:$D$1048576,0)) -> 152.1171775 | Y171: =SUMIF($P$218:$P$326,$L171,Y$218:Y$326)*INDEX('Standard Inputs - SB 6362'!M$12:M$1048576,MATCH($N171,'Standard Inputs - SB 6362'!$D$12:$D$1048576,0))*INDEX('Standard Inputs - SB 6362'!M$12:M$1048576,MATCH($M171,'Standard Inputs - SB 6362'!$D$12:$D$1048576,0)) -> 236.4982118 | Z171: =SUMIF($P$218:$P$326,$L171,Z$218:Z$326)*INDEX('Standard Inputs - SB 6362'!N$12:N$1048576,MATCH($N171,'Standard Inputs - SB 6362'!$D$12:$D$1048576,0))*INDEX('Standard Inputs - SB 6362'!N$12:N$1048576,MATCH($M171,'Standard Inputs - SB 6362'!$D$12:$D$1048576,0)) -> 326.5813478 | AA171: =SUMIF($P$218:$P$326,$L171,AA$218:AA$326)*INDEX('Standard Inputs - SB 6362'!O$12:O$1048576,MATCH($N171,'Standard Inputs - SB 6362'!$D$12:$D$1048576,0))*INDEX('Standard Inputs - SB 6362'!O$12:O$1048576,MATCH($M171,'Standard Inputs - SB 6362'!$D$12:$D$1048576,0)) -> 365.0402765 | AB171: =SUMIF($P$218:$P$326,$L171,AB$218:AB$326)*INDEX('Standard Inputs - SB 6362'!P$12:P$1048576,MATCH($N171,'Standard Inputs - SB 6362'!$D$12:$D$1048576,0))*INDEX('Standard Inputs - SB 6362'!P$12:P$1048576,MATCH($M171,'Standard Inputs - SB 6362'!$D$12:$D$1048576,0)) -> 403.7785382
L172: HiCap Staff Units | M172: SEBB Health Insurance | N172: CIS/ CAS SEBB Multiplier | O172: HiCap SEBB | P172: HiCap SEBB | T172: =SUMIF($P$218:$P$326,$L172,T$218:T$326)*INDEX('Standard Inputs - SB 6362'!H$12:H$1048576,MATCH($N172,'Standard Inputs - SB 6362'!$D$12:$D$1048576,0))*INDEX('Standard Inputs - SB 6362'!H$12:H$1048576,MATCH($M172,'Standard Inputs - SB 6362'!$D$12:$D$1048576,0)) -> 0 | U172: =SUMIF($P$218:$P$326,$L172,U$218:U$326)*INDEX('Standard Inputs - SB 6362'!I$12:I$1048576,MATCH($N172,'Standard Inputs - SB 6362'!$D$12:$D$1048576,0))*INDEX('Standard Inputs - SB 6362'!I$12:I$1048576,MATCH($M172,'Standard Inputs - SB 6362'!$D$12:$D$1048576,0)) -> 0 | V172: =SUMIF($P$218:$P$326,$L172,V$218:V$326)*INDEX('Standard Inputs - SB 6362'!J$12:J$1048576,MATCH($N172,'Standard Inputs - SB 6362'!$D$12:$D$1048576,0))*INDEX('Standard Inputs - SB 6362'!J$12:J$1048576,MATCH($M172,'Standard Inputs - SB 6362'!$D$12:$D$1048576,0)) -> 340.3914911 | W172: =SUMIF($P$218:$P$326,$L172,W$218:W$326)*INDEX('Standard Inputs - SB 6362'!K$12:K$1048576,MATCH($N172,'Standard Inputs - SB 6362'!$D$12:$D$1048576,0))*INDEX('Standard Inputs - SB 6362'!K$12:K$1048576,MATCH($M172,'Standard Inputs - SB 6362'!$D$12:$D$1048576,0)) -> 361.5098688 | X172: =SUMIF($P$218:$P$326,$L172,X$218:X$326)*INDEX('Standard Inputs - SB 6362'!L$12:L$1048576,MATCH($N172,'Standard Inputs - SB 6362'!$D$12:$D$1048576,0))*INDEX('Standard Inputs - SB 6362'!L$12:L$1048576,MATCH($M172,'Standard Inputs - SB 6362'!$D$12:$D$1048576,0)) -> 412.3890355 | Y172: =SUMIF($P$218:$P$326,$L172,Y$218:Y$326)*INDEX('Standard Inputs - SB 6362'!M$12:M$1048576,MATCH($N172,'Standard Inputs - SB 6362'!$D$12:$D$1048576,0))*INDEX('Standard Inputs - SB 6362'!M$12:M$1048576,MATCH($M172,'Standard Inputs - SB 6362'!$D$12:$D$1048576,0)) -> 511.6104576 | Z172: =SUMIF($P$218:$P$326,$L172,Z$218:Z$326)*INDEX('Standard Inputs - SB 6362'!N$12:N$1048576,MATCH($N172,'Standard Inputs - SB 6362'!$D$12:$D$1048576,0))*INDEX('Standard Inputs - SB 6362'!N$12:N$1048576,MATCH($M172,'Standard Inputs - SB 6362'!$D$12:$D$1048576,0)) -> 705.4022976 | AA172: =SUMIF($P$218:$P$326,$L172,AA$218:AA$326)*INDEX('Standard Inputs - SB 6362'!O$12:O$1048576,MATCH($N172,'Standard Inputs - SB 6362'!$D$12:$D$1048576,0))*INDEX('Standard Inputs - SB 6362'!O$12:O$1048576,MATCH($M172,'Standard Inputs - SB 6362'!$D$12:$D$1048576,0)) -> 790.6707072 | AB172: =SUMIF($P$218:$P$326,$L172,AB$218:AB$326)*INDEX('Standard Inputs - SB 6362'!P$12:P$1048576,MATCH($N172,'Standard Inputs - SB 6362'!$D$12:$D$1048576,0))*INDEX('Standard Inputs - SB 6362'!P$12:P$1048576,MATCH($M172,'Standard Inputs - SB 6362'!$D$12:$D$1048576,0)) -> 879.8149536
L173: LAP High Pov Staff Units | M173: SEBB Health Insurance | N173: CIS/ CAS SEBB Multiplier | O173: LAP High Poverty SEBB | P173: LAP SEBB | T173: =SUMIF($P$218:$P$326,$L173,T$218:T$326)*INDEX('Standard Inputs - SB 6362'!H$12:H$1048576,MATCH($N173,'Standard Inputs - SB 6362'!$D$12:$D$1048576,0))*INDEX('Standard Inputs - SB 6362'!H$12:H$1048576,MATCH($M173,'Standard Inputs - SB 6362'!$D$12:$D$1048576,0)) -> 0 | U173: =SUMIF($P$218:$P$326,$L173,U$218:U$326)*INDEX('Standard Inputs - SB 6362'!I$12:I$1048576,MATCH($N173,'Standard Inputs - SB 6362'!$D$12:$D$1048576,0))*INDEX('Standard Inputs - SB 6362'!I$12:I$1048576,MATCH($M173,'Standard Inputs - SB 6362'!$D$12:$D$1048576,0)) -> 0 | V173: =SUMIF($P$218:$P$326,$L173,V$218:V$326)*INDEX('Standard Inputs - SB 6362'!J$12:J$1048576,MATCH($N173,'Standard Inputs - SB 6362'!$D$12:$D$1048576,0))*INDEX('Standard Inputs - SB 6362'!J$12:J$1048576,MATCH($M173,'Standard Inputs - SB 6362'!$D$12:$D$1048576,0)) -> 0 | W173: =SUMIF($P$218:$P$326,$L173,W$218:W$326)*INDEX('Standard Inputs - SB 6362'!K$12:K$1048576,MATCH($N173,'Standard Inputs - SB 6362'!$D$12:$D$1048576,0))*INDEX('Standard Inputs - SB 6362'!K$12:K$1048576,MATCH($M173,'Standard Inputs - SB 6362'!$D$12:$D$1048576,0)) -> 0 | X173: =SUMIF($P$218:$P$326,$L173,X$218:X$326)*INDEX('Standard Inputs - SB 6362'!L$12:L$1048576,MATCH($N173,'Standard Inputs - SB 6362'!$D$12:$D$1048576,0))*INDEX('Standard Inputs - SB 6362'!L$12:L$1048576,MATCH($M173,'Standard Inputs - SB 6362'!$D$12:$D$1048576,0)) -> 0 | Y173: =SUMIF($P$218:$P$326,$L173,Y$218:Y$326)*INDEX('Standard Inputs - SB 6362'!M$12:M$1048576,MATCH($N173,'Standard Inputs - SB 6362'!$D$12:$D$1048576,0))*INDEX('Standard Inputs - SB 6362'!M$12:M$1048576,MATCH($M173,'Standard Inputs - SB 6362'!$D$12:$D$1048576,0)) -> 0 | Z173: =SUMIF($P$218:$P$326,$L173,Z$218:Z$326)*INDEX('Standard Inputs - SB 6362'!N$12:N$1048576,MATCH($N173,'Standard Inputs - SB 6362'!$D$12:$D$1048576,0))*INDEX('Standard Inputs - SB 6362'!N$12:N$1048576,MATCH($M173,'Standard Inputs - SB 6362'!$D$12:$D$1048576,0)) -> 0 | AA173: =SUMIF($P$218:$P$326,$L173,AA$218:AA$326)*INDEX('Standard Inputs - SB 6362'!O$12:O$1048576,MATCH($N173,'Standard Inputs - SB 6362'!$D$12:$D$1048576,0))*INDEX('Standard Inputs - SB 6362'!O$12:O$1048576,MATCH($M173,'Standard Inputs - SB 6362'!$D$12:$D$1048576,0)) -> 0 | AB173: =SUMIF($P$218:$P$326,$L173,AB$218:AB$326)*INDEX('Standard Inputs - SB 6362'!P$12:P$1048576,MATCH($N173,'Standard Inputs - SB 6362'!$D$12:$D$1048576,0))*INDEX('Standard Inputs - SB 6362'!P$12:P$1048576,MATCH($M173,'Standard Inputs - SB 6362'!$D$12:$D$1048576,0)) -> 0
M174: LAP Staff Units | N174: Health Insurance | O174: LAP Insurance | P174: LAP Insurance and Benefits | R174: =SUMIF($P$218:$P$326,$M174,R$218:R$326)*INDEX('Standard Inputs - SB 6362'!F$12:F$1048576,MATCH($N174,'Standard Inputs - SB 6362'!$D$12:$D$1048576,0)) -> 0 | S174: =SUMIF($P$218:$P$326,$M174,S$218:S$326)*INDEX('Standard Inputs - SB 6362'!G$12:G$1048576,MATCH($N174,'Standard Inputs - SB 6362'!$D$12:$D$1048576,0)) -> 0 | T174: =SUMIF($P$218:$P$326,$M174,T$218:T$326)*INDEX('Standard Inputs - SB 6362'!H$12:H$1048576,MATCH($N174,'Standard Inputs - SB 6362'!$D$12:$D$1048576,0)) -> 0 | U174: =SUMIF($P$218:$P$326,$M174,U$218:U$326)*INDEX('Standard Inputs - SB 6362'!I$12:I$1048576,MATCH($N174,'Standard Inputs - SB 6362'!$D$12:$D$1048576,0)) -> 0 | V174: =SUMIF($P$218:$P$326,$M174,V$218:V$326)*INDEX('Standard Inputs - SB 6362'!J$12:J$1048576,MATCH($N174,'Standard Inputs - SB 6362'!$D$12:$D$1048576,0)) -> 0 | W174: =SUMIF($P$218:$P$326,$M174,W$218:W$326)*INDEX('Standard Inputs - SB 6362'!K$12:K$1048576,MATCH($N174,'Standard Inputs - SB 6362'!$D$12:$D$1048576,0)) -> 0 | X174: =SUMIF($P$218:$P$326,$M174,X$218:X$326)*INDEX('Standard Inputs - SB 6362'!L$12:L$1048576,MATCH($N174,'Standard Inputs - SB 6362'!$D$12:$D$1048576,0)) -> 0 | Y174: =SUMIF($P$218:$P$326,$M174,Y$218:Y$326)*INDEX('Standard Inputs - SB 6362'!M$12:M$1048576,MATCH($N174,'Standard Inputs - SB 6362'!$D$12:$D$1048576,0)) -> 0 | Z174: =SUMIF($P$218:$P$326,$M174,Z$218:Z$326)*INDEX('Standard Inputs - SB 6362'!N$12:N$1048576,MATCH($N174,'Standard Inputs - SB 6362'!$D$12:$D$1048576,0)) -> 0 | AA174: =SUMIF($P$218:$P$326,$M174,AA$218:AA$326)*INDEX('Standard Inputs - SB 6362'!O$12:O$1048576,MATCH($N174,'Standard Inputs - SB 6362'!$D$12:$D$1048576,0)) -> 0 | AB174: =SUMIF($P$218:$P$326,$M174,AB$218:AB$326)*INDEX('Standard Inputs - SB 6362'!P$12:P$1048576,MATCH($N174,'Standard Inputs - SB 6362'!$D$12:$D$1048576,0)) -> 0
M175: TBIP Staff Units | N175: Health Insurance | O175: TBIP Insurance | P175: TBIP Insurance and Benefits | R175: =SUMIF($P$218:$P$326,$M175,R$218:R$326)*INDEX('Standard Inputs - SB 6362'!F$12:F$1048576,MATCH($N175,'Standard Inputs - SB 6362'!$D$12:$D$1048576,0)) -> 0 | S175: =SUMIF($P$218:$P$326,$M175,S$218:S$326)*INDEX('Standard Inputs - SB 6362'!G$12:G$1048576,MATCH($N175,'Standard Inputs - SB 6362'!$D$12:$D$1048576,0)) -> 7667.298656 | T175: =SUMIF($P$218:$P$326,$M175,T$218:T$326)*INDEX('Standard Inputs - SB 6362'!H$12:H$1048576,MATCH($N175,'Standard Inputs - SB 6362'!$D$12:$D$1048576,0)) -> 0 | U175: =SUMIF($P$218:$P$326,$M175,U$218:U$326)*INDEX('Standard Inputs - SB 6362'!I$12:I$1048576,MATCH($N175,'Standard Inputs - SB 6362'!$D$12:$D$1048576,0)) -> 0 | V175: =SUMIF($P$218:$P$326,$M175,V$218:V$326)*INDEX('Standard Inputs - SB 6362'!J$12:J$1048576,MATCH($N175,'Standard Inputs - SB 6362'!$D$12:$D$1048576,0)) -> 0 | W175: =SUMIF($P$218:$P$326,$M175,W$218:W$326)*INDEX('Standard Inputs - SB 6362'!K$12:K$1048576,MATCH($N175,'Standard Inputs - SB 6362'!$D$12:$D$1048576,0)) -> 0 | X175: =SUMIF($P$218:$P$326,$M175,X$218:X$326)*INDEX('Standard Inputs - SB 6362'!L$12:L$1048576,MATCH($N175,'Standard Inputs - SB 6362'!$D$12:$D$1048576,0)) -> 0 | Y175: =SUMIF($P$218:$P$326,$M175,Y$218:Y$326)*INDEX('Standard Inputs - SB 6362'!M$12:M$1048576,MATCH($N175,'Standard Inputs - SB 6362'!$D$12:$D$1048576,0)) -> 0 | Z175: =SUMIF($P$218:$P$326,$M175,Z$218:Z$326)*INDEX('Standard Inputs - SB 6362'!N$12:N$1048576,MATCH($N175,'Standard Inputs - SB 6362'!$D$12:$D$1048576,0)) -> 0 | AA175: =SUMIF($P$218:$P$326,$M175,AA$218:AA$326)*INDEX('Standard Inputs - SB 6362'!O$12:O$1048576,MATCH($N175,'Standard Inputs - SB 6362'!$D$12:$D$1048576,0)) -> 0 | AB175: =SUMIF($P$218:$P$326,$M175,AB$218:AB$326)*INDEX('Standard Inputs - SB 6362'!P$12:P$1048576,MATCH($N175,'Standard Inputs - SB 6362'!$D$12:$D$1048576,0)) -> 0
M176: HiCap Staff Units | N176: Health Insurance | O176: HiCap Insurance | P176: HiCap Insurance and Benefits | R176: =SUMIF($P$218:$P$326,$M176,R$218:R$326)*INDEX('Standard Inputs - SB 6362'!F$12:F$1048576,MATCH($N176,'Standard Inputs - SB 6362'!$D$12:$D$1048576,0)) -> 0 | S176: =SUMIF($P$218:$P$326,$M176,S$218:S$326)*INDEX('Standard Inputs - SB 6362'!G$12:G$1048576,MATCH($N176,'Standard Inputs - SB 6362'!$D$12:$D$1048576,0)) -> 0 | T176: =SUMIF($P$218:$P$326,$M176,T$218:T$326)*INDEX('Standard Inputs - SB 6362'!H$12:H$1048576,MATCH($N176,'Standard Inputs - SB 6362'!$D$12:$D$1048576,0)) -> 0 | U176: =SUMIF($P$218:$P$326,$M176,U$218:U$326)*INDEX('Standard Inputs - SB 6362'!I$12:I$1048576,MATCH($N176,'Standard Inputs - SB 6362'!$D$12:$D$1048576,0)) -> 0 | V176: =SUMIF($P$218:$P$326,$M176,V$218:V$326)*INDEX('Standard Inputs - SB 6362'!J$12:J$1048576,MATCH($N176,'Standard Inputs - SB 6362'!$D$12:$D$1048576,0)) -> 0 | W176: =SUMIF($P$218:$P$326,$M176,W$218:W$326)*INDEX('Standard Inputs - SB 6362'!K$12:K$1048576,MATCH($N176,'Standard Inputs - SB 6362'!$D$12:$D$1048576,0)) -> 0 | X176: =SUMIF($P$218:$P$326,$M176,X$218:X$326)*INDEX('Standard Inputs - SB 6362'!L$12:L$1048576,MATCH($N176,'Standard Inputs - SB 6362'!$D$12:$D$1048576,0)) -> 0 | Y176: =SUMIF($P$218:$P$326,$M176,Y$218:Y$326)*INDEX('Standard Inputs - SB 6362'!M$12:M$1048576,MATCH($N176,'Standard Inputs - SB 6362'!$D$12:$D$1048576,0)) -> 0 | Z176: =SUMIF($P$218:$P$326,$M176,Z$218:Z$326)*INDEX('Standard Inputs - SB 6362'!N$12:N$1048576,MATCH($N176,'Standard Inputs - SB 6362'!$D$12:$D$1048576,0)) -> 0 | AA176: =SUMIF($P$218:$P$326,$M176,AA$218:AA$326)*INDEX('Standard Inputs - SB 6362'!O$12:O$1048576,MATCH($N176,'Standard Inputs - SB 6362'!$D$12:$D$1048576,0)) -> 0 | AB176: =SUMIF($P$218:$P$326,$M176,AB$218:AB$326)*INDEX('Standard Inputs - SB 6362'!P$12:P$1048576,MATCH($N176,'Standard Inputs - SB 6362'!$D$12:$D$1048576,0)) -> 0
M177: LAP High Pov Staff Units | N177: Health Insurance | O177: LAP High Poverty Insurance | P177: LAP Insurance and Benefits | R177: =SUMIF($P$218:$P$326,$M177,R$218:R$326)*INDEX('Standard Inputs - SB 6362'!F$12:F$1048576,MATCH($N177,'Standard Inputs - SB 6362'!$D$12:$D$1048576,0)) -> 0 | S177: =SUMIF($P$218:$P$326,$M177,S$218:S$326)*INDEX('Standard Inputs - SB 6362'!G$12:G$1048576,MATCH($N177,'Standard Inputs - SB 6362'!$D$12:$D$1048576,0)) -> 0 | T177: =SUMIF($P$218:$P$326,$M177,T$218:T$326)*INDEX('Standard Inputs - SB 6362'!H$12:H$1048576,MATCH($N177,'Standard Inputs - SB 6362'!$D$12:$D$1048576,0)) -> 0 | U177: =SUMIF($P$218:$P$326,$M177,U$218:U$326)*INDEX('Standard Inputs - SB 6362'!I$12:I$1048576,MATCH($N177,'Standard Inputs - SB 6362'!$D$12:$D$1048576,0)) -> 0 | V177: =SUMIF($P$218:$P$326,$M177,V$218:V$326)*INDEX('Standard Inputs - SB 6362'!J$12:J$1048576,MATCH($N177,'Standard Inputs - SB 6362'!$D$12:$D$1048576,0)) -> 0 | W177: =SUMIF($P$218:$P$326,$M177,W$218:W$326)*INDEX('Standard Inputs - SB 6362'!K$12:K$1048576,MATCH($N177,'Standard Inputs - SB 6362'!$D$12:$D$1048576,0)) -> 0 | X177: =SUMIF($P$218:$P$326,$M177,X$218:X$326)*INDEX('Standard Inputs - SB 6362'!L$12:L$1048576,MATCH($N177,'Standard Inputs - SB 6362'!$D$12:$D$1048576,0)) -> 0 | Y177: =SUMIF($P$218:$P$326,$M177,Y$218:Y$326)*INDEX('Standard Inputs - SB 6362'!M$12:M$1048576,MATCH($N177,'Standard Inputs - SB 6362'!$D$12:$D$1048576,0)) -> 0 | Z177: =SUMIF($P$218:$P$326,$M177,Z$218:Z$326)*INDEX('Standard Inputs - SB 6362'!N$12:N$1048576,MATCH($N177,'Standard Inputs - SB 6362'!$D$12:$D$1048576,0)) -> 0 | AA177: =SUMIF($P$218:$P$326,$M177,AA$218:AA$326)*INDEX('Standard Inputs - SB 6362'!O$12:O$1048576,MATCH($N177,'Standard Inputs - SB 6362'!$D$12:$D$1048576,0)) -> 0 | AB177: =SUMIF($P$218:$P$326,$M177,AB$218:AB$326)*INDEX('Standard Inputs - SB 6362'!P$12:P$1048576,MATCH($N177,'Standard Inputs - SB 6362'!$D$12:$D$1048576,0)) -> 0
K178: CIS K-12 Average SpEd | L178: CAS K-12 Average SpEd | M178: SEBB Health Insurance | N178: CIS/ CAS SEBB Multiplier | O178: Certificated Insurance SpEd SEBB | P178: SpEd Insurance and Benefits | T178: =(SUMIF($P$218:$P$326,$K178,T$218:T$326)+SUMIF($P$218:$P$326,$L178,T$218:T$326))*INDEX('Standard Inputs - SB 6362'!H$12:H$1048576,MATCH('Single School Forecast'!$N178,'Standard Inputs - SB 6362'!$D$12:$D$1048576,0))*INDEX('Standard Inputs - SB 6362'!H$12:H$1048576,MATCH('Single School Forecast'!$M178,'Standard Inputs - SB 6362'!$D$12:$D$1048576,0)) -> 0 | U178: =(SUMIF($P$218:$P$326,$K178,U$218:U$326)+SUMIF($P$218:$P$326,$L178,U$218:U$326))*INDEX('Standard Inputs - SB 6362'!I$12:I$1048576,MATCH('Single School Forecast'!$N178,'Standard Inputs - SB 6362'!$D$12:$D$1048576,0))*INDEX('Standard Inputs - SB 6362'!I$12:I$1048576,MATCH('Single School Forecast'!$M178,'Standard Inputs - SB 6362'!$D$12:$D$1048576,0)) -> 0 | V178: =(SUMIF($P$218:$P$326,$K178,V$218:V$326)+SUMIF($P$218:$P$326,$L178,V$218:V$326))*INDEX('Standard Inputs - SB 6362'!J$12:J$1048576,MATCH('Single School Forecast'!$N178,'Standard Inputs - SB 6362'!$D$12:$D$1048576,0))*INDEX('Standard Inputs - SB 6362'!J$12:J$1048576,MATCH('Single School Forecast'!$M178,'Standard Inputs - SB 6362'!$D$12:$D$1048576,0)) -> 623.3282669 | W178: =(SUMIF($P$218:$P$326,$K178,W$218:W$326)+SUMIF($P$218:$P$326,$L178,W$218:W$326))*INDEX('Standard Inputs - SB 6362'!K$12:K$1048576,MATCH('Single School Forecast'!$N178,'Standard Inputs - SB 6362'!$D$12:$D$1048576,0))*INDEX('Standard Inputs - SB 6362'!K$12:K$1048576,MATCH('Single School Forecast'!$M178,'Standard Inputs - SB 6362'!$D$12:$D$1048576,0)) -> 871.2365652 | X178: =(SUMIF($P$218:$P$326,$K178,X$218:X$326)+SUMIF($P$218:$P$326,$L178,X$218:X$326))*INDEX('Standard Inputs - SB 6362'!L$12:L$1048576,MATCH('Single School Forecast'!$N178,'Standard Inputs - SB 6362'!$D$12:$D$1048576,0))*INDEX('Standard Inputs - SB 6362'!L$12:L$1048576,MATCH('Single School Forecast'!$M178,'Standard Inputs - SB 6362'!$D$12:$D$1048576,0)) -> 959.0373667 | Y178: =(SUMIF($P$218:$P$326,$K178,Y$218:Y$326)+SUMIF($P$218:$P$326,$L178,Y$218:Y$326))*INDEX('Standard Inputs - SB 6362'!M$12:M$1048576,MATCH('Single School Forecast'!$N178,'Standard Inputs - SB 6362'!$D$12:$D$1048576,0))*INDEX('Standard Inputs - SB 6362'!M$12:M$1048576,MATCH('Single School Forecast'!$M178,'Standard Inputs - SB 6362'!$D$12:$D$1048576,0)) -> 964.64868 | Z178: =(SUMIF($P$218:$P$326,$K178,Z$218:Z$326)+SUMIF($P$218:$P$326,$L178,Z$218:Z$326))*INDEX('Standard Inputs - SB 6362'!N$12:N$1048576,MATCH('Single School Forecast'!$N178,'Standard Inputs - SB 6362'!$D$12:$D$1048576,0))*INDEX('Standard Inputs - SB 6362'!N$12:N$1048576,MATCH('Single School Forecast'!$M178,'Standard Inputs - SB 6362'!$D$12:$D$1048576,0)) -> 937.3314996 | AA178: =(SUMIF($P$218:$P$326,$K178,AA$218:AA$326)+SUMIF($P$218:$P$326,$L178,AA$218:AA$326))*INDEX('Standard Inputs - SB 6362'!O$12:O$1048576,MATCH('Single School Forecast'!$N178,'Standard Inputs - SB 6362'!$D$12:$D$1048576,0))*INDEX('Standard Inputs - SB 6362'!O$12:O$1048576,MATCH('Single School Forecast'!$M178,'Standard Inputs - SB 6362'!$D$12:$D$1048576,0)) -> 914.21946 | AB178: =(SUMIF($P$218:$P$326,$K178,AB$218:AB$326)+SUMIF($P$218:$P$326,$L178,AB$218:AB$326))*INDEX('Standard Inputs - SB 6362'!P$12:P$1048576,MATCH('Single School Forecast'!$N178,'Standard Inputs - SB 6362'!$D$12:$D$1048576,0))*INDEX('Standard Inputs - SB 6362'!P$12:P$1048576,MATCH('Single School Forecast'!$M178,'Standard Inputs - SB 6362'!$D$12:$D$1048576,0)) -> 898.5749043
L179: CLS K-12 Average SpEd | M179: SEBB Health Insurance | N179: CLS SEBB Multiplier | O179: Classified Insurance SpEd SEBB | P179: SpEd Insurance and Benefits | T179: =(SUMIF($P$218:$P$326,$K179,T$218:T$326)+SUMIF($P$218:$P$326,$L179,T$218:T$326))*INDEX('Standard Inputs - SB 6362'!H$12:H$1048576,MATCH('Single School Forecast'!$N179,'Standard Inputs - SB 6362'!$D$12:$D$1048576,0))*INDEX('Standard Inputs - SB 6362'!H$12:H$1048576,MATCH('Single School Forecast'!$M179,'Standard Inputs - SB 6362'!$D$12:$D$1048576,0)) -> 0 | U179: =(SUMIF($P$218:$P$326,$K179,U$218:U$326)+SUMIF($P$218:$P$326,$L179,U$218:U$326))*INDEX('Standard Inputs - SB 6362'!I$12:I$1048576,MATCH('Single School Forecast'!$N179,'Standard Inputs - SB 6362'!$D$12:$D$1048576,0))*INDEX('Standard Inputs - SB 6362'!I$12:I$1048576,MATCH('Single School Forecast'!$M179,'Standard Inputs - SB 6362'!$D$12:$D$1048576,0)) -> 0 | V179: =(SUMIF($P$218:$P$326,$K179,V$218:V$326)+SUMIF($P$218:$P$326,$L179,V$218:V$326))*INDEX('Standard Inputs - SB 6362'!J$12:J$1048576,MATCH('Single School Forecast'!$N179,'Standard Inputs - SB 6362'!$D$12:$D$1048576,0))*INDEX('Standard Inputs - SB 6362'!J$12:J$1048576,MATCH('Single School Forecast'!$M179,'Standard Inputs - SB 6362'!$D$12:$D$1048576,0)) -> 284.046048 | W179: =(SUMIF($P$218:$P$326,$K179,W$218:W$326)+SUMIF($P$218:$P$326,$L179,W$218:W$326))*INDEX('Standard Inputs - SB 6362'!K$12:K$1048576,MATCH('Single School Forecast'!$N179,'Standard Inputs - SB 6362'!$D$12:$D$1048576,0))*INDEX('Standard Inputs - SB 6362'!K$12:K$1048576,MATCH('Single School Forecast'!$M179,'Standard Inputs - SB 6362'!$D$12:$D$1048576,0)) -> 316.3157918 | X179: =(SUMIF($P$218:$P$326,$K179,X$218:X$326)+SUMIF($P$218:$P$326,$L179,X$218:X$326))*INDEX('Standard Inputs - SB 6362'!L$12:L$1048576,MATCH('Single School Forecast'!$N179,'Standard Inputs - SB 6362'!$D$12:$D$1048576,0))*INDEX('Standard Inputs - SB 6362'!L$12:L$1048576,MATCH('Single School Forecast'!$M179,'Standard Inputs - SB 6362'!$D$12:$D$1048576,0)) -> 340.2371679 | Y179: =(SUMIF($P$218:$P$326,$K179,Y$218:Y$326)+SUMIF($P$218:$P$326,$L179,Y$218:Y$326))*INDEX('Standard Inputs - SB 6362'!M$12:M$1048576,MATCH('Single School Forecast'!$N179,'Standard Inputs - SB 6362'!$D$12:$D$1048576,0))*INDEX('Standard Inputs - SB 6362'!M$12:M$1048576,MATCH('Single School Forecast'!$M179,'Standard Inputs - SB 6362'!$D$12:$D$1048576,0)) -> 340.34858 | Z179: =(SUMIF($P$218:$P$326,$K179,Z$218:Z$326)+SUMIF($P$218:$P$326,$L179,Z$218:Z$326))*INDEX('Standard Inputs - SB 6362'!N$12:N$1048576,MATCH('Single School Forecast'!$N179,'Standard Inputs - SB 6362'!$D$12:$D$1048576,0))*INDEX('Standard Inputs - SB 6362'!N$12:N$1048576,MATCH('Single School Forecast'!$M179,'Standard Inputs - SB 6362'!$D$12:$D$1048576,0)) -> 338.843076 | AA179: =(SUMIF($P$218:$P$326,$K179,AA$218:AA$326)+SUMIF($P$218:$P$326,$L179,AA$218:AA$326))*INDEX('Standard Inputs - SB 6362'!O$12:O$1048576,MATCH('Single School Forecast'!$N179,'Standard Inputs - SB 6362'!$D$12:$D$1048576,0))*INDEX('Standard Inputs - SB 6362'!O$12:O$1048576,MATCH('Single School Forecast'!$M179,'Standard Inputs - SB 6362'!$D$12:$D$1048576,0)) -> 337.609844 | AB179: =(SUMIF($P$218:$P$326,$K179,AB$218:AB$326)+SUMIF($P$218:$P$326,$L179,AB$218:AB$326))*INDEX('Standard Inputs - SB 6362'!P$12:P$1048576,MATCH('Single School Forecast'!$N179,'Standard Inputs - SB 6362'!$D$12:$D$1048576,0))*INDEX('Standard Inputs - SB 6362'!P$12:P$1048576,MATCH('Single School Forecast'!$M179,'Standard Inputs - SB 6362'!$D$12:$D$1048576,0)) -> 336.8145297
L180: CIS K-12 Average SpEd | M180: CAS K-12 Average SpEd | N180: Health Insurance | O180: Certificated Insurance SpEd | P180: SpEd Insurance and Benefits | R180: =(SUMIF($P$218:$P$326,$L180,R$218:R$326)+SUMIF($P$218:$P$326,$M180,R$218:R$326))*INDEX('Standard Inputs - SB 6362'!F$12:F$1048576,MATCH('Single School Forecast'!$N180,'Standard Inputs - SB 6362'!$D$12:$D$1048576,0)) -> 0 | S180: =(SUMIF($P$218:$P$326,$L180,S$218:S$326)+SUMIF($P$218:$P$326,$M180,S$218:S$326))*INDEX('Standard Inputs - SB 6362'!G$12:G$1048576,MATCH('Single School Forecast'!$N180,'Standard Inputs - SB 6362'!$D$12:$D$1048576,0)) -> 0 | T180: =(SUMIF($P$218:$P$326,$L180,T$218:T$326)+SUMIF($P$218:$P$326,$M180,T$218:T$326))*INDEX('Standard Inputs - SB 6362'!H$12:H$1048576,MATCH('Single School Forecast'!$N180,'Standard Inputs - SB 6362'!$D$12:$D$1048576,0)) -> 0 | U180: =(SUMIF($P$218:$P$326,$L180,U$218:U$326)+SUMIF($P$218:$P$326,$M180,U$218:U$326))*INDEX('Standard Inputs - SB 6362'!I$12:I$1048576,MATCH('Single School Forecast'!$N180,'Standard Inputs - SB 6362'!$D$12:$D$1048576,0)) -> 0 | V180: =(SUMIF($P$218:$P$326,$L180,V$218:V$326)+SUMIF($P$218:$P$326,$M180,V$218:V$326))*INDEX('Standard Inputs - SB 6362'!J$12:J$1048576,MATCH('Single School Forecast'!$N180,'Standard Inputs - SB 6362'!$D$12:$D$1048576,0)) -> 0 | W180: =(SUMIF($P$218:$P$326,$L180,W$218:W$326)+SUMIF($P$218:$P$326,$M180,W$218:W$326))*INDEX('Standard Inputs - SB 6362'!K$12:K$1048576,MATCH('Single School Forecast'!$N180,'Standard Inputs - SB 6362'!$D$12:$D$1048576,0)) -> 0 | X180: =(SUMIF($P$218:$P$326,$L180,X$218:X$326)+SUMIF($P$218:$P$326,$M180,X$218:X$326))*INDEX('Standard Inputs - SB 6362'!L$12:L$1048576,MATCH('Single School Forecast'!$N180,'Standard Inputs - SB 6362'!$D$12:$D$1048576,0)) -> 0 | Y180: =(SUMIF($P$218:$P$326,$L180,Y$218:Y$326)+SUMIF($P$218:$P$326,$M180,Y$218:Y$326))*INDEX('Standard Inputs - SB 6362'!M$12:M$1048576,MATCH('Single School Forecast'!$N180,'Standard Inputs - SB 6362'!$D$12:$D$1048576,0)) -> 0 | Z180: =(SUMIF($P$218:$P$326,$L180,Z$218:Z$326)+SUMIF($P$218:$P$326,$M180,Z$218:Z$326))*INDEX('Standard Inputs - SB 6362'!N$12:N$1048576,MATCH('Single School Forecast'!$N180,'Standard Inputs - SB 6362'!$D$12:$D$1048576,0)) -> 0 | AA180: =(SUMIF($P$218:$P$326,$L180,AA$218:AA$326)+SUMIF($P$218:$P$326,$M180,AA$218:AA$326))*INDEX('Standard Inputs - SB 6362'!O$12:O$1048576,MATCH('Single School Forecast'!$N180,'Standard Inputs - SB 6362'!$D$12:$D$1048576,0)) -> 0 | AB180: =(SUMIF($P$218:$P$326,$L180,AB$218:AB$326)+SUMIF($P$218:$P$326,$M180,AB$218:AB$326))*INDEX('Standard Inputs - SB 6362'!P$12:P$1048576,MATCH('Single School Forecast'!$N180,'Standard Inputs - SB 6362'!$D$12:$D$1048576,0)) -> 0
L181: CLS K-12 Average SpEd | M181: Health Insurance | N181: CLS Health Factor | O181: Classified Insurance SpEd | P181: SpEd Insurance and Benefits | R181: =(SUMIF($P$218:$P$326,$L181,R$218:R$326))*INDEX('Standard Inputs - SB 6362'!F$12:F$1048576,MATCH('Single School Forecast'!$M181,'Standard Inputs - SB 6362'!$D$12:$D$1048576,0))*INDEX('Standard Inputs - SB 6362'!F$12:F$1048576,MATCH('Single School Forecast'!$N181,'Standard Inputs - SB 6362'!$D$12:$D$1048576,0)) -> 0 | S181: =(SUMIF($P$218:$P$326,$L181,S$218:S$326))*INDEX('Standard Inputs - SB 6362'!G$12:G$1048576,MATCH('Single School Forecast'!$M181,'Standard Inputs - SB 6362'!$D$12:$D$1048576,0))*INDEX('Standard Inputs - SB 6362'!G$12:G$1048576,MATCH('Single School Forecast'!$N181,'Standard Inputs - SB 6362'!$D$12:$D$1048576,0)) -> 0 | T181: =(SUMIF($P$218:$P$326,$L181,T$218:T$326))*INDEX('Standard Inputs - SB 6362'!H$12:H$1048576,MATCH('Single School Forecast'!$M181,'Standard Inputs - SB 6362'!$D$12:$D$1048576,0))*INDEX('Standard Inputs - SB 6362'!H$12:H$1048576,MATCH('Single School Forecast'!$N181,'Standard Inputs - SB 6362'!$D$12:$D$1048576,0)) -> 0 | U181: =(SUMIF($P$218:$P$326,$L181,U$218:U$326))*INDEX('Standard Inputs - SB 6362'!I$12:I$1048576,MATCH('Single School Forecast'!$M181,'Standard Inputs - SB 6362'!$D$12:$D$1048576,0))*INDEX('Standard Inputs - SB 6362'!I$12:I$1048576,MATCH('Single School Forecast'!$N181,'Standard Inputs - SB 6362'!$D$12:$D$1048576,0)) -> 0 | V181: =(SUMIF($P$218:$P$326,$L181,V$218:V$326))*INDEX('Standard Inputs - SB 6362'!J$12:J$1048576,MATCH('Single School Forecast'!$M181,'Standard Inputs - SB 6362'!$D$12:$D$1048576,0))*INDEX('Standard Inputs - SB 6362'!J$12:J$1048576,MATCH('Single School Forecast'!$N181,'Standard Inputs - SB 6362'!$D$12:$D$1048576,0)) -> 0 | W181: =(SUMIF($P$218:$P$326,$L181,W$218:W$326))*INDEX('Standard Inputs - SB 6362'!K$12:K$1048576,MATCH('Single School Forecast'!$M181,'Standard Inputs - SB 6362'!$D$12:$D$1048576,0))*INDEX('Standard Inputs - SB 6362'!K$12:K$1048576,MATCH('Single School Forecast'!$N181,'Standard Inputs - SB 6362'!$D$12:$D$1048576,0)) -> 0 | X181: =(SUMIF($P$218:$P$326,$L181,X$218:X$326))*INDEX('Standard Inputs - SB 6362'!L$12:L$1048576,MATCH('Single School Forecast'!$M181,'Standard Inputs - SB 6362'!$D$12:$D$1048576,0))*INDEX('Standard Inputs - SB 6362'!L$12:L$1048576,MATCH('Single School Forecast'!$N181,'Standard Inputs - SB 6362'!$D$12:$D$1048576,0)) -> 0 | Y181: =(SUMIF($P$218:$P$326,$L181,Y$218:Y$326))*INDEX('Standard Inputs - SB 6362'!M$12:M$1048576,MATCH('Single School Forecast'!$M181,'Standard Inputs - SB 6362'!$D$12:$D$1048576,0))*INDEX('Standard Inputs - SB 6362'!M$12:M$1048576,MATCH('Single School Forecast'!$N181,'Standard Inputs - SB 6362'!$D$12:$D$1048576,0)) -> 0 | Z181: =(SUMIF($P$218:$P$326,$L181,Z$218:Z$326))*INDEX('Standard Inputs - SB 6362'!N$12:N$1048576,MATCH('Single School Forecast'!$M181,'Standard Inputs - SB 6362'!$D$12:$D$1048576,0))*INDEX('Standard Inputs - SB 6362'!N$12:N$1048576,MATCH('Single School Forecast'!$N181,'Standard Inputs - SB 6362'!$D$12:$D$1048576,0)) -> 0 | AA181: =(SUMIF($P$218:$P$326,$L181,AA$218:AA$326))*INDEX('Standard Inputs - SB 6362'!O$12:O$1048576,MATCH('Single School Forecast'!$M181,'Standard Inputs - SB 6362'!$D$12:$D$1048576,0))*INDEX('Standard Inputs - SB 6362'!O$12:O$1048576,MATCH('Single School Forecast'!$N181,'Standard Inputs - SB 6362'!$D$12:$D$1048576,0)) -> 0 | AB181: =(SUMIF($P$218:$P$326,$L181,AB$218:AB$326))*INDEX('Standard Inputs - SB 6362'!P$12:P$1048576,MATCH('Single School Forecast'!$M181,'Standard Inputs - SB 6362'!$D$12:$D$1048576,0))*INDEX('Standard Inputs - SB 6362'!P$12:P$1048576,MATCH('Single School Forecast'!$N181,'Standard Inputs - SB 6362'!$D$12:$D$1048576,0)) -> 0
O183: SALARIES INCREASE | R183: SY 2017-18 | S183: SY 2018-19 | T183: SY 2019-20 | U183: SY 2020-21 | V183: SY 2021-22 | W183: SY 2022-23 | X183: SY 2023-24 | Y183: SY 2024-25 | Z183: SY 2025-26 | AA183: SY 2026-27 | AB183: SY 2027-28
K184: SS RN CIS | L184: School CIS Staff Units | M184: CIS Salary | N184: Staff Mix Factor | O184: School Generated CIS Salaries Increase | P184: CIS Salaries | R184: =(SUMIF($P$218:$P$326,$K184,R$218:R$326)+SUMIF($P$218:$P$326,$L184,R$218:R$326))*INDEX(R$118:R$121,MATCH($M184,$O$118:$O$121,0))*INDEX(R$118:R$121,MATCH($N184,$O$118:$O$121,0))-R201 -> 0 | S184: =(SUMIF($P$218:$P$326,$K184,S$218:S$326)+SUMIF($P$218:$P$326,$L184,S$218:S$326))*INDEX(S$118:S$121,MATCH($M184,$O$118:$O$121,0))-S201 -> 0 | T184: =(SUMIF($P$218:$P$326,$K184,T$218:T$326)+SUMIF($P$218:$P$326,$L184,T$218:T$326))*INDEX(T$118:T$121,MATCH($M184,$O$118:$O$121,0))-T201 ->  | U184: =(SUMIF($P$218:$P$326,$K184,U$218:U$326)+SUMIF($P$218:$P$326,$L184,U$218:U$326)+U290+U292)*INDEX(U$118:U$121,MATCH($M184,$O$118:$O$121,0))-U201 -> 0 | V184: 675510.7835 | W184: 27018.457 | X184: =(SUMIF($P$218:$P$326,$K184,X$218:X$326)+SUMIF($P$218:$P$326,$L184,X$218:X$326)+X290+X292)*INDEX(X$118:X$121,MATCH($M184,$O$118:$O$121,0))-X201 -> 20516.184 | Y184: 28064.51102 | Z184: 5397.700366 | AA184: 35934.40656 | AB184: =(SUMIF($P$218:$P$326,$K184,AB$218:AB$326)+SUMIF($P$218:$P$326,$L184,AB$218:AB$326)+AB290+AB292)*INDEX(AB$118:AB$121,MATCH($M184,$O$118:$O$121,0))-AB201 -> 0
L185: SS RN CAS | M185: School CAS Staff Units | N185: CAS Salary | O185: School Generated CAS Salaries increase | P185: CAS Salaries | R185: =(SUMIF($P$218:$P$326,$L185,R$218:R$326)+SUMIF($P$218:$P$326,$M185,R$218:R$326))*INDEX(R$118:R$121,MATCH($N185,$O$118:$O$121,0))-R202 -> 0 | S185: 0 | T185: 0 | U185: =(SUMIF($P$218:$P$326,$L185,U$218:U$326)+SUMIF($P$218:$P$326,$M185,U$218:U$326)+U289+U291)*INDEX(U$118:U$121,MATCH($N185,$O$118:$O$121,0))-U202 -> 0 | V185: 53877.28496 | W185: 1763.2524 | X185: =(SUMIF($P$218:$P$326,$L185,X$218:X$326)+SUMIF($P$218:$P$326,$M185,X$218:X$326)+X289+X291)*INDEX(X$118:X$121,MATCH($N185,$O$118:$O$121,0))-X202 -> 1331.5335 | Y185: 1804.92507 | Z185: -2107.512486 | AA185: 0 | AB185: =(SUMIF($P$218:$P$326,$L185,AB$218:AB$326)+SUMIF($P$218:$P$326,$M185,AB$218:AB$326)+AB289+AB291)*INDEX(AB$118:AB$121,MATCH($N185,$O$118:$O$121,0))-AB202 -> 0
L186: SS RN CLS | M186: School CLS Staff Units | N186: CLS Salary | O186: School Generated CLS Salaries Increase | P186: CLS Salaries | R186: 0 | S186: 0 | T186: 0 | U186: 0 | V186: 144672.503 | W186: 5064.009034 | X186: 3737.962293 | Y186: 4726.370617 | Z186: -5147.248343 | AA186: 0 | AB186: =(SUMIF($P$218:$P$326,$L186,AB$218:AB$326)+SUMIF($P$218:$P$326,$M186,AB$218:AB$326))*INDEX(AB$118:AB$121,MATCH($N186,$O$118:$O$121,0))-AB203 -> 0
M187: Facilities, Maint, & Grounds | N187: CLS Salary | O187: District Generated Facilities Salaries Increase | P187: CLS Salaries | R187: =SUMIF($P$218:$P$326,$M187,R$218:R$326)*INDEX(R$118:R$121,MATCH($N187,$O$118:$O$121,0))-R204 -> 0 | S187: 0 | T187: 0 | U187: 0 | V187: 8947.897242 | W187: 493.136 | X187: 372.303176 | Y187: 504.9608284 | Z187: -321.338709 | AA187: 0 | AB187: =SUMIF($P$218:$P$326,$M187,AB$218:AB$326)*INDEX(AB$118:AB$121,MATCH($N187,$O$118:$O$121,0))-AB204 -> 0
M188: Warehouse, Laborer, & Mechanics | N188: CLS Salary | O188: District Generated Warehouse Salaries Increase | P188: CLS Salaries | R188: 0 | S188: 0 | T188: 0 | U188: 0 | V188: 1638.555921 | W188: 90.304 | X188: 68.176864 | Y188: 92.46938501 | Z188: -58.8441541 | AA188: 0 | AB188: =SUMIF($P$218:$P$326,$M188,AB$218:AB$326)*INDEX(AB$118:AB$121,MATCH($N188,$O$118:$O$121,0))-AB205 -> 0
M189: Technology | N189: CLS Salary | O189: District Generated Technology Salaries Increase | P189: CLS Salaries | R189: 0 | S189: 0 | T189: 0 | U189: 0 | V189: 3099.437103 | W189: 170.816 | X189: 128.961056 | Y189: 174.9119692 | Z189: -111.3076168 | AA189: 0 | AB189: =SUMIF($P$218:$P$326,$M189,AB$218:AB$326)*INDEX(AB$118:AB$121,MATCH($N189,$O$118:$O$121,0))-AB206 -> 0
M190: Central Admin CLS Staff Units | N190: CLS Salary | O190: Central Admin CLS Salaries Increase | P190: CLS Salaries | R190: 0 | S190: 0 | U190: 0 | V190: 12905.86757 | W190: 903.515778 | X190: 687.5827294 | Y190: 949.3318287 | Z190: -590.0887203 | AA190: 0 | AB190: =SUMIF($P$218:$P$326,$M190,AB$218:AB$326)*INDEX(AB$118:AB$121,MATCH($N190,$O$118:$O$121,0))-AB207 -> 0
M191: Central Admin CAS Staff Units | N191: CAS Salary | O191: Central Admin CAS Salaries Increase | P191: CAS Salaries | R191: 0 | S191: 0 | U191: 0 | V191: 9126.04545 | W191: 638.8792006 | X191: 486.3873351 | Y191: 671.3030436 | Z191: -417.2706971 | AA191: 0 | AB191: =SUMIF($P$218:$P$326,$M191,AB$218:AB$326)*INDEX(AB$118:AB$121,MATCH($N191,$O$118:$O$121,0))-AB208 -> 0
L192: LAP Staff Units | M192: CIS Salary | N192: Staff Mix Factor | O192: LAP Salaries Increase | P192: LAP Salaries | R192: =SUMIF($P$218:$P$326,$L192,R$218:R$326)*INDEX(R$118:R$121,MATCH($M192,$O$118:$O$121,0))*INDEX(R$118:R$121,MATCH($N192,$O$118:$O$121,0))-R209 -> 0 | S192: =SUMIF($P$218:$P$326,$L192,S$218:S$326)*INDEX(S$118:S$121,MATCH($M192,$O$118:$O$121,0))-S209 -> 0 | T192: 0 | U192: 0 | V192: 12148.81569 | W192: 551.017502 | X192: 372.476559 | Y192: 996.6635934 | Z192: 109.0940245 | AA192: 956.9395988 | AB192: =SUMIF($P$218:$P$326,$L192,AB$218:AB$326)*INDEX(AB$118:AB$121,MATCH($M192,$O$118:$O$121,0))-AB209 -> 0
L193: TBIP Staff Units | M193: CIS Salary | N193: Staff Mix Factor | O193: TBIP Salaries increase | P193: TBIP Salaries | R193: =SUMIF($P$218:$P$326,$L193,R$218:R$326)*INDEX(R$118:R$121,MATCH($M193,$O$118:$O$121,0))*INDEX(R$118:R$121,MATCH($N193,$O$118:$O$121,0))-R210 -> 0 | S193: 0 | T193: 0 | U193: 0 | V193: 0 | W193: 0 | X193: 30.40309899 | Y193: 51.66532137 | Z193: 6.29481131 | AA193: 44.76290159 | AB193: =SUMIF($P$218:$P$326,$L193,AB$218:AB$326)*INDEX(AB$118:AB$121,MATCH($M193,$O$118:$O$121,0))-AB210 -> 0
L194: HiCap Staff Units | M194: CIS Salary | N194: Staff Mix Factor | O194: HiCap Salaries Increase | P194: HiCAP Salaries | R194: =SUMIF($P$218:$P$326,$L194,R$218:R$326)*INDEX(R$118:R$121,MATCH($M194,$O$118:$O$121,0))*INDEX(R$118:R$121,MATCH($N194,$O$118:$O$121,0))-R211 -> 0 | S194: 0 | T194: 0 | U194: 0 | V194: 1980.497507 | W194: 109.1302533 | X194: 82.42267488 | Y194: 111.7662519 | Z194: 13.59653388 | AA194: 96.95564391 | AB194: =SUMIF($P$218:$P$326,$L194,AB$218:AB$326)*INDEX(AB$118:AB$121,MATCH($M194,$O$118:$O$121,0))-AB211 -> 0
L195: LAP High Pov Staff Units | M195: CIS Salary | N195: Staff Mix Factor | O195: LAP High Poverty Salaries Increase | P195: LAP High Pov Salaries | R195: =SUMIF($P$218:$P$326,$L195,R$218:R$326)*INDEX(R$118:R$121,MATCH($M195,$O$118:$O$121,0))*INDEX(R$118:R$121,MATCH($N195,$O$118:$O$121,0))-R212 -> 0 | S195: 0 | T195: 0 | U195: 0 | V195: 0 | W195: 0 | X195: 0 | Y195: 0 | Z195: 0 | AA195: 0 | AB195: =SUMIF($P$218:$P$326,$L195,AB$218:AB$326)*INDEX(AB$118:AB$121,MATCH($M195,$O$118:$O$121,0))-AB212 -> 0
L196: CIS K-12 Average SpEd | M196: CIS Salary | N196: Staff Mix Factor | O196: CIS Salary SpEd Increase | P196: CIS SpEd Salary | R196: =SUMIF($P$218:$P$326,$L196,R$218:R$326)*INDEX(R$118:R$121,MATCH($M196,$O$118:$O$121,0))*INDEX(R$118:R$121,MATCH($N196,$O$118:$O$121,0))-R213 -> 0 | S196: 0 | T196: 0 | U196: 0 | V196: 3348.890523 | W196: 246.9138956 | X196: 180.1729965 | Y196: 198.1438821 | Z196: 16.96300056 | AA196: 105.1209816 | AB196: =SUMIF($P$218:$P$326,$L196,AB$218:AB$326)*INDEX(AB$118:AB$121,MATCH($M196,$O$118:$O$121,0))-AB213 -> 0
M197: CAS K-12 Average SpEd | N197: CAS Salary | O197: CAS Salary SpEd Increase | P197: CAS SpEd Salary | R197: =SUMIF($P$218:$P$326,$M197,R$218:R$326)*INDEX(R$118:R$121,MATCH($N197,$O$118:$O$121,0))-R214 -> 0 | S197: 0 | T197: 0 | U197: 0 | V197: 412.37781 | W197: 23.88573852 | X197: 17.08194791 | Y197: 18.6926477 | Z197: -8.571870025 | AA197: 0 | AB197: =SUMIF($P$218:$P$326,$M197,AB$218:AB$326)*INDEX(AB$118:AB$121,MATCH($N197,$O$118:$O$121,0))-AB214 -> 0
M198: CLS K-12 Average SpEd | N198: CLS Salary | O198: CLS Salary SpEd Increase | P198: CLS SpEd Salary | R198: 0 | S198: 0 | T198: 0 | U198: 0 | V198: 845.6463 | W198: 48.868064 | X198: 34.78797066 | Y198: 38.04520501 | Z198: -17.48165315 | AA198: 0 | AB198: =SUMIF($P$218:$P$326,$M198,AB$218:AB$326)*INDEX(AB$118:AB$121,MATCH($N198,$O$118:$O$121,0))-AB215 -> 0
O200: SALARIES MAINTENANCE | R200: SY 2017-18 | S200: SY 2018-19 | T200: SY 2019-20 | U200: SY 2020-21 | V200: SY 2021-22 | W200: SY 2022-23 | X200: SY 2023-24 | Y200: SY 2024-25 | Z200: SY 2025-26 | AA200: SY 2026-27 | AB200: SY 2027-28 | AC200: <<Note these salary totals pull of the previous years salary, thus staff mix factor for CIS is used in 17-18 and 18-19
K201: SS RN CIS | L201: School CIS Staff Units | M201: CIS Salary | N201: Staff Mix Factor | O201: School Generated CIS Salaries | P201: CIS Salaries | R201: =(SUMIF($P$218:$P$326,$K201,R$218:R$326)+SUMIF($P$218:$P$326,$L201,R$218:R$326))*INDEX(Q$118:Q$121,MATCH($M201,$O$118:$O$121,0))*INDEX(Q$118:Q$121,MATCH($N201,$O$118:$O$121,0)) -> 0 | S201: =(SUMIF($P$218:$P$326,$K201,S$218:S$326)+SUMIF($P$218:$P$326,$L201,S$218:S$326))*INDEX(R$118:R$121,MATCH($M201,$O$118:$O$121,0))*INDEX(R$118:R$121,MATCH($N201,$O$118:$O$121,0)) -> 0 | T201: =(SUMIF($P$218:$P$326,$K201,T$218:T$326)+SUMIF($P$218:$P$326,$L201,T$218:T$326))*INDEX(S$118:S$121,MATCH($M201,$O$118:$O$121,0)) ->  | U201: =(SUMIF($P$218:$P$326,$K201,U$218:U$326)+SUMIF($P$218:$P$326,$L201,U$218:U$326)+U290+U292)*INDEX(T$118:T$121,MATCH($M201,$O$118:$O$121,0)) -> 0 | V201: 0 | W201: 491313.999 | X201: =(SUMIF($P$218:$P$326,$K201,X$218:X$326)+SUMIF($P$218:$P$326,$L201,X$218:X$326)+X290+X292)*INDEX(W$118:W$121,MATCH($M201,$O$118:$O$121,0)) -> 554478.272 | Y201: 719602.8466 | Z201: 1629820.017 | AA201: 1711162.217 | AB201: 1862077.057
L202: SS RN CAS | M202: School CAS Staff Units | N202: CAS Salary | O202: School Generated CAS Salaries | P202: CAS Salaries | R202: =(SUMIF($P$218:$P$326,$L202,R$218:R$326)+SUMIF($P$218:$P$326,$M202,R$218:R$326))*INDEX(Q$118:Q$121,MATCH($N202,$O$118:$O$121,0)) -> 0 | S202: 0 | T202: 0 | U202: =(SUMIF($P$218:$P$326,$L202,U$218:U$326)+SUMIF($P$218:$P$326,$M202,U$218:U$326)+U289+U291)*INDEX(T$118:T$121,MATCH($N202,$O$118:$O$121,0)) -> 0 | V202: 0 | W202: 32059.0491 | X202: 35981.4015 | Y202: 46280.13 | Z202: 121650.3041 | AA202: 126032.7995 | AB202: 136121.0014
L203: SS RN CLS | M203: School CLS Staff Units | N203: CLS Salary | O203: School Generated CLS Salaries | P203: CLS Salaries | R203: 0 | S203: 0 | T203: 0 | U203: 0 | V203: 0 | W203: 92070.01425 | X203: 101046.9983 | Y203: 121188.9902 | Z203: 297110.6127 | AA203: 303371.6043 | AB203: 322594.8706
M204: Facilities, Maint, & Grounds | N204: CLS Salary | O204: District Generated Facilities Salaries | P204: CLS Salaries | R204: =SUMIF($P$218:$P$326,$M204,R$218:R$326)*INDEX(Q$118:Q$121,MATCH($N204,$O$118:$O$121,0)) -> 0 | S204: 0 | T204: 0 | U204: 0 | V204: 0 | W204: 8965.8289 | X204: 10064.33865 | Y204: 12947.71355 | Z204: 18548.38437 | AA204: 20430.31491 | AB204: 22733.73277
M205: Warehouse, Laborer, & Mechanics | N205: CLS Salary | O205: District Generated Warehouse Salaries | P205: CLS Salaries | R205: 0 | S205: 0 | T205: 0 | U205: 0 | V205: 0 | W205: 1641.8396 | X205: 1843.00079 | Y205: 2371.009872 | Z205: 3396.615339 | AA205: 3741.238032 | AB205: 4163.04428
M206: Technology | N206: CLS Salary | O206: District Generated Technology Salaries | P206: CLS Salaries | R206: 0 | S206: 0 | T206: 0 | U206: 0 | V206: 0 | W206: 3105.6484 | X206: 3486.158122 | Y206: 4484.922288 | Z206: 6424.922991 | AA206: 7076.79965 | AB206: 7874.674121
M207: Central Admin CLS Staff Units | N207: CLS Salary | O207: Central Admin CLS Salaries | P207: CLS Salaries | R207: 0 | S207: 0 | U207: 0 | V207: 0 | W207: 16427.04624 | X207: 18587.1781 | Y207: 24341.84176 | Z207: 34061.23224 | AA207: 36761.60757 | AB207: 40343.96385
M208: Central Admin CAS Staff Units | N208: CAS Salary | O208: Central Admin CAS Salaries | P208: CAS Salaries | R208: 0 | S208: 0 | U208: 0 | V208: 0 | W208: 11615.95451 | X208: 13143.41546 | Y208: 17212.89855 | Z208: 24085.7919 | AA208: 25995.31408 | AB208: 28528.51333
L209: LAP Staff Units | M209: CIS Salary | N209: Staff Mix Factor | O209: LAP Salaries | P209: LAP Salaries | R209: =SUMIF($P$218:$P$326,$L209,R$218:R$326)*INDEX(Q$118:Q$121,MATCH($M209,$O$118:$O$121,0))*INDEX(Q$118:Q$121,MATCH($N209,$O$118:$O$121,0)) -> 0 | S209: 0 | T209: =SUMIF($P$218:$P$326,$L209,T$218:T$326)*INDEX(S$118:S$121,MATCH($M209,$O$118:$O$121,0)) -> 0 | U209: 0 | V209: 0 | W209: 10019.91388 | X209: 10066.69461 | Y209: 25555.47675 | Z209: 32940.62524 | AA209: 45568.55232 | AB209: 52149.45248
L210: TBIP Staff Units | M210: CIS Salary | N210: Staff Mix Factor | O210: TBIP Salaries | P210: TBIP Salaries | R210: 0 | S210: 0 | T210: 0 | U210: 0 | V210: 0 | W210: 0 | X210: 821.6858354 | Y210: 1324.75183 | Z210: 1900.700073 | AA210: 2131.566742 | AB210: 2407.282864
L211: HiCap Staff Units | M211: CIS Salary | N211: Staff Mix Factor | O211: HiCap Salaries | P211: HiCAP Salaries | R211: 0 | S211: 0 | T211: 0 | U211: 0 | V211: 0 | W211: 1984.46644 | X211: 2227.586882 | Y211: 2865.80133 | Z211: 4105.43409 | AA211: 4616.935424 | AB211: 5245.359179
L212: LAP High Pov Staff Units | M212: CIS Salary | N212: Staff Mix Factor | O212: LAP High Poverty Salaries | P212: LAP High Pov Salaries | R212: 0 | S212: 0 | T212: 0 | U212: 0 | V212: 0 | W212: 0 | X212: 0 | Y212: 0 | Z212: 0 | AA212: 0 | AB212: 0
L213: CIS K-12 Average SpEd | M213: CIS Salary | N213: Staff Mix Factor | O213: CIS Salary SpEd | P213: CIS SpEd Salary | R213: 0 | S213: 0 | T213: 0 | U213: 0 | V213: 0 | W213: 4489.977109 | X213: 4869.424634 | Y213: 5080.612362 | Z213: 5121.928968 | AA213: 5005.76103 | AB213: 5018.863955
M214: CAS K-12 Average SpEd | N214: CAS Salary | O214: CAS Salary SpEd | P214: CAS SpEd Salary | R214: =SUMIF($P$218:$P$326,$M214,R$218:R$326)*INDEX(Q$118:Q$121,MATCH($N214,$O$118:$O$121,0)) -> 0 | S214: 0 | T214: 0 | U214: 0 | V214: 0 | W214: 434.2849974 | X214: 461.5974184 | Y214: 479.2986591 | Z214: 494.7873864 | AA214: 483.5602544 | AB214: 481.7759866
M215: CLS K-12 Average SpEd | N215: CLS Salary | O215: CLS Salary SpEd | P215: CLS SpEd Salary | R215: 0 | S215: 0 | T215: 0 | U215: 0 | V215: 0 | W215: 888.4824886 | X215: 940.4107736 | Y215: 975.5180771 | Z215: 1009.079868 | AA215: 987.9892564 | AB215: 985.6618301
O217: STAFF UNITS | Q217: SY 2016-17 | R217: SY 2017-18 | S217: SY 2018-19 | T217: SY 2019-20 | U217: SY 2020-21 | V217: SY 2021-22 | W217: SY 2022-23 | X217: SY 2023-24 | Y217: SY 2024-25 | Z217: SY 2025-26 | AA217: SY 2026-27 | AB217: SY 2027-28
L218: Total School Generated Staff Units | M218: District CLS Staff Units | N218: Central Admin Percent | O218: Central Administration Total | P218: Central Administration Total | R218: =(SUMIF($P$221:$P$326,$L218,R$221:R$326)+SUMIF($P$221:$P$326,$M218,R$221:R$326))*INDEX('Standard Inputs - SB 6362'!F$12:F$1048576,MATCH($N218,'Standard Inputs - SB 6362'!$D$12:$D$1048576,0)) -> 0 | S218: =(SUMIF($P$221:$P$326,$L218,S$221:S$326)+SUMIF($P$221:$P$326,$M218,S$221:S$326))*INDEX('Standard Inputs - SB 6362'!G$12:G$1048576,MATCH($N218,'Standard Inputs - SB 6362'!$D$12:$D$1048576,0)) -> 0 | T218: =(SUMIF($P$221:$P$326,$L218,T$221:T$326)+SUMIF($P$221:$P$326,$M218,T$221:T$326))*INDEX('Standard Inputs - SB 6362'!H$12:H$1048576,MATCH($N218,'Standard Inputs - SB 6362'!$D$12:$D$1048576,0)) ->  | U218: =(SUMIF($P$221:$P$326,$L218,U$221:U$326)+SUMIF($P$221:$P$326,$M218,U$221:U$326))*INDEX('Standard Inputs - SB 6362'!I$12:I$1048576,MATCH($N218,'Standard Inputs - SB 6362'!$D$12:$D$1048576,0)) -> 0 | V218: =(SUMIF($P$221:$P$326,$L218,V$221:V$326)+SUMIF($P$221:$P$326,$M218,V$221:V$326))*INDEX('Standard Inputs - SB 6362'!J$12:J$1048576,MATCH($N218,'Standard Inputs - SB 6362'!$D$12:$D$1048576,0)) -> 0.3501575062 | W218: =(SUMIF($P$221:$P$326,$L218,W$221:W$326)+SUMIF($P$221:$P$326,$M218,W$221:W$326))*INDEX('Standard Inputs - SB 6362'!K$12:K$1048576,MATCH($N218,'Standard Inputs - SB 6362'!$D$12:$D$1048576,0)) -> 0.4456929 | X218: =(SUMIF($P$221:$P$326,$L218,X$221:X$326)+SUMIF($P$221:$P$326,$M218,X$221:X$326))*INDEX('Standard Inputs - SB 6362'!L$12:L$1048576,MATCH($N218,'Standard Inputs - SB 6362'!$D$12:$D$1048576,0)) -> 0.4780095016 | Y218: =(SUMIF($P$221:$P$326,$L218,Y$221:Y$326)+SUMIF($P$221:$P$326,$M218,Y$221:Y$326))*INDEX('Standard Inputs - SB 6362'!M$12:M$1048576,MATCH($N218,'Standard Inputs - SB 6362'!$D$12:$D$1048576,0)) -> 0.603671908 | Z218: =(SUMIF($P$221:$P$326,$L218,Z$221:Z$326)+SUMIF($P$221:$P$326,$M218,Z$221:Z$326))*INDEX('Standard Inputs - SB 6362'!N$12:N$1048576,MATCH($N218,'Standard Inputs - SB 6362'!$D$12:$D$1048576,0)) -> 0.813003358 | AA218: =(SUMIF($P$221:$P$326,$L218,AA$221:AA$326)+SUMIF($P$221:$P$326,$M218,AA$221:AA$326))*INDEX('Standard Inputs - SB 6362'!O$12:O$1048576,MATCH($N218,'Standard Inputs - SB 6362'!$D$12:$D$1048576,0)) -> 0.892927676 | AB218: =(SUMIF($P$221:$P$326,$L218,AB$221:AB$326)+SUMIF($P$221:$P$326,$M218,AB$221:AB$326))*INDEX('Standard Inputs - SB 6362'!P$12:P$1048576,MATCH($N218,'Standard Inputs - SB 6362'!$D$12:$D$1048576,0)) -> 0.979941963
... 108 more rows

Sheet Standard Inputs - SB 6362 (hidden)
C2: Value provided in legisation or calculated by OSPI according to legislation
C3: Value assumed and set at the same level as latest year of available data (some available data is a projection, some is known)
C4: Value is a projection by OSPI, based on legislation
C5: Input not applicable
C6: Value Missing from sources
B7: Note: SY 2017-18 and 18-19 values are provided in HB2242, values for SY19-20 thru SY21-22 are set to equal SY18-19 unless otherwise provided by OPSI or the legislature
E9: Current | F9: 17-19 K-12 Bill | G9: 17-19 K-12 Bill | H9: Assumed | I9: As of 4/2020 | J9: Assumed | K9: Assumed | L9: Assumed | M9: Assumed | N9: Assumed | O9: Assumed | P9: Assumed
E10: 2016 | F10: =E10+1 -> 2017 | G10: =F10+1 -> 2018 | H10: 2019 | I10: 2020 | J10: 2021 | K10: 2022 | L10: 2023 | M10: 2024 | N10: 2025 | O10: 2026 | P10: 2027 | R10: JIM CHECKED THIS
B11: Unit Type | C11: Funding Category | D11: Input Name | E11: SY 2016-17 | F11: SY 2017-18 | G11: SY 2018-19 | H11: SY 2019-20 | I11: SY 2020-21 | J11: SY 2021-22 | K11: SY 2022-23 | L11: SY 2023-24 | M11: SY 2024-25 | N11: SY 2025-26 | O11: SY 2026-27 | P11: SY 2027-28 | Q11: Source | T11: Notes
B12: Weeks | C12: Categorical | D12: LAP Instruct Wks/Year | E12: 36 | F12: 36 | G12: 36 | H12: =$G12 -> 36 | I12: 36 | J12: 36 | K12: 36 | L12: 36 | M12: 36 | N12: 36 | O12: 36 | P12: 36 | Q12: John Jenft sheet - http://www.k12.wa.us/SAFS/17budprp.asp | R12: WHERE IS THIS?
B13: Students per class | C13: Categorical | D13: LAP Class Size | E13: 15 | F13: 15 | G13: 15 | H13: 15 | I13: 15 | J13: 15 | K13: 15 | L13: 15 | M13: 15 | N13: 15 | O13: 15 | P13: 15 | Q13: John Jenft sheet - http://www.k12.wa.us/SAFS/17budprp.asp | R13: NO CHANGE
B14: Hours | C14: Categorical | D14: LAP Instruct Hr/Year | E14: 900 | F14: 900 | G14: 900 | H14: 900 | I14: 900 | J14: 900 | K14: 900 | L14: 900 | M14: 900 | N14: 900 | O14: 900 | P14: 900 | Q14: John Jenft sheet - http://www.k12.wa.us/SAFS/17budprp.asp | R14: WHERE IS THIS?
B15: Weeks | C15: Categorical | D15: LAP High Pov Instruct Wks/Year | E15: 36 | F15: 36 | G15: 36 | H15: 36 | I15: 36 | J15: 36 | K15: 36 | L15: 36 | M15: 36 | N15: 36 | O15: 36 | P15: 36 | Q15: John Jenft sheet - http://www.k12.wa.us/SAFS/17budprp.asp | R15: WHERE IS THIS?
B16: Students per class | C16: Categorical | D16: LAP High Pov Class Size | E16: 15 | F16: 15 | G16: 15 | H16: 15 | I16: 15 | J16: 15 | K16: 15 | L16: 15 | M16: 15 | N16: 15 | O16: 15 | P16: 15 | Q16: John Jenft sheet - http://www.k12.wa.us/SAFS/17budprp.asp | R16: WHERE IS THIS?
B17: Hours | C17: Categorical | D17: LAP High Pov Instruct Hr/Year | E17: 900 | F17: 900 | G17: 900 | H17: 900 | I17: 900 | J17: 900 | K17: 900 | L17: 900 | M17: 900 | N17: 900 | O17: 900 | P17: 900 | Q17: John Jenft sheet - http://www.k12.wa.us/SAFS/17budprp.asp | R17: WHERE IS THIS?
B18: Weeks | C18: Categorical | D18: TBIP Instruct Wks/Year | E18: 36 | F18: 36 | G18: 36 | H18: 36 | I18: 36 | J18: 36 | K18: 36 | L18: 36 | M18: 36 | N18: 36 | O18: 36 | P18: 36 | Q18: John Jenft sheet - http://www.k12.wa.us/SAFS/17budprp.asp | R18: WHERE IS THIS?
B19: Students per class | C19: Categorical | D19: TBIP Class Size | E19: 15 | F19: 15 | G19: 15 | H19: 15 | I19: 15 | J19: 15 | K19: 15 | L19: 15 | M19: 15 | N19: 15 | O19: 15 | P19: 15 | Q19: John Jenft sheet - http://www.k12.wa.us/SAFS/17budprp.asp | R19: NO CHANGE
B20: Hours | C20: Categorical | D20: TBIP Instruct Hr/Year | E20: 900 | F20: 900 | G20: 900 | H20: 900 | I20: 900 | J20: 900 | K20: 900 | L20: 900 | M20: 900 | N20: 900 | O20: 900 | P20: 900 | Q20: John Jenft sheet - http://www.k12.wa.us/SAFS/17budprp.asp | R20: WHERE IS THIS?
B21: Weeks | C21: Categorical | D21: HiCap Instruct Wks/Year | E21: 36 | F21: 36 | G21: 36 | H21: 36 | I21: 36 | J21: 36 | K21: 36 | L21: 36 | M21: 36 | N21: 36 | O21: 36 | P21: 36 | Q21: John Jenft sheet - http://www.k12.wa.us/SAFS/17budprp.asp | R21: WHERE IS THIS?
B22: Students per class | C22: Categorical | D22: HiCap Class Size | E22: 15 | F22: 15 | G22: 15 | H22: 15 | I22: 15 | J22: 15 | K22: 15 | L22: 15 | M22: 15 | N22: 15 | O22: 15 | P22: 15 | Q22: John Jenft sheet - http://www.k12.wa.us/SAFS/17budprp.asp | R22: NO CHANGE
B23: Hours | C23: Categorical | D23: HiCap Instruct Hr/Year | E23: 900 | F23: 900 | G23: 900 | H23: 900 | I23: 900 | J23: 900 | K23: 900 | L23: 900 | M23: 900 | N23: 900 | O23: 900 | P23: 900 | Q23: John Jenft sheet - http://www.k12.wa.us/SAFS/17budprp.asp | R23: WHERE IS THIS?
B24: Weeks | C24: Categorical | D24: TBIP Exited Instruct Wks/Year | E24: 36 | F24: 36 | G24: 36 | H24: 36 | I24: 36 | J24: 36 | K24: 36 | L24: 36 | M24: 36 | N24: 36 | O24: 36 | P24: 36 | Q24: John Jenft sheet - http://www.k12.wa.us/SAFS/17budprp.asp | R24: WHERE IS THIS?
B25: Students per class | C25: Categorical | D25: TBIP Exited Class Size | E25: 15 | F25: 15 | G25: 15 | H25: 15 | I25: 15 | J25: 15 | K25: 15 | L25: 15 | M25: 15 | N25: 15 | O25: 15 | P25: 15 | Q25: John Jenft sheet - http://www.k12.wa.us/SAFS/17budprp.asp | R25: WHERE IS THIS?
B26: Hours | C26: Categorical | D26: TBIP Exited Instruct Hr/Year | E26: 900 | F26: 900 | G26: 900 | H26: 900 | I26: 900 | J26: 900 | K26: 900 | L26: 900 | M26: 900 | N26: 900 | O26: 900 | P26: 900 | Q26: John Jenft sheet - http://www.k12.wa.us/SAFS/17budprp.asp | R26: WHERE IS THIS?
B27: Students per class | C27: Special Education | D27: Poverty Class Size 2-3 | E27: 24.1 | F27: 24.1 | G27: 24.1 | H27: 24.1 | I27: 24.1 | J27: 24.1 | K27: 24.1 | L27: 24.1 | M27: 24.1 | N27: 24.1 | O27: 24.1 | P27: 24.1 | Q27: OSPI Apportionment Reports / F-203 | R27: WHERE IS THIS? | S27: Does the value stay the same in 17-18 thru, 20-21
B28: % | C28: General Entitlement | D28: Central Admin Percent | E28: 0.053 | F28: 0.053 | G28: 0.053 | H28: =$G28 -> 0.053 | I28: 0.053 | J28: 0.053 | K28: 0.053 | L28: 0.053 | M28: 0.053 | N28: 0.053 | O28: 0.053 | P28: 0.053 | Q28: OPSI Apportionment reports | R28: WHERE IS THIS? | S28: Do all districts have the same values?
B29: % | C29: Special Education / SS RN | D29: Pupil K-3 CIS | E29: 0.057555 | F29: 0.071169 | G29: 0.07117 | H29: 0.07117 | I29: 0.07117 | J29: 0.071169 | K29: 0.07117 | L29: 0.07345 | M29: 0.07345 | N29: 0.07345 | O29: 0.07345 | P29: 0.07345 | Q29: All values provided by Melissa Jarmon, Apportionment Program Supervisor, OSPI | R29: Need Haid | T29: Pupil K-3 CIS value assumes a 17 student class size in school years 18-19 and 20-21
B30: % | C30: Special Education / SS RN | D30: Pupil 4 CIS | E30: 0.046006 | F30: 0.046006 | G30: 0.04601 | H30: 0.04601 | I30: 0.04601 | J30: 0.046006 | K30: 0.04601 | L30: 0.04828 | M30: 0.04828 | N30: 0.04828 | O30: 0.04828 | P30: 0.04828 | Q30: All values provided by Melissa Jarmon, Apportionment Program Supervisor, OSPI | R30: Need Haid
B31: % | C31: Special Education / SS RN | D31: Pupil 5-6 CIS | E31: 0.046006 | F31: 0.046006 | G31: 0.04601 | H31: 0.04601 | I31: 0.04601 | J31: 0.046006 | K31: 0.04601 | L31: 0.04828 | M31: 0.04828 | N31: 0.04828 | O31: 0.04828 | P31: 0.04828 | Q31: All values provided by Melissa Jarmon, Apportionment Program Supervisor, OSPI | R31: Need Haid | S31: Do the values stay the same in the out years?
B32: % | C32: Special Education / SS RN | D32: Pupil 7-8 CIS | E32: 0.046235 | F32: 0.046235 | G32: 0.04623 | H32: 0.04623 | I32: 0.04623 | J32: 0.046235 | K32: 0.04623 | L32: 0.04844 | M32: 0.04844 | N32: 0.04844 | O32: 0.04844 | P32: 0.04844 | Q32: All values provided by Melissa Jarmon, Apportionment Program Supervisor, OSPI | R32: Need Haid | S32: Do the values stay the same in the out years?
B33: % | C33: Special Education / SS RN | D33: Pupil 9-12 CIS | E33: 0.048579 | F33: 0.048579 | G33: 0.04858 | H33: 0.04858 | I33: 0.04858 | J33: 0.048579 | K33: 0.04858 | L33: 0.05013 | M33: 0.05013 | N33: 0.05013 | O33: 0.05013 | P33: 0.05013 | Q33: All values provided by Melissa Jarmon, Apportionment Program Supervisor, OSPI | R33: Need Haid | S33: Do the values stay the same in the out years?
B34: % | C34: Special Education / SS RN | D34: Pupil K-3 CAS | E34: 0.004151 | F34: 0.004334 | G34: 0.004334 | H34: 0.004334 | I34: 0.004334 | J34: 0.004334 | K34: 0.004334 | L34: 0.004365 | M34: 0.004365 | N34: 0.004365 | O34: 0.004365 | P34: 0.004365 | Q34: All values provided by Melissa Jarmon, Apportionment Program Supervisor, OSPI | R34: Need Haid | S34: Do the values stay the same in the out years? | T34: Pupil K-3 CIS value assumes a 17 student class size in school years 18-19 and 20-21
B35: % | C35: Special Education / SS RN | D35: Pupil 4 CAS | E35: 0.003995 | F35: 0.003995 | G35: 0.00399 | H35: 0.00399 | I35: 0.00399 | J35: 0.00399 | K35: 0.003995 | L35: 0.00402 | M35: 0.00402 | N35: 0.00402 | O35: 0.00402 | P35: 0.00402 | Q35: All values provided by Melissa Jarmon, Apportionment Program Supervisor, OSPI | R35: Need Haid | S35: Do the values stay the same in the out years?
B36: % | C36: Special Education / SS RN | D36: Pupil 5-6 CAS | E36: 0.003995 | F36: 0.003995 | G36: 0.00399 | H36: 0.00399 | I36: 0.00399 | J36: 0.00399 | K36: 0.00395 | L36: 0.00402 | M36: 0.00402 | N36: 0.00402 | O36: 0.00402 | P36: 0.00402 | Q36: All values provided by Melissa Jarmon, Apportionment Program Supervisor, OSPI | R36: Need Haid | S36: Do the values stay the same in the out years?
B37: % | C37: Special Education / SS RN | D37: Pupil 7-8 CAS | E37: 0.003994 | F37: 0.003994 | G37: 0.00399 | H37: 0.00399 | I37: 0.00399 | J37: 0.00399 | K37: 0.003994 | L37: 0.00402 | M37: 0.00402 | N37: 0.00402 | O37: 0.00402 | P37: 0.00402 | Q37: All values provided by Melissa Jarmon, Apportionment Program Supervisor, OSPI | R37: Need Haid | S37: Do the values stay the same in the out years?
B38: % | C38: Special Education / SS RN | D38: Pupil 9-12 CAS | E38: 0.004027 | F38: 0.004027 | G38: 0.00403 | H38: 0.004027 | I38: 0.00403 | J38: 0.00403 | K38: 0.004027 | L38: 0.00404 | M38: 0.00404 | N38: 0.00404 | O38: 0.00404 | P38: 0.00404 | Q38: All values provided by Melissa Jarmon, Apportionment Program Supervisor, OSPI | R38: Need Haid | S38: Do the values stay the same in the out years?
B39: % | C39: Special Education / SS RN | D39: Pupil K-3 CLS | E39: 0.017667 | F39: 0.018204 | G39: 0.018204 | H39: =$G39 -> 0.018204 | I39: 0.018204 | J39: 0.018204 | K39: 0.018205 | L39: 0.018294 | M39: 0.018294 | N39: 0.018294 | O39: 0.018294 | P39: 0.018294 | Q39: All values provided by Melissa Jarmon, Apportionment Program Supervisor, OSPI | R39: Need Haid | S39: Do the values stay the same in the out years? | T39: Pupil K-3 CIS value assumes a 17 student class size in school years 18-19 and 20-21
B40: % | C40: Special Education / SS RN | D40: Pupil 4 CLS | E40: 0.017211 | F40: 0.017211 | G40: 0.01721 | H40: 0.01721 | I40: 0.01721 | J40: 0.01721 | K40: 0.01721 | L40: 0.0173 | M40: 0.0173 | N40: 0.0173 | O40: 0.0173 | P40: 0.0173 | Q40: All values provided by Melissa Jarmon, Apportionment Program Supervisor, OSPI | R40: Need Haid | S40: Do the values stay the same in the out years?
B41: % | C41: Special Education / SS RN | D41: Pupil 5-6 CLS | E41: 0.017211 | F41: 0.017211 | G41: 0.01721 | H41: 0.01721 | I41: 0.01721 | J41: 0.01721 | K41: 0.01721 | L41: 0.0173 | M41: 0.0173 | N41: 0.0173 | O41: 0.0173 | P41: 0.0173 | Q41: All values provided by Melissa Jarmon, Apportionment Program Supervisor, OSPI | R41: Need Haid | S41: Do the values stay the same in the out years?
B42: % | C42: Special Education / SS RN | D42: Pupil 7-8 CLS | E42: 0.017006 | F42: 0.017006 | G42: 0.01701 | H42: 0.01701 | I42: 0.01701 | J42: 0.017006 | K42: 0.01701 | L42: 0.01709 | M42: 0.01709 | N42: 0.01709 | O42: 0.01709 | P42: 0.01709 | Q42: All values provided by Melissa Jarmon, Apportionment Program Supervisor, OSPI | R42: Need Haid | S42: Do the values stay the same in the out years?
B43: % | C43: Special Education / SS RN | D43: Pupil 9-12 CLS | E43: 0.0171 | F43: 0.017 | G43: 0.0171 | H43: 0.0171 | I43: 0.0171 | J43: 0.0171 | K43: 0.0171 | L43: 0.01716 | M43: 0.01716 | N43: 0.01716 | O43: 0.01716 | P43: 0.01716 | Q43: All values provided by Melissa Jarmon, Apportionment Program Supervisor, OSPI | R43: Need Haid | S43: Do the values stay the same in the out years?
B44: % | C44: Special Education / SS RN | D44: Teacher % | E44: 0.917 | F44: 0.917 | G44: 0.917 | H44: 0.917 | I44: 0.917 | J44: =$G44 -> 0.917 | K44: =$G44 -> 0.917 | L44: 0.917 | M44: 0.917 | N44: 0.917 | O44: 0.917 | P44: 0.917 | Q44: All values provided by Melissa Jarmon, Apportionment Program Supervisor, OSPI | R44: Need Haid | S44: Do the values stay the same in the out years? Is this value standard for
B45: $ | C45: Special Education | D45: 2004-05 Fed Funds Integation Rate per Student | E45: 130.47 | F45: 130.47 | G45: 130.47 | H45: 130.47 | I45: 130.47 | J45: =$G45 -> 130.47 | K45: 130.47 | L45: 129.25 | M45: 130.47 | N45: 130.47 | O45: 130.47 | P45: 130.47 | Q45: OSPI Apportionment Reports / F-203 | R45: I see old 04-05 value 129.47 in apportionment rept.
B46: % | C46: Special Education | D46: District Exp. -State Recovery Rate | E46: 0.1 | F46: 0.1 | G46: 0.1 | H46: 0.1 | I46: 0.1 | J46: =$G46 -> 0.1 | K46: 0.1 | L46: 0.1 | M46: 0.1 | N46: 0.1 | O46: 0.1 | P46: 0.1 | Q46: OSPI Apportionment Reports / F-203 | R46: WHERE IS THIS? | S46: Do the values stay the same in the out years? Is this value standard for
B47: Days | C47: General Entitlement | D47: Professional Learning Days | F47: 0 | G47: 1 | H47: 2 | I47: 3 | J47: =I47 -> 3 | K47: 3 | L47: 3 | M47: 3 | N47: 3 | O47: 3 | P47: 3 | Q47: HB 2242 | R47: NO CHANGE
B48: Hours | C48: Categorical | D48: LAP Hours / per Student | E48: 2.3975 | F48: 2.3975 | G48: 2.3975 | H48: =$G48 -> 2.3975 | I48: 2.3975 | J48: 2.3975 | K48: 2.3975 | L48: 2.3975 | M48: 2.3975 | N48: 2.3975 | O48: 2.3975 | P48: 2.3975 | Q48: John Jenft sheet - http://www.k12.wa.us/SAFS/17budprp.asp | R48: NO CHANGE | T48: Note: in the John Jenft sheet LAP hours is expressed as 3.4975 representing the sum of
B49: Hours | C49: Categorical | D49: LAP High Pov Hours / per Student | F49: 1.1 | G49: 1.1 | H49: 1.1 | I49: 1.1 | J49: 1.1 | K49: 1.1 | L49: 1.1 | M49: 1.1 | N49: 1.1 | O49: 1.1 | P49: 1.1 | Q49: John Jenft sheet - http://www.k12.wa.us/SAFS/17budprp.asp | R49: NO CHANGE
B50: Hours | C50: Categorical | D50: TBIP (K-6) Hours / per Student | E50: 4.778 | F50: 4.778 | G50: 4.778 | H50: 4.778 | I50: 4.778 | J50: 4.778 | K50: 4.778 | L50: 4.778 | M50: 4.778 | N50: 4.778 | O50: 4.778 | P50: 4.778 | Q50: John Jenft sheet - http://www.k12.wa.us/SAFS/17budprp.asp | R50: NO CHANGE
B51: Hours | C51: Categorical | D51: TBIP (7-8) Hours / per Student | E51: 4.778 | F51: 6.778 | G51: 6.778 | H51: 6.778 | I51: 6.778 | J51: 6.778 | K51: 6.778 | L51: 6.778 | M51: 6.778 | N51: 6.778 | O51: 6.778 | P51: 6.778 | Q51: John Jenft sheet - http://www.k12.wa.us/SAFS/17budprp.asp | R51: NO CHANGE
B52: Hours | C52: Categorical | D52: TBIP Exited Hours / per Student | E52: 3 | F52: 3 | G52: 3 | H52: 3 | I52: 3 | J52: 3 | K52: 3 | L52: 3 | M52: 3 | N52: 3 | O52: 3 | P52: 3 | Q52: John Jenft sheet - http://www.k12.wa.us/SAFS/17budprp.asp | R52: NO CHANGE
B53: Hours | C53: Categorical | D53: HiCap Hours / per Student | E53: 2.159 | F53: 2.159 | G53: 2.159 | H53: 2.159 | I53: 2.159 | J53: 2.159 | K53: 2.159 | L53: 2.159 | M53: 2.159 | N53: 2.159 | O53: 2.159 | P53: 2.159 | Q53: John Jenft sheet - http://www.k12.wa.us/SAFS/17budprp.asp | R53: NO CHANGE
B54: % | C54: Categorical | D54: HiCap students % | E54: 0.02314 | F54: 0.05 | G54: 0.05 | H54: 0.05 | I54: 0.05 | J54: 0.05 | K54: 0.05 | L54: 0.05 | M54: 0.05 | N54: 0.05 | O54: 0.05 | P54: 0.05 | Q54: John Jenft sheet - http://www.k12.wa.us/SAFS/17budprp.asp | R54: NO CHANGE
B55: % of student enrollment | C55: General Entitlement | D55: Special Education Funded Percent | E55: 0.127 | F55: 0.135 | G55: 0.135 | H55: 0.135 | I55: 0.135 | J55: 0.135 | K55: 0.135 | L55: 0.15 | M55: =+L55 -> 0.15 | N55: =+M55 -> 0.15 | O55: 0.15 | P55: 0.15 | Q55: John Jenft sheet - http://www.k12.wa.us/SAFS/17budprp.asp | R55: NO CHANGE
B56: $ | C56: Special Education | D56: Fed Funds Int Rate Per Student | E56: =130.47*24/145 -> 21.59503448 | F56: =130.47*24/145 -> 21.59503448 | G56: =130.47*24/145 -> 21.59503448 | H56: =$G56 -> 21.59503448 | I56: 24 | J56: =+I56 -> 24 | K56: 24 | L56: 21.39 | M56: 21.39 | N56: 21.39 | O56: 21.39 | P56: 21.39 | Q56: OSPI Apportionment Reports / F-203 | R56: Seems to be 21.43 in apport. rept.
B57: % | C57: Special Education | D57: K-12 SpEd Allocation - Tier 1 | E57: 0.9309 | F57: 0.9309 | G57: 0.9609 | H57: 0.995 | I57: 1.0075 | J57: 1.0075 | K57: 1.0075 | L57: 1.12 | M57: 1.12 | N57: 1.12 | O57: 1.12 | P57: 1.12 | Q57: John Jenft sheet / OSPI Apportionment Reports / F-203
B58: % | C58: Special Education | D58: K-12 SpEd Allocation - Tier 2 | I58: 0.995 | J58: 0.995 | K58: 0.995 | L58: 1.06 | M58: 1.06 | N58: 1.06 | O58: 1.06 | P58: 1.06
B59: % | C59: Special Education | D59: 3-PreK Sped Allocation | E59: 1.15 | F59: 1.15 | G59: 1.15 | H59: =$G59 -> 1.15 | I59: 1.15 | J59: 1.15 | K59: 1.15 | L59: 1.2 | M59: 1.15 | N59: 1.15 | O59: 1.15 | P59: 1.15 | Q59: John Jenft sheet / OSPI Apportionment Reports / F-203 | R59: Not sure what to put here. John Jenft has a note that says "Funding for payments to providers for ESIT program transferred to DCYF beginning 9/1/2020" on the Other Staff… tab
B60: Dollars | C60: General Entitlement | D60: Substitutes Rate | E60: 151.86 | F60: 151.86 | G60: 151.86 | H60: 151.86 | I60: 151.86 | J60: 151.86 | K60: 151.86 | L60: 151.86 | M60: 151.86 | N60: 151.86 | O60: 151.86 | P60: 151.86 | Q60: John Jenft sheet - http://www.k12.wa.us/SAFS/17budprp.asp | R60: NO CHANGE | S60: << does this rate grow by inflation? If so, assume would use the IPD starting in 2018-19
B61: Days | C61: General Entitlement | D61: Substitutes Days | E61: 4 | F61: 4 | G61: 4 | H61: =$G61 -> 4 | I61: 4 | J61: 4 | K61: 4 | L61: 4 | M61: 4 | N61: 4 | O61: 4 | P61: 4 | Q61: John Jenft sheet - http://www.k12.wa.us/SAFS/17budprp.asp | R61: NO CHANGE
B62: Staff units by school type | C62: General Entitlement | D62: Guidance Counselors Elem | E62: 0.493 | F62: 0.493 | G62: 0.493 | H62: 0.493 | I62: 0.493 | J62: 0.493 | K62: 0.66 | L62: 0.827 | M62: 0.993 | N62: =+M62 -> 0.993 | O62: 0.993 | P62: 0.993 | Q62: John Jenft sheet - http://www.k12.wa.us/SAFS/17budprp.asp | R62: NO CHANGE
B63: Staff units by school type | C63: General Entitlement | D63: Guidance Counselors High | E63: 2.539 | F63: 2.539 | G63: 2.539 | H63: 2.539 | I63: 2.539 | J63: 2.539 | K63: 2.706 | L63: 2.882 | M63: 3.039 | N63: 3.039 | O63: 3.039 | P63: 3.039 | Q63: John Jenft sheet - http://www.k12.wa.us/SAFS/17budprp.asp | R63: NO CHANGE
B64: Staff units by school type | C64: General Entitlement | D64: Guidance Counselors Middle | E64: 1.216 | F64: 1.216 | G64: 1.216 | H64: 1.216 | I64: 1.216 | J64: 1.216 | K64: 1.383 | L64: 1.55 | M64: 1.716 | N64: 1.716 | O64: 1.716 | P64: 1.716 | Q64: John Jenft sheet - http://www.k12.wa.us/SAFS/17budprp.asp | R64: NO CHANGE
B65: Staff units by school type | C65: General Entitlement | D65: Guidance Counselors Elem - HP | K65: 0.993 | L65: =+K65 -> 0.993 | M65: 0.993 | N65: 0.993 | O65: 0.993 | P65: 0.993
B66: Staff units by school type | C66: General Entitlement | D66: Guidance Counselors Middle - HP | K66: 1.716 | L66: 1.716 | M66: 1.716 | N66: 1.716 | O66: 1.716 | P66: 1.716
B67: Staff units by school type | C67: General Entitlement | D67: Guidance Counselors High - HP | K67: 3.039 | L67: 3.039 | M67: 3.039 | N67: 3.039 | O67: 3.039 | P67: 3.039
B68: Staff units by school type | C68: General Entitlement | D68: PIC Elem | E68: 0.0825 | F68: 0.0825 | G68: 0.0825 | H68: 0.0825 | I68: 0.0825 | J68: 0.0825 | K68: 0.0825 | L68: 0.0825 | M68: 0.0825 | N68: 0.0825 | O68: 0.0825 | P68: 0.0825 | Q68: John Jenft sheet - http://www.k12.wa.us/SAFS/17budprp.asp | R68: NO CHANGE
B69: Staff units by school type | C69: General Entitlement | D69: PIC High | E69: 0 | F69: 0 | G69: 0 | H69: 0 | I69: 0 | J69: 0 | K69: 0 | L69: 0 | M69: 0 | N69: 0 | O69: 0 | P69: 0 | Q69: John Jenft sheet - http://www.k12.wa.us/SAFS/17budprp.asp | R69: NO CHANGE
B70: Staff units by school type | C70: General Entitlement | D70: PIC Middle | E70: 0 | F70: 0 | G70: 0 | H70: 0 | I70: 0 | J70: 0 | K70: 0 | L70: 0 | M70: 0 | N70: 0 | O70: 0 | P70: 0 | Q70: John Jenft sheet - http://www.k12.wa.us/SAFS/17budprp.asp | R70: NO CHANGE
B71: Staff units by school type | C71: General Entitlement | D71: Principals Elem | E71: 1.253 | F71: 1.253 | G71: 1.253 | H71: 1.253 | I71: 1.253 | J71: 1.253 | K71: =+J71 -> 1.253 | L71: 1.253 | M71: 1.253 | N71: 1.253 | O71: 1.253 | P71: 1.253 | Q71: John Jenft sheet - http://www.k12.wa.us/SAFS/17budprp.asp | R71: NO CHANGE
B72: Staff units by school type | C72: General Entitlement | D72: Office Support Elem | E72: 2.012 | F72: 2.012 | G72: 2.012 | H72: 2.012 | I72: 2.012 | J72: 2.012 | K72: 2.012 | L72: 2.012 | M72: 2.012 | N72: 2.012 | O72: 2.012 | P72: 2.012 | Q72: John Jenft sheet - http://www.k12.wa.us/SAFS/17budprp.asp | R72: NO CHANGE
B73: Staff units by school type | C73: General Entitlement | D73: Custodians Elem | E73: 1.657 | F73: 1.657 | G73: 1.657 | H73: 1.657 | I73: 1.657 | J73: 1.657 | K73: 1.657 | L73: 1.657 | M73: 1.657 | N73: 1.657 | O73: 1.657 | P73: 1.657 | Q73: John Jenft sheet - http://www.k12.wa.us/SAFS/17budprp.asp | R73: NO CHANGE
B74: Staff units by school type | C74: General Entitlement | D74: Principals High | E74: 1.88 | F74: 1.88 | G74: 1.88 | H74: 1.88 | I74: 1.88 | J74: 1.88 | K74: 1.88 | L74: 1.88 | M74: 1.88 | N74: 1.88 | O74: 1.88 | P74: 1.88 | Q74: John Jenft sheet - http://www.k12.wa.us/SAFS/17budprp.asp | R74: NO CHANGE
B75: Staff units by school type | C75: General Entitlement | D75: Principals Middle | E75: 1.353 | F75: 1.353 | G75: 1.353 | H75: 1.353 | I75: 1.353 | J75: 1.353 | K75: 1.353 | L75: 1.353 | M75: 1.353 | N75: 1.353 | O75: 1.353 | P75: 1.353 | Q75: John Jenft sheet - http://www.k12.wa.us/SAFS/17budprp.asp | R75: NO CHANGE
B76: Students | C76: General Entitlement | D76: Proto Enroll District | E76: 1000 | F76: 1000 | G76: 1000 | H76: 1000 | I76: 1000 | J76: 1000 | K76: 1000 | L76: 1000 | M76: 1000 | N76: 1000 | O76: 1000 | P76: 1000 | Q76: OPSI Apportionment reports | R76: WHERE IS THIS?
B77: Number of students by school type | C77: General Entitlement | D77: Proto Enroll Elem | E77: 400 | F77: 400 | G77: 400 | H77: =$G77 -> 400 | I77: 400 | J77: 400 | K77: 400 | L77: 400 | M77: 400 | N77: 400 | O77: 400 | P77: 400 | Q77: John Jenft sheet - http://www.k12.wa.us/SAFS/17budprp.asp | R77: NO CHANGE
B78: Number of students by school type | C78: General Entitlement | D78: Proto Enroll High | E78: 600 | F78: 600 | G78: 600 | H78: 600 | I78: 600 | J78: 600 | K78: 600 | L78: 600 | M78: 600 | N78: 600 | O78: 600 | P78: 600 | Q78: John Jenft sheet - http://www.k12.wa.us/SAFS/17budprp.asp | R78: NO CHANGE
B79: Number of students by school type | C79: General Entitlement | D79: Proto Enroll Middle | E79: 432 | F79: 432 | G79: 432 | H79: 432 | I79: 432 | J79: 432 | K79: 432 | L79: 432 | M79: 432 | N79: 432 | O79: 432 | P79: 432 | Q79: John Jenft sheet - http://www.k12.wa.us/SAFS/17budprp.asp | R79: NO CHANGE
B80: Staff units by school type | C80: General Entitlement | D80: Psychologists Elem | E80: 0.017 | F80: 0.017 | G80: 0.017 | H80: 0.017 | I80: 0.017 | J80: 0.017 | K80: 0.046 | L80: 0.075 | M80: 0.104 | N80: 0.104 | O80: 0.104 | P80: 0.104 | Q80: John Jenft sheet - http://www.k12.wa.us/SAFS/17budprp.asp | R80: NO CHANGE
B81: Staff units by school type | C81: General Entitlement | D81: Psychologists High | E81: 0.007 | F81: 0.007 | G81: 0.007 | H81: 0.007 | I81: 0.007 | J81: 0.007 | K81: 0.021 | L81: 0.035 | M81: 0.049 | N81: 0.049 | O81: 0.049 | P81: 0.049 | Q81: John Jenft sheet - http://www.k12.wa.us/SAFS/17budprp.asp | R81: NO CHANGE
B82: Staff units by school type | C82: General Entitlement | D82: Psychologists Middle | E82: 0.002 | F82: 0.002 | G82: 0.002 | H82: 0.002 | I82: 0.002 | J82: 0.002 | K82: 0.009 | L82: 0.016 | M82: 0.024 | N82: 0.024 | O82: 0.024 | P82: 0.024 | Q82: John Jenft sheet - http://www.k12.wa.us/SAFS/17budprp.asp | R82: NO CHANGE
B83: Staff units by school type | C83: General Entitlement | D83: Office Support Middle | E83: 2.325 | F83: 2.325 | G83: 2.325 | H83: 2.325 | I83: 2.325 | J83: 2.325 | K83: 2.325 | L83: 2.325 | M83: 2.325 | N83: 2.325 | O83: 2.325 | P83: 2.325 | Q83: John Jenft sheet - http://www.k12.wa.us/SAFS/17budprp.asp | R83: NO CHANGE
B84: Staff units by school type | C84: General Entitlement | D84: Custodians Middle | E84: 1.942 | F84: 1.942 | G84: 1.942 | H84: 1.942 | I84: 1.942 | J84: 1.942 | K84: 1.942 | L84: 1.942 | M84: 1.942 | N84: 1.942 | O84: 1.942 | P84: 1.942 | Q84: John Jenft sheet - http://www.k12.wa.us/SAFS/17budprp.asp | R84: NO CHANGE
B85: Staff units by school type | C85: General Entitlement | D85: School Nurses Elem | E85: 0.076 | F85: 0.076 | G85: 0.076 | H85: 0.076 | I85: 0.076 | J85: 0.076 | K85: 0.246 | L85: 0.416 | M85: 0.585 | N85: =+M85 -> 0.585 | O85: 0.585 | P85: 0.585 | Q85: John Jenft sheet - http://www.k12.wa.us/SAFS/17budprp.asp | R85: NO CHANGE
B86: Staff units by school type | C86: General Entitlement | D86: School Nurses High | E86: 0.096 | F86: 0.096 | G86: 0.096 | H86: 0.096 | I86: 0.096 | J86: 0.096 | K86: 0.339 | L86: 0.582 | M86: 0.824 | N86: 0.824 | O86: 0.824 | P86: 0.824 | Q86: John Jenft sheet - http://www.k12.wa.us/SAFS/17budprp.asp | R86: NO CHANGE
B87: Staff units by school type | C87: General Entitlement | D87: School Nurses Middle | E87: 0.06 | F87: 0.06 | G87: 0.06 | H87: 0.06 | I87: 0.06 | J87: 0.06 | K87: 0.336 | L87: 0.612 | M87: 0.888 | N87: 0.888 | O87: 0.888 | P87: 0.888 | Q87: John Jenft sheet - http://www.k12.wa.us/SAFS/17budprp.asp | R87: NO CHANGE
B88: Staff units by school type | C88: General Entitlement | D88: Social Workers Elem | E88: 0.042 | F88: 0.042 | G88: 0.042 | H88: 0.042 | I88: 0.042 | J88: 0.042 | K88: 0.132 | L88: 0.222 | M88: 0.311 | N88: 0.311 | O88: 0.311 | P88: 0.311 | Q88: John Jenft sheet - http://www.k12.wa.us/SAFS/17budprp.asp | R88: NO CHANGE
B89: Staff units by school type | C89: General Entitlement | D89: Social Workers High | E89: 0.015 | F89: 0.015 | G89: 0.015 | H89: 0.015 | I89: 0.015 | J89: 0.015 | K89: 0.052 | L89: 0.089 | M89: 0.127 | N89: 0.127 | O89: 0.127 | P89: 0.127 | Q89: John Jenft sheet - http://www.k12.wa.us/SAFS/17budprp.asp | R89: NO CHANGE
B90: Staff units by school type | C90: General Entitlement | D90: Social Workers Middle | E90: 0.006 | F90: 0.006 | G90: 0.006 | H90: 0.006 | I90: 0.006 | J90: 0.006 | K90: 0.033 | L90: 0.06 | M90: 0.088 | N90: 0.088 | O90: 0.088 | P90: 0.088 | Q90: John Jenft sheet - http://www.k12.wa.us/SAFS/17budprp.asp | R90: NO CHANGE
B91: Staff units by school type | C91: General Entitlement | D91: Student & Staff Safety Elem | E91: 0.079 | F91: 0.079 | G91: 0.079 | H91: 0.079 | I91: 0.079 | J91: 0.079 | K91: 0.079 | L91: 0.079 | M91: 0.079 | N91: 0.079 | O91: 0.079 | P91: 0.079 | Q91: John Jenft sheet - http://www.k12.wa.us/SAFS/17budprp.asp | R91: NO CHANGE
B92: Staff units by school type | C92: General Entitlement | D92: Student & Staff Safety High | E92: 0.141 | F92: 0.141 | G92: 0.141 | H92: 0.141 | I92: 0.141 | J92: 0.141 | K92: 0.141 | L92: 0.141 | M92: 0.141 | N92: 0.141 | O92: 0.141 | P92: 0.141 | Q92: John Jenft sheet - http://www.k12.wa.us/SAFS/17budprp.asp | R92: NO CHANGE
B93: Staff units by school type | C93: General Entitlement | D93: Student & Staff Safety Middle | E93: 0.092 | F93: 0.092 | G93: 0.092 | H93: 0.092 | I93: 0.092 | J93: 0.092 | K93: 0.092 | L93: 0.092 | M93: 0.092 | N93: 0.092 | O93: 0.092 | P93: 0.092 | Q93: John Jenft sheet - http://www.k12.wa.us/SAFS/17budprp.asp | R93: NO CHANGE
B94: Staff units by school type | C94: General Entitlement | D94: Office Support High | E94: 3.269 | F94: 3.269 | G94: 3.269 | H94: 3.269 | I94: 3.269 | J94: 3.269 | K94: 3.269 | L94: 3.269 | M94: 3.269 | N94: 3.269 | O94: 3.269 | P94: 3.269 | Q94: John Jenft sheet - http://www.k12.wa.us/SAFS/17budprp.asp | R94: NO CHANGE
B95: Staff units by school type | C95: General Entitlement | D95: Custodians High | E95: 2.965 | F95: 2.965 | G95: 2.965 | H95: 2.965 | I95: 2.965 | J95: 2.965 | K95: 2.965 | L95: 2.965 | M95: 2.965 | N95: 2.965 | O95: 2.965 | P95: 2.965 | Q95: John Jenft sheet - http://www.k12.wa.us/SAFS/17budprp.asp | R95: NO CHANGE
B96: Staff units by school type | C96: General Entitlement | D96: Teacher Librarian Elem | E96: 0.663 | F96: 0.663 | G96: 0.663 | H96: 0.663 | I96: 0.663 | J96: 0.663 | K96: 0.663 | L96: 0.663 | M96: 0.663 | N96: 0.663 | O96: 0.663 | P96: 0.663 | Q96: John Jenft sheet - http://www.k12.wa.us/SAFS/17budprp.asp | R96: NO CHANGE
B97: Staff units by school type | C97: General Entitlement | D97: Teacher Librarian High | E97: 0.523 | F97: 0.523 | G97: 0.523 | H97: 0.523 | I97: 0.523 | J97: 0.523 | K97: 0.523 | L97: 0.523 | M97: 0.523 | N97: 0.523 | O97: 0.523 | P97: 0.523 | Q97: John Jenft sheet - http://www.k12.wa.us/SAFS/17budprp.asp | R97: NO CHANGE
B98: Staff units by school type | C98: General Entitlement | D98: Non-High Districts CIS units | E98: 0.5 | F98: 0.5 | G98: 0.5 | H98: 0.5 | I98: 0.5 | J98: 0.5 | K98: 0.5 | L98: 0.5 | M98: 0.5 | N98: 0.5 | O98: 0.5 | P98: 0.5 | Q98: Apportionment Reports | R98: WHERE IS THIS?
B99: Staff units by school type | C99: General Entitlement | D99: Non-High Districts CLS bonus units | E99: 0.5 | F99: 0.5 | G99: 0.5 | H99: 0.5 | I99: 0.5 | J99: 0.5 | K99: 0.5 | L99: 0.5 | M99: 0.5 | N99: 0.5 | O99: 0.5 | P99: 0.5 | Q99: Apportionment Reports | R99: WHERE IS THIS?
B100: % | C100: General Entitlement | D100: CIS Ratio Per 43.5 AAFTE | E100: 0.8732 | F100: 0.8732 | G100: 0.8732 | H100: =$G100 -> 0.8732 | I100: 0.8732 | J100: 0.8732 | K100: 0.8732 | L100: =$G100 -> 0.8732 | M100: =$G100 -> 0.8732 | N100: =$G100 -> 0.8732 | O100: =$G100 -> 0.8732 | P100: =$G100 -> 0.8732 | Q100: John Jenft sheet - http://www.k12.wa.us/SAFS/17budprp.asp | R100: NO CHANGE
B101: Staff units by school type | C101: General Entitlement | D101: Teacher Librarian Middle | E101: 0.519 | F101: 0.519 | G101: 0.519 | H101: 0.519 | I101: 0.519 | J101: 0.519 | K101: 0.519 | L101: =+K101 -> 0.519 | M101: 0.519 | N101: 0.519 | O101: 0.519 | P101: 0.519 | Q101: John Jenft sheet - http://www.k12.wa.us/SAFS/17budprp.asp | R101: NO CHANGE
B102: Staff units by school type | C102: General Entitlement | D102: Teaching Assistance Elem | E102: 0.936 | F102: 0.936 | G102: 0.936 | H102: 0.936 | I102: 0.936 | J102: 0.936 | K102: 0.936 | L102: 0.936 | M102: 0.936 | N102: 0.936 | O102: 0.936 | P102: 0.936 | Q102: John Jenft sheet - http://www.k12.wa.us/SAFS/17budprp.asp | R102: NO CHANGE
B103: Staff units by school type | C103: General Entitlement | D103: Teaching Assistance High | E103: 0.652 | F103: 0.652 | G103: 0.652 | H103: 0.652 | I103: 0.652 | J103: 0.652 | K103: 0.652 | L103: 0.652 | M103: 0.652 | N103: 0.652 | O103: 0.652 | P103: 0.652 | Q103: John Jenft sheet - http://www.k12.wa.us/SAFS/17budprp.asp | R103: NO CHANGE
B104: % | C104: Other | D104: IPD Inflation | F104: 0.017 | G104: 0.016 | H104: 0.018 | I104: 0.016 | J104: 0.019 | K104: 0.02 | L104: =K104 -> 0.02 | M104: =$L104 -> 0.02 | N104: =$M104 -> 0.02 | O104: =$M104 -> 0.02 | P104: =$M104 -> 0.02 | Q104: OSPI budget page included this table | R104: CHANGED
B105: % | C105: Categorical | D105: TBIP withholding % | E105: 0.0197 | F105: 0.0255 | G105: 0.0257 | H105: 0.0197 | I105: 0.0189 | J105: 0.0177 | K105: 0.0188 | L105: 0.0175 | M105: =+L105 -> 0.0175 | N105: =+M105 -> 0.0175 | O105: =+N105 -> 0.0175 | P105: =+O105 -> 0.0175 | Q105: John Jenft sheet - http://www.k12.wa.us/SAFS/17budprp.asp | R105: CHANGED | S105: << does this rate grow by inflation or some other metric? If inflation, assume would use the IPD starting in 2018-19
B106: Students per class | C106: General Entitlement | D106: Comp Class Size K-3 | E106: 21 | F106: 17 | G106: 17 | H106: =+'Single School Forecast'!T64 -> 0 | I106: =+'Single School Forecast'!U64 -> 17 | J106: =+'Single School Forecast'!V64 -> 17 | K106: 17 | L106: =+'Single School Forecast'!X64 -> 17 | M106: =+'Single School Forecast'!Y64 -> 17 | N106: =+'Single School Forecast'!Z64 -> 17 | O106: =+'Single School Forecast'!AA64 -> 17 | P106: =+'Single School Forecast'!AB64 -> 17 | Q106: John Jenft sheet - http://www.k12.wa.us/SAFS/17budprp.asp | R106: NO CHANGE
B107: Students per class | C107: General Entitlement | D107: Comp Pov Class Size K-3 | E107: 18.25 | F107: 17 | G107: 17 | H107: =$G107 -> 17 | I107: 17 | J107: 17 | K107: 17 | L107: =$G107 -> 17 | M107: =$G107 -> 17 | N107: =$G107 -> 17 | O107: =$G107 -> 17 | P107: =$G107 -> 17 | Q107: John Jenft sheet - http://www.k12.wa.us/SAFS/17budprp.asp | R107: WHERE IS THIS?
B108: % | C108: General Entitlement | D108: Planning K-3 | E108: 0.155 | F108: 0.155 | G108: 0.155 | H108: 0.155 | I108: 0.155 | J108: 0.155 | K108: 0.155 | L108: =+K108 -> 0.155 | M108: 0.155 | N108: 0.155 | O108: 0.155 | P108: 0.155 | Q108: John Jenft sheet - http://www.k12.wa.us/SAFS/17budprp.asp | R108: NO CHANGE
B109: Students per class | C109: General Entitlement | D109: Class Size 4 | E109: 27 | F109: 27 | G109: 27 | H109: 27 | I109: 27 | J109: 27 | K109: 27 | L109: 27 | M109: 27 | N109: 27 | O109: 27 | P109: 27 | Q109: John Jenft sheet - http://www.k12.wa.us/SAFS/17budprp.asp | R109: NO CHANGE
B110: % | C110: General Entitlement | D110: Planning 4 | E110: 0.155 | F110: 0.155 | G110: 0.155 | H110: 0.155 | I110: 0.155 | J110: 0.155 | K110: 0.155 | L110: 0.155 | M110: 0.155 | N110: 0.155 | O110: 0.155 | P110: 0.155 | Q110: John Jenft sheet - http://www.k12.wa.us/SAFS/17budprp.asp | R110: NO CHANGE
B111: Students per class | C111: General Entitlement | D111: Class Size 5-6 | E111: 27 | F111: 27 | G111: 27 | H111: 27 | I111: 27 | J111: 27 | K111: 27 | L111: 27 | M111: 27 | N111: 27 | O111: 27 | P111: 27 | Q111: John Jenft sheet - http://www.k12.wa.us/SAFS/17budprp.asp | R111: NO CHANGE
B112: % | C112: General Entitlement | D112: Planning 5-6 | E112: 0.155 | F112: 0.155 | G112: 0.155 | H112: 0.155 | I112: 0.155 | J112: 0.155 | K112: =$G112 -> 0.155 | L112: 0.155 | M112: 0.155 | N112: 0.155 | O112: 0.155 | P112: 0.155 | Q112: John Jenft sheet - http://www.k12.wa.us/SAFS/17budprp.asp | R112: NO CHANGE
B113: Students per class | C113: General Entitlement | D113: Class Size 7-8 | E113: 28.53 | F113: 28.53 | G113: 28.53 | H113: 28.53 | I113: 28.53 | J113: 28.53 | K113: 28.53 | L113: 28.53 | M113: 28.53 | N113: 28.53 | O113: 28.53 | P113: 28.53 | Q113: John Jenft sheet - http://www.k12.wa.us/SAFS/17budprp.asp | R113: NO CHANGE
B114: % | C114: General Entitlement | D114: Planning 7-8 | E114: 0.2 | F114: 0.2 | G114: 0.2 | H114: 0.2 | I114: 0.2 | J114: 0.2 | K114: 0.2 | L114: 0.2 | M114: 0.2 | N114: 0.2 | O114: 0.2 | P114: 0.2 | Q114: John Jenft sheet - http://www.k12.wa.us/SAFS/17budprp.asp | R114: NO CHANGE
B115: Students per class | C115: General Entitlement | D115: Class Size 9-12 | E115: 28.74 | F115: 28.74 | G115: 28.74 | H115: 28.74 | I115: 28.74 | J115: 28.74 | K115: 28.74 | L115: 28.74 | M115: 28.74 | N115: 28.74 | O115: 28.74 | P115: 28.74 | Q115: John Jenft sheet - http://www.k12.wa.us/SAFS/17budprp.asp | R115: NO CHANGE
B116: % | C116: General Entitlement | D116: Planning 9-12 | E116: 0.2 | F116: 0.2 | G116: 0.2 | H116: 0.2 | I116: 0.2 | J116: 0.2 | K116: 0.2 | L116: 0.2 | M116: 0.2 | N116: 0.2 | O116: 0.2 | P116: 0.2 | Q116: John Jenft sheet - http://www.k12.wa.us/SAFS/17budprp.asp | R116: NO CHANGE
B117: $ per Qualifying Student | C117: General Entitlement | D117: Total BEA MSOC per student FTE | E117: 1223.36 | F117: 1244.16 | G117: 1267.8 | H117: 1293.16 | I117: 1313.85 | J117: 1340.13 | K117: 1438.84 | L117: 1483.44 | M117: 1483.44 | N117: 1483.44 | O117: 1483.44 | P117: 1483.44 | Q117: John Jenft sheet - http://www.k12.wa.us/SAFS/17budprp.asp | R117: CHANGED | T117: Values in the 18-19 SY and out have the IPD applied to them.
B118: $ per Qualifying Student | C118: General Entitlement | D118: Total 9-12 MSOC per student FTE | E118: 168.05 | F118: 170.91 | G118: 174.16 | H118: 177.64 | I118: 180.48 | J118: 184.09 | K118: 194.21 | L118: 200.23 | M118: =L118 -> 200.23 | N118: =M118 -> 200.23 | O118: =N118 -> 200.23 | P118: =O118 -> 200.23 | Q118: John Jenft sheet - http://www.k12.wa.us/SAFS/17budprp.asp | R118: CHANGED | T118: Values in the 18-19 SY and out have the IPD applied to them.
B119: $ per Qualifying Student | C119: General Entitlement | D119: Total CTE MSOC per student FTE | E119: 1447.4 | F119: 1472.01 | G119: 1499.98 | H119: 1529.98 | I119: 1554.46 | J119: 1585.55 | K119: 1672.76 | L119: 1724.62 | M119: =+L119 -> 1724.62 | N119: 1724.62 | O119: 1724.62 | P119: 1724.62 | Q119: John Jenft sheet - http://www.k12.wa.us/SAFS/17budprp.asp | R119: CHANGED | T119: Values in the 18-19 SY and out have the IPD applied to them.
B120: $ per Qualifying Student | C120: General Entitlement | D120: Total Skills Center MSOC per student FTE | E120: 1286.99 | F120: 1472.01 | G120: 1499.98 | H120: 1529.98 | I120: 1554.46 | J120: 1585.55 | K120: 1672.76 | L120: 1724.62 | M120: 1724.62 | N120: 1724.62 | O120: 1724.62 | P120: 1724.62 | Q120: John Jenft sheet - http://www.k12.wa.us/SAFS/17budprp.asp | R120: CHANGED | T120: Values in the 18-19 SY and out have the IPD applied to them.
B121: $ per SS RN CIS and CAS FTE | C121: General Entitlement | D121: Total Small School MSOC | E121: 11307.6 | F121: 11499.8 | G121: 11683.7968 | H121: 11952.7 | I121: 12143.9 | J121: 12386.8 | K121: 13068.1 | L121: 13473.2 | M121: 13473.2 | N121: 13473.2 | O121: 13473.2 | P121: 13473.2 | Q121: John Jenft sheet - http://www.k12.wa.us/SAFS/17budprp.asp | R121: CHANGED | T121: Values in the 18-19 SY and out have the IPD applied to them.
B122: % | C122: General Entitlement | D122: Districtwide Support Technology | E122: 0.628 | F122: 0.628 | G122: 0.628 | H122: =$G122 -> 0.628 | I122: 0.628 | J122: 0.628 | K122: 0.628 | L122: 0.628 | M122: 0.628 | N122: 0.628 | O122: 0.628 | P122: 0.628 | Q122: OPSI Apportionment reports | R122: WHERE IS THIS? | S122: Do all districts have the same values?
B123: Staff units by school type | C123: General Entitlement | D123: Teaching Assistance Middle | E123: 0.7 | F123: 0.7 | G123: 0.7 | H123: 0.7 | I123: 0.7 | J123: 0.7 | K123: 0.7 | L123: 0.7 | M123: 0.7 | N123: 0.7 | O123: 0.7 | P123: 0.7 | Q123: John Jenft sheet - http://www.k12.wa.us/SAFS/17budprp.asp | R123: NO CHANGE
B124: % | C124: General Entitlement | D124: Districtwide Support Facilities | E124: 1.813 | F124: 1.813 | G124: 1.813 | H124: 1.813 | I124: 1.813 | J124: 1.813 | K124: 1.813 | L124: 1.813 | M124: 1.813 | N124: 1.813 | O124: 1.813 | P124: 1.813 | Q124: OPSI Apportionment reports | R124: WHERE IS THIS? | S124: Do all districts have the same values?
B125: % | C125: General Entitlement | D125: Districtwide Support Warehouse | E125: 0.332 | F125: 0.332 | G125: 0.332 | H125: 0.332 | I125: 0.332 | J125: 0.332 | K125: 0.332 | L125: 0.332 | M125: 0.332 | N125: 0.332 | O125: 0.332 | P125: 0.332 | Q125: OPSI Apportionment reports | R125: WHERE IS THIS? | S125: Do all districts have the same values?
B126: % | C126: General Entitlement | D126: Central Admin CAS% | E126: 0.2547 | F126: 0.2547 | G126: 0.2547 | H126: 0.2547 | I126: 0.2547 | J126: 0.2547 | K126: 0.2547 | L126: 0.2547 | M126: 0.2547 | N126: 0.2547 | O126: 0.2547 | P126: 0.2547 | Q126: OPSI Apportionment reports | R126: WHERE IS THIS? | S126: Do all districts have the same values?
B127: % | C127: General Entitlement | D127: Central Admin CLS% | E127: 0.7453 | F127: 0.7453 | G127: 0.7453 | H127: 0.7453 | I127: 0.7453 | J127: 0.7453 | K127: 0.7453 | L127: 0.7453 | M127: 0.7453 | N127: 0.7453 | O127: 0.7453 | P127: 0.7453 | Q127: OPSI Apportionment reports | R127: WHERE IS THIS? | S127: Do all districts have the same values?
B128: $ | C128: All staff units entitlement | D128: SEBB Health Insurance | H128: =+(994*6)+(1056*2) -> 8076 | I128: =1000*12 -> 12000 | J128: =968*12 -> 11616 | K128: =1026*12 -> 12312 | L128: =1100*12 -> 13200 | M128: 13200 | N128: 13200 | O128: 13200 | P128: 13200 | Q128: 2019 John Jenft | R128: WHERE IS THIS? How does it differ from line 105?
B129: Ratio | C129: CIS/ CAS Staff units | D129: CIS/ CAS SEBB Multiplier | H129: 1.02 | I129: 1.02 | J129: =I129 -> 1.02 | K129: =J129 -> 1.02 | L129: 1.02 | M129: =L129 -> 1.02 | N129: 1.02 | O129: 1.02 | P129: 1.02 | R129: UPDATED FORMULAS ONLY
B130: Ratio | C130: CLS Staff units | D130: CLS SEBB Multiplier | H130: 1.43 | I130: 1.43 | J130: =I130 -> 1.43 | K130: =J130 -> 1.43 | L130: 1.43 | M130: 1.43 | N130: 1.43 | O130: 1.43 | P130: 1.43 | R130: UPDATED FORMULAS ONLY
B131: $ | C131: All staff units entitlement | D131: Health Insurance | E131: 9360 | F131: 9840 | G131: 10127.64 | H131: =973*4 -> 3892 | Q131: SSB 5883, Sec. 504 (3)(b), monthly values multiplied by 12 for totals displayed for the full school year | R131: NEED Haid! New increase $1k, down from $1056. What should that be multiplied by? | S131: Unsure how this works in the out years, is this number standard by district? What happens when school employees become part of state benefits
B132: % | C132: All CLS staff units entitlement | D132: CLS Health Factor | E132: 1.152 | F132: 1.152 | G132: 1.152 | H132: 1 | I132: =+H132 -> 1 | J132: 1 | K132: 1 | L132: 1.43 | M132: 1.43 | N132: 1.43 | O132: 1.43 | P132: 1.43 | Q132: John Jenft sheet - http://www.k12.wa.us/SAFS/17budprp.asp | R132: WHERE IS THIS? | S132: Unsure how this works in the out years, is this number standard by district? What happens when school employees become part of state benefits
B133: % | C133: All Certificated staff units entitlement | D133: CIS/CAS Benefits | E133: 0.2142 | F133: 0.2349 | G133: 0.2365 | H133: 0.238 | I133: 0.2403 | J133: 0.2271 | K133: 0.2298 | L133: 0.1797 | M133: 0.1797 | N133: 0.1797 | O133: 0.1797 | P133: 0.1797 | Q133: John Jenft sheet - http://www.k12.wa.us/SAFS/17budprp.asp
B134: % | C134: All Certificated staff units entitlement | D134: CIS/CAS Benefits Increase | E134: 0.2978 | F134: 0.2285 | G134: 0.2301 | H134: 0.2316 | I134: 0.2339 | J134: 0.2207 | K134: 0.2234 | L134: 0.1733 | M134: 0.1733 | N134: 0.1733 | O134: 0.1733 | P134: 0.1733 | Q134: John Jenft sheet - http://www.k12.wa.us/SAFS/17budprp.asp
B135: % | C135: All CLS staff units entitlement | D135: CLS Benefits | E135: 0.2272 | F135: 0.246 | G135: 0.2467 | H135: 0.2433 | I135: 0.2444 | J135: 0.2275 | K135: 0.2294 | L135: 0.2206 | M135: 0.2206 | N135: 0.2206 | O135: 0.2206 | P135: 0.2206 | Q135: John Jenft sheet - http://www.k12.wa.us/SAFS/17budprp.asp
B136: % | C136: All CLS staff units entitlement | D136: CLS Benefits Increase | E136: 0.1922 | F136: 0.211 | G136: 0.2117 | H136: 0.2083 | I136: 0.2094 | J136: 0.1925 | K136: 0.1944 | L136: 0.1856 | M136: 0.1856 | N136: 0.1856 | O136: 0.1856 | P136: 0.1856 | Q136: John Jenft sheet - http://www.k12.wa.us/SAFS/17budprp.asp
B137: % | C137: General Entitlement | D137: LabSci% 9-12 | E137: 0.0833 | F137: 0.0833 | G137: 0.0833 | H137: =$G137 -> 0.0833 | I137: 0.0833 | J137: =I137 -> 0.0833 | K137: =J137 -> 0.0833 | L137: =K137 -> 0.0833 | M137: 0.0833 | N137: 0.0833 | O137: 0.0833 | P137: 0.0833 | Q137: John Jenft sheet - http://www.k12.wa.us/SAFS/17budprp.asp | R137: UPDATED FORMULAS ONLY
B138: Students | C138: General Entitlement | D138: LabSci Class Size 9-12 | E138: 19.98 | F138: 19.98 | G138: 19.98 | H138: =$G138 -> 19.98 | I138: =H138 -> 19.98 | J138: =I138 -> 19.98 | K138: =J138 -> 19.98 | L138: 19.98 | M138: 19.98 | N138: 19.98 | O138: 19.98 | P138: 19.98 | Q138: John Jenft sheet - http://www.k12.wa.us/SAFS/17budprp.asp | R138: UPDATED FORMULAS ONLY
B139: % | C139: Special Education | D139: Calc K-3 HighPov Enh for SpEd | E139: 0.003316 | F139: 0 | G139: 0 | H139: =$G139 -> 0 | I139: =$G139 -> 0 | J139: =$G139 -> 0 | K139: 0 | L139: =+K139 -> 0 | M139: =+L139 -> 0 | N139: =+M139 -> 0 | O139: =+N139 -> 0 | P139: =+O139 -> 0 | R139: Need Haid

Sheet 5 YR Budget
D1: Add staff FTE for Board approval
B2: SUMMARY
B3: Total Enrollment | D3: =+'Enrollment and Demographics'!D19 -> 97 | E3: =+'Enrollment and Demographics'!E19 -> 106.4 | F3: =+'Enrollment and Demographics'!F19 -> 132 | G3: =+'Enrollment and Demographics'!G19 -> 182 | H3: =+'Enrollment and Demographics'!H19 -> 204 | I3: =+'Enrollment and Demographics'!I19 -> 227 | J3: =+'Enrollment and Demographics'!J19 -> 255
B4: Total Revenue | D4: =D55 -> 2191069.34 | E4: 2700395.098 | F4: 2363987.117 | G4: 4113849.366 | H4: 4428633.326 | I4: 4855962.592
B5: Total Expenses | D5: =D152 -> 2267465.486 | E5: =E152+-E165+E172 -> 2529386.448 | F5: =F152 -> 2570277.973 | G5: 3345385.86 | H5: 3661463.668 | I5: 3875747.966
B6: Net Income | D6: =D4-D5 -> -76396.14593 | E6: 171008.6498 | F6: -206290.8557 | G6: 768463.5062 | H6: 767169.6581 | I6: 980214.6259
B7: Revenue Per Pupil | D7: =D4/D3 -> 22588.34371 | E7: 25379.65318 | F7: 17908.99331 | G7: 22603.56795 | H7: 21708.98689 | I7: 21391.90569
B8: General Apportionment Per Pupil | D8: =+D22/'Enrollment and Demographics'!D19 -> 11217.77938 | E8: =+E22/'Enrollment and Demographics'!E19 -> 11506.69699 | F8: =+F22/'Enrollment and Demographics'!F19 -> 11941.87205 | G8: =+G22/'Enrollment and Demographics'!G19 -> 18521.22007 | H8: =+H22/'Enrollment and Demographics'!H19 -> 17582.7678 | I8: =+I22/'Enrollment and Demographics'!I19 -> 16903.38229 | J8: =+J22/'Enrollment and Demographics'!J19 -> 
B9: Expenses Per Pupil | D9: =IFERROR(IF(D5>0,D5/VLOOKUP("Total Enrollment",X_Enrollment,2,FALSE),0),0) -> 23375.93284 | E9: =IFERROR(IF(E5>0,E5/VLOOKUP("Total Enrollment",X_Enrollment,3,FALSE),0),0) -> 23772.42902 | F9: =IFERROR(IF(F5>0,F5/VLOOKUP("Total Enrollment",X_Enrollment,4,FALSE),0),0) -> 19471.80283 | G9: =IFERROR(IF(G5>0,G5/VLOOKUP("Total Enrollment",X_Enrollment,5,FALSE),0),0) -> 18381.24099 | H9: =IFERROR(IF(H5>0,H5/VLOOKUP("Total Enrollment",X_Enrollment,6,FALSE),0),0) -> 17948.35131 | I9: =IFERROR(IF(I5>0,I5/VLOOKUP("Total Enrollment",X_Enrollment,6,FALSE),0),0) -> 18998.76454 | J9: =IFERROR(IF(J5>0,J5/VLOOKUP("Total Enrollment",X_Enrollment,6,FALSE),0),0) -> 0
D11: YEAR 2 | E11: YEAR 3 | F11: YEAR 4 | G11: YEAR 5 | H11: YEAR 6 | I11: YEAR 7 | J11: YEAR 7
D12: =+'Enrollment and Demographics'!D2 -> 2022-23 | E12: =+'Enrollment and Demographics'!E2 -> 2023-24 | F12: =+'Enrollment and Demographics'!F2 -> 2024-25 | G12: =+'Enrollment and Demographics'!G2 -> 2025-26 | H12: =+'Enrollment and Demographics'!H2 -> 2026-27 | I12: =+'Enrollment and Demographics'!I2 -> 2027-28 | J12: =+'Enrollment and Demographics'!J2 -> 2028-29 | L12: Description of Assumptions
B13: Pullman Community Montessori Budget Detail
B14: REVENUES
B15: 2000 - LOCAL SUPPORT - NON-TAX
B16: 2200 - Sale Of Goods, Supplies, & Services | D16: =INDEX(Expense_Assump,MATCH('5 YR Budget'!$B16,Assumptions!$C:$C,0),MATCH('5 YR Budget'!D$12,Assumptions!$C$2:$I$2,0))*INDEX(X_Enrollment,MATCH("Total Enrollment",'Enrollment and Demographics'!$C$2:$C$47,0),MATCH(D$12,'Enrollment and Demographics'!$C$2:$M$2,0)) -> 0 | E16: =INDEX(Expense_Assump,MATCH('5 YR Budget'!$B16,Assumptions!$C:$C,0),MATCH('5 YR Budget'!E$12,Assumptions!$C$2:$I$2,0))*INDEX(X_Enrollment,MATCH("Total Enrollment",'Enrollment and Demographics'!$C$2:$C$47,0),MATCH(E$12,'Enrollment and Demographics'!$C$2:$M$2,0)) -> 0 | F16: =INDEX(Expense_Assump,MATCH('5 YR Budget'!$B16,Assumptions!$C:$C,0),MATCH('5 YR Budget'!F$12,Assumptions!$C$2:$I$2,0))*INDEX(X_Enrollment,MATCH("Total Enrollment",'Enrollment and Demographics'!$C$2:$C$47,0),MATCH(F$12,'Enrollment and Demographics'!$C$2:$M$2,0)) -> 0 | G16: =INDEX(Expense_Assump,MATCH('5 YR Budget'!$B16,Assumptions!$C:$C,0),MATCH('5 YR Budget'!G$12,Assumptions!$C$2:$I$2,0))*INDEX(X_Enrollment,MATCH("Total Enrollment",'Enrollment and Demographics'!$C$2:$C$47,0),MATCH(G$12,'Enrollment and Demographics'!$C$2:$M$2,0)) -> 0 | H16: =INDEX(Expense_Assump,MATCH('5 YR Budget'!$B16,Assumptions!$C:$C,0),MATCH('5 YR Budget'!H$12,Assumptions!$C$2:$I$2,0))*INDEX(X_Enrollment,MATCH("Total Enrollment",'Enrollment and Demographics'!$C$2:$C$47,0),MATCH(H$12,'Enrollment and Demographics'!$C$2:$M$2,0)) -> 0 | I16: =INDEX(Expense_Assump,MATCH('5 YR Budget'!$B16,Assumptions!$C:$C,0),MATCH('5 YR Budget'!I$12,Assumptions!$C$2:$K$2,0))*INDEX(X_Enrollment,MATCH("Total Enrollment",'Enrollment and Demographics'!$C$2:$C$47,0),MATCH(I$12,'Enrollment and Demographics'!$C$2:$M$2,0)) -> 0 | J16: =INDEX(Expense_Assump,MATCH('5 YR Budget'!$B16,Assumptions!$C:$C,0),MATCH('5 YR Budget'!J$12,Assumptions!$C$2:$K$2,0))*INDEX(X_Enrollment,MATCH("Total Enrollment",'Enrollment and Demographics'!$C$2:$C$47,0),MATCH(J$12,'Enrollment and Demographics'!$C$2:$M$2,0)) -> 0 | L16: Misc school feels & sales
B17: 2500 - Gifts Grants, and Donations (Local) | D17: 3428 | E17: =INDEX(Expense_Assump,MATCH('5 YR Budget'!$B17,Assumptions!$C:$C,0),MATCH('5 YR Budget'!E$12,Assumptions!$C$2:$I$2,0)) -> 25000 | F17: =INDEX(Expense_Assump,MATCH('5 YR Budget'!$B17,Assumptions!$C:$C,0),MATCH('5 YR Budget'!F$12,Assumptions!$C$2:$I$2,0)) -> 25000 | G17: =INDEX(Expense_Assump,MATCH('5 YR Budget'!$B17,Assumptions!$C:$C,0),MATCH('5 YR Budget'!G$12,Assumptions!$C$2:$I$2,0)) -> 25000 | H17: =INDEX(Expense_Assump,MATCH('5 YR Budget'!$B17,Assumptions!$C:$C,0),MATCH('5 YR Budget'!H$12,Assumptions!$C$2:$I$2,0)) -> 25000 | I17: =+Assumptions!J6 -> 25000 | J17: =+Assumptions!K6 -> 25000 | L17: Local donations
B18: 2298 - Local lunch sales | D18: 14830 | E18: =INDEX(Expense_Assump,MATCH('5 YR Budget'!$B18,Assumptions!$C:$C,0),MATCH('5 YR Budget'!E$12,Assumptions!$C$2:$I$2,0))*INDEX(X_Enrollment,MATCH("Total Enrollment",'Enrollment and Demographics'!$C$2:$C$47,0),MATCH(E$12,'Enrollment and Demographics'!$C$2:$M$2,0)) -> 16786.29787 | F18: =INDEX(Expense_Assump,MATCH('5 YR Budget'!$B18,Assumptions!$C:$C,0),MATCH('5 YR Budget'!F$12,Assumptions!$C$2:$I$2,0))*INDEX(X_Enrollment,MATCH("Total Enrollment",'Enrollment and Demographics'!$C$2:$C$47,0),MATCH(F$12,'Enrollment and Demographics'!$C$2:$M$2,0)) -> 20825.10638 | G18: =INDEX(Expense_Assump,MATCH('5 YR Budget'!$B18,Assumptions!$C:$C,0),MATCH('5 YR Budget'!G$12,Assumptions!$C$2:$I$2,0))*INDEX(X_Enrollment,MATCH("Total Enrollment",'Enrollment and Demographics'!$C$2:$C$47,0),MATCH(G$12,'Enrollment and Demographics'!$C$2:$M$2,0)) -> 28713.40426 | H18: =INDEX(Expense_Assump,MATCH('5 YR Budget'!$B18,Assumptions!$C:$C,0),MATCH('5 YR Budget'!H$12,Assumptions!$C$2:$I$2,0))*INDEX(X_Enrollment,MATCH("Total Enrollment",'Enrollment and Demographics'!$C$2:$C$47,0),MATCH(H$12,'Enrollment and Demographics'!$C$2:$M$2,0)) -> 32184.25532 | I18: =+Assumptions!J7*'5 YR Budget'!I3 -> 35812.87234 | J18: =+Assumptions!K7*'5 YR Budget'!J3 -> 40230.31915
B19: TOTAL 2000 - LOCAL SUPPORT - NON-TAX | D19: =SUM(D16:D18) -> 18258 | E19: 41786.29787 | F19: 45825.10638 | G19: 53713.40426 | H19: 57184.25532 | I19: 60812.87234 | J19: 65230.31915
B21: 3000 - STATE REVENUE - GENERAL PURPOSE | M21: Original Revenue (136 FTE) | N21: Variance (106.4 FTE)
B22: 3100 - Apportionment | D22: =1086690.6+1434 -> 1088124.6 | E22: 1224312.56 | F22: =+'Single School Forecast'!Y75 -> 1576327.111 | G22: =+'Single School Forecast'!Z75 -> 3370862.052 | H22: =+'Single School Forecast'!AA75 -> 3586884.632 | I22: =+'Single School Forecast'!AB75 -> 3837067.78 | J22: =+#REF! ->  | M22: 1542556.53 | N22: =+E22-M22 -> -318243.97
B23: 3121 - Special Education - General Apportionment | D23: 11849 | E23: 22295.45 | F23: =+'Single School Forecast'!Y87 -> 16862.90279 | G23: =+'Single School Forecast'!Z87 -> 22766.45637 | H23: =+'Single School Forecast'!AA87 -> 25363.16148 | I23: =+'Single School Forecast'!AB87 -> 27863.15814 | J23: =+#REF! ->  | M23: 16324.52 | N23: =+E23-M23 -> 5970.93
B24: TOTAL 3000 - STATE REVENUE - GENERAL PURPOSE | D24: =SUM(D22:D23) -> 1099973.6 | E24: 1246608.01 | F24: 1593190.013 | G24: 3393628.509 | H24: 3612247.794 | I24: 3864930.939 | J24: =SUM(J22:L23) -> 
B26: 4000 - STATE REVENUE - SPECIAL PURPOSE
B27: 4121 - Special Education - State | D27: 133709 | E27: 189596.97 | F27: =+'Single School Forecast'!Y89 -> 259236.9461 | G27: =+'Single School Forecast'!Z89 -> 349980.5512 | H27: =+'Single School Forecast'!AA89 -> 389894.5173 | I27: =+'Single School Forecast'!AB89 -> 428315.7505 | J27: =+#REF! ->  | M27: 241949.61 | N27: =+E27-M27 -> -52352.64
B28: 4155 - Learning Assistance | D28: 10965.61 | E28: 13506.15 | F28: =+'Single School Forecast'!Y93 -> 36398.63994 | G28: =+'Single School Forecast'!Z93 -> 45294.25416 | H28: =+'Single School Forecast'!AA93 -> 63593.62147 | I28: =+'Single School Forecast'!AB93 -> 71287.62726 | J28: =+#REF! ->  | M28: 13506.15 | N28: =+E28-M28 -> 0
B29: 4165 - Transitional Bilingual | D29: 3349 | E29: 1326.97 | F29: =+'Single School Forecast'!Y98 -> 1858.432703 | G29: =+'Single School Forecast'!Z98 -> 2574.145483 | H29: =+'Single School Forecast'!AA98 -> 2929.803233 | I29: =+'Single School Forecast'!AB98 -> 3241.026797 | J29: =+#REF! ->  | M29: 7043.2 | N29: =+E29-M29 -> -5716.23
B30: 4174 - Highly Capable | D30: 2793.13 | E30: 3220.7 | F30: =+'Single School Forecast'!Y103 -> 4081.757963 | G30: =+'Single School Forecast'!Z103 -> 5731.582993 | H30: =+'Single School Forecast'!AA103 -> 6542.199336 | I30: =+'Single School Forecast'!AB103 -> 7280.490718 | J30: =+#REF! ->  | M30: 4051.85 | N30: =+E30-M30 -> -831.15 | O30: FTE Loss | P30: Per FTE Loss
B31: 4198 - School Food Service | D31: 200 | E31: =INDEX(Expense_Assump,MATCH('5 YR Budget'!$B31,Assumptions!$C:$C,0),MATCH('5 YR Budget'!E$12,Assumptions!$C$2:$I$2,0))*INDEX(X_Enrollment,MATCH("Total Enrollment",'Enrollment and Demographics'!$C$2:$C$47,0),MATCH(E$12,'Enrollment and Demographics'!$C$2:$M$2,0)) -> 0 | F31: =INDEX(Expense_Assump,MATCH('5 YR Budget'!$B31,Assumptions!$C:$C,0),MATCH('5 YR Budget'!F$12,Assumptions!$C$2:$I$2,0))*INDEX(X_Enrollment,MATCH("Total Enrollment",'Enrollment and Demographics'!$C$2:$C$47,0),MATCH(F$12,'Enrollment and Demographics'!$C$2:$M$2,0)) -> 0 | G31: =INDEX(Expense_Assump,MATCH('5 YR Budget'!$B31,Assumptions!$C:$C,0),MATCH('5 YR Budget'!G$12,Assumptions!$C$2:$I$2,0))*INDEX(X_Enrollment,MATCH("Total Enrollment",'Enrollment and Demographics'!$C$2:$C$47,0),MATCH(G$12,'Enrollment and Demographics'!$C$2:$M$2,0)) -> 0 | H31: =INDEX(Expense_Assump,MATCH('5 YR Budget'!$B31,Assumptions!$C:$C,0),MATCH('5 YR Budget'!H$12,Assumptions!$C$2:$I$2,0))*INDEX(X_Enrollment,MATCH("Total Enrollment",'Enrollment and Demographics'!$C$2:$C$47,0),MATCH(H$12,'Enrollment and Demographics'!$C$2:$M$2,0)) -> 0 | I31: =INDEX(Expense_Assump,MATCH('5 YR Budget'!$B31,Assumptions!$C:$C,0),MATCH('5 YR Budget'!I$12,Assumptions!$C$2:$K$2,0))*INDEX(X_Enrollment,MATCH("Total Enrollment",'Enrollment and Demographics'!$C$2:$C$47,0),MATCH(I$12,'Enrollment and Demographics'!$C$2:$M$2,0)) -> 0 | J31: =INDEX(Expense_Assump,MATCH('5 YR Budget'!$B31,Assumptions!$C:$C,0),MATCH('5 YR Budget'!J$12,Assumptions!$C$2:$K$2,0))*INDEX(X_Enrollment,MATCH("Total Enrollment",'Enrollment and Demographics'!$C$2:$C$47,0),MATCH(J$12,'Enrollment and Demographics'!$C$2:$M$2,0)) -> 0 | M31: Loss in funding | N31: =+SUM(N22:N30) -> -371173.06 | O31: =136-E3 -> 29.6 | P31: =+N31/O31 -> -12539.63041
B32: 4199 - Transportation - Operations | D32: 38164 | E32: 66086 | F32: =INDEX(Expense_Assump,MATCH('5 YR Budget'!$B32,Assumptions!$C:$C,0),MATCH('5 YR Budget'!F$12,Assumptions!$C$2:$K$2,0))*INDEX(X_Enrollment,MATCH("Student Transportation Count",'Enrollment and Demographics'!$C$2:$C$47,0),MATCH('5 YR Budget'!F12,'Enrollment and Demographics'!$C$2:$M$2,0)) -> 80334.58605 | G32: =INDEX(Expense_Assump,MATCH('5 YR Budget'!$B32,Assumptions!$C:$C,0),MATCH('5 YR Budget'!G$12,Assumptions!$C$2:$K$2,0))*INDEX(X_Enrollment,MATCH("Student Transportation Count",'Enrollment and Demographics'!$C$2:$C$47,0),MATCH('5 YR Budget'!G12,'Enrollment and Demographics'!$C$2:$M$2,0)) -> 110764.3535 | H32: =INDEX(Expense_Assump,MATCH('5 YR Budget'!$B32,Assumptions!$C:$C,0),MATCH('5 YR Budget'!H$12,Assumptions!$C$2:$K$2,0))*INDEX(X_Enrollment,MATCH("Student Transportation Count",'Enrollment and Demographics'!$C$2:$C$47,0),MATCH('5 YR Budget'!H12,'Enrollment and Demographics'!$C$2:$M$2,0)) -> 124153.4512 | I32: =INDEX(Expense_Assump,MATCH('5 YR Budget'!$B32,Assumptions!$C:$C,0),MATCH('5 YR Budget'!I$12,Assumptions!$C$2:$K$2,0))*INDEX(X_Enrollment,MATCH("Student Transportation Count",'Enrollment and Demographics'!$C$2:$C$47,0),MATCH('5 YR Budget'!I12,'Enrollment and Demographics'!$C$2:$M$2,0)) -> 138151.1442 | J32: =INDEX(Expense_Assump,MATCH('5 YR Budget'!$B32,Assumptions!$C:$C,0),MATCH('5 YR Budget'!J$12,Assumptions!$C$2:$K$2,0))*INDEX(X_Enrollment,MATCH("Student Transportation Count",'Enrollment and Demographics'!$C$2:$C$47,0),MATCH('5 YR Budget'!J12,'Enrollment and Demographics'!$C$2:$M$2,0)) -> 155191.814 | N32: 71000 | Q32: =+E24+E34 -> 1665844.8 | R32: =+Q32/136 -> 12248.85882
B33: 4201 - State - Misc Grants | D33: 3934 | E33: =+'Enrollment and Demographics'!AG20*1500 -> 145500 | F33: =INDEX(Expense_Assump,MATCH('5 YR Budget'!$B33,Assumptions!$C:$C,0),MATCH('5 YR Budget'!F$12,Assumptions!$C$2:$K$2,0)) -> 0 | G33: =INDEX(Expense_Assump,MATCH('5 YR Budget'!$B33,Assumptions!$C:$C,0),MATCH('5 YR Budget'!G$12,Assumptions!$C$2:$K$2,0)) -> 0 | H33: =INDEX(Expense_Assump,MATCH('5 YR Budget'!$B33,Assumptions!$C:$C,0),MATCH('5 YR Budget'!H$12,Assumptions!$C$2:$K$2,0)) -> 0 | I33: =INDEX(Expense_Assump,MATCH('5 YR Budget'!$B33,Assumptions!$C:$C,0),MATCH('5 YR Budget'!I$12,Assumptions!$C$2:$K$2,0)) -> 0 | J33: =INDEX(Expense_Assump,MATCH('5 YR Budget'!$B33,Assumptions!$C:$C,0),MATCH('5 YR Budget'!J$12,Assumptions!$C$2:$K$2,0)) -> 0 | L33: Learn to return+ School Health Workforce + Meals grants + Levy Equalization | N33: =+N31+N32 -> -300173.06
B34: Total 4000 - STATE REVENUE - SPECIAL PURPOSE | D34: =SUM(D27:D33) -> 193114.74 | E34: =SUM(E27:E33) -> 419236.79 | F34: 381910.3628 | G34: 514344.8874 | H34: 587113.5925 | I34: 648276.0394
B36: 5000 - FEDERAL REVENUE - RESTRICTED
B37: Title I | D37: 13147 | E37: 24604 | F37: =INDEX(Expense_Assump,MATCH('5 YR Budget'!$B37,Assumptions!$C:$C,0),MATCH('5 YR Budget'!F$12,Assumptions!$C$2:$K$2,0))*INDEX(X_Enrollment,MATCH('Enrollment and Demographics'!$C$39,'Enrollment and Demographics'!$C$2:$C$47,0),MATCH('5 YR Budget'!F$12,'Enrollment and Demographics'!$C$2:$M$2,0)) -> 24993.15789 | G37: =INDEX(Expense_Assump,MATCH('5 YR Budget'!$B37,Assumptions!$C:$C,0),MATCH('5 YR Budget'!G$12,Assumptions!$C$2:$K$2,0))*INDEX(X_Enrollment,MATCH('Enrollment and Demographics'!$C$39,'Enrollment and Demographics'!$C$2:$C$47,0),MATCH('5 YR Budget'!G$12,'Enrollment and Demographics'!$C$2:$M$2,0)) -> 34460.26316 | H37: =INDEX(Expense_Assump,MATCH('5 YR Budget'!$B37,Assumptions!$C:$C,0),MATCH('5 YR Budget'!H$12,Assumptions!$C$2:$K$2,0))*INDEX(X_Enrollment,MATCH('Enrollment and Demographics'!$C$39,'Enrollment and Demographics'!$C$2:$C$47,0),MATCH('5 YR Budget'!H$12,'Enrollment and Demographics'!$C$2:$M$2,0)) -> 38625.78947 | I37: =INDEX(Expense_Assump,MATCH('5 YR Budget'!$B37,Assumptions!$C:$C,0),MATCH('5 YR Budget'!I$12,Assumptions!$C$2:$K$2,0))*INDEX(X_Enrollment,MATCH('Enrollment and Demographics'!$C$39,'Enrollment and Demographics'!$C$2:$C$47,0),MATCH('5 YR Budget'!I$12,'Enrollment and Demographics'!$C$2:$M$2,0)) -> 42980.65789 | J37: =INDEX(Expense_Assump,MATCH('5 YR Budget'!$B37,Assumptions!$C:$C,0),MATCH('5 YR Budget'!J$12,Assumptions!$C$2:$K$2,0))*VLOOKUP("Student Count Qualifying for Free or Reduced Lunch",'Enrollment and Demographics'!$C:$M,8,FALSE) -> 48282.23684
B38: Title II | D38: 1615 | E38: =INDEX(Expense_Assump,MATCH('5 YR Budget'!$B38,Assumptions!$C:$C,0),MATCH('5 YR Budget'!E$12,Assumptions!$C$2:$K$2,0))*INDEX(X_Enrollment,MATCH('Enrollment and Demographics'!$C$39,'Enrollment and Demographics'!$C$2:$C$47,0),MATCH('5 YR Budget'!E$12,'Enrollment and Demographics'!$C$2:$M$2,0)) -> 2033 | F38: =INDEX(Expense_Assump,MATCH('5 YR Budget'!$B38,Assumptions!$C:$C,0),MATCH('5 YR Budget'!F$12,Assumptions!$C$2:$K$2,0))*INDEX(X_Enrollment,MATCH('Enrollment and Demographics'!$C$39,'Enrollment and Demographics'!$C$2:$C$47,0),MATCH('5 YR Budget'!F$12,'Enrollment and Demographics'!$C$2:$M$2,0)) -> 2522.142857 | G38: =INDEX(Expense_Assump,MATCH('5 YR Budget'!$B38,Assumptions!$C:$C,0),MATCH('5 YR Budget'!G$12,Assumptions!$C$2:$K$2,0))*INDEX(X_Enrollment,MATCH('Enrollment and Demographics'!$C$39,'Enrollment and Demographics'!$C$2:$C$47,0),MATCH('5 YR Budget'!G$12,'Enrollment and Demographics'!$C$2:$M$2,0)) -> 3477.5 | H38: =INDEX(Expense_Assump,MATCH('5 YR Budget'!$B38,Assumptions!$C:$C,0),MATCH('5 YR Budget'!H$12,Assumptions!$C$2:$K$2,0))*INDEX(X_Enrollment,MATCH('Enrollment and Demographics'!$C$39,'Enrollment and Demographics'!$C$2:$C$47,0),MATCH('5 YR Budget'!H$12,'Enrollment and Demographics'!$C$2:$M$2,0)) -> 3897.857143 | I38: =INDEX(Expense_Assump,MATCH('5 YR Budget'!$B38,Assumptions!$C:$C,0),MATCH('5 YR Budget'!I$12,Assumptions!$C$2:$K$2,0))*INDEX(X_Enrollment,MATCH('Enrollment and Demographics'!$C$39,'Enrollment and Demographics'!$C$2:$C$47,0),MATCH('5 YR Budget'!I$12,'Enrollment and Demographics'!$C$2:$M$2,0)) -> 4337.321429 | J38: =INDEX(Expense_Assump,MATCH('5 YR Budget'!$B38,Assumptions!$C:$C,0),MATCH('5 YR Budget'!J$12,Assumptions!$C$2:$K$2,0))*VLOOKUP("Student Count Qualifying for Free or Reduced Lunch",'Enrollment and Demographics'!$C:$M,8,FALSE) -> 4872.321429
B39: Title III & IV | D39: 10000 | E39: =INDEX(Expense_Assump,MATCH('5 YR Budget'!$B39,Assumptions!$C:$C,0),MATCH('5 YR Budget'!E$12,Assumptions!$C$2:$I$2,0)) -> 10000 | F39: =INDEX(Expense_Assump,MATCH('5 YR Budget'!$B39,Assumptions!$C:$C,0),MATCH('5 YR Budget'!F$12,Assumptions!$C$2:$I$2,0)) -> 10000 | G39: =INDEX(Expense_Assump,MATCH('5 YR Budget'!$B39,Assumptions!$C:$C,0),MATCH('5 YR Budget'!G$12,Assumptions!$C$2:$I$2,0)) -> 10000 | H39: =INDEX(Expense_Assump,MATCH('5 YR Budget'!$B39,Assumptions!$C:$C,0),MATCH('5 YR Budget'!H$12,Assumptions!$C$2:$I$2,0)) -> 10000 | I39: =+H39 -> 10000 | J39: =INDEX(Expense_Assump,MATCH('5 YR Budget'!$B39,Assumptions!$C:$C,0),MATCH('5 YR Budget'!J$12,Assumptions!$C$2:$K$2,0))*VLOOKUP("English Language Learner Count (ELL)",'Enrollment and Demographics'!$C:$M,2,FALSE) -> 53350
B40: IDEA Funding | D40: 14980 | E40: =INDEX(Expense_Assump,MATCH('5 YR Budget'!$B40,Assumptions!$C:$C,0),MATCH('5 YR Budget'!E$12,Assumptions!$C$2:$I$2,0))*VLOOKUP("Actual Special Education Student Count (SpEd)",X_Enrollment,3,FALSE) -> 18628 | F40: =INDEX(Expense_Assump,MATCH('5 YR Budget'!$B40,Assumptions!$C:$C,0),MATCH('5 YR Budget'!F$12,Assumptions!$C$2:$I$2,0))*VLOOKUP("Actual Special Education Student Count (SpEd)",X_Enrollment,4,FALSE) -> 25390.10406 | G40: =INDEX(Expense_Assump,MATCH('5 YR Budget'!$B40,Assumptions!$C:$C,0),MATCH('5 YR Budget'!G$12,Assumptions!$C$2:$I$2,0))*VLOOKUP("Actual Special Education Student Count (SpEd)",X_Enrollment,5,FALSE) -> 36057.79475 | H40: =INDEX(Expense_Assump,MATCH('5 YR Budget'!$B40,Assumptions!$C:$C,0),MATCH('5 YR Budget'!H$12,Assumptions!$C$2:$K$2,0))*VLOOKUP("Actual Special Education Student Count (SpEd)",X_Enrollment,6,FALSE) -> 41628.92216 | I40: =INDEX(Expense_Assump,MATCH('5 YR Budget'!$B40,Assumptions!$C:$C,0),MATCH('5 YR Budget'!I$12,Assumptions!$C$2:$K$2,0))*VLOOKUP("Actual Special Education Student Count (SpEd)",X_Enrollment,7,FALSE) -> 47712.05044 | J40: =INDEX(Expense_Assump,MATCH('5 YR Budget'!$B40,Assumptions!$C:$C,0),MATCH('5 YR Budget'!J$12,Assumptions!$C$2:$K$2,0))*VLOOKUP("Actual Special Education Student Count (SpEd)",X_Enrollment,8,FALSE) -> 55205.1544
B41: 6198 - School Food Services | D41: =13711+4775+12581+565+5000 -> 36632 | E41: =INDEX(Expense_Assump,MATCH('5 YR Budget'!$B41,Assumptions!$C:$C,0),MATCH('5 YR Budget'!E$12,Assumptions!$C$2:$I$2,0))*INDEX(X_Enrollment,MATCH("Total Enrollment",'Enrollment and Demographics'!$C$2:$C$47,0),MATCH(E$12,'Enrollment and Demographics'!$C$2:$M$2,0)) -> 38304 | F41: =INDEX(Expense_Assump,MATCH('5 YR Budget'!$B41,Assumptions!$C:$C,0),MATCH('5 YR Budget'!F$12,Assumptions!$C$2:$I$2,0))*INDEX(X_Enrollment,MATCH("Total Enrollment",'Enrollment and Demographics'!$C$2:$C$47,0),MATCH(F$12,'Enrollment and Demographics'!$C$2:$M$2,0)) -> 48470.4 | G41: =INDEX(Expense_Assump,MATCH('5 YR Budget'!$B41,Assumptions!$C:$C,0),MATCH('5 YR Budget'!G$12,Assumptions!$C$2:$I$2,0))*INDEX(X_Enrollment,MATCH("Total Enrollment",'Enrollment and Demographics'!$C$2:$C$47,0),MATCH(G$12,'Enrollment and Demographics'!$C$2:$M$2,0)) -> 68167.008 | H41: =INDEX(Expense_Assump,MATCH('5 YR Budget'!$B41,Assumptions!$C:$C,0),MATCH('5 YR Budget'!H$12,Assumptions!$C$2:$K$2,0))*INDEX(X_Enrollment,MATCH("Total Enrollment",'Enrollment and Demographics'!$C$2:$C$47,0),MATCH(H$12,'Enrollment and Demographics'!$C$2:$M$2,0)) -> 77935.11552 | I41: =INDEX(Expense_Assump,MATCH('5 YR Budget'!$B41,Assumptions!$C:$C,0),MATCH('5 YR Budget'!I$12,Assumptions!$C$2:$K$2,0))*INDEX(X_Enrollment,MATCH("Total Enrollment",'Enrollment and Demographics'!$C$2:$C$47,0),MATCH(I$12,'Enrollment and Demographics'!$C$2:$M$2,0)) -> 88456.35612 | J41: =INDEX(Expense_Assump,MATCH('5 YR Budget'!$B41,Assumptions!$C:$C,0),MATCH('5 YR Budget'!J$12,Assumptions!$C$2:$K$2,0))*INDEX(X_Enrollment,MATCH("Total Enrollment",'Enrollment and Demographics'!$C$2:$C$47,0),MATCH(J$12,'Enrollment and Demographics'!$C$2:$M$2,0)) -> 101354.6177 | L41: Based on 22-23 historical data
B42: CSP | D42: 298700 | E42: =INDEX(Expense_Assump,MATCH('5 YR Budget'!$B42,Assumptions!$C:$C,0),MATCH('5 YR Budget'!E$12,Assumptions!$C$2:$I$2,0)) -> 381299 | F42: =INDEX(Expense_Assump,MATCH('5 YR Budget'!$B42,Assumptions!$C:$C,0),MATCH('5 YR Budget'!F$12,Assumptions!$C$2:$I$2,0)) -> 231685.83 | G42: =INDEX(Expense_Assump,MATCH('5 YR Budget'!$B42,Assumptions!$C:$C,0),MATCH('5 YR Budget'!G$12,Assumptions!$C$2:$I$2,0)) -> 0 | H42: =INDEX(Expense_Assump,MATCH('5 YR Budget'!$B42,Assumptions!$C:$C,0),MATCH('5 YR Budget'!H$12,Assumptions!$C$2:$K$2,0)) -> 0 | I42: =INDEX(Expense_Assump,MATCH('5 YR Budget'!$B42,Assumptions!$C:$C,0),MATCH('5 YR Budget'!I$12,Assumptions!$C$2:$K$2,0)) -> 0 | J42: =INDEX(Expense_Assump,MATCH('5 YR Budget'!$B42,Assumptions!$C:$C,0),MATCH('5 YR Budget'!J$12,Assumptions!$C$2:$K$2,0)) -> 0
B43: Federal - Misc Grants | D43: =71881+7755 -> 79636 | E43: =INDEX(Expense_Assump,MATCH('5 YR Budget'!$B43,Assumptions!$C:$C,0),MATCH('5 YR Budget'!E$12,Assumptions!$C$2:$I$2,0)) -> 97896 | F43: =INDEX(Expense_Assump,MATCH('5 YR Budget'!$B43,Assumptions!$C:$C,0),MATCH('5 YR Budget'!F$12,Assumptions!$C$2:$I$2,0)) -> 0 | G43: =INDEX(Expense_Assump,MATCH('5 YR Budget'!$B43,Assumptions!$C:$C,0),MATCH('5 YR Budget'!G$12,Assumptions!$C$2:$I$2,0)) -> 0 | H43: =INDEX(Expense_Assump,MATCH('5 YR Budget'!$B43,Assumptions!$C:$C,0),MATCH('5 YR Budget'!H$12,Assumptions!$C$2:$K$2,0)) -> 0 | I43: =INDEX(Expense_Assump,MATCH('5 YR Budget'!$B43,Assumptions!$C:$C,0),MATCH('5 YR Budget'!I$12,Assumptions!$C$2:$K$2,0)) -> 0 | J43: =INDEX(Expense_Assump,MATCH('5 YR Budget'!$B43,Assumptions!$C:$C,0),MATCH('5 YR Budget'!J$12,Assumptions!$C$2:$K$2,0)) -> 0 | L43: E-rate, REAP & school health workfoce
B44: ESSER | D44: 55013 | E44: =MAX(INDEX(Expense_Assump,MATCH('5 YR Budget'!$B44,Assumptions!$C:$C,0),MATCH('5 YR Budget'!E$12,Assumptions!$C$2:$I$2,0))) -> 0 | F44: =MAX(INDEX(Expense_Assump,MATCH('5 YR Budget'!$B44,Assumptions!$C:$C,0),MATCH('5 YR Budget'!F$12,Assumptions!$C$2:$I$2,0))) -> 0 | G44: =MAX(INDEX(Expense_Assump,MATCH('5 YR Budget'!$B44,Assumptions!$C:$C,0),MATCH('5 YR Budget'!G$12,Assumptions!$C$2:$I$2,0))) -> 0 | H44: =MAX(INDEX(Expense_Assump,MATCH('5 YR Budget'!$B44,Assumptions!$C:$C,0),MATCH('5 YR Budget'!H$12,Assumptions!$C$2:$K$2,0))) -> 0 | I44: =MAX(INDEX(Expense_Assump,MATCH('5 YR Budget'!$B44,Assumptions!$C:$C,0),MATCH('5 YR Budget'!I$12,Assumptions!$C$2:$K$2,0))) -> 0 | J44: =MAX(INDEX(Expense_Assump,MATCH('5 YR Budget'!$B44,Assumptions!$C:$C,0),MATCH('5 YR Budget'!J$12,Assumptions!$C$2:$K$2,0))) -> 0
B45: TOTAL 5000 - FEDERAL REVENUE - RESTRICTED | D45: =SUM(D37:D44) -> 509723 | E45: =SUM(E37:E44) -> 572764 | F45: 343061.6348 | G45: 152162.5659 | H45: 172087.6843 | I45: 193486.3859 | J45: 263064.3304
B47: 8000 - OTHER ENTITIES
B48: 8200 - Private Foundations | D48: =INDEX(Expense_Assump,MATCH('5 YR Budget'!$B48,Assumptions!$C:$C,0),MATCH('5 YR Budget'!D$12,Assumptions!$C$2:$I$2,0)) -> 370000 | E48: =INDEX(Expense_Assump,MATCH('5 YR Budget'!$B48,Assumptions!$C:$C,0),MATCH('5 YR Budget'!E$12,Assumptions!$C$2:$I$2,0)) -> 420000 | F48: =INDEX(Expense_Assump,MATCH('5 YR Budget'!$B48,Assumptions!$C:$C,0),MATCH('5 YR Budget'!F$12,Assumptions!$C$2:$I$2,0)) -> 0 | G48: =INDEX(Expense_Assump,MATCH('5 YR Budget'!$B48,Assumptions!$C:$C,0),MATCH('5 YR Budget'!G$12,Assumptions!$C$2:$I$2,0)) -> 0 | H48: =INDEX(Expense_Assump,MATCH('5 YR Budget'!$B48,Assumptions!$C:$C,0),MATCH('5 YR Budget'!H$12,Assumptions!$C$2:$K$2,0)) -> 0 | I48: =INDEX(Expense_Assump,MATCH('5 YR Budget'!$B48,Assumptions!$C:$C,0),MATCH('5 YR Budget'!I$12,Assumptions!$C$2:$K$2,0)) -> 0 | J48: =INDEX(Expense_Assump,MATCH('5 YR Budget'!$B48,Assumptions!$C:$C,0),MATCH('5 YR Budget'!J$12,Assumptions!$C$2:$K$2,0)) -> 0 | L48: WA Charters 23-24
B49: TOTAL 8000 - OTHER ENTITIES | D49: =SUM(D48:D48) -> 370000 | E49: 420000 | F49: 0 | G49: 0 | H49: 0 | I49: 0 | J49: 0
B51: 9000 - OTHER FINANCING SOURCES
B52: Other Financing Sources | D52: =INDEX(Expense_Assump,MATCH('5 YR Budget'!$B52,Assumptions!$C:$C,0),MATCH('5 YR Budget'!D$12,Assumptions!$C$2:$I$2,0)) -> 0 | E52: =INDEX(Expense_Assump,MATCH('5 YR Budget'!$B52,Assumptions!$C:$C,0),MATCH('5 YR Budget'!E$12,Assumptions!$C$2:$I$2,0)) -> 0 | F52: =INDEX(Expense_Assump,MATCH('5 YR Budget'!$B52,Assumptions!$C:$C,0),MATCH('5 YR Budget'!F$12,Assumptions!$C$2:$I$2,0)) -> 0 | G52: =INDEX(Expense_Assump,MATCH('5 YR Budget'!$B52,Assumptions!$C:$C,0),MATCH('5 YR Budget'!G$12,Assumptions!$C$2:$I$2,0)) -> 0 | H52: =INDEX(Expense_Assump,MATCH('5 YR Budget'!$B52,Assumptions!$C:$C,0),MATCH('5 YR Budget'!H$12,Assumptions!$C$2:$K$2,0)) -> 0 | I52: =INDEX(Expense_Assump,MATCH('5 YR Budget'!$B52,Assumptions!$C:$C,0),MATCH('5 YR Budget'!I$12,Assumptions!$C$2:$K$2,0)) -> 0 | J52: =INDEX(Expense_Assump,MATCH('5 YR Budget'!$B52,Assumptions!$C:$C,0),MATCH('5 YR Budget'!J$12,Assumptions!$C$2:$K$2,0)) -> 0
B53: TOTAL 9000 - OTHER FINANCING SOURCES | D53: =+D52 -> 0 | E53: =+E52 -> 0 | F53: 0 | G53: 0 | H53: 0 | I53: =+I52 -> 0 | J53: 0
B55: TOTAL REVENUE | D55: =SUM(D19,D24,D34,D45,D49,D53) -> 2191069.34 | E55: =SUM(E19,E24,E34,E45,E49,E53) -> 2700395.098 | F55: =SUM(F19,F24,F34,F45,F49,F53) -> 2363987.117 | G55: 4113849.366 | H55: 4428633.326 | I55: =SUM(I19,I24,I34,I41,I45,I49,I53) -> 4855962.592 | J55: =SUM(J19,J24,J34,J41,J45,J49,J53) -> 
B57: EXPENSES
B58: ADMINISTRATIVE STAFF PERSONNEL COSTS
B59: Executive Management | D59: 90000 | E59: =SUMIF('Position Control (Staffing)'!$V:$V,'5 YR Budget'!$B59,'Position Control (Staffing)'!$P:$P) -> 87700 | F59: =SUMIF('Position Control (Staffing)'!$V:$V,'5 YR Budget'!$B59,'Position Control (Staffing)'!$Q:$Q) -> 108748 | G59: =SUMIF('Position Control (Staffing)'!$V:$V,'5 YR Budget'!$B59,'Position Control (Staffing)'!$R:$R) -> 110922.96 | H59: =SUMIF('Position Control (Staffing)'!$V:$V,'5 YR Budget'!$B59,'Position Control (Staffing)'!S:S) -> 113141.4192 | I59: =SUMIF('Position Control (Staffing)'!$V:$V,'5 YR Budget'!$B59,'Position Control (Staffing)'!T:T) -> 115404.2476 | J59: =SUMIF('Position Control (Staffing)'!$V:$V,'5 YR Budget'!$B59,'Position Control (Staffing)'!U:U) -> 98418.33254 | L59: Head of School
B60: Instructional Management | D60: 78000 | E60: =SUMIF('Position Control (Staffing)'!$V:$V,'5 YR Budget'!$B60,'Position Control (Staffing)'!$P:$P) -> 56810 | F60: =SUMIF('Position Control (Staffing)'!$V:$V,'5 YR Budget'!$B60,'Position Control (Staffing)'!$Q:$Q) -> 88536.2 | G60: =SUMIF('Position Control (Staffing)'!$V:$V,'5 YR Budget'!$B60,'Position Control (Staffing)'!$R:$R) -> 90306.924 | H60: =SUMIF('Position Control (Staffing)'!$V:$V,'5 YR Budget'!$B60,'Position Control (Staffing)'!S:S) -> 92113.06248 | I60: =SUMIF('Position Control (Staffing)'!$V:$V,'5 YR Budget'!$B60,'Position Control (Staffing)'!T:T) -> 93955.32373 | J60: =SUMIF('Position Control (Staffing)'!$V:$V,'5 YR Budget'!$B60,'Position Control (Staffing)'!U:U) -> 95834.4302 | L60: Montessori Coach
B61: Deans, Directors & Coordinators | D61: 0 | E61: =SUMIF('Position Control (Staffing)'!$V:$V,'5 YR Budget'!$B61,'Position Control (Staffing)'!$P:$P) -> 0 | F61: =SUMIF('Position Control (Staffing)'!$V:$V,'5 YR Budget'!$B61,'Position Control (Staffing)'!$Q:$Q) -> 0 | G61: =SUMIF('Position Control (Staffing)'!$V:$V,'5 YR Budget'!$B61,'Position Control (Staffing)'!$R:$R) -> 0 | H61: =SUMIF('Position Control (Staffing)'!$V:$V,'5 YR Budget'!$B61,'Position Control (Staffing)'!$S:$S) -> 0 | I61: =SUMIF('Position Control (Staffing)'!$V:$V,'5 YR Budget'!$B61,'Position Control (Staffing)'!$S:$S) -> 0 | J61: =SUMIF('Position Control (Staffing)'!$V:$V,'5 YR Budget'!$B61,'Position Control (Staffing)'!$S:$S) -> 0
B62: CFO / Director of Finance | D62: 0 | E62: =SUMIF('Position Control (Staffing)'!$V:$V,'5 YR Budget'!$B62,'Position Control (Staffing)'!$P:$P) -> 0 | F62: =SUMIF('Position Control (Staffing)'!$V:$V,'5 YR Budget'!$B62,'Position Control (Staffing)'!$Q:$Q) -> 0 | G62: =SUMIF('Position Control (Staffing)'!$V:$V,'5 YR Budget'!$B62,'Position Control (Staffing)'!$R:$R) -> 0 | H62: =SUMIF('Position Control (Staffing)'!$V:$V,'5 YR Budget'!$B62,'Position Control (Staffing)'!$S:$S) -> 0 | I62: =SUMIF('Position Control (Staffing)'!$V:$V,'5 YR Budget'!$B62,'Position Control (Staffing)'!$S:$S) -> 0 | J62: =SUMIF('Position Control (Staffing)'!$V:$V,'5 YR Budget'!$B62,'Position Control (Staffing)'!$S:$S) -> 0
B63: Operation / Business Manager | D63: 0 | E63: =SUMIF('Position Control (Staffing)'!$V:$V,'5 YR Budget'!$B63,'Position Control (Staffing)'!$P:$P) -> 0 | F63: =SUMIF('Position Control (Staffing)'!$V:$V,'5 YR Budget'!$B63,'Position Control (Staffing)'!$Q:$Q) -> 0 | G63: =SUMIF('Position Control (Staffing)'!$V:$V,'5 YR Budget'!$B63,'Position Control (Staffing)'!$R:$R) -> 0 | H63: =SUMIF('Position Control (Staffing)'!$V:$V,'5 YR Budget'!$B63,'Position Control (Staffing)'!$S:$S) -> 0 | I63: =SUMIF('Position Control (Staffing)'!$V:$V,'5 YR Budget'!$B63,'Position Control (Staffing)'!$S:$S) -> 0 | J63: =SUMIF('Position Control (Staffing)'!$V:$V,'5 YR Budget'!$B63,'Position Control (Staffing)'!$S:$S) -> 0
B64: Administrative Staff | D64: 97853.33333 | E64: =SUMIF('Position Control (Staffing)'!$V:$V,'5 YR Budget'!$B64,'Position Control (Staffing)'!$P:$P) -> 110205.6 | F64: =SUMIF('Position Control (Staffing)'!$V:$V,'5 YR Budget'!$B64,'Position Control (Staffing)'!$Q:$Q) -> 115884.712 | G64: =SUMIF('Position Control (Staffing)'!$V:$V,'5 YR Budget'!$B64,'Position Control (Staffing)'!$R:$R) -> 118202.4062 | H64: =SUMIF('Position Control (Staffing)'!$V:$V,'5 YR Budget'!$B64,'Position Control (Staffing)'!S:S) -> 120566.4544 | I64: =SUMIF('Position Control (Staffing)'!$V:$V,'5 YR Budget'!$B64,'Position Control (Staffing)'!T:T) -> 122977.7835 | J64: =SUMIF('Position Control (Staffing)'!$V:$V,'5 YR Budget'!$B64,'Position Control (Staffing)'!U:U) -> 121962.3391 | L64: Office Manager + Office Assistant
B65: Other - Administrative | D65: =SUMIF('Position Control (Staffing)'!$V:$V,'5 YR Budget'!$B65,'Position Control (Staffing)'!$O:$O) -> 0 | E65: =SUMIF('Position Control (Staffing)'!$V:$V,'5 YR Budget'!$B65,'Position Control (Staffing)'!$P:$P) -> 0 | F65: =SUMIF('Position Control (Staffing)'!$V:$V,'5 YR Budget'!$B65,'Position Control (Staffing)'!$Q:$Q) -> 0 | G65: =SUMIF('Position Control (Staffing)'!$V:$V,'5 YR Budget'!$B65,'Position Control (Staffing)'!$R:$R) -> 0 | H65: =SUMIF('Position Control (Staffing)'!$V:$V,'5 YR Budget'!$B65,'Position Control (Staffing)'!$S:$S) -> 0 | I65: =SUMIF('Position Control (Staffing)'!$V:$V,'5 YR Budget'!$B65,'Position Control (Staffing)'!$S:$S) -> 0 | J65: =SUMIF('Position Control (Staffing)'!$V:$V,'5 YR Budget'!$B65,'Position Control (Staffing)'!$S:$S) -> 0
B66: TOTAL ADMINISTRATIVE STAFF PERSONNEL COSTS | D66: =SUM(D59:D65) -> 265853.3333 | E66: 254715.6 | F66: 313168.912 | G66: 319432.2902 | H66: 325820.936 | I66: 332337.3548 | J66: 316215.1019
B68: INSTRUCTIONAL PERSONNEL COSTS
B69: Teachers - Regular | D69: 325000 | E69: =SUMIF('Position Control (Staffing)'!$V:$V,'5 YR Budget'!$B69,'Position Control (Staffing)'!$P:$P) -> 238323.1772 | F69: =SUMIF('Position Control (Staffing)'!$V:$V,'5 YR Budget'!$B69,'Position Control (Staffing)'!$Q:$Q) -> 362298.6221 | G69: =SUMIF('Position Control (Staffing)'!$V:$V,'5 YR Budget'!$B69,'Position Control (Staffing)'!$R:$R) -> 493892.4295 | H69: =SUMIF('Position Control (Staffing)'!$V:$V,'5 YR Budget'!$B69,'Position Control (Staffing)'!S:S) -> 561770.2781 | I69: =SUMIF('Position Control (Staffing)'!$V:$V,'5 YR Budget'!$B69,'Position Control (Staffing)'!T:T) -> 631005.6837 | J69: =SUMIF('Position Control (Staffing)'!$V:$V,'5 YR Budget'!$B69,'Position Control (Staffing)'!U:U) -> 701625.7974
B70: Teachers - SPED | D70: 125000 | E70: =SUMIF('Position Control (Staffing)'!$V:$V,'5 YR Budget'!$B70,'Position Control (Staffing)'!$P:$P) -> 152147.525 | F70: =SUMIF('Position Control (Staffing)'!$V:$V,'5 YR Budget'!$B70,'Position Control (Staffing)'!$Q:$Q) -> 155190.4755 | G70: =SUMIF('Position Control (Staffing)'!$V:$V,'5 YR Budget'!$B70,'Position Control (Staffing)'!$R:$R) -> 158294.285 | H70: =SUMIF('Position Control (Staffing)'!$V:$V,'5 YR Budget'!$B70,'Position Control (Staffing)'!S:S) -> 219460.1707 | I70: =SUMIF('Position Control (Staffing)'!$V:$V,'5 YR Budget'!$B70,'Position Control (Staffing)'!T:T) -> 223849.3741 | J70: =SUMIF('Position Control (Staffing)'!$V:$V,'5 YR Budget'!$B70,'Position Control (Staffing)'!U:U) -> 191819.9616
B71: Teaching Assistants | D71: 144742 | E71: =SUMIF('Position Control (Staffing)'!$V:$V,'5 YR Budget'!$B71,'Position Control (Staffing)'!$P:$P) -> 178213.224 | F71: =SUMIF('Position Control (Staffing)'!$V:$V,'5 YR Budget'!$B71,'Position Control (Staffing)'!$Q:$Q) -> 19742.32 | G71: =SUMIF('Position Control (Staffing)'!$V:$V,'5 YR Budget'!$B71,'Position Control (Staffing)'!$R:$R) -> 75624.7624 | H71: =SUMIF('Position Control (Staffing)'!$V:$V,'5 YR Budget'!$B71,'Position Control (Staffing)'!S:S) -> 77137.25765 | I71: =SUMIF('Position Control (Staffing)'!$V:$V,'5 YR Budget'!$B71,'Position Control (Staffing)'!T:T) -> 78680.0028 | J71: =SUMIF('Position Control (Staffing)'!$V:$V,'5 YR Budget'!$B71,'Position Control (Staffing)'!U:U) -> 251234.9189
B72: Specialty Teachers | D72: 0 | E72: =SUMIF('Position Control (Staffing)'!$V:$V,'5 YR Budget'!$B72,'Position Control (Staffing)'!$P:$P) -> 29718 | F72: =SUMIF('Position Control (Staffing)'!$V:$V,'5 YR Budget'!$B72,'Position Control (Staffing)'!$Q:$Q) -> 50124.36 | G72: =SUMIF('Position Control (Staffing)'!$V:$V,'5 YR Budget'!$B72,'Position Control (Staffing)'!$R:$R) -> 51126.8472 | H72: =SUMIF('Position Control (Staffing)'!$V:$V,'5 YR Budget'!$B72,'Position Control (Staffing)'!S:S) -> 52149.38414 | I72: =SUMIF('Position Control (Staffing)'!$V:$V,'5 YR Budget'!$B72,'Position Control (Staffing)'!T:T) -> 53192.37183 | J72: =SUMIF('Position Control (Staffing)'!$V:$V,'5 YR Budget'!$B72,'Position Control (Staffing)'!U:U) -> 29491.21926 | L72: Language & PE
B73: Substitute Teachers | D73: 30428.18 | E73: =SUMIF('Position Control (Staffing)'!$V:$V,'5 YR Budget'!$B73,'Position Control (Staffing)'!$P:$P) -> 11700 | F73: =SUMIF('Position Control (Staffing)'!$V:$V,'5 YR Budget'!$B73,'Position Control (Staffing)'!$Q:$Q) -> 11934 | G73: =SUMIF('Position Control (Staffing)'!$V:$V,'5 YR Budget'!$B73,'Position Control (Staffing)'!$R:$R) -> 12172.68 | H73: =SUMIF('Position Control (Staffing)'!$V:$V,'5 YR Budget'!$B73,'Position Control (Staffing)'!S:S) -> 12416.1336 | I73: =SUMIF('Position Control (Staffing)'!$V:$V,'5 YR Budget'!$B73,'Position Control (Staffing)'!T:T) -> 12664.45627 | J73: =SUMIF('Position Control (Staffing)'!$V:$V,'5 YR Budget'!$B73,'Position Control (Staffing)'!U:U) -> 12917.7454
B74: Therapists & Counselors | D74: 0 | E74: =SUMIF('Position Control (Staffing)'!$V:$V,'5 YR Budget'!$B74,'Position Control (Staffing)'!$P:$P) -> 56107 | F74: =SUMIF('Position Control (Staffing)'!$V:$V,'5 YR Budget'!$B74,'Position Control (Staffing)'!$Q:$Q) -> 57229.14 | G74: =SUMIF('Position Control (Staffing)'!$V:$V,'5 YR Budget'!$B74,'Position Control (Staffing)'!$R:$R) -> 58373.7228 | H74: =SUMIF('Position Control (Staffing)'!$V:$V,'5 YR Budget'!$B74,'Position Control (Staffing)'!S:S) -> 84541.19726 | I74: =SUMIF('Position Control (Staffing)'!$V:$V,'5 YR Budget'!$B74,'Position Control (Staffing)'!T:T) -> 111232.0212 | J74: =SUMIF('Position Control (Staffing)'!$V:$V,'5 YR Budget'!$B74,'Position Control (Staffing)'!U:U) -> 113456.6616 | L74: Social Worker, Counselor
B75: Other - Instructional | D75: 0 | E75: =SUMIF('Position Control (Staffing)'!$V:$V,'5 YR Budget'!$B75,'Position Control (Staffing)'!$P:$P) -> 0 | F75: =SUMIF('Position Control (Staffing)'!$V:$V,'5 YR Budget'!$B75,'Position Control (Staffing)'!$Q:$Q) -> 0 | G75: =SUMIF('Position Control (Staffing)'!$V:$V,'5 YR Budget'!$B75,'Position Control (Staffing)'!$R:$R) -> 0 | H75: =SUMIF('Position Control (Staffing)'!$V:$V,'5 YR Budget'!$B75,'Position Control (Staffing)'!S:S) -> 0 | I75: =SUMIF('Position Control (Staffing)'!$V:$V,'5 YR Budget'!$B75,'Position Control (Staffing)'!T:T) -> 0 | J75: =SUMIF('Position Control (Staffing)'!$V:$V,'5 YR Budget'!$B75,'Position Control (Staffing)'!U:U) -> 0
B76: TOTAL INSTRUCTIONAL PERSONNEL COSTS | D76: =SUM(D69:D75) -> 625170.18 | E76: =SUM(E69:E75) -> 666208.9262 | F76: 656518.9176 | G76: 849484.727 | H76: 1007474.421 | I76: 1110623.91 | J76: 1300546.304
B78: NON-INSTRUCTIONAL PERSONNEL COSTS
B79: Nurse | D79: =SUMIF('Position Control (Staffing)'!$V:$V,'5 YR Budget'!$B79,'Position Control (Staffing)'!$O:$O) -> 0 | E79: =SUMIF('Position Control (Staffing)'!$V:$V,'5 YR Budget'!$B79,'Position Control (Staffing)'!$P:$P) -> 0 | F79: =SUMIF('Position Control (Staffing)'!$V:$V,'5 YR Budget'!$B79,'Position Control (Staffing)'!$Q:$Q) -> 0 | G79: =SUMIF('Position Control (Staffing)'!$V:$V,'5 YR Budget'!$B79,'Position Control (Staffing)'!$R:$R) -> 0 | H79: =SUMIF('Position Control (Staffing)'!$V:$V,'5 YR Budget'!$B79,'Position Control (Staffing)'!S:S) -> 0 | I79: =SUMIF('Position Control (Staffing)'!$V:$V,'5 YR Budget'!$B79,'Position Control (Staffing)'!T:T) -> 0 | J79: =SUMIF('Position Control (Staffing)'!$V:$V,'5 YR Budget'!$B79,'Position Control (Staffing)'!U:U) -> 0
B80: Librarian | D80: =SUMIF('Position Control (Staffing)'!$V:$V,'5 YR Budget'!$B80,'Position Control (Staffing)'!$O:$O) -> 0 | E80: =SUMIF('Position Control (Staffing)'!$V:$V,'5 YR Budget'!$B80,'Position Control (Staffing)'!$P:$P) -> 0 | F80: =SUMIF('Position Control (Staffing)'!$V:$V,'5 YR Budget'!$B80,'Position Control (Staffing)'!$Q:$Q) -> 0 | G80: =SUMIF('Position Control (Staffing)'!$V:$V,'5 YR Budget'!$B80,'Position Control (Staffing)'!$R:$R) -> 0 | H80: =SUMIF('Position Control (Staffing)'!$V:$V,'5 YR Budget'!$B80,'Position Control (Staffing)'!S:S) -> 0 | I80: =SUMIF('Position Control (Staffing)'!$V:$V,'5 YR Budget'!$B80,'Position Control (Staffing)'!T:T) -> 0 | J80: =SUMIF('Position Control (Staffing)'!$V:$V,'5 YR Budget'!$B80,'Position Control (Staffing)'!U:U) -> 0
B81: Custodian | D81: =SUMIF('Position Control (Staffing)'!$V:$V,'5 YR Budget'!$B81,'Position Control (Staffing)'!$O:$O) -> 0 | E81: =SUMIF('Position Control (Staffing)'!$V:$V,'5 YR Budget'!$B81,'Position Control (Staffing)'!$P:$P) -> 0 | F81: =SUMIF('Position Control (Staffing)'!$V:$V,'5 YR Budget'!$B81,'Position Control (Staffing)'!$Q:$Q) -> 0 | G81: =SUMIF('Position Control (Staffing)'!$V:$V,'5 YR Budget'!$B81,'Position Control (Staffing)'!$R:$R) -> 0 | H81: =SUMIF('Position Control (Staffing)'!$V:$V,'5 YR Budget'!$B81,'Position Control (Staffing)'!S:S) -> 0 | I81: =SUMIF('Position Control (Staffing)'!$V:$V,'5 YR Budget'!$B81,'Position Control (Staffing)'!T:T) -> 0 | J81: =SUMIF('Position Control (Staffing)'!$V:$V,'5 YR Budget'!$B81,'Position Control (Staffing)'!U:U) -> 0
B82: Security | D82: =SUMIF('Position Control (Staffing)'!$V:$V,'5 YR Budget'!$B82,'Position Control (Staffing)'!$O:$O) -> 0 | E82: =SUMIF('Position Control (Staffing)'!$V:$V,'5 YR Budget'!$B82,'Position Control (Staffing)'!$P:$P) -> 0 | F82: =SUMIF('Position Control (Staffing)'!$V:$V,'5 YR Budget'!$B82,'Position Control (Staffing)'!$Q:$Q) -> 0 | G82: =SUMIF('Position Control (Staffing)'!$V:$V,'5 YR Budget'!$B82,'Position Control (Staffing)'!$R:$R) -> 0 | H82: =SUMIF('Position Control (Staffing)'!$V:$V,'5 YR Budget'!$B82,'Position Control (Staffing)'!S:S) -> 0 | I82: =SUMIF('Position Control (Staffing)'!$V:$V,'5 YR Budget'!$B82,'Position Control (Staffing)'!T:T) -> 0 | J82: =SUMIF('Position Control (Staffing)'!$V:$V,'5 YR Budget'!$B82,'Position Control (Staffing)'!U:U) -> 0
B83: Other - Non-Instructional | D83: 117209.6 | E83: =SUMIF('Position Control (Staffing)'!$V:$V,'5 YR Budget'!$B83,'Position Control (Staffing)'!$P:$P) -> 145605.6 | F83: =SUMIF('Position Control (Staffing)'!$V:$V,'5 YR Budget'!$B83,'Position Control (Staffing)'!$Q:$Q) -> 132646.672 | G83: =SUMIF('Position Control (Staffing)'!$V:$V,'5 YR Budget'!$B83,'Position Control (Staffing)'!$R:$R) -> 188198.8054 | H83: =SUMIF('Position Control (Staffing)'!$V:$V,'5 YR Budget'!$B83,'Position Control (Staffing)'!S:S) -> 191962.7815 | I83: =SUMIF('Position Control (Staffing)'!$V:$V,'5 YR Budget'!$B83,'Position Control (Staffing)'!T:T) -> 195802.0372 | J83: =SUMIF('Position Control (Staffing)'!$V:$V,'5 YR Budget'!$B83,'Position Control (Staffing)'!U:U) -> 184345.8511 | L83: Bus Driver, Lunch server & Nurse
B84: TOTAL NON-INSTRUCTIONAL PERSONNEL COSTS | D84: =SUM(D79:D83) -> 117209.6 | E84: 145605.6 | F84: 132646.672 | G84: 188198.8054 | H84: 191962.7815 | I84: 195802.0372 | J84: 184345.8511
B86: TOTAL PERSONNEL SALARY COSTS | D86: =D66+D76+D84 -> 1008233.113 | E86: 1066530.126 | F86: 1102334.502 | G86: 1357115.823 | H86: 1525258.139 | I86: 1638763.302 | J86: =J66+J76+J84 -> 1801107.257
B88: =Assumptions!C42 -> PAYROLL TAXES AND BENEFITS
B89: =Assumptions!C43 -> Social Security | D89: =+D86*0.03 -> 30246.9934 | E89: =INDEX(Expense_Assump,MATCH('5 YR Budget'!$B89,Assumptions!$C:$C,0),MATCH('5 YR Budget'!E$12,Assumptions!$C$2:$I$2,0))*SUMIF('Position Control (Staffing)'!$Y:$Y, "Yes",'Position Control (Staffing)'!P:P) -> 33520.23194 | F89: =INDEX(Expense_Assump,MATCH('5 YR Budget'!$B89,Assumptions!$C:$C,0),MATCH('5 YR Budget'!F$12,Assumptions!$C$2:$I$2,0))*SUMIF('Position Control (Staffing)'!$Y:$Y, "Yes",'Position Control (Staffing)'!Q:Q) -> 42829.21942 | G89: =INDEX(Expense_Assump,MATCH('5 YR Budget'!$B89,Assumptions!$C:$C,0),MATCH('5 YR Budget'!G$12,Assumptions!$C$2:$I$2,0))*SUMIF('Position Control (Staffing)'!$Y:$Y, "Yes",'Position Control (Staffing)'!R:R) -> 52572.31558 | H89: =INDEX(Expense_Assump,MATCH('5 YR Budget'!$B89,Assumptions!$C:$C,0),MATCH('5 YR Budget'!H$12,Assumptions!$C$2:$I$2,0))*SUMIF('Position Control (Staffing)'!$Y:$Y, "Yes",'Position Control (Staffing)'!S:S) -> 60815.76189 | I89: =+H89*1.05 -> 63856.54998 | J89: =INDEX(Expense_Assump,MATCH('5 YR Budget'!$B89,Assumptions!$C:$C,0),MATCH('5 YR Budget'!J$12,Assumptions!$C$2:$K$2,0))*J$86 -> 111668.6499
B90: =Assumptions!C44 -> Medicare | D90: =+D86*0.0145 -> 14619.38014 | E90: =INDEX(Expense_Assump,MATCH('5 YR Budget'!$B90,Assumptions!$C:$C,0),MATCH('5 YR Budget'!E$12,Assumptions!$C$2:$I$2,0))*E$86 -> 15464.68683 | F90: =INDEX(Expense_Assump,MATCH('5 YR Budget'!$B90,Assumptions!$C:$C,0),MATCH('5 YR Budget'!F$12,Assumptions!$C$2:$I$2,0))*F$86 -> 15983.85027 | G90: =INDEX(Expense_Assump,MATCH('5 YR Budget'!$B90,Assumptions!$C:$C,0),MATCH('5 YR Budget'!G$12,Assumptions!$C$2:$I$2,0))*G$86 -> 19678.17943 | H90: =INDEX(Expense_Assump,MATCH('5 YR Budget'!$B90,Assumptions!$C:$C,0),MATCH('5 YR Budget'!H$12,Assumptions!$C$2:$I$2,0))*H$86 -> 22116.24302 | I90: =INDEX(Expense_Assump,MATCH('5 YR Budget'!$B90,Assumptions!$C:$C,0),MATCH('5 YR Budget'!I$12,Assumptions!$C$2:$K$2,0))*I$86 -> 23762.06788 | J90: =INDEX(Expense_Assump,MATCH('5 YR Budget'!$B90,Assumptions!$C:$C,0),MATCH('5 YR Budget'!J$12,Assumptions!$C$2:$K$2,0))*J$86 -> 26116.05523
B91: =Assumptions!C45 -> State Unemployment | D91: 7500 | E91: =INDEX(Expense_Assump,MATCH('5 YR Budget'!$B91,Assumptions!$C:$C,0),MATCH('5 YR Budget'!E$12,Assumptions!$C$2:$I$2,0))*E$86 -> 9598.771136 | F91: =INDEX(Expense_Assump,MATCH('5 YR Budget'!$B91,Assumptions!$C:$C,0),MATCH('5 YR Budget'!F$12,Assumptions!$C$2:$I$2,0))*F$86 -> 9921.010514 | G91: =INDEX(Expense_Assump,MATCH('5 YR Budget'!$B91,Assumptions!$C:$C,0),MATCH('5 YR Budget'!G$12,Assumptions!$C$2:$I$2,0))*G$86 -> 12214.0424 | H91: =INDEX(Expense_Assump,MATCH('5 YR Budget'!$B91,Assumptions!$C:$C,0),MATCH('5 YR Budget'!H$12,Assumptions!$C$2:$I$2,0))*H$86 -> 13727.32325 | I91: =INDEX(Expense_Assump,MATCH('5 YR Budget'!$B91,Assumptions!$C:$C,0),MATCH('5 YR Budget'!I$12,Assumptions!$C$2:$K$2,0))*I$86 -> 14748.86972 | J91: =INDEX(Expense_Assump,MATCH('5 YR Budget'!$B91,Assumptions!$C:$C,0),MATCH('5 YR Budget'!J$12,Assumptions!$C$2:$K$2,0))*J$86 -> 16209.96531
B92: =Assumptions!C46 -> Paid Family Medical Leave (State) | D92: 0 | E92: =INDEX(Expense_Assump,MATCH('5 YR Budget'!$B92,Assumptions!$C:$C,0),MATCH('5 YR Budget'!E$12,Assumptions!$C$2:$I$2,0))*E$86 -> 0 | F92: =INDEX(Expense_Assump,MATCH('5 YR Budget'!$B92,Assumptions!$C:$C,0),MATCH('5 YR Budget'!F$12,Assumptions!$C$2:$I$2,0))*F$86 -> 0 | G92: =INDEX(Expense_Assump,MATCH('5 YR Budget'!$B92,Assumptions!$C:$C,0),MATCH('5 YR Budget'!G$12,Assumptions!$C$2:$I$2,0))*G$86 -> 0 | H92: =INDEX(Expense_Assump,MATCH('5 YR Budget'!$B92,Assumptions!$C:$C,0),MATCH('5 YR Budget'!H$12,Assumptions!$C$2:$K$2,0))*H$86 -> 0 | I92: =INDEX(Expense_Assump,MATCH('5 YR Budget'!$B92,Assumptions!$C:$C,0),MATCH('5 YR Budget'!I$12,Assumptions!$C$2:$K$2,0))*I$86 -> 0 | J92: =INDEX(Expense_Assump,MATCH('5 YR Budget'!$B92,Assumptions!$C:$C,0),MATCH('5 YR Budget'!J$12,Assumptions!$C$2:$K$2,0))*J$86 -> 0
B93: =Assumptions!C47 -> Worker's Compensation Insurance | D93: 8171.995302 | E93: =INDEX(Expense_Assump,MATCH('5 YR Budget'!$B93,Assumptions!$C:$C,0),MATCH('5 YR Budget'!E$12,Assumptions!$C$2:$I$2,0))*E$86 -> 8638.894022 | F93: =INDEX(Expense_Assump,MATCH('5 YR Budget'!$B93,Assumptions!$C:$C,0),MATCH('5 YR Budget'!F$12,Assumptions!$C$2:$I$2,0))*F$86 -> 8928.909463 | G93: =INDEX(Expense_Assump,MATCH('5 YR Budget'!$B93,Assumptions!$C:$C,0),MATCH('5 YR Budget'!G$12,Assumptions!$C$2:$I$2,0))*G$86 -> 10992.63816 | H93: =INDEX(Expense_Assump,MATCH('5 YR Budget'!$B93,Assumptions!$C:$C,0),MATCH('5 YR Budget'!H$12,Assumptions!$C$2:$I$2,0))*H$86 -> 12354.59093 | I93: =INDEX(Expense_Assump,MATCH('5 YR Budget'!$B93,Assumptions!$C:$C,0),MATCH('5 YR Budget'!I$12,Assumptions!$C$2:$K$2,0))*I$86 -> 13273.98275 | J93: =INDEX(Expense_Assump,MATCH('5 YR Budget'!$B93,Assumptions!$C:$C,0),MATCH('5 YR Budget'!J$12,Assumptions!$C$2:$K$2,0))*J$86 -> 14588.96878
B94: =Assumptions!C48 -> Federal Unemployment | D94: 0 | E94: =INDEX(Expense_Assump,MATCH('5 YR Budget'!$B94,Assumptions!$C:$C,0),MATCH('5 YR Budget'!E$12,Assumptions!$C$2:$I$2,0))*E$86 -> 0 | F94: =INDEX(Expense_Assump,MATCH('5 YR Budget'!$B94,Assumptions!$C:$C,0),MATCH('5 YR Budget'!F$12,Assumptions!$C$2:$I$2,0))*F$86 -> 0 | G94: =INDEX(Expense_Assump,MATCH('5 YR Budget'!$B94,Assumptions!$C:$C,0),MATCH('5 YR Budget'!G$12,Assumptions!$C$2:$I$2,0))*G$86 -> 0 | H94: =INDEX(Expense_Assump,MATCH('5 YR Budget'!$B94,Assumptions!$C:$C,0),MATCH('5 YR Budget'!H$12,Assumptions!$C$2:$I$2,0))*H$86 -> 0 | I94: =INDEX(Expense_Assump,MATCH('5 YR Budget'!$B94,Assumptions!$C:$C,0),MATCH('5 YR Budget'!I$12,Assumptions!$C$2:$K$2,0))*I$86 -> 0 | J94: =INDEX(Expense_Assump,MATCH('5 YR Budget'!$B94,Assumptions!$C:$C,0),MATCH('5 YR Budget'!J$12,Assumptions!$C$2:$K$2,0))*J$86 -> 0
B95: =Assumptions!C49 -> SEBB | D95: 210000 | E95: =+Assumptions!AL48 -> 277200 | F95: =+Assumptions!AM48 -> 250800 | G95: =+Assumptions!AN48 -> 316800 | H95: =+Assumptions!AO48 -> 356400 | I95: =+Assumptions!AP48 -> 369600 | J95: =+Assumptions!AQ48 -> 
B96: =Assumptions!C50 -> SERS (Classified Retirement) | D96: 63370.34322 | E96: =+SUMIF('Position Control (Staffing)'!$X:$X,"Class",'Position Control (Staffing)'!P:P)*INDEX(Expense_Assump,MATCH('5 YR Budget'!$B96,Assumptions!$C:$C,0),MATCH('5 YR Budget'!E$12,Assumptions!$C$2:$I$2,0)) -> 57478.81778 | F96: =+SUMIF('Position Control (Staffing)'!$X:$X,"Class",'Position Control (Staffing)'!Q:Q)*INDEX(Expense_Assump,MATCH('5 YR Budget'!$B96,Assumptions!$C:$C,0),MATCH('5 YR Budget'!F$12,Assumptions!$C$2:$I$2,0)) -> 44981.39195 | G96: =+SUMIF('Position Control (Staffing)'!$X:$X,"Class",'Position Control (Staffing)'!R:R)*INDEX(Expense_Assump,MATCH('5 YR Budget'!$B96,Assumptions!$C:$C,0),MATCH('5 YR Budget'!G$12,Assumptions!$C$2:$I$2,0)) -> 55652.85469 | H96: =+SUMIF('Position Control (Staffing)'!$X:$X,"Class",'Position Control (Staffing)'!S:S)*INDEX(Expense_Assump,MATCH('5 YR Budget'!$B96,Assumptions!$C:$C,0),MATCH('5 YR Budget'!H$12,Assumptions!$C$2:$I$2,0)) -> 59498.41179 | I96: =+SUMIF('Position Control (Staffing)'!$X:$X,"Class",'Position Control (Staffing)'!T:T)*VLOOKUP($B96,Expense_Assump,5,FALSE) -> 63420.88002 | J96: =+SUMIF('Position Control (Staffing)'!$X:$X,"Class",'Position Control (Staffing)'!U:U)*VLOOKUP($B96,Expense_Assump,5,FALSE) -> 77327.40405
B97: =Assumptions!C51 -> TRS (Certificated Retirement) | D97: 66097.0674 | E97: =+SUMIF('Position Control (Staffing)'!$X:$X,"Cert",'Position Control (Staffing)'!P:P)*INDEX(Expense_Assump,MATCH('5 YR Budget'!$B97,Assumptions!$C:$C,0),MATCH('5 YR Budget'!E$12,Assumptions!$C$2:$I$2,0)) -> 51308.04351 | F97: =+SUMIF('Position Control (Staffing)'!$X:$X,"Cert",'Position Control (Staffing)'!Q:Q)*INDEX(Expense_Assump,MATCH('5 YR Budget'!$B97,Assumptions!$C:$C,0),MATCH('5 YR Budget'!F$12,Assumptions!$C$2:$I$2,0)) -> 65849.40658 | G97: =+SUMIF('Position Control (Staffing)'!$X:$X,"Cert",'Position Control (Staffing)'!R:R)*INDEX(Expense_Assump,MATCH('5 YR Budget'!$B97,Assumptions!$C:$C,0),MATCH('5 YR Budget'!G$12,Assumptions!$C$2:$I$2,0)) -> 81069.4857 | H97: =+SUMIF('Position Control (Staffing)'!$X:$X,"Cert",'Position Control (Staffing)'!S:S)*INDEX(Expense_Assump,MATCH('5 YR Budget'!$B97,Assumptions!$C:$C,0),MATCH('5 YR Budget'!H$12,Assumptions!$C$2:$I$2,0)) -> 93942.87542 | I97: =+SUMIF('Position Control (Staffing)'!$X:$X,"Cert",'Position Control (Staffing)'!T:T)*VLOOKUP($B97,Expense_Assump,5,FALSE) -> 101447.7329 | J97: =+SUMIF('Position Control (Staffing)'!$X:$X,"Cert",'Position Control (Staffing)'!U:U)*VLOOKUP($B97,Expense_Assump,5,FALSE) -> 104828.9646
B98: =Assumptions!C52 -> TOTAL PAYROLL TAXES AND BENEFITS | D98: =SUM(D89:D97) -> 400005.7795 | E98: 453209.4452 | F98: 439293.7882 | G98: 548979.516 | H98: 618855.2063 | I98: 650110.0833
B100: =Assumptions!C54 -> TOTAL PERSONNEL, TAX & BENEFIT EXPENSES | D100: =D86+D98 -> 1408238.893 | E100: 1519739.571 | F100: 1541628.29 | G100: 1906095.339 | H100: 2144113.345 | I100: 2288873.385 | J100: =J86+J98 ->  | L100: =+F100/$E$4 -> 0.5708899009
D101: =D100/(D4) -> 0.6427176297 | F101: =F100/(F4-F48-F42) -> 0.7229880219 | G101: 0.4633362014 | H101: 0.4841478596 | I101: 0.4713531749 | J101: =J100/J4 -> 
B102: =Assumptions!C56 -> CONTRACTED SERVICES
B103: =Assumptions!C57 -> Accounting / Audit | D103: 23743 | E103: =INDEX(Expense_Assump,MATCH('5 YR Budget'!$B103,Assumptions!$C:$C,0),MATCH('5 YR Budget'!E$12,Assumptions!$C$2:$I$2,0)) -> 37610.715 | F103: =INDEX(Expense_Assump,MATCH('5 YR Budget'!$B103,Assumptions!$C:$C,0),MATCH('5 YR Budget'!F$12,Assumptions!$C$2:$I$2,0)) -> 38362.9293 | G103: =INDEX(Expense_Assump,MATCH('5 YR Budget'!$B103,Assumptions!$C:$C,0),MATCH('5 YR Budget'!G$12,Assumptions!$C$2:$I$2,0)) -> 39130.18789 | H103: =INDEX(Expense_Assump,MATCH('5 YR Budget'!$B103,Assumptions!$C:$C,0),MATCH('5 YR Budget'!H$12,Assumptions!$C$2:$I$2,0)) -> 39912.79164 | I103: =INDEX(Expense_Assump,MATCH('5 YR Budget'!$B103,Assumptions!$C:$C,0),MATCH('5 YR Budget'!I$12,Assumptions!$C$2:$K$2,0)) -> 40711.04748 | J103: =INDEX(Expense_Assump,MATCH('5 YR Budget'!$B103,Assumptions!$C:$C,0),MATCH('5 YR Budget'!J$12,Assumptions!$C$2:$K$2,0)) -> 41525.26843 | L103: =+Assumptions!M57 -> SAO & CPA audits
B104: =Assumptions!C58 -> Legal | D104: 8000 | E104: =INDEX(Expense_Assump,MATCH('5 YR Budget'!$B104,Assumptions!$C:$C,0),MATCH('5 YR Budget'!E$12,Assumptions!$C$2:$I$2,0)) -> 15000 | F104: =INDEX(Expense_Assump,MATCH('5 YR Budget'!$B104,Assumptions!$C:$C,0),MATCH('5 YR Budget'!F$12,Assumptions!$C$2:$I$2,0)) -> 5000 | G104: =INDEX(Expense_Assump,MATCH('5 YR Budget'!$B104,Assumptions!$C:$C,0),MATCH('5 YR Budget'!G$12,Assumptions!$C$2:$I$2,0)) -> 5000 | H104: =INDEX(Expense_Assump,MATCH('5 YR Budget'!$B104,Assumptions!$C:$C,0),MATCH('5 YR Budget'!H$12,Assumptions!$C$2:$I$2,0)) -> 5000 | I104: =INDEX(Expense_Assump,MATCH('5 YR Budget'!$B104,Assumptions!$C:$C,0),MATCH('5 YR Budget'!I$12,Assumptions!$C$2:$K$2,0)) -> 5000 | J104: =INDEX(Expense_Assump,MATCH('5 YR Budget'!$B104,Assumptions!$C:$C,0),MATCH('5 YR Budget'!J$12,Assumptions!$C$2:$K$2,0)) -> 5000 | L104: =+Assumptions!M58 -> Flat yearly "in case" amount
B105: =Assumptions!C59 -> Oversight Fee (3%) | D105: 38774.4822 | E105: =SUM(E22,E23,E27,E28,E29,E30,E32)*INDEX(Expense_Assump,MATCH('5 YR Budget'!$B105,Assumptions!$C:$C,0),MATCH('5 YR Budget'!E$12,Assumptions!$C$2:$I$2,0)) -> 45610.344 | F105: =SUM(F22,F23,F27,F28,F29,F30,F32)*INDEX(Expense_Assump,MATCH('5 YR Budget'!$B105,Assumptions!$C:$C,0),MATCH('5 YR Budget'!F$12,Assumptions!$C$2:$I$2,0)) -> 59253.01128 | G105: =SUM(G22,G23,G27,G28,G29,G30,G32)*INDEX(Expense_Assump,MATCH('5 YR Budget'!$B105,Assumptions!$C:$C,0),MATCH('5 YR Budget'!G$12,Assumptions!$C$2:$I$2,0)) -> 117239.2019 | H105: =SUM(H22,H23,H27,H28,H29,H30,H32)*INDEX(Expense_Assump,MATCH('5 YR Budget'!$B105,Assumptions!$C:$C,0),MATCH('5 YR Budget'!H$12,Assumptions!$C$2:$I$2,0)) -> 125980.8416 | I105: =SUM(I22,I23,I27,I28,I29,I30,I32)*INDEX(Expense_Assump,MATCH('5 YR Budget'!$B105,Assumptions!$C:$C,0),MATCH('5 YR Budget'!I$12,Assumptions!$C$2:$K$2,0)) -> 135396.2093 | J105: =SUM(J22,J23,J27,J28,J29,J30,J32)*INDEX(Expense_Assump,MATCH('5 YR Budget'!$B105,Assumptions!$C:$C,0),MATCH('5 YR Budget'!J$12,Assumptions!$C$2:$K$2,0)) ->  | L105: =+Assumptions!M59 -> Calculates as a % of total revenue for lines 3100, 3121, 4121, 4155, 4165, 4174 & 4199
B106: =Assumptions!C60 -> Substitute Teachers | D106: 0 | E106: =INDEX(Expense_Assump,MATCH('5 YR Budget'!$B106,Assumptions!$C:$C,0),MATCH('5 YR Budget'!E$12,Assumptions!$C$2:$I$2,0)) -> 0 | F106: =INDEX(Expense_Assump,MATCH('5 YR Budget'!$B106,Assumptions!$C:$C,0),MATCH('5 YR Budget'!F$12,Assumptions!$C$2:$I$2,0)) -> 0 | G106: =INDEX(Expense_Assump,MATCH('5 YR Budget'!$B106,Assumptions!$C:$C,0),MATCH('5 YR Budget'!G$12,Assumptions!$C$2:$I$2,0)) -> 0 | H106: =INDEX(Expense_Assump,MATCH('5 YR Budget'!$B106,Assumptions!$C:$C,0),MATCH('5 YR Budget'!H$12,Assumptions!$C$2:$I$2,0)) -> 0 | I106: =INDEX(Expense_Assump,MATCH('5 YR Budget'!$B106,Assumptions!$C:$C,0),MATCH('5 YR Budget'!I$12,Assumptions!$C$2:$K$2,0)) -> 0 | J106: =INDEX(Expense_Assump,MATCH('5 YR Budget'!$B106,Assumptions!$C:$C,0),MATCH('5 YR Budget'!J$12,Assumptions!$C$2:$K$2,0)) -> 0 | L106: Subs handled in-house
B107: =Assumptions!C61 -> Student Health | D107: 0 | E107: =INDEX(Expense_Assump,MATCH('5 YR Budget'!$B107,Assumptions!$C:$C,0),MATCH('5 YR Budget'!E$12,Assumptions!$C$2:$I$2,0)) -> 0 | F107: =INDEX(Expense_Assump,MATCH('5 YR Budget'!$B107,Assumptions!$C:$C,0),MATCH('5 YR Budget'!F$12,Assumptions!$C$2:$I$2,0)) -> 0 | G107: =INDEX(Expense_Assump,MATCH('5 YR Budget'!$B107,Assumptions!$C:$C,0),MATCH('5 YR Budget'!G$12,Assumptions!$C$2:$I$2,0)) -> 0 | H107: =INDEX(Expense_Assump,MATCH('5 YR Budget'!$B107,Assumptions!$C:$C,0),MATCH('5 YR Budget'!H$12,Assumptions!$C$2:$I$2,0)) -> 0 | I107: =INDEX(Expense_Assump,MATCH('5 YR Budget'!$B107,Assumptions!$C:$C,0),MATCH('5 YR Budget'!I$12,Assumptions!$C$2:$K$2,0)) -> 0 | J107: =INDEX(Expense_Assump,MATCH('5 YR Budget'!$B107,Assumptions!$C:$C,0),MATCH('5 YR Budget'!J$12,Assumptions!$C$2:$K$2,0)) -> 0 | L107: Nurse hired in-house
